Workbook

Sheet LDC Info
Z3: 1 | AA3: Alectra Utilities Corporation
Z4: 2 | AA4: Alectra Utilities Corporation - Brampton service territory
Z5: 3 | AA5: Alectra Utilities Corporation - Horizon Utilities service territory
Z6: 4 | AA6: Alectra Utilities Corporation - Mississauga service territory
Z7: 5 | AA7: Alectra Utilities Corporation - PowerStream service territory
Z8: 6 | AA8: Algoma Power Inc.
Z9: 7 | AA9: Atikokan Hydro Inc.
Z10: 8 | AA10: Attawapiskat Power Corporation
Z11: 9 | AA11: Bluewater Power Distribution Corporation
Z12: 10 | AA12: Brantford Power Inc.
Z13: 11 | AA13: Burlington Hydro Inc.
D14: Utility Name | E14: Algoma Power Inc. | Z14: 12 | AA14: Canadian Niagara Power Inc. (Eastern Ontario Power/Fort Erie/Port Colborne)
Z15: 13 | AA15: Centre Wellington Hydro Ltd.
D16: Assigned EB Number | E16: EB-2019-0019 | Z16: 14 | AA16: Chapleau Public Utilities Corporation
Z17: 15 | AA17: COLLUS PowerStream Corp.
D18: Name of Contact and Title | E18: Greg Beharriell - Manager, Regulatory Affairs | Z18: 16 | AA18: Cooperative Hydro Embrun Inc.
Z19: 17 | AA19: E.L.K. Energy Inc.
D20: Phone Number | E20: 905-871-0330 ext 3278 | Z20: 18 | AA20: Energy + Inc.
Z21: 19 | AA21: Enersource Hydro Mississauga Inc.
D22: Email Address | E22: regulatoryaffairs@fortisontario.com | Z22: 20 | AA22: Entegrus Powerlines Inc.
Z23: 21 | AA23: ENWIN Utilities Ltd.
D24: Test Year | E24: 2020 | Z24: 22 | AA24: Erie Thames Powerlines Corporation
Z25: 23 | AA25: Espanola Regional Hydro Distribution Corporation
D26: Bridge Year | E26: =IF(ISBLANK(E24), "", E24-1) -> 2019 | Z26: 24 | AA26: Essex Powerlines Corporation
Z27: 25 | AA27: Festival Hydro Inc.
D28: Last Rebasing Year | E28: 2015 | Z28: 26 | AA28: Fort Albany Power Corporation
Z29: 27 | AA29: Fort Frances Power Corporation
A30: Identify the accounting standard used for the test year | Z30: 28 | AA30: Greater Sudbury Hydro Inc.
E31: MIFRS | Z31: 29 | AA31: Grimsby Power Inc.
Z32: 30 | AA32: Guelph Hydro Electric Systems Inc.
A33: Did you update your depreciation and capitalization policies and reflect the changes in policies in a prior rebasing application? | Z33: 31 | AA33: Halton Hills Hydro Inc.
E34: Yes | Z34: 32 | AA34: Hearst Power Distribution Company Limited
Z35: 33 | AA35: Hydro 2000 Inc.
A36: When did you update your actual depreciation and capitalization policies? | Z36: 34 | AA36: Hydro Hawkesbury Inc.
E37: 2001-01-01 | F37: 2013 | Z37: 35 | AA37: Hydro One Networks Inc.
Z38: 36 | AA38: Hydro One Networks Inc. - Norfolk, Haldimand, Woodstock
A39: Identify the year the applicant adopted IFRS for financial reporting purposes | Z39: 37 | AA39: Hydro One Remote Communities Inc.
Z40: 38 | AA40: Hydro Ottawa Limited
Z41: 39 | AA41: Innpower Corporation
Z42: 40 | AA42: Kashechewan Power Corporation
A43: Are you applying for cost recovery for the test and/or future year(s) for Green Energy initiatives? | Z43: 41 | AA43: Kenora Hydro Electric Corporation Ltd.
E44: No | Z44: 42 | AA44: Kingston Hydro Corporation
Z45: 43 | AA45: Kitchener-Wilmot Hydro Inc.
A46: ="Is " & E14 & " an embedded distributor?" -> Is Algoma Power Inc. an embedded distributor? | E46: No | Z46: 44 | AA46: Lakefront Utilities Inc.
Z47: 45 | AA47: Lakeland Power Distribution Ltd.
Z48: 46 | AA48: London Hydro Inc.
B49: Notes | Z49: 47 | AA49: Midland Power Utility Corporation
Z50: 48 | AA50: Milton Hydro Distribution Inc.
C51: Pale green cells represent input cells. | Z51: 49 | AA51: Newmarket-Tay Power Distribution Ltd.
Z52: 50 | AA52: Niagara Peninsula Energy Inc.
C53: Pale blue cells represent drop-down lists. The applicant should select the appropriate item from the drop-down list. | Z53: 51 | AA53: Niagara-on-the-Lake Hydro Inc.
Z54: 52 | AA54: North Bay Hydro Distribution Limited
C55: White cells contain fixed values, automatically generated values or formulae. | N55: =IF(LEN($G55)>1, (SUMPRODUCT(--($C$78:$C$1000=$C55),--($A$78:$A$1000=$D55), --($B$78:$B$1000=$B55&"_TOTAL"), $L$78:$L$1000)), "") ->  | O55: =IF(LEN($G55)>1, (SUMPRODUCT(--($C$78:$C$1000=$C55),--($A$78:$A$1000=$D55), --($B$78:$B$1000=$B55&"_TOTAL"), $M$78:$M$1000)), "") ->  | Z55: 53 | AA55: Northern Ontario Wires Inc.
N56: =IF(LEN($G56)>1, (SUMPRODUCT(--($C$78:$C$1000=$C56),--($A$78:$A$1000=$D56), --($B$78:$B$1000=$B56&"_TOTAL"), $L$78:$L$1000)), "") ->  | O56: =IF(LEN($G56)>1, (SUMPRODUCT(--($C$78:$C$1000=$C56),--($A$78:$A$1000=$D56), --($B$78:$B$1000=$B56&"_TOTAL"), $M$78:$M$1000)), "") ->  | Z56: 54 | AA56: Oakville Hydro Electricity Distribution Inc.
Z57: 55 | AA57: Orangeville Hydro Limited
Z58: 56 | AA58: Orillia Power Distribution Corporation
Z59: 57 | AA59: Oshawa PUC Networks Inc.
Z60: 58 | AA60: Ottawa River Power Corporation
Z61: 59 | AA61: Peterborough Distribution Inc.
Z62: 60 | AA62: PUC Distribution Inc.
Z63: 61 | AA63: Renfrew Hydro Inc.
Z64: 62 | AA64: Rideau St. Lawrence Distribution Inc.
Z65: 63 | AA65: Sioux Lookout Hydro Inc.
Z66: 64 | AA66: St. Thomas Energy Inc.
Z67: 65 | AA67: Thunder Bay Hydro Electricity Distribution Inc.
Z68: 66 | AA68: Tillsonburg Hydro Inc.
Z69: 67 | AA69: Toronto Hydro-Electric System Limited
Z70: 68 | AA70: Veridian Connections Inc.
Z71: 69 | AA71: Wasaga Distribution Inc.
Z72: 70 | AA72: Waterloo North Hydro Inc.
Z73: 71 | AA73: Welland Hydro-Electric System Corp.
Z74: 72 | AA74: Wellington North Power Inc.
Z75: 73 | AA75: West Coast Huron Energy Inc.
Z76: 74 | AA76: Westario Power Inc.
Z77: 75 | AA77: Whitby Hydro Electric Corporation

Sheet Index
A15: 1 | B15: LDC Information Sheet | E15: 20 | F15: App.2-G: Service Reliability Indicators
A16: 2 | B16: Index | E16: 21 | F16: App.2-H: Other Operating Revenue (TO BE UPDATED AT THE DRAFT RATE ORDER STAGE)
A17: 3 | B17: Cost of Service Application Flowchart | E17: 22 | F17: App.2-I: Load Forecast CDM Adjustment Workform
A18: 4 | B18: List of Key References | E18: 23 | F18: App.2-IA: Load Forecast Data Instructions
A19: 5 | B19: App.2-A: List of Requested Approvals | E19: 24 | F19: App.2-IB: Actual and Forecast Load and Customer Data
A20: 6 | B20: App.2-AA: Capital Projects Table | E20: 25 | F20: App.2-JA: OM&A Summary Analysis (TO BE UPDATED AT THE DRAFT RATE ORDER STAGE)
A21: 7 | B21: App.2-AB: Capital Expenditures (TO BE UPDATED AT THE DRAFT RATE ORDER STAGE) | E21: 26 | F21: App.2-JB: Recoverable OM&A Cost Driver Table
A22: 8 | B22: App. 2-AC: Customer Engagement Worksheet | E22: 27 | F22: App.2-JC: OM&A Programs Table
A23: 9 | B23: App.2-B: General Accounting Instructions | E23: 28 | F23: App.2-K: Employee Costs (TO BE UPDATED AT THE DRAFT RATE ORDER STAGE)
A24: 10 | B24: App.2-BA: Fixed Asset Continuity Schedule | E24: 29 | F24: App.2-L: Recoverable OM&A Cost per Customer and per FTE
A25: 11 | B25: Appendix 2-BB: Service Life Comparison | E25: 30 | F25: App.2-M: Regulatory Costs Schedule (TO BE UPDATED AT THE DRAFT RATE ORDER STAGE)
A26: 12 | B26: App.2-C_DepExp: Depreciation and Amortization Expense | E26: 31 | F26: App.2-N: Shared Services and Corporate Cost Allocation
A27: 13 | B27: App.2-D: Overhead Expenses | E27: 32 | F27: App.2-OA: Capital Structure and Cost of Capital
A28: 14 | B28: App.2-EA: Account 1575 PP&E Deferral Account (2015 IFRS Adopters) - CONTACT OEB STAFF IF TAB REQUIRED | E28: 33 | F28: App.2-OB: Debt Instruments
A29: 15 | B29: App.2-EB: Account 1576 - Accounting Changes Under CGAAP (2012 Changes) - CONTACT OEB STAFF IF TAB REQUIRED | E29: 34 | F29: App.2-Q: Cost of Serving Embedded Distributor(s)
A30: 16 | B30: App.2-EC: Account 1576 - Accounting Changes Under CGAAP (2013 Changes) - CONTACT OEB STAFF IF TAB REQUIRED | E30: 35 | F30: App.2-R: Loss Factors
A31: 17 | B31: App.2-FA: Renewable Generation Connection Investment Summary (TO BE UPDATED AT THE DRAFT RATE ORDER STAGE) | E31: 36 | F31: App.2-S: Stranded Meter Treatment
A32: 18 | B32: App.2-FB: Calculation of Renewable Generation Connection Direct Benefits/Provincial Amount: Renewable Enabling Improvement Investments (TO BE UPDATED AT THE DRAFT RATE ORDER STAGE) | E32: 37 | F32: App.2-Y: Transition to MIFRS Summary Impact - CONTACT OEB STAFF IF TAB REQUIRED
A33: 19 | B33: App.2-FC: Calculation of Renewable Generation Connection Direct Benefits/Provincial Amount: Renewable Expansion Investments (TO BE UPDATED AT THE DRAFT RATE ORDER STAGE) | E33: 38 | F33: App.2-YA: One-Time Incremental IFRS Transition Costs - CONTACT OEB STAFF IF TAB REQUIRED
E34: 39 | F34: App.2-Z: Commodity Expense
A42: Note: | B42: Appendices for the Tariff of Rates and Charges at Current and Proposed Rates, and for the Bill Impacts are now in a separate spreadsheet model. These appendices were formerly 2-Z and 2-W.

Sheet COS Flowchart
B4: Cost of Service Rate Application Schematic
B6: The Cost of Service Rate Application Schematic is a flowchart that is included as a guide for the components of an application. The schematic demonstrates how demand and costs interrelate to derive the revenue requirement and how the revenue requirement is allocated between classes and through fixed/variable splits to derive rates that will be compensatory for the annual revenue requirement, based on the the forecasted demand. There is no form to be filled out; therefore, this Schedule is not required to be filed.

Sheet List of Key References
B2: List of Key References
A4: A list of key references for understanding the Filing Requirements has been embedded in the document below. To access the list of references and associated hyperlinks double-click the icon below.

Sheet App.2-A_Requested_Approvals
G1: File Number: | H1: =EBNUMBER -> EB-2019-0019
G2: Exhibit: | H2: 1
G3: Tab:
G4: Schedule:
G5: Page:
G7: Date: | H7: 2019-06-03
B9: Appendix 2-A
B10: List of Requested Approvals
B12: The distributor must fill out the following sheet with the complete list of specific approvals requested and relevant section(s) of the legislation must be provided. All approvals, including accounting orders (deferral and variance accounts) new rate classes, revised specific service charges or retail service charges which the applicant is seeking, must be separately identified, as well being clearly documented in the appropriate sections of the application.
B14: Additional requests may be added by copying and pasting blank input rows, as needed.
B16: If additional requests arise, or requested approvals are removed, during the processing of the application, the distributor should update this list.
B18: =CONCATENATE('LDC Info'!E14," is seeking the following approvals in this application:") -> Algoma Power Inc. is seeking the following approvals in this application:
B20: 1 | F20: Approval to charge distribution rates effective January 1, 2020 to recover a base revenue requirement of $25,885,176, which includes a revenue deficiency of $2,192,853 as detailed in Exhibit 6. The schedule of proposed rates is set out in Exhibit 8
B22: 2 | F22: Approval of the 2020 RRRP Adjustment Factor and the 2020 RRRP Funding amount payable to API, as described in Exhibit 8
B24: 3 | F24: Approval to adjust the Retail Transmission Rates – Network and Connection as calculated in Exhibit 8
B26: 4 | F26: Approval of the proposed loss factors as calculated in Exhibit 8
B28: 5 | F28: Approval to continue to charge Wholesale Market and Rural Rate Protection Charges approved in the Board Decision and Order in the matter of EB-2018-0294
B30: 6 | F30: Approval of the Distribution System Plan included in Exhibit 2
B32: 7 | F32: Approval of the rate riders for disposition of the Deferral and Variance Accounts, including LRAMVA, as detailed in Exhibit 9
B34: 8 | F34: Approval for Advanced Capital Module (“ACM”) treatment of the 2021 Echo River TS Project and the 2022 Sault Facility Project, as described in Exhibit 2 and the DSP
B36: 9 | F36: Approval of API’s proposed approach for ACM cost recovery in consideration of the RRRP framework, as detailed in Section 1.3.5
B38: 10 | F38: Such other approvals that API may request and that the OEB accepts
B40: 11 | F40: [Intentionally withdrawn June 3, 2019]
B42: 12 | F42: Approval of API’s methodology for allocating costs attributable to the Dubreuilville service area, as summarized in Section 1.3.7
B44: 13 | F44: Approval of API’s methodologies with respect to ongoing disposition of the Interim Licence Deferral account and with respect to recovery of costs recorded in the Transaction and Integration Costs Deferral Account, both in relation to the Dubreuilville service area, as summarized in Section 1.3.7
B46: 14 | F46: Approval to resume charging Seasonal rate class customers a rate rider of $0.0307/kWh related to the Disposition of Account 1574, effective no later than January 1, 2020, as summarized in Section 1.3.8

Sheet App.2-AA_Cap Proj_SysAccess
G1: File Number: | H1: =EBNUMBER -> EB-2019-0019
G2: Exhibit: | H2: 2
G3: Tab:
G4: Schedule:
G5: Page:
G7: Date: | H7: 2019-09-24
A9: Appendix 2-AA
A10: Capital Projects Table
A12: Reporting Basis | B12: Reporting Basis | D12: MIFRS | E12: MIFRS | F12: MIFRS | G12: MIFRS | H12: MIFRS | I12: MIFRS
A13: Projects | B13: Projects | C13: USoA | D13: 2015 | E13: 2016 | F13: 2017 | G13: 2018 | H13: 2019 | I13: 2020
A15: System Access | B15: System Access | D15: =D13 -> 2015 | E15: =E13 -> 2016 | F15: 2017 | G15: 2018 | H15: 2019 | I15: 2020
B16: New Meters | D16: 63906.91 | E16: 102942.49 | F16: 107366.97 | G16: 23492.1 | H16: 48113.64 | I16: 67398.6
B17: New Cust Additions OH - Wawa | D17: 70247.12 | E17: 80786.85 | F17: 73580.12 | G17: 79069.93 | H17: 94194.72 | I17: 87706.2
B18: New Transformers - Service | D18: 31139.2 | E18: 128823.29 | F18: 42080.44 | G18: 63462.98 | H18: 76800 | I18: 76800
B19: New Cust Additions OH - Desb | D19: 76597.02 | E19: 232268 | F19: 225733.05 | G19: 267188.55 | H19: 233482.92 | I19: 224736.96
B20: New Cust Additions UG - Desb | D20: 269617.16 | E20: 2644.03 | F20: 1927 | G20: -820.26 | H20: 11186.16 | I20: 11441.52
B21: New Cust Additions OH - Sault | D21: 187803 | E21: 364253.69 | F21: 431991.77 | G21: 469220.35 | H21: 391586.88 | I21: 367882.2
B22: New Cust Additions UG - Sault | D22: 221692.06 | E22: 13742.57 | F22: 0 | G22: 654 | H22: 17713.68 | I22: 16562.04
B24: Miscellaneous SA | D24: 42142.35 | E24: 66079.84 | F24: 495.06 | G24: 58003.71 | H24: 39626.16 | I24: 50879.52
A26: Contributed Capital
D27: -147270.49 | E27: 71036.3 | F27: -78474.98 | G27: -64304.36 | H27: -140000 | I27: -101850
A31: Total System Access | B31: =A31 -> Total System Access | D31: =SUM(D16:D25)+SUM(D27:D30) -> 815874.33 | E31: 1062577.06 | F31: 804699.43 | G31: 895967 | H31: 772704.16 | I31: 801557.04

Sheet App.2-AA_Cap Proj_SysRen
G1: File Number: | H1: =EBNUMBER -> EB-2019-0019
G2: Exhibit: | H2: 2
G3: Tab:
G4: Schedule:
G5: Page:
G7: Date: | H7: 2019-09-24
A9: Appendix 2-AA
A10: Capital Projects Table
A12: Reporting Basis | B12: Reporting Basis | D12: MIFRS | E12: MIFRS | F12: MIFRS | G12: MIFRS | H12: MIFRS | I12: MIFRS
A13: Projects | B13: Projects | C13: USoA | D13: 2015 | E13: 2016 | F13: 2017 | G13: 2018 | H13: 2019 | I13: 2020
A15: System Renewal | B15: System Renewal | D15: =D13 -> 2015 | E15: =E13 -> 2016 | F15: 2017 | G15: 2018 | H15: 2019 | I15: 2020
B16: API Storm Rebuilds - Wawa | D16: 34816.83 | E16: 35338.9 | F16: 35514.4 | G16: 0 | H16: 40648.32 | I16: 40315.8
B17: API Storm Rebuilds - Desbarats | D17: 98145.15 | E17: 34910.09 | F17: 137605.43 | G17: 28978.68 | H17: 109033.32 | I17: 98219.4
B18: API Storm Rebuilds - Sault | D18: 60314.1 | E18: 49515.84 | F18: 43062.05 | G18: 31584.04 | H18: 71095.08 | I18: 66796.56
B19: API Small Lines Capital - Wawa | D19: 128955.31 | E19: 192946.06 | F19: 75220.39 | G19: 66815.06 | H19: 94415.88 | I19: 103239.6
B20: API Small Lines Capital - Desb. | D20: 224607.19 | E20: 160131.52 | F20: 95726.28 | G20: 171560.09 | H20: 129149.64 | I20: 139177.56
B21: API Small Lines Capital - Sault | D21: 211994.97 | E21: 101782.35 | F21: 144253.16 | G21: 179743.33 | H21: 132131.88 | I21: 150142.68
B22: API Replace Recloser, Regulator, etc. | D22: 107832.95 | E22: 101948.72 | F22: 82299.02 | G22: 98452.97 | H22: 80223.52 | I22: 81828
B23: Cond Repl - Centre Line Rd. (Phase 2) | D23: 188405.51
B24: Cond Repl - Neal Dr, Old Moffat Bay, Big Pit | D24: 143516.47
B25: Line Rebuild - Along Hwy 17 North from MTO yard to Northwood Dr | D25: 468411.64
B26: Line Rebuild - 20th Side Rd/I Line/V Line Rd SJI | D26: 383503.96
B27: Pole Replacement From Pole Testing Program | D27: =132723.77+105120.66 -> 237844.43 | E27: 181082.92 | F27: 128962.79 | G27: =282271.05+147977.46 -> 430248.51
B28: Line Rebuild - Along Hwy 17 South of Frater Rd | E28: 519321.81
B29: Line Rebuild - Shore Rd | E29: 307700.5
B30: Line Rebuild - River side, Lake side off Boyles side Rd | E30: 293597.29
B31: Line Rebuild - Tamawa Rd off Hwy 17N | E31: 242072.02
B32: Line Rebuild - Four Seasons Drive | E32: 183677.8
B33: Line Rebuild - Hillton Rd (Base Line to Hilton Beach) | E33: 177364.26
B34: Line Rebuild - HWY17 Batchewana Bay P102-P129 | E34: 114819 | F34: 164194.98
B35: Line Rebuild - Hwy 532 to end of line | F35: 648568.82 | G35: 157273.97
B36: Line Rebuild - HWY17 Wawa P1-P110 | F36: 472635.38
B37: Line Rebuild - Hwy 552 West | F37: 258639.34
B38: Line Rebuild - B-Line | F38: 180631.33
B39: Line Rebuild - Hwy17N at step up xfmr to mirian lake | F39: 156152.55 | G39: 677495.81
B40: Line Rebuild - Pancake to Mamainse | G40: 604454.61
B41: Line Rebuild - Hwy 17W of MacLennan Rd | G41: 343873.16
B42: Line Rebuild - Mackay to Rabbit Blanket - Eng | G42: 236771.94
B43: Line Rebuild - 10th Side Rd (f&g to d line) | G43: 215151.39
B44: Line Rebuild - F&G Line between 10th Side & A Line | G44: 151328.17
B45: Line Rebuild - McKinley Ave Wawa | G45: 114559.7
B46: Line Rebuilds (See DSP for Add'l Detail) | H46: 3380788.68 | I46: 2783071.56
B47: Wawa 34kV Rebuild | D47: 519281.73 | F47: 191760.92 | G47: 374368.89
B48: No 4 Circuit Rebuild | D48: 164269.66 | E48: 1038638.55 | F48: 272240.25 | G48: 612436.37
B49: API SubTransmission Rebuilds (Small) | D49: 72824.87 | E49: 11574 | F49: 8270 | G49: 82614.63
B50: SubTransmission Rebuilds (See DSP for Add'l Detail) | H50: 969206.76 | I50: 912061.08
B51: API NewTransf-Replace Failed/End of Life | D51: 53455.44 | E51: 18762.24 | F51: 29165.99 | G51: 30203.14 | H51: 76800 | I51: 76800
B52: API Substation Small Capital | D52: 61118.45 | E52: 63503.78 | F52: 50034 | G52: 2660 | H52: 60364.08 | I52: 42740.16
B53: Substation Capital - Dubr | I53: =1245948.84+250000 -> 1495948.84
B55: Miscellaneous SR | D55: 649357.91 | E55: 400230.86 | F55: 258952.8 | G55: 360113.81 | H55: 0 | I55: =24797.52+8038 -> 32835.52
A57: Contributed Capital
D58: 0 | E58: -43751.96 | F58: -54003.21 | G58: -4959.31
A62: Total System Renewal | B62: =A62 -> Total System Renewal | D62: =SUM(D16:D56)+SUM(D58:D61) -> 3808656.57 | E62: 4185166.55 | F62: 3379886.67 | G62: 4965728.96 | H62: 5143857.16 | I62: 6023176.76

Sheet App.2-AA_Cap Proj_SysServ
G1: File Number: | H1: =EBNUMBER -> EB-2019-0019
G2: Exhibit: | H2: 2
G3: Tab:
G4: Schedule:
G5: Page:
G7: Date: | H7: 2019-09-24
A9: Appendix 2-AA
A10: Capital Projects Table
A12: Reporting Basis | B12: Reporting Basis | D12: MIFRS | E12: MIFRS | F12: MIFRS | G12: MIFRS | H12: MIFRS | I12: MIFRS
A13: Projects | B13: Projects | C13: USoA | D13: 2015 | E13: 2016 | F13: 2017 | G13: 2018 | H13: 2019 | I13: 2020
A15: System Service | B15: System Service | D15: =D13 -> 2015 | E15: =E13 -> 2016 | F15: 2017 | G15: 2018 | H15: 2019 | I15: 2020
B16: API New Transf-Volt Conv/Capacity Incr | D16: 19589.82 | E16: 62243.05 | F16: 26424.82 | G16: 47179.72 | H16: 38400 | I16: 38400
B17: Hawk Junction DS rebuild | D17: 2805051.98 | E17: 771046.46
B18: API Protection Automation Reliability | D18: 102675 | E18: 156669.02 | F18: 16486.44 | G18: 122336.82 | H18: 286943.82 | I18: 256832.16
B19: API Sub/Subtrans Reliability Improvement | D19: 105951.45 | E19: 0 | F19: 16445.91 | G19: 122499.78 | H19: 263346.18 | I19: 267093.72
B20: API Desbarats DS Projects | F20: 1377.52 | G20: 47015.82 | H20: 279624.7
B21: Mackay API primary metering relocation | F21: 131704.74
A23: Contributed Capital
D24: 0 | E24: 0 | F24: 0 | G24: 0 | H24: 0 | I24: 0
A25: Total System Service | B25: =A25 -> Total System Service | D25: =SUM(D16:D22)+SUM(D24:D24) -> 3033268.25 | E25: 989958.53 | F25: 192439.43 | G25: 339032.14 | H25: 868314.7 | I25: 562325.88

Sheet App.2-AA_Cap Proj_GenPlant
G1: File Number: | H1: =EBNUMBER -> EB-2019-0019
G2: Exhibit: | H2: 2
G3: Tab:
G4: Schedule:
G5: Page:
G7: Date: | H7: 2019-09-24
A9: Appendix 2-AA
A10: Capital Projects Table
A12: Reporting Basis | B12: Reporting Basis | D12: MIFRS | E12: MIFRS | F12: MIFRS | G12: MIFRS | H12: MIFRS | I12: MIFRS
A13: Projects | B13: Projects | C13: USoA | D13: 2015 | E13: 2016 | F13: 2017 | G13: 2018 | H13: 2019 | I13: 2020
A15: General Plant | B15: General Plant | D15: =D13 -> 2015 | E15: =E13 -> 2016 | F15: 2017 | G15: 2018 | H15: 2019 | I15: 2020
B16: API Right Of Way Expansion and Access | D16: 1715770.9 | E16: 1554505.22 | F16: 1563219.53 | G16: 1129614.87 | H16: 97335.6 | I16: 99660.36
B17: API Distribution Tools & Equipment | D17: 45316.46 | E17: 60944.2 | F17: 109171.76 | G17: 82853.57 | H17: 94360.44 | I17: 96247.68
B18: API Vegetation Mgmt System Development | D18: 110660.08 | E18: 21318.2 | F18: 436.5 | G18: 210
B19: API Land Rights | D19: 29159.25 | E19: 30833.69 | F19: 15958.03 | G19: 51962.45 | H19: 25809.24 | I19: 28605
B20: API SCADA | D20: 51694.94 | E20: 9814.85 | F20: 4916.44 | G20: 15186.44 | H20: 93599.28 | I20: 92879.88
B21: API Transportation & Work Equipment | D21: 437311.3 | E21: 537568.73 | F21: 605783.73 | G21: 454300.34 | H21: 621412.8 | I21: 661608.96
B22: API IT - Hardware | D22: 178079.7 | E22: 32949.78 | F22: 60353.5 | G22: 126128 | H22: 149001.6 | I22: 227400
B23: API-Specific Engineering Soft. Develop. | D23: 41322.63 | E23: 39713 | F23: 115254 | G23: 114122.59 | H23: 63912.96 | I23: 38979.72
B24: API Building Desbarats | D24: 26004.86 | E24: 30666.55 | F24: 4878.39 | G24: 875895.09 | H24: 103733.52 | I24: 24153.6
B25: API Building Wawa | D25: 326920.28 | E25: 33520.17 | F25: 404370.35 | G25: 299577.74 | H25: 154892.88 | I25: 24153.6
B27: Miscellaneous GP | D27: 121652.49 | E27: 17308.32 | F27: 78455.66 | G27: 90392.22 | H27: 95729.76 | I27: 63028.08
A29: Contributed Capital
D30: -9847.5 | E30: 0 | F30: -4054.12 | G30: 0
A31: Total General Plant | B31: =A31 -> Total General Plant | D31: =SUM(D16:D28)+SUM(D30:D30) -> 3074045.39 | E31: 2369142.71 | F31: 2958743.77 | G31: 3240243.31 | H31: 1499788.08 | I31: 1356716.88

Sheet App.2-AB_Capital Expenditures
AE1: File Number: | AG1: =EBNUMBER -> EB-2019-0019
AE2: Exhibit: | AG2: 2
AE3: Tab:
AE4: Schedule:
A5: TO BE UPDATED AT THE DRAFT RATE ORDER STAGE | AE5: Page:
AE7: Date: | AG7: 2019-09-24
A9: Appendix 2-AB
A10: Table 2 - Capital Expenditure Summary from Chapter 5 Consolidated Distribution System Plan Filing Requirements
A11: First year of Forecast Period:
A12: =TestYear -> 2020
A13: CATEGORY | B13: Historical Period (previous plan1 & actual) | AC13: Forecast Period (planned)
B14: =E14-1 -> 2011 | E14: =H14-1 -> 2012 | H14: =K14-1 -> 2013 | K14: =N14-1 -> 2014 | N14: =Q14-1 -> 2015 | Q14: =T14-1 -> 2016 | T14: =W14-1 -> 2017 | W14: =Z14-1 -> 2018 | Z14: =AC14-1 -> 2019 | AC14: =A12 -> 2020 | AD14: =AC14+1 -> 2021 | AE14: =AD14+1 -> 2022 | AF14: =AE14+1 -> 2023 | AG14: =AF14+1 -> 2024 | AI14: 2015
B15: Plan | C15: Actual | D15: Var | E15: Plan | F15: Actual | G15: Var | H15: Plan | I15: Actual | J15: Var | K15: Plan | L15: Actual | M15: Var | N15: Plan | O15: Actual | P15: Var | Q15: Plan | R15: Actual | S15: Var | T15: Plan | U15: Actual | V15: Var | W15: Plan | X15: Actual | Y15: Var | Z15: Plan | AA15: Actual2 | AB15: Var | AI15: Plan | AJ15: Actual | AK15: Var
B16: $ '000 | D16: % | E16: $ '000 | G16: % | H16: $ '000 | J16: % | K16: $ '000 | M16: % | N16: $ '000 | P16: % | Q16: $ '000 | S16: % | T16: $ '000 | V16: % | W16: $ '000 | Y16: % | Z16: $ '000 | AB16: % | AC16: $ '000 | AI16: $ '000 | AK16: %
A17: System Access | D17: =IF(ISERROR((C17-B17)/B17),"--",(C17-B17)/B17) -> -- | G17: =IF(ISERROR((F17-E17)/E17),"--",(F17-E17)/E17) -> -- | J17: =IF(ISERROR((I17-H17)/H17),"--",(I17-H17)/H17) -> -- | M17: =IF(ISERROR((L17-K17)/K17),"--",(L17-K17)/K17) -> -- | P17: =IF(ISERROR((O17-N17)/N17),"--",(O17-N17)/N17) -> -- | Q17: 1020 | R17: 991.54076 | S17: =IF(ISERROR((R17-Q17)/Q17),"--",(R17-Q17)/Q17) -> -0.02790121569 | T17: 1020 | U17: 883.17441 | V17: =IF(ISERROR((U17-T17)/T17),"--",(U17-T17)/T17) -> -0.1341427353 | W17: 1020 | X17: 960.27136 | Y17: =IF(ISERROR((X17-W17)/W17),"--",(X17-W17)/W17) -> -0.0585574902 | Z17: 1020 | AA17: 912.70416 | AB17: =IF(ISERROR((AA17-Z17)/Z17),"--",(AA17-Z17)/Z17) -> -0.105192 | AC17: 903.40704 | AD17: 963 | AE17: 930 | AF17: 906 | AG17: 906 | AI17: 1020 | AJ17: 963.14482 | AK17: =IF(ISERROR((AJ17-AI17)/AI17),"--",(AJ17-AI17)/AI17) -> -0.05574037255
A18: System Renewal | D18: =IF(ISERROR((C18-B18)/B18),"--",(C18-B18)/B18) -> -- | G18: =IF(ISERROR((F18-E18)/E18),"--",(F18-E18)/E18) -> -- | J18: =IF(ISERROR((I18-H18)/H18),"--",(I18-H18)/H18) -> -- | M18: =IF(ISERROR((L18-K18)/K18),"--",(L18-K18)/K18) -> -- | P18: =IF(ISERROR((O18-N18)/N18),"--",(O18-N18)/N18) -> -- | Q18: 4834 | R18: 4228.91851 | S18: =IF(ISERROR((R18-Q18)/Q18),"--",(R18-Q18)/Q18) -> -0.1251720087 | T18: 4834 | U18: 3433.88988 | V18: =IF(ISERROR((U18-T18)/T18),"--",(U18-T18)/T18) -> -0.2896380058 | W18: 4834 | X18: 4970.68827 | Y18: =IF(ISERROR((X18-W18)/W18),"--",(X18-W18)/W18) -> 0.02827643153 | Z18: 4834 | AA18: 5143.85716 | AB18: =IF(ISERROR((AA18-Z18)/Z18),"--",(AA18-Z18)/Z18) -> 0.06409953662 | AC18: 6023.17676 | AD18: 4700 | AE18: 4822 | AF18: 6494 | AG18: 4616 | AI18: 4044 | AJ18: 3808.65657 | AK18: =IF(ISERROR((AJ18-AI18)/AI18),"--",(AJ18-AI18)/AI18) -> -0.05819570475
A19: System Service | D19: -- | G19: -- | J19: -- | M19: -- | P19: -- | Q19: 538 | R19: 989.95853 | S19: 0.8400716171 | T19: 5088 | U19: 192.43943 | V19: -0.962177785 | W19: 538 | X19: 339.03214 | Y19: -0.3698287361 | Z19: 538 | AA19: 868.3147 | AB19: 0.6139678439 | AC19: 562.32588 | AD19: 7978 | AE19: 472 | AF19: 461 | AG19: 461 | AI19: 1232 | AJ19: 3033.26825 | AK19: 1.462068385
A20: General Plant | D20: -- | G20: -- | J20: -- | M20: -- | P20: -- | Q20: 2679 | R20: 2369.14271 | S20: -0.1156615491 | T20: 2529 | U20: 2962.79789 | V20: 0.1715294148 | W20: 2029 | X20: 3240.24331 | Y20: 0.596965653 | Z20: 1029 | AA20: 1499.78808 | AB20: 0.45752 | AC20: 1356.71688 | AD20: 1238 | AE20: 15408 | AF20: 1178 | AG20: 1098 | AI20: 2679 | AJ20: 3083.89289 | AK20: 0.1511358305
A21: TOTAL EXPENDITURE | B21: =SUM(B17:B20) -> 0 | C21: =SUM(C17:C20) -> 0 | D21: -- | E21: =SUM(E17:E20) -> 0 | F21: =SUM(F17:F20) -> 0 | G21: -- | H21: =SUM(H17:H20) -> 0 | I21: =SUM(I17:I20) -> 0 | J21: -- | K21: =SUM(K17:K20) -> 0 | L21: =SUM(L17:L20) -> 0 | M21: -- | N21: =SUM(N17:N20) -> 0 | O21: =SUM(O17:O20) -> 0 | P21: -- | Q21: 9071 | R21: 8579.56051 | S21: -0.05417699151 | T21: 13471 | U21: 7472.30161 | V21: -0.4453046092 | W21: 8421 | X21: 9510.23508 | Y21: 0.1293474742 | Z21: 7421 | AA21: 8424.6641 | AB21: 0.1352464762 | AC21: 8845.62656 | AD21: 14879 | AE21: 21632 | AF21: 9039 | AG21: =SUM(AG17:AG20) -> 7081 | AI21: =SUM(AI17:AI20) -> 8975 | AJ21: 10888.96253 | AK21: 0.213254878
A22: Capital Contributions | D22: -- | G22: -- | J22: -- | M22: -- | P22: -- | Q22: -100 | R22: 27.28434 | S22: -1.2728434 | T22: -100 | U22: -136.53231 | V22: 0.3653231 | W22: -100 | X22: -69.26367 | Y22: -0.3073633 | Z22: -100 | AA22: -140 | AB22: 0.4 | AC22: -101.85 | AD22: -100 | AE22: -100 | AF22: -100 | AG22: -100 | AI22: -100 | AJ22: -157.11799 | AK22: 0.5711799
A23: Net Capital Expenditures | D23: -- | G23: -- | J23: -- | M23: -- | P23: -- | Q23: 8971 | R23: 8606.84485 | S23: -0.04059248133 | T23: 13371 | U23: 7335.7693 | V23: -0.4513671902 | W23: 8321 | X23: 9440.97141 | Y23: 0.1345957709 | Z23: 7321 | AA23: 8284.6641 | AB23: 0.1316301188 | AC23: =AC21+AC22 -> 8743.77656 | AD23: =AD21+AD22 -> 14779 | AE23: 21532 | AF23: 8939 | AG23: 6981 | AI23: 8875 | AJ23: 10731.84454 | AK23: 0.20922192
A24: System O&M | D24: -- | G24: -- | J24: -- | M24: -- | P24: -- | Q24: 6896.57292 | R24: 6361.48658 | S24: -0.07758728084 | T24: 7034.504378 | U24: 6715.38301 | V24: -0.04536515314 | W24: 7175.194466 | X24: 6711.6399 | Y24: -0.06460515714 | Z24: 7318.698355 | AA24: 7016.30043 | AB24: -0.04131853925 | AC24: 7080.24718 | AD24: 7186.450888 | AE24: 7294.247651 | AF24: 7403.661366 | AG24: 7514.716286 | AI24: 6761.346 | AJ24: 6296.42809 | AK24: -0.06876114756
A26: Notes to the Table:
A27: 1. Historical “previous plan” data is not required unless a plan has previously been filed. However, use the last Board-approved, at least on a Total (Capital) Expenditure basis for the last cost of service rebasing year, and the applicant should include their planned budget in each subsequent historical year up to and including the Bridge Year.
A28: 2. Indicate the number of months of 'actual' data included in the last year of the Historical Period (normally a 'bridge' year):
A30: Explanatory Notes on Variances (complete only if applicable)
A31: Notes on shifts in forecast vs. historical budgets by category
A32: System Access - costs are customer-driven - declining trend in actuals results in lower budget for forecast period System Renewal - greater number of substation rebuilds during forecast period System Service - large substation project (Echo River TS) forecasted in 2021 (not started in 2017 as orignally planned) General Plant - new facility construction in 2022; amounts excluding this project are lower than historical due to completion of ROW Hardening program
A34: Notes on year over year Plan vs. Actual variances for Total Expenditures
A35: 2015 - primary driver is Hawk Junction (see DSP 4.3.2.1) 2016 - underspending on SR/GP partially offset by overspending on SS 2017 - primary drivers are: Echo River TS project deferred to 2021 and Line Rebuild projects deferred to 2018 due to weather/access 2018 - primary driver is Desbarats facility (see DSP 4.3.2.3)
A37: Notes on Plan vs. Actual variance trends for individual expenditure categories
A38: See Section 4.3.1 of DSP for Year-over-Year detail in each category.

Sheet Hidden_CAPEX (hidden)
A1: Utility Name | B1: EB Number | C1: Test Year | D1: Bridge Year | E1: Last Rebasing Year | F1: Category | G1: Year | H1: Plan | I1: Actual
A2: ='LDC Info'!$E$14 -> Algoma Power Inc. | B2: =EBNUMBER -> EB-2019-0019 | C2: =TestYear -> 2020 | D2: =BridgeYear -> 2019 | E2: =RebaseYear -> 2015 | F2: System Access | G2: 2010 | H2: ='App.2-AB_Capital Expenditures'!B17 -> 0 | I2: ='App.2-AB_Capital Expenditures'!C17 -> 0
A3: ='LDC Info'!$E$14 -> Algoma Power Inc. | B3: EB-2019-0019 | C3: 2020 | D3: 2019 | E3: 2015 | F3: System Renewal | G3: 2010 | H3: ='App.2-AB_Capital Expenditures'!B18 -> 0 | I3: ='App.2-AB_Capital Expenditures'!C18 -> 0
A4: ='LDC Info'!$E$14 -> Algoma Power Inc. | B4: EB-2019-0019 | C4: 2020 | D4: 2019 | E4: 2015 | F4: System Service | G4: 2010 | H4: ='App.2-AB_Capital Expenditures'!B19 -> 0 | I4: ='App.2-AB_Capital Expenditures'!C19 -> 0
A5: ='LDC Info'!$E$14 -> Algoma Power Inc. | B5: EB-2019-0019 | C5: 2020 | D5: 2019 | E5: 2015 | F5: General Plant | G5: 2010 | H5: ='App.2-AB_Capital Expenditures'!B20 -> 0 | I5: ='App.2-AB_Capital Expenditures'!C20 -> 0
A6: ='LDC Info'!$E$14 -> Algoma Power Inc. | B6: EB-2019-0019 | C6: 2020 | D6: 2019 | E6: 2015 | F6: Total Expenditure | G6: 2010 | H6: ='App.2-AB_Capital Expenditures'!B21 -> 0 | I6: ='App.2-AB_Capital Expenditures'!C21 -> 0
A7: ='LDC Info'!$E$14 -> Algoma Power Inc. | B7: EB-2019-0019 | C7: 2020 | D7: 2019 | E7: 2015 | F7: Capital Contributions | G7: 2010 | H7: ='App.2-AB_Capital Expenditures'!B22 -> 0 | I7: ='App.2-AB_Capital Expenditures'!C22 -> 0
A8: ='LDC Info'!$E$14 -> Algoma Power Inc. | B8: EB-2019-0019 | C8: 2020 | D8: 2019 | E8: 2015 | F8: Net Capital Expenditures | G8: 2010 | H8: ='App.2-AB_Capital Expenditures'!B23 -> 0 | I8: ='App.2-AB_Capital Expenditures'!C23 -> 0
A9: ='LDC Info'!$E$14 -> Algoma Power Inc. | B9: EB-2019-0019 | C9: 2020 | D9: 2019 | E9: 2015 | F9: System O&M | G9: 2010 | H9: ='App.2-AB_Capital Expenditures'!B24 -> 0 | I9: ='App.2-AB_Capital Expenditures'!C24 -> 0
A10: ='LDC Info'!$E$14 -> Algoma Power Inc. | B10: EB-2019-0019 | C10: 2020 | D10: 2019 | E10: 2015 | F10: System Access | G10: 2011 | H10: ='App.2-AB_Capital Expenditures'!E17 -> 0 | I10: ='App.2-AB_Capital Expenditures'!F17 -> 0
A11: ='LDC Info'!$E$14 -> Algoma Power Inc. | B11: EB-2019-0019 | C11: 2020 | D11: 2019 | E11: 2015 | F11: System Renewal | G11: 2011 | H11: ='App.2-AB_Capital Expenditures'!E18 -> 0 | I11: ='App.2-AB_Capital Expenditures'!F18 -> 0
A12: ='LDC Info'!$E$14 -> Algoma Power Inc. | B12: EB-2019-0019 | C12: 2020 | D12: 2019 | E12: 2015 | F12: System Service | G12: 2011 | H12: ='App.2-AB_Capital Expenditures'!E19 -> 0 | I12: ='App.2-AB_Capital Expenditures'!F19 -> 0
A13: ='LDC Info'!$E$14 -> Algoma Power Inc. | B13: EB-2019-0019 | C13: 2020 | D13: 2019 | E13: 2015 | F13: General Plant | G13: 2011 | H13: ='App.2-AB_Capital Expenditures'!E20 -> 0 | I13: ='App.2-AB_Capital Expenditures'!F20 -> 0
A14: ='LDC Info'!$E$14 -> Algoma Power Inc. | B14: EB-2019-0019 | C14: 2020 | D14: 2019 | E14: 2015 | F14: Total Expenditure | G14: 2011 | H14: ='App.2-AB_Capital Expenditures'!E21 -> 0 | I14: ='App.2-AB_Capital Expenditures'!F21 -> 0
A15: ='LDC Info'!$E$14 -> Algoma Power Inc. | B15: EB-2019-0019 | C15: 2020 | D15: 2019 | E15: 2015 | F15: Capital Contributions | G15: 2011 | H15: ='App.2-AB_Capital Expenditures'!E22 -> 0 | I15: ='App.2-AB_Capital Expenditures'!F22 -> 0
A16: ='LDC Info'!$E$14 -> Algoma Power Inc. | B16: EB-2019-0019 | C16: 2020 | D16: 2019 | E16: 2015 | F16: Net Capital Expenditures | G16: 2011 | H16: ='App.2-AB_Capital Expenditures'!E23 -> 0 | I16: ='App.2-AB_Capital Expenditures'!F23 -> 0
A17: ='LDC Info'!$E$14 -> Algoma Power Inc. | B17: EB-2019-0019 | C17: 2020 | D17: 2019 | E17: 2015 | F17: System O&M | G17: 2011 | H17: ='App.2-AB_Capital Expenditures'!E24 -> 0 | I17: ='App.2-AB_Capital Expenditures'!F24 -> 0
A18: ='LDC Info'!$E$14 -> Algoma Power Inc. | B18: EB-2019-0019 | C18: 2020 | D18: 2019 | E18: 2015 | F18: System Access | G18: 2012 | H18: ='App.2-AB_Capital Expenditures'!H17 -> 0 | I18: ='App.2-AB_Capital Expenditures'!I17 -> 0
A19: ='LDC Info'!$E$14 -> Algoma Power Inc. | B19: EB-2019-0019 | C19: 2020 | D19: 2019 | E19: 2015 | F19: System Renewal | G19: 2012 | H19: ='App.2-AB_Capital Expenditures'!H18 -> 0 | I19: ='App.2-AB_Capital Expenditures'!I18 -> 0
A20: ='LDC Info'!$E$14 -> Algoma Power Inc. | B20: EB-2019-0019 | C20: 2020 | D20: 2019 | E20: 2015 | F20: System Service | G20: 2012 | H20: ='App.2-AB_Capital Expenditures'!H19 -> 0 | I20: ='App.2-AB_Capital Expenditures'!I19 -> 0
A21: ='LDC Info'!$E$14 -> Algoma Power Inc. | B21: EB-2019-0019 | C21: 2020 | D21: 2019 | E21: 2015 | F21: General Plant | G21: 2012 | H21: ='App.2-AB_Capital Expenditures'!H20 -> 0 | I21: ='App.2-AB_Capital Expenditures'!I20 -> 0
A22: ='LDC Info'!$E$14 -> Algoma Power Inc. | B22: EB-2019-0019 | C22: 2020 | D22: 2019 | E22: 2015 | F22: Total Expenditure | G22: 2012 | H22: ='App.2-AB_Capital Expenditures'!H21 -> 0 | I22: ='App.2-AB_Capital Expenditures'!I21 -> 0
A23: ='LDC Info'!$E$14 -> Algoma Power Inc. | B23: EB-2019-0019 | C23: 2020 | D23: 2019 | E23: 2015 | F23: Capital Contributions | G23: 2012 | H23: ='App.2-AB_Capital Expenditures'!H22 -> 0 | I23: ='App.2-AB_Capital Expenditures'!I22 -> 0
A24: ='LDC Info'!$E$14 -> Algoma Power Inc. | B24: EB-2019-0019 | C24: 2020 | D24: 2019 | E24: 2015 | F24: Net Capital Expenditures | G24: 2012 | H24: ='App.2-AB_Capital Expenditures'!H23 -> 0 | I24: ='App.2-AB_Capital Expenditures'!I23 -> 0
A25: ='LDC Info'!$E$14 -> Algoma Power Inc. | B25: EB-2019-0019 | C25: 2020 | D25: 2019 | E25: 2015 | F25: System O&M | G25: 2012 | H25: ='App.2-AB_Capital Expenditures'!H24 -> 0 | I25: ='App.2-AB_Capital Expenditures'!I24 -> 0
A26: ='LDC Info'!$E$14 -> Algoma Power Inc. | B26: EB-2019-0019 | C26: 2020 | D26: 2019 | E26: 2015 | F26: System Access | G26: 2013 | H26: ='App.2-AB_Capital Expenditures'!K17 -> 0 | I26: ='App.2-AB_Capital Expenditures'!L17 -> 0
A27: ='LDC Info'!$E$14 -> Algoma Power Inc. | B27: EB-2019-0019 | C27: 2020 | D27: 2019 | E27: 2015 | F27: System Renewal | G27: 2013 | H27: ='App.2-AB_Capital Expenditures'!K18 -> 0 | I27: ='App.2-AB_Capital Expenditures'!L18 -> 0
A28: ='LDC Info'!$E$14 -> Algoma Power Inc. | B28: EB-2019-0019 | C28: 2020 | D28: 2019 | E28: 2015 | F28: System Service | G28: 2013 | H28: ='App.2-AB_Capital Expenditures'!K19 -> 0 | I28: ='App.2-AB_Capital Expenditures'!L19 -> 0
A29: ='LDC Info'!$E$14 -> Algoma Power Inc. | B29: EB-2019-0019 | C29: 2020 | D29: 2019 | E29: 2015 | F29: General Plant | G29: 2013 | H29: ='App.2-AB_Capital Expenditures'!K20 -> 0 | I29: ='App.2-AB_Capital Expenditures'!L20 -> 0
A30: ='LDC Info'!$E$14 -> Algoma Power Inc. | B30: EB-2019-0019 | C30: 2020 | D30: 2019 | E30: 2015 | F30: Total Expenditure | G30: 2013 | H30: ='App.2-AB_Capital Expenditures'!K21 -> 0 | I30: ='App.2-AB_Capital Expenditures'!L21 -> 0
A31: ='LDC Info'!$E$14 -> Algoma Power Inc. | B31: EB-2019-0019 | C31: 2020 | D31: 2019 | E31: 2015 | F31: Capital Contributions | G31: 2013 | H31: ='App.2-AB_Capital Expenditures'!K22 -> 0 | I31: ='App.2-AB_Capital Expenditures'!L22 -> 0
A32: ='LDC Info'!$E$14 -> Algoma Power Inc. | B32: EB-2019-0019 | C32: 2020 | D32: 2019 | E32: 2015 | F32: Net Capital Expenditures | G32: 2013 | H32: ='App.2-AB_Capital Expenditures'!K23 -> 0 | I32: ='App.2-AB_Capital Expenditures'!L23 -> 0
A33: ='LDC Info'!$E$14 -> Algoma Power Inc. | B33: EB-2019-0019 | C33: 2020 | D33: 2019 | E33: 2015 | F33: System O&M | G33: 2013 | H33: ='App.2-AB_Capital Expenditures'!K24 -> 0 | I33: ='App.2-AB_Capital Expenditures'!L24 -> 0
A34: ='LDC Info'!$E$14 -> Algoma Power Inc. | B34: =EBNUMBER -> EB-2019-0019 | C34: =TestYear -> 2020 | D34: =BridgeYear -> 2019 | E34: =RebaseYear -> 2015 | F34: System Access | G34: 2014 | H34: ='App.2-AB_Capital Expenditures'!N17 -> 0 | I34: ='App.2-AB_Capital Expenditures'!O17 -> 0
A35: ='LDC Info'!$E$14 -> Algoma Power Inc. | B35: EB-2019-0019 | C35: 2020 | D35: 2019 | E35: 2015 | F35: System Renewal | G35: 2014 | H35: ='App.2-AB_Capital Expenditures'!N18 -> 0 | I35: ='App.2-AB_Capital Expenditures'!O18 -> 0
A36: ='LDC Info'!$E$14 -> Algoma Power Inc. | B36: EB-2019-0019 | C36: 2020 | D36: 2019 | E36: 2015 | F36: System Service | G36: 2014 | H36: ='App.2-AB_Capital Expenditures'!N19 -> 0 | I36: ='App.2-AB_Capital Expenditures'!O19 -> 0
A37: ='LDC Info'!$E$14 -> Algoma Power Inc. | B37: EB-2019-0019 | C37: 2020 | D37: 2019 | E37: 2015 | F37: General Plant | G37: 2014 | H37: ='App.2-AB_Capital Expenditures'!N20 -> 0 | I37: ='App.2-AB_Capital Expenditures'!O20 -> 0
A38: ='LDC Info'!$E$14 -> Algoma Power Inc. | B38: EB-2019-0019 | C38: 2020 | D38: 2019 | E38: 2015 | F38: Total Expenditure | G38: 2014 | H38: ='App.2-AB_Capital Expenditures'!N21 -> 0 | I38: ='App.2-AB_Capital Expenditures'!O21 -> 0
A39: ='LDC Info'!$E$14 -> Algoma Power Inc. | B39: EB-2019-0019 | C39: 2020 | D39: 2019 | E39: 2015 | F39: Capital Contributions | G39: 2014 | H39: ='App.2-AB_Capital Expenditures'!N22 -> 0 | I39: ='App.2-AB_Capital Expenditures'!O22 -> 0
A40: ='LDC Info'!$E$14 -> Algoma Power Inc. | B40: EB-2019-0019 | C40: 2020 | D40: 2019 | E40: 2015 | F40: Net Capital Expenditures | G40: 2014 | H40: ='App.2-AB_Capital Expenditures'!N23 -> 0 | I40: ='App.2-AB_Capital Expenditures'!O23 -> 0
A41: ='LDC Info'!$E$14 -> Algoma Power Inc. | B41: EB-2019-0019 | C41: 2020 | D41: 2019 | E41: 2015 | F41: System O&M | G41: 2014 | H41: ='App.2-AB_Capital Expenditures'!N24 -> 0 | I41: ='App.2-AB_Capital Expenditures'!O24 -> 0
A42: ='LDC Info'!$E$14 -> Algoma Power Inc. | B42: EB-2019-0019 | C42: 2020 | D42: 2019 | E42: 2015 | F42: System Access | G42: 2015 | H42: ='App.2-AB_Capital Expenditures'!Q17 -> 1020 | I42: ='App.2-AB_Capital Expenditures'!R17 -> 991.54076
A43: ='LDC Info'!$E$14 -> Algoma Power Inc. | B43: EB-2019-0019 | C43: 2020 | D43: 2019 | E43: 2015 | F43: System Renewal | G43: 2015 | H43: ='App.2-AB_Capital Expenditures'!Q18 -> 4834 | I43: ='App.2-AB_Capital Expenditures'!R18 -> 4228.91851
A44: ='LDC Info'!$E$14 -> Algoma Power Inc. | B44: EB-2019-0019 | C44: 2020 | D44: 2019 | E44: 2015 | F44: System Service | G44: 2015 | H44: ='App.2-AB_Capital Expenditures'!Q19 -> 538 | I44: ='App.2-AB_Capital Expenditures'!R19 -> 989.95853
A45: ='LDC Info'!$E$14 -> Algoma Power Inc. | B45: EB-2019-0019 | C45: 2020 | D45: 2019 | E45: 2015 | F45: General Plant | G45: 2015 | H45: ='App.2-AB_Capital Expenditures'!Q20 -> 2679 | I45: ='App.2-AB_Capital Expenditures'!R20 -> 2369.14271
A46: ='LDC Info'!$E$14 -> Algoma Power Inc. | B46: EB-2019-0019 | C46: 2020 | D46: 2019 | E46: 2015 | F46: Total Expenditure | G46: 2015 | H46: ='App.2-AB_Capital Expenditures'!Q21 -> 9071 | I46: ='App.2-AB_Capital Expenditures'!R21 -> 8579.56051
A47: ='LDC Info'!$E$14 -> Algoma Power Inc. | B47: EB-2019-0019 | C47: 2020 | D47: 2019 | E47: 2015 | F47: Capital Contributions | G47: 2015 | H47: ='App.2-AB_Capital Expenditures'!Q22 -> -100 | I47: ='App.2-AB_Capital Expenditures'!R22 -> 27.28434
A48: ='LDC Info'!$E$14 -> Algoma Power Inc. | B48: EB-2019-0019 | C48: 2020 | D48: 2019 | E48: 2015 | F48: Net Capital Expenditures | G48: 2015 | H48: ='App.2-AB_Capital Expenditures'!Q23 -> 8971 | I48: ='App.2-AB_Capital Expenditures'!R23 -> 8606.84485
A49: ='LDC Info'!$E$14 -> Algoma Power Inc. | B49: EB-2019-0019 | C49: 2020 | D49: 2019 | E49: 2015 | F49: System O&M | G49: 2015 | H49: ='App.2-AB_Capital Expenditures'!Q24 -> 6896.57292 | I49: ='App.2-AB_Capital Expenditures'!R24 -> 6361.48658
A50: ='LDC Info'!$E$14 -> Algoma Power Inc. | B50: EB-2019-0019 | C50: 2020 | D50: 2019 | E50: 2015 | F50: System Access | G50: 2016 | H50: ='App.2-AB_Capital Expenditures'!T17 -> 1020 | I50: ='App.2-AB_Capital Expenditures'!U17 -> 883.17441
A51: ='LDC Info'!$E$14 -> Algoma Power Inc. | B51: EB-2019-0019 | C51: 2020 | D51: 2019 | E51: 2015 | F51: System Renewal | G51: 2016 | H51: ='App.2-AB_Capital Expenditures'!T18 -> 4834 | I51: ='App.2-AB_Capital Expenditures'!U18 -> 3433.88988
A52: ='LDC Info'!$E$14 -> Algoma Power Inc. | B52: EB-2019-0019 | C52: 2020 | D52: 2019 | E52: 2015 | F52: System Service | G52: 2016 | H52: ='App.2-AB_Capital Expenditures'!T19 -> 5088 | I52: ='App.2-AB_Capital Expenditures'!U19 -> 192.43943
A53: ='LDC Info'!$E$14 -> Algoma Power Inc. | B53: EB-2019-0019 | C53: 2020 | D53: 2019 | E53: 2015 | F53: General Plant | G53: 2016 | H53: ='App.2-AB_Capital Expenditures'!T20 -> 2529 | I53: ='App.2-AB_Capital Expenditures'!U20 -> 2962.79789
A54: ='LDC Info'!$E$14 -> Algoma Power Inc. | B54: EB-2019-0019 | C54: 2020 | D54: 2019 | E54: 2015 | F54: Total Expenditure | G54: 2016 | H54: ='App.2-AB_Capital Expenditures'!T21 -> 13471 | I54: ='App.2-AB_Capital Expenditures'!U21 -> 7472.30161
A55: ='LDC Info'!$E$14 -> Algoma Power Inc. | B55: EB-2019-0019 | C55: 2020 | D55: 2019 | E55: 2015 | F55: Capital Contributions | G55: 2016 | H55: ='App.2-AB_Capital Expenditures'!T22 -> -100 | I55: ='App.2-AB_Capital Expenditures'!U22 -> -136.53231
A56: ='LDC Info'!$E$14 -> Algoma Power Inc. | B56: EB-2019-0019 | C56: 2020 | D56: 2019 | E56: 2015 | F56: Net Capital Expenditures | G56: 2016 | H56: ='App.2-AB_Capital Expenditures'!T23 -> 13371 | I56: ='App.2-AB_Capital Expenditures'!U23 -> 7335.7693
A57: ='LDC Info'!$E$14 -> Algoma Power Inc. | B57: EB-2019-0019 | C57: 2020 | D57: 2019 | E57: 2015 | F57: System O&M | G57: 2016 | H57: ='App.2-AB_Capital Expenditures'!T24 -> 7034.504378 | I57: ='App.2-AB_Capital Expenditures'!U24 -> 6715.38301
A58: ='LDC Info'!$E$14 -> Algoma Power Inc. | B58: EB-2019-0019 | C58: 2020 | D58: 2019 | E58: 2015 | F58: System Access | G58: 2017 | H58: ='App.2-AB_Capital Expenditures'!W17 -> 1020 | I58: ='App.2-AB_Capital Expenditures'!X17 -> 960.27136
A59: ='LDC Info'!$E$14 -> Algoma Power Inc. | B59: EB-2019-0019 | C59: 2020 | D59: 2019 | E59: 2015 | F59: System Renewal | G59: 2017 | H59: ='App.2-AB_Capital Expenditures'!W18 -> 4834 | I59: ='App.2-AB_Capital Expenditures'!X18 -> 4970.68827
A60: ='LDC Info'!$E$14 -> Algoma Power Inc. | B60: EB-2019-0019 | C60: 2020 | D60: 2019 | E60: 2015 | F60: System Service | G60: 2017 | H60: ='App.2-AB_Capital Expenditures'!W19 -> 538 | I60: ='App.2-AB_Capital Expenditures'!X19 -> 339.03214
A61: ='LDC Info'!$E$14 -> Algoma Power Inc. | B61: EB-2019-0019 | C61: 2020 | D61: 2019 | E61: 2015 | F61: General Plant | G61: 2017 | H61: ='App.2-AB_Capital Expenditures'!W20 -> 2029 | I61: ='App.2-AB_Capital Expenditures'!X20 -> 3240.24331
A62: ='LDC Info'!$E$14 -> Algoma Power Inc. | B62: EB-2019-0019 | C62: 2020 | D62: 2019 | E62: 2015 | F62: Total Expenditure | G62: 2017 | H62: ='App.2-AB_Capital Expenditures'!W21 -> 8421 | I62: ='App.2-AB_Capital Expenditures'!X21 -> 9510.23508
A63: ='LDC Info'!$E$14 -> Algoma Power Inc. | B63: EB-2019-0019 | C63: 2020 | D63: 2019 | E63: 2015 | F63: Capital Contributions | G63: 2017 | H63: ='App.2-AB_Capital Expenditures'!W22 -> -100 | I63: ='App.2-AB_Capital Expenditures'!X22 -> -69.26367
A64: ='LDC Info'!$E$14 -> Algoma Power Inc. | B64: EB-2019-0019 | C64: 2020 | D64: 2019 | E64: 2015 | F64: Net Capital Expenditures | G64: 2017 | H64: ='App.2-AB_Capital Expenditures'!W23 -> 8321 | I64: ='App.2-AB_Capital Expenditures'!X23 -> 9440.97141
A65: ='LDC Info'!$E$14 -> Algoma Power Inc. | B65: EB-2019-0019 | C65: 2020 | D65: 2019 | E65: 2015 | F65: System O&M | G65: 2017 | H65: ='App.2-AB_Capital Expenditures'!W24 -> 7175.194466 | I65: ='App.2-AB_Capital Expenditures'!X24 -> 6711.6399
A66: ='LDC Info'!$E$14 -> Algoma Power Inc. | B66: =EBNUMBER -> EB-2019-0019 | C66: =TestYear -> 2020 | D66: =BridgeYear -> 2019 | E66: =RebaseYear -> 2015 | F66: System Access | G66: 2018 | H66: ='App.2-AB_Capital Expenditures'!Z17 -> 1020 | I66: ='App.2-AB_Capital Expenditures'!AA17 -> 912.70416
A67: ='LDC Info'!$E$14 -> Algoma Power Inc. | B67: EB-2019-0019 | C67: 2020 | D67: 2019 | E67: 2015 | F67: System Renewal | G67: 2018 | H67: ='App.2-AB_Capital Expenditures'!Z18 -> 4834 | I67: ='App.2-AB_Capital Expenditures'!AA18 -> 5143.85716
A68: ='LDC Info'!$E$14 -> Algoma Power Inc. | B68: EB-2019-0019 | C68: 2020 | D68: 2019 | E68: 2015 | F68: System Service | G68: 2018 | H68: ='App.2-AB_Capital Expenditures'!Z19 -> 538 | I68: ='App.2-AB_Capital Expenditures'!AA19 -> 868.3147
A69: ='LDC Info'!$E$14 -> Algoma Power Inc. | B69: EB-2019-0019 | C69: 2020 | D69: 2019 | E69: 2015 | F69: General Plant | G69: 2018 | H69: ='App.2-AB_Capital Expenditures'!Z20 -> 1029 | I69: ='App.2-AB_Capital Expenditures'!AA20 -> 1499.78808
A70: ='LDC Info'!$E$14 -> Algoma Power Inc. | B70: EB-2019-0019 | C70: 2020 | D70: 2019 | E70: 2015 | F70: Total Expenditure | G70: 2018 | H70: ='App.2-AB_Capital Expenditures'!Z21 -> 7421 | I70: ='App.2-AB_Capital Expenditures'!AA21 -> 8424.6641
A71: ='LDC Info'!$E$14 -> Algoma Power Inc. | B71: EB-2019-0019 | C71: 2020 | D71: 2019 | E71: 2015 | F71: Capital Contributions | G71: 2018 | H71: ='App.2-AB_Capital Expenditures'!Z22 -> -100 | I71: ='App.2-AB_Capital Expenditures'!AA22 -> -140
A72: ='LDC Info'!$E$14 -> Algoma Power Inc. | B72: EB-2019-0019 | C72: 2020 | D72: 2019 | E72: 2015 | F72: Net Capital Expenditures | G72: 2018 | H72: ='App.2-AB_Capital Expenditures'!Z23 -> 7321 | I72: ='App.2-AB_Capital Expenditures'!AA23 -> 8284.6641
A73: ='LDC Info'!$E$14 -> Algoma Power Inc. | B73: EB-2019-0019 | C73: 2020 | D73: 2019 | E73: 2015 | F73: System O&M | G73: 2018 | H73: ='App.2-AB_Capital Expenditures'!Z24 -> 7318.698355 | I73: ='App.2-AB_Capital Expenditures'!AA24 -> 7016.30043
A74: ='LDC Info'!$E$14 -> Algoma Power Inc. | B74: EB-2019-0019 | C74: 2020 | D74: 2019 | E74: 2015 | F74: System Access | G74: 2019 | H74: ='App.2-AB_Capital Expenditures'!AC17 -> 903.40704
A75: ='LDC Info'!$E$14 -> Algoma Power Inc. | B75: EB-2019-0019 | C75: 2020 | D75: 2019 | E75: 2015 | F75: System Renewal | G75: 2019 | H75: ='App.2-AB_Capital Expenditures'!AC18 -> 6023.17676
A76: ='LDC Info'!$E$14 -> Algoma Power Inc. | B76: EB-2019-0019 | C76: 2020 | D76: 2019 | E76: 2015 | F76: System Service | G76: 2019 | H76: ='App.2-AB_Capital Expenditures'!AC19 -> 562.32588
A77: ='LDC Info'!$E$14 -> Algoma Power Inc. | B77: EB-2019-0019 | C77: 2020 | D77: 2019 | E77: 2015 | F77: General Plant | G77: 2019 | H77: ='App.2-AB_Capital Expenditures'!AC20 -> 1356.71688
A78: ='LDC Info'!$E$14 -> Algoma Power Inc. | B78: EB-2019-0019 | C78: 2020 | D78: 2019 | E78: 2015 | F78: Total Expenditure | G78: 2019 | H78: ='App.2-AB_Capital Expenditures'!AC21 -> 8845.62656
A79: ='LDC Info'!$E$14 -> Algoma Power Inc. | B79: EB-2019-0019 | C79: 2020 | D79: 2019 | E79: 2015 | F79: Capital Contributions | G79: 2019 | H79: ='App.2-AB_Capital Expenditures'!AC22 -> -101.85
A80: ='LDC Info'!$E$14 -> Algoma Power Inc. | B80: EB-2019-0019 | C80: 2020 | D80: 2019 | E80: 2015 | F80: Net Capital Expenditures | G80: 2019 | H80: ='App.2-AB_Capital Expenditures'!AC23 -> 8743.77656
A81: ='LDC Info'!$E$14 -> Algoma Power Inc. | B81: EB-2019-0019 | C81: 2020 | D81: 2019 | E81: 2015 | F81: System O&M | G81: 2019 | H81: ='App.2-AB_Capital Expenditures'!AC24 -> 7080.24718
A82: ='LDC Info'!$E$14 -> Algoma Power Inc. | B82: EB-2019-0019 | C82: 2020 | D82: 2019 | E82: 2015 | F82: System Access | G82: 2020 | H82: ='App.2-AB_Capital Expenditures'!AD17 -> 963
A83: ='LDC Info'!$E$14 -> Algoma Power Inc. | B83: EB-2019-0019 | C83: 2020 | D83: 2019 | E83: 2015 | F83: System Renewal | G83: 2020 | H83: ='App.2-AB_Capital Expenditures'!AD18 -> 4700
A84: ='LDC Info'!$E$14 -> Algoma Power Inc. | B84: EB-2019-0019 | C84: 2020 | D84: 2019 | E84: 2015 | F84: System Service | G84: 2020 | H84: ='App.2-AB_Capital Expenditures'!AD19 -> 7978
A85: ='LDC Info'!$E$14 -> Algoma Power Inc. | B85: EB-2019-0019 | C85: 2020 | D85: 2019 | E85: 2015 | F85: General Plant | G85: 2020 | H85: ='App.2-AB_Capital Expenditures'!AD20 -> 1238
A86: ='LDC Info'!$E$14 -> Algoma Power Inc. | B86: EB-2019-0019 | C86: 2020 | D86: 2019 | E86: 2015 | F86: Total Expenditure | G86: 2020 | H86: ='App.2-AB_Capital Expenditures'!AD21 -> 14879
A87: ='LDC Info'!$E$14 -> Algoma Power Inc. | B87: EB-2019-0019 | C87: 2020 | D87: 2019 | E87: 2015 | F87: Capital Contributions | G87: 2020 | H87: ='App.2-AB_Capital Expenditures'!AD22 -> -100
A88: ='LDC Info'!$E$14 -> Algoma Power Inc. | B88: EB-2019-0019 | C88: 2020 | D88: 2019 | E88: 2015 | F88: Net Capital Expenditures | G88: 2020 | H88: ='App.2-AB_Capital Expenditures'!AD23 -> 14779
A89: ='LDC Info'!$E$14 -> Algoma Power Inc. | B89: EB-2019-0019 | C89: 2020 | D89: 2019 | E89: 2015 | F89: System O&M | G89: 2020 | H89: ='App.2-AB_Capital Expenditures'!AD24 -> 7186.450888
A90: ='LDC Info'!$E$14 -> Algoma Power Inc. | B90: EB-2019-0019 | C90: 2020 | D90: 2019 | E90: 2015 | F90: System Access | G90: 2021 | H90: ='App.2-AB_Capital Expenditures'!AE17 -> 930
A91: ='LDC Info'!$E$14 -> Algoma Power Inc. | B91: EB-2019-0019 | C91: 2020 | D91: 2019 | E91: 2015 | F91: System Renewal | G91: 2021 | H91: ='App.2-AB_Capital Expenditures'!AE18 -> 4822
A92: ='LDC Info'!$E$14 -> Algoma Power Inc. | B92: EB-2019-0019 | C92: 2020 | D92: 2019 | E92: 2015 | F92: System Service | G92: 2021 | H92: ='App.2-AB_Capital Expenditures'!AE19 -> 472
A93: ='LDC Info'!$E$14 -> Algoma Power Inc. | B93: EB-2019-0019 | C93: 2020 | D93: 2019 | E93: 2015 | F93: General Plant | G93: 2021 | H93: ='App.2-AB_Capital Expenditures'!AE20 -> 15408
A94: ='LDC Info'!$E$14 -> Algoma Power Inc. | B94: EB-2019-0019 | C94: 2020 | D94: 2019 | E94: 2015 | F94: Total Expenditure | G94: 2021 | H94: ='App.2-AB_Capital Expenditures'!AE21 -> 21632
A95: ='LDC Info'!$E$14 -> Algoma Power Inc. | B95: EB-2019-0019 | C95: 2020 | D95: 2019 | E95: 2015 | F95: Capital Contributions | G95: 2021 | H95: ='App.2-AB_Capital Expenditures'!AE22 -> -100
A96: ='LDC Info'!$E$14 -> Algoma Power Inc. | B96: EB-2019-0019 | C96: 2020 | D96: 2019 | E96: 2015 | F96: Net Capital Expenditures | G96: 2021 | H96: ='App.2-AB_Capital Expenditures'!AE23 -> 21532
A97: ='LDC Info'!$E$14 -> Algoma Power Inc. | B97: EB-2019-0019 | C97: 2020 | D97: 2019 | E97: 2015 | F97: System O&M | G97: 2021 | H97: ='App.2-AB_Capital Expenditures'!AE24 -> 7294.247651
A98: ='LDC Info'!$E$14 -> Algoma Power Inc. | B98: =EBNUMBER -> EB-2019-0019 | C98: =TestYear -> 2020 | D98: =BridgeYear -> 2019 | E98: =RebaseYear -> 2015 | F98: System Access | G98: 2022 | H98: ='App.2-AB_Capital Expenditures'!AF17 -> 906
A99: ='LDC Info'!$E$14 -> Algoma Power Inc. | B99: EB-2019-0019 | C99: 2020 | D99: 2019 | E99: 2015 | F99: System Renewal | G99: 2022 | H99: ='App.2-AB_Capital Expenditures'!AF18 -> 6494
A100: ='LDC Info'!$E$14 -> Algoma Power Inc. | B100: EB-2019-0019 | C100: 2020 | D100: 2019 | E100: 2015 | F100: System Service | G100: 2022 | H100: ='App.2-AB_Capital Expenditures'!AF19 -> 461
A101: ='LDC Info'!$E$14 -> Algoma Power Inc. | B101: EB-2019-0019 | C101: 2020 | D101: 2019 | E101: 2015 | F101: General Plant | G101: 2022 | H101: ='App.2-AB_Capital Expenditures'!AF20 -> 1178
A102: ='LDC Info'!$E$14 -> Algoma Power Inc. | B102: EB-2019-0019 | C102: 2020 | D102: 2019 | E102: 2015 | F102: Total Expenditure | G102: 2022 | H102: ='App.2-AB_Capital Expenditures'!AF21 -> 9039
A103: ='LDC Info'!$E$14 -> Algoma Power Inc. | B103: EB-2019-0019 | C103: 2020 | D103: 2019 | E103: 2015 | F103: Capital Contributions | G103: 2022 | H103: ='App.2-AB_Capital Expenditures'!AF22 -> -100
A104: ='LDC Info'!$E$14 -> Algoma Power Inc. | B104: EB-2019-0019 | C104: 2020 | D104: 2019 | E104: 2015 | F104: Net Capital Expenditures | G104: 2022 | H104: ='App.2-AB_Capital Expenditures'!AF23 -> 8939
A105: ='LDC Info'!$E$14 -> Algoma Power Inc. | B105: EB-2019-0019 | C105: 2020 | D105: 2019 | E105: 2015 | F105: System O&M | G105: 2022 | H105: ='App.2-AB_Capital Expenditures'!AF24 -> 7403.661366
A106: ='LDC Info'!$E$14 -> Algoma Power Inc. | B106: EB-2019-0019 | C106: 2020 | D106: 2019 | E106: 2015 | F106: System Access | G106: 2023 | H106: ='App.2-AB_Capital Expenditures'!AG17 -> 906
A107: ='LDC Info'!$E$14 -> Algoma Power Inc. | B107: EB-2019-0019 | C107: 2020 | D107: 2019 | E107: 2015 | F107: System Renewal | G107: 2023 | H107: ='App.2-AB_Capital Expenditures'!AG18 -> 4616
A108: ='LDC Info'!$E$14 -> Algoma Power Inc. | B108: EB-2019-0019 | C108: 2020 | D108: 2019 | E108: 2015 | F108: System Service | G108: 2023 | H108: ='App.2-AB_Capital Expenditures'!AG19 -> 461
A109: ='LDC Info'!$E$14 -> Algoma Power Inc. | B109: EB-2019-0019 | C109: 2020 | D109: 2019 | E109: 2015 | F109: General Plant | G109: 2023 | H109: ='App.2-AB_Capital Expenditures'!AG20 -> 1098
A110: ='LDC Info'!$E$14 -> Algoma Power Inc. | B110: EB-2019-0019 | C110: 2020 | D110: 2019 | E110: 2015 | F110: Total Expenditure | G110: 2023 | H110: ='App.2-AB_Capital Expenditures'!AG21 -> 7081
A111: ='LDC Info'!$E$14 -> Algoma Power Inc. | B111: EB-2019-0019 | C111: 2020 | D111: 2019 | E111: 2015 | F111: Capital Contributions | G111: 2023 | H111: ='App.2-AB_Capital Expenditures'!AG22 -> -100
A112: ='LDC Info'!$E$14 -> Algoma Power Inc. | B112: EB-2019-0019 | C112: 2020 | D112: 2019 | E112: 2015 | F112: Net Capital Expenditures | G112: 2023 | H112: ='App.2-AB_Capital Expenditures'!AG23 -> 6981
A113: ='LDC Info'!$E$14 -> Algoma Power Inc. | B113: EB-2019-0019 | C113: 2020 | D113: 2019 | E113: 2015 | F113: System O&M | G113: 2023 | H113: ='App.2-AB_Capital Expenditures'!AG24 -> 7514.716286

Sheet App.2-AC_Customer Engagement
B1: File Number: | C1: =EBNUMBER -> EB-2019-0019
B2: Exhibit: | C2: 1
B3: Tab:
B4: Schedule:
B5: Page:
B7: Date: | C7: 2019-05-17
A9: Appendix 2-AC
A10: Customer Engagement Activities Summary
A12: Provide a list of customer engagement activities | B12: Provide a list of customer needs and preferences identified through each engagement activity | C12: Actions taken to respond to identified needs and preferences. If no action was taken, explain why.
A13: Customer Satisfaction Surveys
A14: - Residential & Small Business Customer Survey 2018 (telephone) | B14: The primary purpose of the Annual Customer Satisfaction survey is to gather information about satisfaction, customer affinity, feelings about outages and bills. Respondents are given an open-ended question to provide suggestions for improvement. For Fall 2018 additional questions around preferred method for LDC to communicate with customers when there is a billing issue or an unplanned outage. Respondents were asked about their satisfaction with their access to services and their priority rating for 12 operational issues. | C14: Questions used in the telephone survey about communication preferences, satisfaction with access to services, and priority ratings were replicated in the Taking A.I.M. online process. Feedback and insights are used to shape the COS 5 year plan.
A15: - Residential & Small Business Customer Survey 2017 & 2016 (telephone) | B15: In addition to the primary purpose of the Annual Customer Satisfaction survey, feedback about the role technology plays in achieving higher levels of service for customers and making the LDC more efficient were asked. Respondents were asked to assign an importance level for 10 customer relevant technologically enabled operational items. | C15: Algoma Power respondents are more cautious about the effect of technology on their lives than other Ontario LDC respondents. Year over year comparison, 2017 vs 2016, of the importance of online access for certain items showed growth. To make getting service easier, Algoma Power responded by putting a series of forms covering 20+ items on their website. Customers can also email customer service directly from the website. Algoma Power also added a "Make Your Voice Count" link to encourage customers to provide their opinions, views and ideas. Taking A.I.M. Chapter 6 and Chapter 7 surveys were enhanced to gather more insight into the technologically enabled operational items.
A16: - Residential & Small Business Customer Survey 2015 (telephone) | B16: In addition to the primary purpose of the Annual Customer Satisfaction survey, Algoma Power took the opportunity to learn more about respondent expectations as they relate to Outages and Outage Management. | C16: Algoma Power survey respondents rate API just as favourably as found in the UtilityPULSE database for other LDCs, as it relates to having a standard of reliability that meets their expectation. However that standard is less stringent. For example 41% of UtilityPULSE database respondents indicated that 1-2 outages per year was acceptable, it was 1 in 3 (32%) for API respondents. Further follow-up on outages and outage management shaped the Taking A.I.M. Chapter 4 survey, included were questions about willingness to pay for improvements in reliability.
A17: - Electricity Safety survey 2015 | B17: This is a standardized survey to engage consumers in Algoma Power community about electricity safety. | C17: This was a baseline survey, Algoma results were compared with the results from 34 LDCs.
A18: - Electricity Safety survey 2017 | B18: Second run to engage consumers about electricity safety. | C18: Algoma Power's score of 82 was identical to the average score for 33 Ontario LDCs. In order to help educate, Algoma Power put an interactive electricity safety quiz, with supporting explainer videos, on line.
A19: Community Outreach/Stakeholder Sessions
A20: Your Kilowatt Hour Sessions - provide walk-in locations for customers to have face-to-face interactions with customer service and/or CDM staff. Opportunity to edcuate customers and address any concerns. Four sessions held in primary locations.
A21: Your Kilowatt Hour Session - Wawa - January 11, 2018 | B21: Scheduled meetings to answer cust questions. 2 Customers made appointments but did not show due to weather conditions. | C21: Spoke with customer about her needs over the phone (how OESP amount is determined, CDM measures, Explanation of delivery charges, Usage chart, doesn't like TOU due to being a senior with limited income and home at peak times). The other came to our office at another time wanting to understand his Equal Billing Plan.
A22: Your Kilowatt Hour Session - Garden River-January 31, 2018 | B22: Scheduled meetings to answer cust questions. 1 Customer made appointment but did not show. | C22: Spoke with customer about her needs over the phone.
A23: Your Kilowatt Hour Session - Searchmont - October 10, 2018 | B23: Scheduled meetings to answer cust questions. 4 Customers made appointments. | C23: 1 cancelled as found API's website helpful to understand delivery charges and to understand her bill. Another cancelled as it worked better for her to attended our office to discuss delivery charges as a seasonal customer. Of the 2 who attended 1 wanted to understand bill (overview) and recieve energy efficiency ideas, and the other wanted to understand his bill relating to seasonal rate class.
A24: Your Kilowatt Hour Sessions - St. Joe Island -Nov 27, 2018 | B24: Scheduled meetings to answer cust questions. 9 Customers scheduled appointments. | C24: The topics discussed were Bill understanding, rates, delivery charges, options for electirc heat, and efficiency ideas. One microFit customer requested breakdown on how he was billed. This was provided to him three days after the event.
A25: Annual API Contractor Night - April 25, 2018 | B25: Engage contractors to meet customer needs | C25: Followup with contractor per individual needs
A26: Annual Roads Superintendents Meeting | B26: Co-ordinate work plans per municipality | C26: Followup with Rd. Sup't per individual needs
A27: Community Stakeholder Meeting - Nov 28, 2018 | B27: Invite all municipalities & boards with presentation covering Customer Engagement, Operations, Capital & Maintenance. Provide updates regarding: o API’s Capital and Maintenance Programs 2016/17 o Stakeholdering o Capital Workflow – Road Relocations/Expansions o Vegetation Management o Forestry activities and timelines o Connection Plans o Working in Proximity, Electrical Hazards etc. | C27: Minutes sent to all attendees after the event. A few reached out about the "Make Your Voice Count" survey.
A28: Forestry Outreach
A29: - Forestry Outreach - held seven sessions to provide customers with information on API vegetation mananagement program. This forum also allowed for customers to ask questions and provide feedback.
A30: - Seedy Saturday SSM - March 10, 2018 | B30: Vegetation Mgmt Program display/overview: Had a table at this community event and handed out phamplets and brochures on environmental topics and cdm programs. Provided public with info on VM work program and why and how we manage vegetation | C30: API followed up with customers to discuss vegetation management practices, property related concerns and to discuss right tree, right place providing recommendations of plant species based on site locations. API followed up with approximately 15 customers from this event.
A31: - Sustain Algoma Expo - June 2, 2018 | B31: Vegetation Mgmt Program display/overview: Had a table at this community event and handed out phamplets and brochures on environmental topics and cdm programs. Provided public with info on VM work program and why and how we manage vegetation | C31: API followed up with customers to discuss vegetation management practices, property related concerns and to discuss right tree, right place providing recommendations of plant species based on site locations. API followed up with approximately 15 customers from this event.
A32: - Lower Island Lake landowner Meeting - April 5, 2018 | B32: The meeting presentations provided an overview of API’s obligation and rights as an LDC to provide safe, reliable service, industry standards and best management practices and API’s Vegetation Management Plan as it relates to our service territory. The meeting concluded with a question and answer period for consumers and landowners. . Handouts where provided to attendees including API’s Frequently Asked Question’s, Electrical Safety Authority’s (ESA) brochures: ESA Tree Trimming, ESA Tree Trimming Obligations and ESA Tree Planting Guide, and Corridors for Life brochure on Right, Tree, Right Place. | C32: Contacted individual customers who were having concerns with the VM program, 5 additional site visits resulted
A33: - Wawa Notification Meeting Wawa – June 7, 2018 | B33: The meeting presentations provided an overview of API’s obligation and rights as an LDC to provide safe, reliable service, industry standards and best management practices and API’s Vegetation Management Plan as it relates to our service territory. The meeting concluded with a question and answer period for consumers and landowners. . Handouts where provided to attendees including API’s Frequently Asked Question’s, Electrical Safety Authority’s (ESA) brochures: ESA Tree Trimming, ESA Tree Trimming Obligations and ESA Tree Planting Guide, and Corridors for Life brochure on Right, Tree, Right Place. | C33: Contacted individual customers who were having concerns with the VM program, more site visits resulted
A34: - Bruce Mines Community Meeting - June 25, 2018 | B34: The meeting presentations provided an overview of API’s obligation and rights as an LDC to provide safe, reliable service, industry standards and best management practices and API’s Vegetation Management Plan as it relates to our service territory. The meeting concluded with a question and answer period for consumers and landowners. . Handouts where provided to attendees including API’s Frequently Asked Question’s, Electrical Safety Authority’s (ESA) brochures: ESA Tree Trimming, ESA Tree Trimming Obligations and ESA Tree Planting Guide, and Corridors for Life brochure on Right, Tree, Right Place. | C34: Contacted individual customers who were having concerns with the VM program, 4 additional site visits resulted
A35: - Desbarats Community Meeting - June 28, 2018 | B35: The meeting presentations provided an overview of API’s obligation and rights as an LDC to provide safe, reliable service, industry standards and best management practices and API’s Vegetation Management Plan as it relates to our service territory. The meeting concluded with a question and answer period for consumers and landowners. . Handouts where provided to attendees including API’s Frequently Asked Question’s, Electrical Safety Authority’s (ESA) brochures: ESA Tree Trimming, ESA Tree Trimming Obligations and ESA Tree Planting Guide, and Corridors for Life brochure on Right, Tree, Right Place. | C35: Contacted individual customers who were having concerns with the VM program, 4 additional site visits resulted
A36: - Heyden, Goulais River, Batchawana Community Meeting July 16, 2018 | B36: The meeting presentations provided an overview of API’s obligation and rights as an LDC to provide safe, reliable service, industry standards and best management practices and API’s Vegetation Management Plan as it relates to our service territory. The meeting concluded with a question and answer period for consumers and landowners. . Handouts where provided to attendees including API’s Frequently Asked Question’s, Electrical Safety Authority’s (ESA) brochures: ESA Tree Trimming, ESA Tree Trimming Obligations and ESA Tree Planting Guide, and Corridors for Life brochure on Right, Tree, Right Place. | C36: Contacted individual customers who were having concerns with the VM program, 5 additional site visits resulted
A37: CDM Outreach
A38: - Three sessions held to educate customers on various conservation programs while also allowing for feedback. | B38: Through its CDM programs, API has developed a strong working relationship with a number of customers in the residential, commercial and industrial sectors. | C38: As a result of the knowledge gained about the operations of these customers, API is able to proactively reach out to these customers as new programs become available. These customers also reach out to API to seek advice as they make their own investment decisions.
A39: - Michipicoten High School Presentation - May 3, 2018 | B39: Wawa Energy Plan Implementation Initiative - Addresses energy efficeincy concepts and programs | C39: Program information provided directly to attendees at the event, inclusive of application avenues and contact information.
A40: - Wawa BIA Meeting - February 13, 2018 | B40: Presentation Re: SOE incentives for businesses, specifically the Retrofit program | C40: Continual communication as program participation interest arises.
A41: - Sustain Algoma Expo - June 2, 2018 | B41: Promotion of Save ON Energy suite of programs as well as the AffordAbility Fund program. | C41: Program information provided directly to customers at the event, inclusive of application avenues and contact information.
A42: Other Supporting Engagement Activities
A43: - Social Media (Outage Communication specific) | B43: Social media consumption has been fairly low (approx 3% of total customers) | C43: API does post outage related information via the social media channels (Twitter and Facebook) to keep following customers informed.
A44: - Social Media (general communications) | B44: Customer look for the latest utility, government information. Access to providing opinions and/or signing up for new programs such as e-billing | C44: The API website is constantly responding to these requests with content updates to ensure the information is kept current with what's going on in the industry and what's important to customers
A45: - Technology Based | B45: Continued requests for self help portal. Information around consumption and bill payment | C45: Myhydro Eye and e-billing information is provided to customers who subscribe to the services.
A46: - Front Desk Support | B46: Face to face interaction with customers has always been requested for bill payments or general inquiries | C46: API will continue to foster this form of communication as it allows the organization to "connect" with customers.
A47: Newsletter - sent out May and November, 2018 | B47: These Newsletters advise of Safety concerns, Engagement tools, Contests, What we are doing in our Communities, Regulatory information. November contained "Make Your Voice Count" survey information and invitation to add input. November also covered charges and rate application information in the "Legislation Corner." | C47: There were not any inquiries API is aware of
A48: - Social Services | B48: Low income customers have unique needs to support payment of services. | C48: API recognizes these needs and will make every effort to communicate special programs and/or services to support eligible customers.
A49: Taking AIM - Customer Engagement Program
A50: - UtilityPULSE facilitated review of Customer Engagement activities | B50: The purpose of this session was to: - Conduct a review of current CE activities - Leverage CE activities for gathering feedback - Identify ways to get the best from internal resources - Ensure understanding of requirements to support COS application | C50: Clarification of roles and responsibilities between internal resources, corporate resources and third party resources as they relate to various customer engagement activities. Project time-table was also established. UtilityPULSE also lead a discussio about current industry & customer trends. Action was taken to leverage API's investment in the annual telephone customer survey to capture additional customer feedback. Topic areas for online surveys were identified.
A51: - Taking AIM Applied Insights Methodology 7 online surveys 2018-2019 - Chapter survey 1 | B51: Chapter survey 1 is designed to gauge the level of respondent disposition, i.e., positive or negative, towards Algoma Power as a company. Respondents would be introduced to important concepts such as: Make Your Voice Count and Wisdom from Customers. This was a Level 1 (Informing & Information Gathering) & 2 (Gathering Feedback) engagement survey which is about raising awareness, providing education, and capturing perceptions. The primary goal of the Taking A.I.M. process is to break down a large complex topics into smaller more manageable pieces. | C51: AP is very highly rated as a trusted and trustworthy company. This finding, along with others in Chapter 1 survey, helped shape the style and format of future chapter surveys. Respondents were given "open" space to provide feedback about the COS application, their wants & needs, and any other topic they would like to raise. Additionally, there was a second "open" space question to request contact from an AP professional.
A52: - Taking AIM Applied Insights Methodology 7 online surveys 2018-2019 - Chapter survey 2 | B52: Chapter survey 2 is designed to gauge respondent's knowledge level about the industry. This survey is meant as an industry educational piece for respondents. Respondents were introduced to a concept called Test Your Knowledge. This was a Level 1 Engagement survey which is about raising awareness and providing education. | C52: Knowledge level about the industry is low, the average score was 35 out of 100. However we did learn that there was no need to shy away from putting actual $$$ in costs or investments in questions. However future chapter surveys will have to take into account that the knowledge level is low.
A53: - Taking AIM Applied Insights Methodology 7 online surveys 2018-2019 - Chapter survey 3 | B53: Chapter survey 3 is about gaining a better understanding of customer priorities and testing out various strategy options for dealing with issues which affects costs. This was a Level 2 (Gathering Feedback) and Level 3 (Capturing Insights by Involving Stakeholders) engagement survey. This survey also introduced respondents to a concept called Help Us Decide. | C53: Respondents were asked to assign a priority level to 13 operational items which affect costs. Results are used to determine which items have more support by the customer base. Findings include, from respondent feedback, the majority of respondents support status quo or current standards as it relates to things such as: vegetation management. Survey results also show that current availability of call-centre staff can continue at current levels.
A54: - Taking AIM Applied Insights Methodology 7 online surveys 2018-2019 - Chapter survey 4 | B54: Chapter survey 4 is about billing and outages. This is a Level 2 and Level 3 engagement survey. Bills & blackouts (outages) are known as the "Killer B's" - a very important topic for customers. Barriers to moving to e-bills were ranked by respondents. Questions about current reliability standards, expectations about the acceptable number and length of outages, and willingness to pay for an improvement in the standard of reliability was asked. | C54: Survey results do not support a need to raise current standards are they relate to: accurately billing customers, standard of reliability, or quickly handling outages. API learned that the 2 major barriers for moving customers to e-bills was "some customers do not have access to the internet" and "some customers are not comfortable with technology". API also learned that customers much prefer telephone notification for push type of communications over other means. These findings, coupled with other findings in the Taking A.I.M. process indicates that the adoption for technology based operational improvements will be slower than LDCs in large urban areas.
A55: - Taking AIM Applied Insights Methodology 7 online surveys 2018-2019 - Chapter survey 5 | B55: Chapter survey 5 is about prioritizing capital investments in the electricity network. This is a Level 2 and Level 3 engagement survey. Topics covered include: Consulting other electricity entities when planning capital expenses for the electricity network, Meeting regulatory and legal requirements, Replacing equipment, Planning for the longer term, Keeping facilities, tools, and equipment in good working order. | C55: API's COS application is influenced by findings from consultation and interaction with other parties regarding local and regional planning issues. Findings include: System access investments should be about meeting mandated obligations and helping the community. Going forward System Renewal should be at a level that doesn't increase outages any higher than those experienced over the past 3 years. The COS application should maitain the current level of investment in facilities, tools and equipment.
A56: - Taking AIM Applied Insights Methodology 7 online surveys 2018-2019 - Chapter survey 6 | B56: Chapter survey 6 is about identifying priorities and testing concepts as they relate to subjects such as: communication, customer care operations, satisfaction with information provided on things such as electricity safety, and facilities. This is a Level 3 and Level 4 (Gaining Wisdom by Participating with People) engagement survey. | C56: Findings include a desire for more communication. API put an electricity safety quiz with explainer videos on their website. Respondents were asked about their willingness to pay for 12 Customer Care operational items, Chapter 7 questions on the same 12 items were adjusted in order to gain further insight. Findings also show that respondents would support a pragmatic approach to retro-fitting or replacing facilities.
A57: - Taking AIM Applied Insights Methodology 7 online surveys 2018-2019 - Chapter survey 7 | B57: Chapter survey 7 is about specific DSP topics, capital and other investments in Operations and Customer Care operational changes/enhancements. This survey is a Level 3 and Level 4 engagement survey. | C57: Decision making for API's COS application will be influenced by respondents' ranking of 9 decision-making criteria. The top three: Keep costs low. Maintain safe, reliable distribution of electricity and reduce response times to outages. Data shows there were 8% of respondents unwilling to pay any additional costs for any items such as system renewal, system service, general plant and vegetation management. Regardless of the rationale used to support COS increases, there will be a small but important respondent group who will oppose the increase. However, a clear majority support inflationary type increases.

Sheet App.2-B_Acctg Instructions
A1: General Instructions to MIFRS Appendices
A2: Types of Schedules to File
A4: The purpose of this tab is to provide general instructions. The specific instructions to each appendix are listed in footnotes of each appendix.
A6: The typical applicant is expected to have made capitalization and depreciation policy changes under CGAAP as permitted by the Board on January 1, 2012 or mandated by the Board by January 1, 2013, and adopted IFRS for reporting purposes on January 1, 2015 (transition date January 1, 2014). Some distributors filing for 2018 rates have rebased with these accounting changes reflected in a prior rebasing application. If that is the case, information relating to pre-accounting policy changes is not generally required. The information to be provided by applicants will depend on when the accounting policy changes were made and when they last rebased. In general, applicants should provide the following information in the appendices:
E9: Reflecting Accounting Policy Changes in Current Application | G9: Reflected Accounting Policy Changes in Prior Application3
E10: Accounting Policy Changes in 2012 and Adopted IFRS in 2015 | F10: Accounting Policy Changes in 2013 and Adopted IFRS in 2015 | G10: Adopted IFRS in 2015
A11: Information to be filed in 2019 CoS Application | B11: 2019 | C11: Test | E11: MIFRS | F11: MIFRS | G11: MIFRS
B12: 2018 | C12: Bridge | E12: MIFRS | F12: MIFRS | G12: MIFRS
B13: 2017 | C13: Historical | E13: MIFRS | F13: MIFRS | G13: MIFRS
B14: 2016 | C14: Historical | E14: MIFRS | F14: MIFRS | G14: MIFRS
B15: 2015 | C15: Historical | E15: MIFRS and Revised CGAAP1 | F15: MIFRS and Revised CGAAP1 | G15: MIFRS and Revised CGAAP1
B16: 2014 | C16: Historical | E16: Revised CGAAP | F16: CGAAP and Revised CGAAP2 | G16: N/A
B17: 2013 | C17: Historical | E17: CGAAP and Revised CGAAP2 | F17: N/A | G17: N/A
A19: 1) For the transition year (2014), the applicant may file two appendices, one under Revised CGAAP and one under MIFRS, depending on the materiality of impacts. See the specific instructions under each appendix below for further details.
A20: 2) For applicants that are reflecting accounting policy changes for the first time in a rebasing application, the applicant must file two appendices in the year that the applicant implemented changes to its capitalization and depreciation policies (2012 or 2013), one before and one after the policy changes.
A21: 3) Applicants should provide CGAAP and Revised CGAAP schedules (i.e. as indicated in the first two columns of the above table) to support balances in Account 1576 if the account has yet to be disposed of.
A24: Appendix 2-BA - Fixed Asset Schedule
A26: Applicants are to provide Appendix 2-BA in accordance with the years and corresponding accounting standards noted in the above table to provide a year over year continuity in fixed assets.
A27: For the transition year (2014), the applicant should file two appendices, one under Revised CGAAP and one under MIFRS if the change between Revised CGAAP and MIFRS is material. If the change from the accounting standards is not material, the applicant may choose to only provide one appendix under MIFRS. However, the applicant must also indicate the fixed asset net book value balance under Revised CGAAP, the total dollar value of the change and explain why it is not material.
A31: The applicant must establish the continuity of historic cost for gross assets and accumulated depreciation by asset class by ensuring that the opening balance in the year agrees to the closing balance in the prior year.
A34: Appendix 2-Cx - Depreciation and Amortization
A36: Applicants are to provide Appendix 2-C in accordance with the years and corresponding accounting standards listed in the above table.
A37: Appendix 2-C is to be used under all three of the scenarios presented in the table above. In the appendix, the applicant will need to indicate which scenario applies. The appendix is to be duplicated for each year and accounting standard required under the scenario.
A38: Depreciation accounting policy changes were mandated by the Board by January 1, 2013. In general, no further changes to an applicant's depreciation policy (i.e. assets' service lives) are expected after the Board mandated changes by January 1, 2013. If the applicant has made any changes to its depreciation policy subsequent to the Board mandated changes, for the year of the change, applicants must complete Appendix 2-C before and after the change. Applicants must also explain the nature of the change, the reason for the change, quantify the impact of the change, and quantify the depreciation expense before and after the change.
A40: Appendix 2-E - Account 1575, IFRS-CGAAP Transitional PP&E Amounts (2-EA), Account 1576, Accounting Changes Under CGAAP (2-EB, 2-EC) CONTACT OEB STAFF IF TAB REQUIRED
A42: 1) For an applicant that has a balance in Account 1576 to dispose:
A43: · | B43: If an applicant changed capitalization and depreciation policies effective January 1, 2012, the applicant must complete Appendix 2-EB
A44: · | B44: If an applicant changed capitalization and depreciation policies effective January 1, 2013, the applicant must complete Appendix 2-EC
A46: 2) For an applicant that has a balance in Account 1575 to dispose:
A47: · | B47: The applicant must complete 2-EA
A48: If the applicant did not make any further PP&E accounting policy changes beyond the capitalization and depreciation policy changes as mandated by the Board by January 1, 2013 (i.e. no further changes made on transition to IFRS), the applicant must indicate this and does not need to complete Appendix 2-EA.
A52: Appendix 2-Y - Summary of Impacts to Revenue Requirement from Transition to MIFRS CONTACT OEB STAFF IF TAB REQUIRED
A54: An applicant must provide a summary of the dollar impacts of MIFRS to each component of the revenue requirement (e.g. rate base, operating costs, etc.), including the overall impact on the proposed revenue requirement. Accordingly, the applicant must identify financial differences and resulting revenue requirement impacts arising from the adoption of MIFRS as compared to CGAAP. If the applicant is reflecting the changes in capitalization and depreciation policies for the first time in a rebasing application, then a comparison between MIFRS and CGAAP before the change in accounting policies should be completed. If the applicant changed capitalization and depreciation policies and reflected these changes in a prior rebasing application, then a comparison between MIFRS and CGAAP after the change in accounting policies should be completed.

Sheet App.2-BA_Fixed Asset Cont
B1: See separate workbook | L1: File Number: | M1: =EBNUMBER -> EB-2019-0019
L2: Exhibit:
L3: Tab:
L4: Schedule:
L5: Page:
L7: Date:
A9: Appendix 2-BA
A10: Fixed Asset Continuity Schedule 1
E12: Accounting Standard | F12: MIFRS
E13: Year
D15: Cost | J15: Accumulated Depreciation
A16: CCA Class 2 | B16: OEB Account 3 | C16: Description 3 | D16: Opening Balance | E16: Additions 4 | F16: Disposals 6 | G16: Closing Balance | I16: Opening Balance | J16: Additions | K16: Disposals 6 | L16: Closing Balance | M16: Net Book Value
B17: 1609 | C17: Capital Contributions Paid | G17: =D17+E17+F17 -> 0 | L17: =I17+J17+K17 -> 0 | M17: =G17+L17 -> 0
A18: 12 | B18: 1611 | C18: Computer Software (Formally known as Account 1925) | G18: =D18+E18+F18 -> 0 | L18: =I18+J18+K18 -> 0 | M18: =G18+L18 -> 0
A19: CEC | B19: 1612 | C19: Land Rights (Formally known as Account 1906) | G19: =D19+E19+F19 -> 0 | L19: =I19+J19+K19 -> 0 | M19: =G19+L19 -> 0
A20: N/A | B20: 1805 | C20: Land | G20: =D20+E20+F20 -> 0 | L20: =I20+J20+K20 -> 0 | M20: =G20+L20 -> 0
A21: 47 | B21: 1808 | C21: Buildings | G21: =D21+E21+F21 -> 0 | L21: =I21+J21+K21 -> 0 | M21: =G21+L21 -> 0
A22: 13 | B22: 1810 | C22: Leasehold Improvements | G22: 0 | L22: 0 | M22: 0
A23: 47 | B23: 1815 | C23: Transformer Station Equipment >50 kV | G23: 0 | L23: 0 | M23: 0
A24: 47 | B24: 1820 | C24: Distribution Station Equipment <50 kV | G24: 0 | L24: 0 | M24: 0
A25: 47 | B25: 1825 | C25: Storage Battery Equipment | G25: 0 | L25: 0 | M25: 0
A26: 47 | B26: 1830 | C26: Poles, Towers & Fixtures | G26: 0 | L26: 0 | M26: 0
A27: 47 | B27: 1835 | C27: Overhead Conductors & Devices | G27: 0 | L27: 0 | M27: 0
A28: 47 | B28: 1840 | C28: Underground Conduit | G28: 0 | L28: 0 | M28: 0
A29: 47 | B29: 1845 | C29: Underground Conductors & Devices | G29: 0 | L29: 0 | M29: 0
A30: 47 | B30: 1850 | C30: Line Transformers | G30: 0 | L30: 0 | M30: 0
A31: 47 | B31: 1855 | C31: Services (Overhead & Underground) | G31: 0 | L31: 0 | M31: 0
A32: 47 | B32: 1860 | C32: Meters | G32: 0 | L32: 0 | M32: 0
A33: 47 | B33: 1860 | C33: Meters (Smart Meters) | G33: 0 | L33: 0 | M33: 0
A34: N/A | B34: 1905 | C34: Land | G34: 0 | L34: 0 | M34: 0
A35: 47 | B35: 1908 | C35: Buildings & Fixtures | G35: 0 | L35: 0 | M35: 0
A36: 13 | B36: 1910 | C36: Leasehold Improvements | G36: 0 | L36: 0 | M36: 0
A37: 8 | B37: 1915 | C37: Office Furniture & Equipment (10 years) | G37: 0 | L37: 0 | M37: 0
A38: 8 | B38: 1915 | C38: Office Furniture & Equipment (5 years) | G38: 0 | L38: 0 | M38: 0
A39: 10 | B39: 1920 | C39: Computer Equipment - Hardware | G39: 0 | L39: 0 | M39: 0
A40: 45 | B40: 1920 | C40: Computer Equip.-Hardware(Post Mar. 22/04) | G40: 0 | L40: 0 | M40: 0
A41: 45.1 | B41: 1920 | C41: Computer Equip.-Hardware(Post Mar. 19/07) | G41: 0 | L41: 0 | M41: 0
A42: 10 | B42: 1930 | C42: Transportation Equipment | G42: 0 | L42: 0 | M42: 0
A43: 8 | B43: 1935 | C43: Stores Equipment | G43: 0 | L43: 0 | M43: 0
A44: 8 | B44: 1940 | C44: Tools, Shop & Garage Equipment | G44: 0 | L44: 0 | M44: 0
A45: 8 | B45: 1945 | C45: Measurement & Testing Equipment | G45: 0 | L45: 0 | M45: 0
A46: 8 | B46: 1950 | C46: Power Operated Equipment | G46: 0 | L46: 0 | M46: 0
A47: 8 | B47: 1955 | C47: Communications Equipment | G47: 0 | L47: 0 | M47: 0
A48: 8 | B48: 1955 | C48: Communication Equipment (Smart Meters) | G48: 0 | L48: 0 | M48: 0
A49: 8 | B49: 1960 | C49: Miscellaneous Equipment | G49: 0 | L49: 0 | M49: 0
A50: 47 | B50: 1970 | C50: Load Management Controls Customer Premises | G50: 0 | L50: 0 | M50: 0
A51: 47 | B51: 1975 | C51: Load Management Controls Utility Premises | G51: 0 | L51: 0 | M51: 0
A52: 47 | B52: 1980 | C52: System Supervisor Equipment | G52: 0 | L52: 0 | M52: 0
A53: 47 | B53: 1985 | C53: Miscellaneous Fixed Assets | G53: 0 | L53: 0 | M53: 0
A54: 47 | B54: 1990 | C54: Other Tangible Property | G54: 0 | L54: 0 | M54: 0
A55: 47 | B55: 1995 | C55: Contributions & Grants | G55: 0 | L55: 0 | M55: 0
A56: 47 | B56: 2440 | C56: Deferred Revenue5
G57: 0 | L57: 0 | M57: 0
C58: Sub-Total | D58: =SUM(D17:D57) -> 0 | E58: =SUM(E17:E57) -> 0 | F58: =SUM(F17:F57) -> 0 | G58: =SUM(G17:G57) -> 0 | I58: =SUM(I17:I57) -> 0 | J58: =SUM(J17:J57) -> 0 | K58: =SUM(K17:K57) -> 0 | L58: =SUM(L17:L57) -> 0 | M58: =SUM(M17:M57) -> 0
C59: Less Socialized Renewable Energy Generation Investments (input as negative) | G59: =D59+E59+F59 -> 0 | L59: =I59+J59+K59 -> 0 | M59: =G59+L59 -> 0
C60: Less Other Non Rate-Regulated Utility Assets (input as negative) | G60: 0 | L60: =I60+J60+K60 -> 0 | M60: 0
C61: Total PP&E | D61: =SUM(D58:D60) -> 0 | E61: =SUM(E58:E60) -> 0 | F61: =SUM(F58:F60) -> 0 | G61: =SUM(G58:G60) -> 0 | I61: =SUM(I58:I60) -> 0 | J61: =SUM(J58:J60) -> 0 | K61: =SUM(K58:K60) -> 0 | L61: =SUM(L58:L60) -> 0 | M61: =SUM(M58:M60) -> 0
C62: Depreciation Expense adj. from gain or loss on the retirement of assets (pool of like assets), if applicable6
C63: Total | J63: =J61+J62 -> 0
I65: Less: Fully Allocated Depreciation
A66: 10 | C66: Transportation | I66: Transportation
A67: 8 | C67: Stores Equipment | I67: Stores Equipment
I68: Net Depreciation | K68: =J63-K66-K67 -> 0
A70: Notes:
A72: 1 | B72: Tables in the format outlined above covering all fixed asset accounts should be submitted for the Test Year, Bridge Year and all relevant historical years. At a minimum , the applicant must provide data for the earlier of: 1) all historical years back to its last rebasing; or 2) at least three years of historical actuals, in addition to Bridge Year and Test Year forecasts.
A75: 2 | B75: The "CCA Class" for fixed assets should agree with the CCA Class used for tax purposes in Tax Returns. Fixed Assets sub-components may be used where the underlying asset components are classified under multiple CCA Classes for tax purposes. If an applicant uses any different classes from those shown in the table, an explanation should be provided. (also see note 3).
A78: 3 | B78: The table may need to be customized for a utility's asset categories or for any new asset accounts announced or authorized by the Board.
A80: 4 | B80: The additions in column (E) must not include construction work in progress (CWIP).
A82: 5 | B82: Effective on the date of IFRS adoption, customer contributions will no longer be recorded in Account 1995 Contributions & Grants, but will be recorded in Account 2440, Deferred Revenues.
A84: 6 | B84: The applicant must ensure that all asset disposals have been clearly identified in the Chapter 2 Appendices for all historic, bridge and test years. Where a distributor for general financial reporting purposes under IFRS has accounted for the amount of gain or loss on the retirement of assets in a pool of like assets as a charge or credit to income, for reporting and rate application filings, the distributor shall reclassify such gains and losses as depreciation expense, and disclose the amount separately.

Sheet Appendix 2-BB Service Life
N1: File Number: | P1: ='LDC Info'!E16 -> EB-2019-0019
N2: Exhibit: | P2: 2
N3: Tab:
N4: Schedule:
N5: Page:
N7: Date: | P7: 2019-05-17
A9: Appendix 2-BB
A10: Service Life Comparison
A11: Table F-1 from Kinetrics Report1
C15: Asset Details | F15: Useful Life | J15: USoA Account Number | K15: USoA Account Description | L15: Current | N15: Proposed | P15: Outside Range of Min, Max TUL?
A16: Parent* | B16: # | C16: Category| Component | Type | F16: MIN UL | G16: TUL | H16: MAX UL | L16: Years | M16: Rate | N16: Years | O16: Rate | P16: Below Min TUL | Q16: Above Max TUL
A17: OH | B17: 1 | C17: Fully Dressed Wood Poles | D17: Overall | F17: 35 | G17: 45 | H17: 75 | J17: 1830 | K17: Poles, Towers and Fixtures | L17: 45 | M17: =IF(ISERROR(1/L17), "", 1/L17) -> 0.02222222222 | N17: =+L17 -> 45 | O17: =IF(ISERROR(1/N17), "", 1/N17) -> 0.02222222222 | P17: =IF(ISBLANK(N17),"",IF(N17<F17,"Yes","No")) -> No | Q17: =IF(ISBLANK(N17),"",IF(N17>H17,"Yes","No")) -> No
D18: Cross Arm | E18: Wood | F18: 20 | G18: 40 | H18: 55 | M18: =IF(ISERROR(1/L18), "", 1/L18) ->  | O18: =IF(ISERROR(1/N18), "", 1/N18) ->  | P18: =IF(ISBLANK(N18),"",IF(N18<F18,"Yes","No")) ->  | Q18: =IF(ISBLANK(N18),"",IF(N18>H18,"Yes","No")) -> 
E19: Steel | F19: 30 | G19: 70 | H19: 95
B20: 2 | C20: Fully Dressed Concrete Poles | D20: Overall | F20: 50 | G20: 60 | H20: 80
D21: Cross Arm | E21: Wood | F21: 20 | G21: 40 | H21: 55
E22: Steel | F22: 30 | G22: 70 | H22: 95
B23: 3 | C23: Fully Dressed Steel Poles | D23: Overall | F23: 60 | G23: 60 | H23: 80
D24: Cross Arm | E24: Wood | F24: 20 | G24: 40 | H24: 55
E25: Steel | F25: 30 | G25: 70 | H25: 95
B26: 4 | C26: OH Line Switch | F26: 30 | G26: 45 | H26: 55 | J26: 1835 | K26: Overhead Conductors and Devices | L26: 45 | M26: 0.02222222222 | N26: =+L26 -> 45 | O26: 0.02222222222 | P26: No | Q26: No
B27: 5 | C27: OH Line Switch Motor | F27: 15 | G27: 25 | H27: 25
B28: 6 | C28: OH Line Switch RTU | F28: 15 | G28: 20 | H28: 20
B29: 7 | C29: OH Integral Switches | F29: 35 | G29: 45 | H29: 60 | J29: 1835 | K29: Overhead Conductors and Devices | L29: 45 | M29: 0.02222222222 | N29: =+L29 -> 45 | O29: 0.02222222222 | P29: No | Q29: No
B30: 8 | C30: OH Conductors | D30: Primary | F30: 50 | G30: 60 | H30: 75 | J30: 1835 | K30: Overhead Conductors and Devices | L30: 45 | M30: 0.02222222222 | N30: =+L30 -> 45 | O30: 0.02222222222 | P30: Yes | Q30: No
D31: Service Wire | F31: N/A | J31: 1855 | K31: Services | L31: 40 | M31: 0.025 | N31: 40 | O31: 0.025 | P31: N/A
B32: 9 | C32: OH Transformers & Voltage Regulators | F32: 30 | G32: 40 | H32: 60 | J32: 1850 | K32: Line Transformers | L32: 40 | M32: 0.025 | N32: 40 | O32: 0.025 | P32: No | Q32: No
B33: 10 | C33: OH Shunt Capacitor Banks | F33: 25 | G33: 30 | H33: 40 | J33: 1835 | K33: Overhead Conductors and Devices | L33: 45 | M33: 0.02222222222 | N33: 45 | O33: 0.02222222222 | P33: No | Q33: Yes
B34: 11 | C34: Reclosers | F34: 25 | G34: 40 | H34: 55 | J34: 1835 | K34: Overhead Conductors and Devices | L34: 45 | M34: 0.02222222222 | N34: 45 | O34: 0.02222222222 | P34: No | Q34: No
A35: TS & MS | B35: 12 | C35: Power Transformers | D35: Overall | F35: 30 | G35: 45 | H35: 60 | J35: 1820 | K35: Station Equipment < 50 kV | L35: 50 | M35: 0.02 | N35: 50 | O35: 0.02 | P35: No | Q35: No
D36: Bushing | F36: 10 | G36: 20 | H36: 30
D37: Tap Changer | F37: 20 | G37: 30 | H37: 60
B38: 13 | C38: Station Service Transformer | F38: 30 | G38: 45 | H38: 55
B39: 14 | C39: Station Grounding Transformer | F39: 30 | G39: 40 | H39: 40
B40: 15 | C40: Station DC System | D40: Overall | F40: 10 | G40: 20 | H40: 30 | J40: 1820A | K40: Station Equipment < 50 kV | L40: 40 | M40: 0.025 | N40: =+L40 -> 40 | O40: 0.025 | P40: No | Q40: Yes
D41: Battery Bank | F41: 10 | G41: 15 | H41: 15
D42: Charger | F42: 20 | G42: 20 | H42: 30
B43: 16 | C43: Station Metal Clad Switchgear | D43: Overall | F43: 30 | G43: 40 | H43: 60 | J43: 1820A | K43: Station Equipment < 50 kV | L43: 40 | M43: 0.025 | N43: =+L43 -> 40 | O43: 0.025 | P43: No | Q43: No
D44: Removable Breaker | F44: 25 | G44: 40 | H44: 60
B45: 17 | C45: Station Independent Breakers | F45: 35 | G45: 45 | H45: 65 | J45: 1820A | K45: Station Equipment < 50 kV | L45: 40 | M45: 0.025 | N45: =+L45 -> 40 | O45: 0.025 | P45: No | Q45: No
B46: 18 | C46: Station Switch | F46: 30 | G46: 50 | H46: 60 | J46: 1820A | K46: Station Equipment < 50 kV | L46: 40 | M46: 0.025 | N46: 40 | O46: 0.025 | P46: No | Q46: No
B47: 19 | C47: Electromechanical Relays | F47: 25 | G47: 35 | H47: 50
B48: 20 | C48: Solid State Relays | F48: 10 | G48: 30 | H48: 45
B49: 21 | C49: Digital & Numeric Relays | F49: 15 | G49: 20 | H49: 20
B50: 22 | C50: Rigid Busbars | F50: 30 | G50: 55 | H50: 60
B51: 23 | C51: Steel Structure | F51: 35 | G51: 50 | H51: 90
A52: UG | B52: 24 | C52: Primary Paper Insulated Lead Covered (PILC) Cables | F52: 60 | G52: 65 | H52: 75
B53: 25 | C53: Primary Ethylene-Propylene Rubber (EPR) Cables | F53: 20 | G53: 25 | H53: 25
B54: 26 | C54: Primary Non-Tree Retardant (TR) Cross Linked Polyethylene (XLPE) Cables Direct Buried | F54: 20 | G54: 25 | H54: 30 | J54: 1845 | K54: UG Conductor & Devices | L54: 40 | M54: 0.025 | N54: =+L54 -> 40 | O54: 0.025 | P54: No | Q54: Yes
B55: 27 | C55: Primary Non-TR XLPE Cables in Duct | F55: 20 | G55: 25 | H55: 30
B56: 30 | C56: Secondary PILC Cables | F56: 70 | G56: 75 | H56: 80
B57: 31 | C57: Secondary Cables Direct Buried | F57: 25 | G57: 35 | H57: 40 | J57: 1855 | K57: Services | L57: 40 | M57: 0.025 | N57: =+L57 -> 40 | O57: 0.025 | P57: No | Q57: No
B58: 32 | C58: Secondary Cables in Duct | F58: 35 | G58: 40 | H58: 60
B59: 33 | C59: Network Tranformers | D59: Overall | F59: 20 | G59: 35 | H59: 50
D60: Protector | F60: 20 | G60: 35 | H60: 40
B61: 34 | C61: Pad-Mounted Transformers | F61: 25 | G61: 40 | H61: 45 | J61: 1850 | K61: Line Transformers | L61: 40 | M61: 0.025 | N61: =+L61 -> 40 | O61: 0.025 | P61: No | Q61: No
B62: 35 | C62: Submersible/Vault Transformers | F62: 25 | G62: 35 | H62: 45
B63: 36 | C63: UG Foundation | F63: 35 | G63: 55 | H63: 70
B64: 37 | C64: UG Vaults | D64: Overall | F64: 40 | G64: 60 | H64: 80
D65: Roof | F65: 20 | G65: 30 | H65: 45
B66: 38 | C66: UG Vault Switches | F66: 20 | G66: 35 | H66: 50
B67: 39 | C67: Pad-Mounted Switchgear | F67: 20 | G67: 30 | H67: 45
B68: 40 | C68: Ducts | F68: 30 | G68: 50 | H68: 85
B69: 41 | C69: Concrete Encased Duct Banks | F69: 35 | G69: 55 | H69: 80
B70: 42 | C70: Cable Chambers | F70: 50 | G70: 60 | H70: 80
A71: S | B71: 43 | C71: Remote SCADA | F71: 15 | G71: 20 | H71: 30 | J71: 1980 | K71: System Supervisory Equipment | L71: 20 | M71: 0.05 | N71: =+L71 -> 20 | O71: 0.05 | P71: No | Q71: No
A74: Table F-2 from Kinetrics Report1
C76: Asset Details | F76: Useful Life Range | J76: USoA Account Number | K76: USoA Account Description | L76: Current | N76: Proposed | P76: Outside Range of Min, Max TUL?
B77: # | C77: Category| Component | Type | L77: Years | M77: Rate | N77: Years | O77: Rate | P77: Below Min Range | Q77: Above Max Range
B78: 1 | C78: Office Equipment | F78: 5 | G78: 15 | J78: 1915 | K78: Office Furniture & Equipment | L78: 10 | M78: =IF(ISERROR(1/L78), "", 1/L78) -> 0.1 | N78: =+L78 -> 10 | O78: =IF(ISERROR(1/N78), "", 1/N78) -> 0.1 | P78: =IF(ISBLANK(N78),"",IF(N78<F78,"Yes","No")) -> No | Q78: =IF(ISBLANK(N78),"",IF(N78>G78,"Yes","No")) -> No
B79: 2 | C79: Vehicles | D79: Trucks & Buckets | F79: 5 | G79: 15 | J79: 1930A | K79: Transportation Equipment | L79: 10 | M79: =IF(ISERROR(1/L79), "", 1/L79) -> 0.1 | N79: =+L79 -> 10 | O79: =IF(ISERROR(1/N79), "", 1/N79) -> 0.1 | P79: =IF(ISBLANK(N79),"",IF(N79<F79,"Yes","No")) -> No | Q79: =IF(ISBLANK(N79),"",IF(N79>G79,"Yes","No")) -> No
D80: Trailers | F80: 5 | G80: 20 | J80: 1930A | K80: Transportation Equipment | L80: 10 | M80: 0.1 | N80: 10 | O80: 0.1 | P80: No | Q80: No
D81: Vans | F81: 5 | G81: 10 | J81: 1930 | K81: Transportation Equipment | L81: 5 | M81: 0.2 | N81: 5 | O81: 0.2 | P81: No | Q81: No
B82: 3 | C82: Administrative Buildings | F82: 50 | G82: 75 | J82: 1908 | K82: Buildings & Fixtures | L82: 50 | M82: 0.02 | N82: 50 | O82: 0.02 | P82: No | Q82: No
B83: 4 | C83: Leasehold Improvements | F83: Lease dependent | J83: 1910 | K83: Leasehold Improvements | L83: 5 | M83: 0.2 | N83: 5 | O83: 0.2
B84: 5 | C84: Station Buildings | D84: Station Buildings | F84: 50 | G84: 75 | J84: 1808 | K84: Buildings | L84: 50 | M84: 0.02 | N84: 50 | O84: 0.02 | P84: No | Q84: No
D85: Station Buildings - Components | F85: N/A | J85: 1808A | K85: Buildings - Components | L85: 25 | M85: 0.04 | N85: 25 | O85: 0.04 | P85: N/A
D86: Parking | F86: 25 | G86: 30
D87: Fence | F87: 25 | G87: 60
D88: Roof | F88: 20 | G88: 30
B89: 6 | C89: Computer Equipment | D89: Hardware | F89: 3 | G89: 5 | J89: 1920 | K89: Computer Hardware | L89: 5 | M89: 0.2 | N89: =+L89 -> 5 | O89: 0.2 | P89: No | Q89: No
D90: Software - SAP | F90: N/A | J90: 1611A | K90: Computer Software | L90: 10 | M90: 0.1 | N90: =+L90 -> 10 | O90: 0.1 | P90: N/A
D91: Software - Other | F91: 2 | G91: 5 | J91: 1611 | K91: Computer Software | L91: 5 | M91: 0.2 | N91: 5 | O91: 0.2 | P91: No | Q91: No
B92: 7 | C92: Equipment | D92: Power Operated | F92: 5 | G92: 10 | J92: 1950 | K92: Power Operated Equipment | L92: 10 | M92: 0.1 | N92: 10 | O92: 0.1 | P92: No | Q92: No
D93: Stores | F93: 5 | G93: 10
D94: Tools, Shop, Garage Equipment | F94: 5 | G94: 10 | J94: 1940 | K94: Tools, Shop & Garage Equipment | L94: 10 | M94: 0.1 | N94: 10 | O94: 0.1 | P94: No | Q94: No
D95: Measurement & Testing Equipment | F95: 5 | G95: 10 | J95: 1945 | K95: Measurement & Test Equipment | L95: 10 | M95: 0.1 | N95: 10 | O95: 0.1 | P95: No | Q95: No
B96: 8 | C96: Communication | D96: Towers | F96: 60 | G96: 70
D97: Wireless | F97: 2 | G97: 10 | J97: 1955 | K97: Communication Equipment | L97: 10 | M97: 0.1 | N97: =+L97 -> 10 | O97: 0.1 | P97: No | Q97: No
B98: 9 | C98: Residential Energy Meters | F98: 25 | G98: 35 | J98: 1860 | K98: Meters | L98: 30 | M98: 0.03333333333 | N98: =+L98 -> 30 | O98: 0.03333333333 | P98: No | Q98: No
B99: 10 | C99: Industrial/Commercial Energy Meters | F99: 25 | G99: 35 | J99: 1860 | K99: Meters | L99: 30 | M99: 0.03333333333 | N99: 30 | O99: 0.03333333333 | P99: No | Q99: No
B100: 11 | C100: Wholesale Energy Meters | F100: 15 | G100: 30 | J100: 1860 | K100: Meters | L100: 30 | M100: 0.03333333333 | N100: 30 | O100: 0.03333333333 | P100: No | Q100: No
B101: 12 | C101: Current & Potential Transformer (CT & PT) | F101: 35 | G101: 50 | J101: 1860B | K101: Meters | L101: 30 | M101: 0.03333333333 | N101: 30 | O101: 0.03333333333 | P101: Yes | Q101: No
B102: 13 | C102: Smart Meters | F102: 5 | G102: 15 | J102: 1860A | K102: Meters | L102: 15 | M102: 0.06666666667 | N102: 15 | O102: 0.06666666667 | P102: No | Q102: No
B103: 14 | C103: Repeaters - Smart Metering | F103: 10 | G103: 15
B104: 15 | C104: Data Collectors - Smart Metering | F104: 15 | G104: 20
A107: * TS & MS = Transformer and Municipal Stations UG = Underground Systems S = Monitoring and Control Systems
A109: Note 1: | B109: Tables F-1 and F-2 above are to be used as a reference in order to complete columns J, K, L and N.
B110: See pages 17-19 of Kinetrics Report

Sheet App.2-C_DepExp
H6: See separate workbook
A9: Appendix 2-C | Y9: CGAAP
A10: Depreciation and Amortization Expense | Y10: Revised CGAAP
Y11: MIFRS
A12: This appendix is to be completed in conjunction with the accounting instructions in Appendix 2-B
A14: Scenario that applies | C14: Applicable Years and Accounting Standard | R14: Year Reflected in Schedule Below | S14: Accounting Standard Reflected in Schedule Below | Y14: 2012
A15: Rebasing for the first time with depreciation policy changes made in 2012. | C15: This appendix must be duplicated and completed for the years 2012 to 2018. The appendix for 2012 is to be completed under CGAAP (prior to changes in depreciation policies). The appendix for 2012 to 2014 must be completed under Revised CGAAP (after changes in depreciation policies). The appendix for 2014 to 2018 is to be completed under MIFRS (2014 if changes to MIFRS are material). | Y15: 2013
A16: Rebasing for the first time with depreciation policy changes made in 2013. | C16: This appendix must be duplicated and completed for the years 2013 to 2018. The appendix for 2013 is to be completed under CGAAP (prior to changes in depreciation policies). The appendix for 2013 to 2014 must be completed under Revised CGAAP (after changes in depreciation policies). The appendix for 2014 to 2018 is to be completed under MIFRS (2014 if changes to MIFRS are material). | Y16: 2014
A17: Already rebased with depreciation policy changes in a prior rate application | C17: This appendix must be completed for 2014 to 2018. The appendix for 2014 is to be completed under Revised CGAAP (after changes in depreciation policies). The appendix for 2014 to 2018 is to be completed under MIFRS (2014 if changes to MIFRS are material). | Y17: 2015
Y18: 2016
Y19: 2017
C20: Book Values | J20: Service Lives | N20: Depreciation Expense | Y20: 2018
A21: Account | B21: Description | C21: Opening Net Book Value of Existing Assets as at Date of Policy Change (Jan. 1) 1 | D21: Less Fully Depreciated 7 | E21: Net Amount of Existing Assets Before Policy Change to be Depreciated | F21: Opening Gross Book Value of Assets Acquired After Policy Change 2 | G21: Less Fully Depreciated 8 | H21: Net Amount of Assets Acquired After Policy Change to be Depreciated | I21: Current Year Additions | J21: Average Remaining Life of Assets Existing Before Policy Change 3 | K21: Depreciation Rate Assets Acquired After Policy Change | L21: Life of Assets Acquired After Policy Change 4 | M21: Depreciation Rate on New Additions | N21: Depreciation Expense on Assets Existing Before Policy Change | O21: Depreciation Expense on Assets Acquired After Policy Change | P21: Depreciation Expense on Current Year Additions 5 | Q21: Total Current Year Depreciation Expense | R21: Depreciation Expense per Appendix 2-BA Fixed Assets, Column J | S21: Variance 6
C22: a | D22: b | E22: c = a-b | F22: d | G22: e | H22: f = d- e | I22: g | J22: h | K22: i = 1/h | L22: j | M22: k = 1/j | N22: l = c/h | O22: m = f/j | P22: n = g*0.5/j | Q22: o = l+m+n | R22: p | S22: q = p-o
A23: 1611 | B23: Computer Software (Formally known as Account 1925) | E23: =C23-D23 -> 0 | H23: =F23-G23 -> 0 | K23: =IF(J23=0,0,1/J23) -> 0 | M23: =IF(L23=0,0,1/L23) -> 0 | N23: =IF(J23=0,0,+E23/J23) -> 0 | O23: =IF(L23=0,0,+H23/L23) -> 0 | P23: =IF(L23=0,0,+(I23*0.5)/L23) -> 0 | Q23: =IF(ISERROR(+N23+O23+P23), 0, +N23+O23+P23) -> 0 | S23: =IF(ISERROR(+R23-122), 0, +R23-Q23) -> 0
A24: 1612 | B24: Land Rights (Formally known as Account 1906) | E24: =C24-D24 -> 0 | H24: =F24-G24 -> 0 | K24: =IF(J24=0,0,1/J24) -> 0 | M24: =IF(L24=0,0,1/L24) -> 0 | N24: =IF(J24=0,0,+E24/J24) -> 0 | O24: =IF(L24=0,0,+H24/L24) -> 0 | P24: =IF(L24=0,0,+(I24*0.5)/L24) -> 0 | Q24: =IF(ISERROR(+N24+O24+P24), 0, +N24+O24+P24) -> 0 | S24: =IF(ISERROR(+R24-122), 0, +R24-Q24) -> 0
A25: 1805 | B25: Land | E25: 0 | H25: 0 | K25: 0 | M25: 0 | N25: 0 | O25: =IF(L25=0,0,+H25/L25) -> 0 | P25: 0 | Q25: 0 | S25: 0
A26: 1808 | B26: Buildings | E26: 0 | H26: 0 | K26: 0 | M26: 0 | N26: 0 | O26: 0 | P26: 0 | Q26: 0 | S26: 0
A27: 1810 | B27: Leasehold Improvements | E27: 0 | H27: 0 | K27: 0 | M27: 0 | N27: 0 | O27: 0 | P27: 0 | Q27: 0 | S27: 0
A28: 1815 | B28: Transformer Station Equipment >50 kV | E28: 0 | H28: 0 | K28: 0 | M28: 0 | N28: 0 | O28: 0 | P28: 0 | Q28: 0 | S28: 0
A29: 1820 | B29: Distribution Station Equipment <50 kV | E29: 0 | H29: 0 | K29: 0 | M29: 0 | N29: 0 | O29: 0 | P29: 0 | Q29: 0 | S29: 0
A30: 1825 | B30: Storage Battery Equipment | E30: 0 | H30: 0 | K30: 0 | M30: 0 | N30: 0 | O30: 0 | P30: 0 | Q30: 0 | S30: 0
A31: 1830 | B31: Poles, Towers & Fixtures | E31: 0 | H31: 0 | K31: 0 | M31: 0 | N31: 0 | O31: 0 | P31: 0 | Q31: 0 | S31: 0
A32: 1835 | B32: Overhead Conductors & Devices | E32: 0 | H32: 0 | K32: 0 | M32: 0 | N32: 0 | O32: 0 | P32: 0 | Q32: 0 | S32: 0
A33: 1840 | B33: Underground Conduit | E33: 0 | H33: 0 | K33: 0 | M33: 0 | N33: 0 | O33: 0 | P33: 0 | Q33: 0 | S33: 0
A34: 1845 | B34: Underground Conductors & Devices | E34: 0 | H34: 0 | K34: 0 | M34: 0 | N34: 0 | O34: 0 | P34: 0 | Q34: 0 | S34: 0
A35: 1850 | B35: Line Transformers | E35: 0 | H35: 0 | K35: 0 | M35: 0 | N35: 0 | O35: 0 | P35: 0 | Q35: 0 | S35: 0
A36: 1855 | B36: Services (Overhead & Underground) | E36: 0 | H36: 0 | K36: 0 | M36: 0 | N36: 0 | O36: 0 | P36: 0 | Q36: 0 | S36: 0
A37: 1860 | B37: Meters | E37: 0 | H37: 0 | K37: 0 | M37: 0 | N37: 0 | O37: 0 | P37: 0 | Q37: 0 | S37: 0
A38: 1860 | B38: Meters (Smart Meters) | E38: 0 | H38: 0 | K38: 0 | M38: 0 | N38: 0 | O38: 0 | P38: 0 | Q38: 0 | S38: 0
A39: 1905 | B39: Land | E39: 0 | H39: 0 | K39: 0 | M39: 0 | N39: 0 | O39: 0 | P39: 0 | Q39: 0 | S39: 0
A40: 1908 | B40: Buildings & Fixtures | E40: 0 | H40: 0 | K40: 0 | M40: 0 | N40: 0 | O40: 0 | P40: 0 | Q40: 0 | S40: 0
A41: 1910 | B41: Leasehold Improvements | E41: 0 | H41: 0 | K41: 0 | M41: 0 | N41: 0 | O41: 0 | P41: 0 | Q41: 0 | S41: 0
A42: 1915 | B42: Office Furniture & Equipment (10 years) | E42: 0 | H42: 0 | K42: 0 | M42: 0 | N42: 0 | O42: 0 | P42: 0 | Q42: 0 | S42: 0
A43: 1915 | B43: Office Furniture & Equipment (5 years) | E43: 0 | H43: 0 | K43: 0 | M43: 0 | N43: 0 | O43: 0 | P43: 0 | Q43: 0 | S43: 0
A44: 1920 | B44: Computer Equipment - Hardware | E44: 0 | H44: 0 | K44: 0 | M44: 0 | N44: 0 | O44: 0 | P44: 0 | Q44: 0 | S44: 0
A45: 1920 | B45: Computer Equip.-Hardware(Post Mar. 22/04) | E45: 0 | H45: 0 | K45: 0 | M45: 0 | N45: 0 | O45: 0 | P45: 0 | Q45: 0 | S45: 0
A46: 1920 | B46: Computer Equip.-Hardware(Post Mar. 19/07) | E46: 0 | H46: 0 | K46: 0 | M46: 0 | N46: 0 | O46: 0 | P46: 0 | Q46: 0 | S46: 0
A47: 1930 | B47: Transportation Equipment | E47: 0 | H47: 0 | K47: 0 | M47: 0 | N47: 0 | O47: 0 | P47: 0 | Q47: 0 | S47: 0
A48: 1935 | B48: Stores Equipment | E48: 0 | H48: 0 | K48: 0 | M48: 0 | N48: 0 | O48: 0 | P48: 0 | Q48: 0 | S48: 0
A49: 1940 | B49: Tools, Shop & Garage Equipment | E49: 0 | H49: 0 | K49: 0 | M49: 0 | N49: 0 | O49: 0 | P49: 0 | Q49: 0 | S49: 0
A50: 1945 | B50: Measurement & Testing Equipment | E50: 0 | H50: 0 | K50: 0 | M50: 0 | N50: 0 | O50: 0 | P50: 0 | Q50: 0 | S50: 0
A51: 1950 | B51: Power Operated Equipment | E51: 0 | H51: 0 | K51: 0 | M51: 0 | N51: 0 | O51: 0 | P51: 0 | Q51: 0 | S51: 0
A52: 1955 | B52: Communications Equipment | E52: 0 | H52: 0 | K52: 0 | M52: 0 | N52: 0 | O52: 0 | P52: 0 | Q52: 0 | S52: 0
A53: 1955 | B53: Communication Equipment (Smart Meters) | E53: 0 | H53: 0 | K53: 0 | M53: 0 | N53: 0 | O53: 0 | P53: 0 | Q53: 0 | S53: 0
A54: 1960 | B54: Miscellaneous Equipment | E54: 0 | H54: 0 | K54: 0 | M54: 0 | N54: 0 | O54: 0 | P54: 0 | Q54: 0 | S54: 0
A55: 1970 | B55: Load Management Controls Customer Premises | E55: 0 | H55: 0 | K55: 0 | M55: 0 | N55: 0 | O55: 0 | P55: 0 | Q55: 0 | S55: 0
A56: 1975 | B56: Load Management Controls Utility Premises | E56: 0 | H56: 0 | K56: 0 | M56: 0 | N56: 0 | O56: 0 | P56: 0 | Q56: 0 | S56: 0
A57: 1980 | B57: System Supervisor Equipment | E57: 0 | H57: 0 | K57: 0 | M57: 0 | N57: 0 | O57: 0 | P57: 0 | Q57: 0 | S57: 0
A58: 1985 | B58: Miscellaneous Fixed Assets | E58: 0 | H58: 0 | K58: 0 | M58: 0 | N58: 0 | O58: 0 | P58: 0 | Q58: 0 | S58: 0
A59: 1990 | B59: Other Tangible Property | E59: 0 | H59: 0 | K59: 0 | M59: 0 | N59: 0 | O59: 0 | P59: 0 | Q59: 0 | S59: 0
A60: 1995 | B60: Contributions & Grants | E60: 0 | H60: 0 | K60: 0 | M60: 0 | N60: 0 | O60: 0 | P60: 0 | Q60: 0 | S60: 0
B61: Total | C61: =SUM(C23:C60) -> 0 | D61: 0 | E61: 0 | F61: 0 | G61: 0 | H61: 0 | I61: 0 | N61: =SUM(N23:N60) -> 0 | O61: 0 | P61: 0 | Q61: 0 | R61: 0 | S61: 0
A64: General: | B64: Applicants are to complete this appendix to show the reasonability of the depreciation expense that is included in rate base via. Accumulated depreciation and the revenue requirement.
B65: Applicants must provide a breakdown of depreciation and amortization expense in the above format for all relevant accounts. Balances presented in the table should exclude asset retirement obligations (AROs) and the related depreciation and accretion expense. These should be disclosed separately consistent with the Notes of historical Audited Financial Statements.
A68: Notes:
A69: 1 | B69: This is the net book value of assets that existed as at the date of the utility's change in depreciation policies (i.e. as at Jan. 1, 2012 or Jan. 1, 2013). These assets are to be depreciated at the average remaining service life. This amount will not change in years subsequent to the date of the utility's change in depreciation policies. This column is expected to be used until the assets that existed as at the date of the utility's change in depreciation policies are fully depreciated.
A70: 2 | B70: This is the opening gross book value of assets that have been acquired after the date of the utilities change in depreciation policies (i.e. additions starting in 2012/2013 for those who changed policies Jan. 1, 2012/2013). These assets are to be depreciated at the revised service life. The amount is expected to be equal to the gross book value of the prior year plus the prior year's additions.
A71: 3 | B71: A recalculation should be performed to determine the average remaining life of opening balance of assets (i.e. excluding current year's additions) under the change in policies under CGAAP. For example, Asset A had a useful life of 20 years under CGAAP without the change in policies. On January 1 of the year of policy changes, Asset A was 3 years depreciated. As a result, Asset A would have a remaining service life of 17 years (20 years less 3 years) as at January 1 of the year of policy changes. Due to making the change in policies under CGAAP, management re-assessed the asset useful lives and concluded that the revised useful life of Asset A is now 30 years. Therefore, the average remaining useful life of the opening balance of Asset A is determined to be 27 years (30 years less 3 years) under the revised CGAAP as at January 1 of the year of policy changes.
A72: 4 | B72: The useful life used should be consistent with the OEB's regulatory accounting policies as set out in the Accounting Procedures Handbook for Electricity Distributors, effective Jan. 1, 2012 and also with the Report of the Board, Transition to International Financial Reporting Standards, EB-2008-0408, and the Kinectrics Report.
A73: 5 | B73: Board policy of the "half-year" rule - the applicant must ensure that additions in the year attract a half-year depreciation expense in the first year. Deviations from this standard practice must be supported in the application.
A74: 6 | B74: The applicant must provide an explanation of material variances in evidence.
A75: 7 | B75: This should include assets in column a (excel column C) that become fully depreciated since the date of the policy change. The amount input in b (excel column D) should equal the net book value of the asset as at the date of depreciation policy change
A76: 8 | B76: This should include assets in column d (excel column f) that have become fully depreciated. The amount input in e (excel column G) should equal the gross book value of the asset

Sheet App.2-D_Overhead
G1: File Number: | H1: =EBNUMBER -> EB-2019-0019
G2: Exhibit: | H2: 2
G3: Tab:
G4: Schedule:
G5: Page:
G7: Date: | H7: 2019-05-17
A9: Appendix 2-D
A10: Overhead Expense
A12: Applicants are to provide a breakdown of OM&A before capitalization in the below table. OM&A before capitalization may be broken down by cost center, program, drivers or another format best suited to focus on capitalized vs. uncapitalized OM&A.
A14: OM&A Before Capitalization
B15: =F15-4 -> 2015 | C15: =G15-4 -> 2016 | D15: =G15-3 -> 2017 | E15: =G15-2 -> 2018 | F15: =G15-1 -> 2019 | G15: =TestYear -> 2020
B16: Historical Year | C16: Historical Year | D16: Historical Year | E16: Historical Year | F16: Bridge Year | G16: Test Year
A17: Operations and Maintenance | B17: 7746765.09 | C17: 7665357.58 | D17: 7852512.01 | E17: 8270224.9 | F17: 8341726.43 | G17: 8335081.18
A18: Billing and Collecting | B18: 983003.48 | C18: 896274.71 | D18: 888391.33 | E18: 939526.89 | F18: 1013630.84 | G18: 1030997.11
A19: Community Relations | B19: 24429.71 | C19: 32308.39 | D19: 47552.27 | E19: 141890.12 | F19: 94552.32 | G19: 96558
A20: Administrative and General | B20: 4530640.74 | C20: 4536039 | D20: 4495876.6 | E20: 4373361.44 | F20: 4846021.04 | G20: 5507487
A27: Total OM&A Before Capitalization (B) | B27: =SUM(B17:B26) -> 13284839.02 | C27: 13129979.68 | D27: 13284332.21 | E27: 13725003.35 | F27: 14295930.63 | G27: 14970123.29
A29: Applicants are to provide a breakdown of capitalized OM&A in the below table. Capitalized OM&A may be broken down using the categories listed in the table below if possible. Otherwise, applicants are to provide its own break down of capitalized OM&A.
A31: Capitalized OM&A | H31: Directly | I31: Explanation for Change in Overhead Capitalized
B32: =F32-4 -> 2015 | C32: =G32-4 -> 2016 | D32: =G32-3 -> 2017 | E32: =G32-2 -> 2018 | F32: =G32-1 -> 2019 | G32: =TestYear -> 2020 | H32: Attributable?
B33: Historical Year | C33: Historical Year | D33: Historical Year | E33: Historical Year | F33: Bridge Year | G33: Test Year | H33: (Yes/No)
A34: employee benefits
A35: costs of site preparation
A36: initial delivery and handling costs
A37: costs of testing whether the asset is functioning properly
A38: professional fees
A40: costs of opening a new facility
A41: costs of introducing a new product or service (including costs of advertising and promotional activities)
A42: costs of conducting business in a new location or with a new class of customer (including costs of staff training)
A43: administration and other general overhead costs
A45: Operational Departments | B45: 1450337 | C45: 1303871 | D45: 1137129 | E45: 1558585 | F45: 1325426 | G45: 1254834 | H45: Yes | I45: No change since last CoS, costs are directly attributable to labour costs charged to capital and are included in burden rate. Balance includes all directly attributable costs except for direct wages. Pension and OPEB amounts capitalized are reported above.
A46: Customer Service Department | B46: 18167 | C46: 20673 | D46: 13987 | E46: 19592 | F46: 43244 | G46: 35583 | H46: Yes | I46: No change since last CoS, costs are directly attributable to labour costs charged to capital and are included in burden rate. Balance includes all directly attributable costs except for direct wages.
A47: Administrative and General Departments | B47: 776 | C47: 1532 | D47: 1495 | E47: 12230 | F47: 2806 | G47: 2519 | H47: Yes | I47: No change since last CoS, costs are directly attributable to labour costs charged to capital and are included in burden rate. Balance includes all directly attributable costs except for direct wages.
A56: Total Capitalized OM&A (A) | B56: =SUM(B34:B55) -> 1469280 | C56: 1326076 | D56: 1152611 | E56: 1590407 | F56: 1371476 | G56: 1292936
A58: % of Capitalized OM&A (=A/B) | B58: =IF(ISERROR(B56/B27),"0%",B56/B27) -> 0.110598254 | C58: 0.1009960436 | D58: 0.08676469256 | E58: 0.1158766202 | F58: 0.09593471286 | G58: 0.08636775897

Sheet App.2-EA_Account 1575 (2015) (hidden)
H1: File Number: | I1: =EBNUMBER -> EB-2019-0019
H2: Exhibit:
H3: Tab:
H4: Schedule:
H5: Page:
H7: Date:
A9: Appendix 2-EA
A10: Account 1575 - IFRS-CGAAP Transitional PP&E Amounts
A11: 2015 Adopters of IFRS for Financial Reporting Purposes
A13: For applicants that adopted IFRS on January 1, 2015 for financial reporting purposes
B17: 2014 | C17: =TestYear-3 -> 2017 | D17: =TestYear-2 -> 2018 | E17: =CONCATENATE(TestYear-1," Bridge Year") -> 2019 Bridge Year | F17: =CONCATENATE(TestYear," Rebasing Year") -> 2020 Rebasing Year
A18: Reporting Basis | B18: CGAAP | C18: CGAAP | D18: CGAAP | E18: MIFRS | F18: MIFRS
B19: Actual | C19: Actual | D19: Actual | E19: Forecast | F19: Forecast
D20: $ | E20: $
A21: PP&E Values under CGAAP
A22: Opening net PP&E - Note 1 | C22: =+B25 -> 0 | D22: =+C25 -> 0 | E22: =+D25 -> 0
A23: Net Additions - Note 4
A24: Net Depreciation (amounts should be negative) - Note 4
A25: Closing net PP&E (1) | B25: =SUM(B22:B24) -> 0 | C25: =SUM(C22:C24) -> 0 | D25: =SUM(D22:D24) -> 0 | E25: =SUM(E22:E24) -> 0
A27: PP&E Values under MIFRS (Starts from 2014, the transition year)
A28: Opening net PP&E - Note 1 | C28: =+B31 -> 0 | D28: =+C31 -> 0 | E28: =+D31 -> 0
A29: Net Additions - Note 4
A30: Net Depreciation (amounts should be negative) - Note 4
A31: Closing net PP&E (2) | B31: =SUM(B28:B30) -> 0 | C31: =SUM(C28:C30) -> 0 | D31: =SUM(D28:D30) -> 0 | E31: =SUM(E28:E30) -> 0
A33: Difference in Closing net PP&E, former CGAAP vs. revised CGAAP | B33: =B25-B31 -> 0 | C33: =C25-C31 -> 0 | D33: =D25-D31 -> 0 | E33: =E25-E31 -> 0
A36: Effect on Deferral and Variance Account Rate Riders
A37: Closing balance in Account 1575 | F37: =IF(ISERROR(E33), 0, E33) -> 0 | H37: WACC
A38: Return on Rate Base Associated with Account 1575 balance at WACC - Note 2 | F38: =E33*I37*I38 -> 0 | G38: # of years of rate rider disposition period
A39: Amount included in Deferral and Variance Account Rate Rider Calculation | F39: =F37+F38 -> 0
A41: Notes:
A42: 1 For an applicant that adopted IFRS on January 1, 2015, the PP&E values as of January 1, 2014 under both CGAAP and MIFRS should be the same.
A43: 2 Return on rate base associated with deferred balance is calculated as:
A44: the deferral account closing balance as of 2017 x WACC X # of years of rate rider disposition period
A45: * Please note that the calculation should be adjusted once WACC is updated and finalized in the rate application.
A46: 3 The PP&E deferral account is cleared by including the total balance in the deferral and variance account rate rider calculation.
A47: 4 Net additions are additions net of disposals; Net depreciation is additions to depreciation net of disposals.

Sheet App.2-EB_Account 1576 (2012) (hidden)
K1: File Number: | L1: =EBNUMBER -> EB-2019-0019
K2: Exhibit:
K3: Tab:
K4: Schedule:
K5: Page:
K7: Date:
A9: Appendix 2-EB
A10: Account 1576 - Accounting Changes under CGAAP
A11: 2012 Changes in Accounting Policies under CGAAP
A13: For applicants with a balance in Account 1576 and made capitalization and depreciation expense accounting policy changes under CGAAP effective January 1, 2012. This is the first time the applicant is rebasing with changes in these accounting policies.
B17: Prior Years Rebasing | C17: 2012 | D17: 2013 | E17: 2014 | F17: 2015 | G17: 2016 | H17: 2017 | I17: 2018 Rebasing Year
A18: Reporting Basis | B18: CGAAP | C18: CGAAP | D18: CGAAP | E18: CGAAP | F18: MIFRS - Note 5 | G18: MIFRS | H18: MIFRS | I18: MIFRS
B19: Forecast | C19: Actual | D19: Actual | E19: Actual | F19: Actual | G19: Actual | H19: Forecast | I19: Forecast
C20: $ | D20: $ | E20: $ | F20: $ | G20: $ | H20: $
A21: PP&E Values under former CGAAP
A22: Opening net PP&E - Note 1 | D22: =+C25 -> 0 | E22: =+D25 -> 0 | F22: =+E25 -> 0 | G22: =+F25 -> 0 | H22: =+G25 -> 0
A23: Net Additions - Note 4
A24: Net Depreciation (amounts should be negative) - Note 4
A25: Closing net PP&E (1) | C25: =C22+C23+C24 -> 0 | D25: 0 | E25: 0 | F25: 0 | G25: 0 | H25: 0
A27: PP&E Values under revised CGAAP (Starts from 2012)
A28: Opening net PP&E - Note 1 | D28: =+C31 -> 0 | E28: =+D31 -> 0 | F28: =+E31 -> 0 | G28: =+F31 -> 0 | H28: =+G31 -> 0
A29: Net Additions - Note 4
A30: Net Depreciation (amounts should be negative) - Note 4
A31: Closing net PP&E (2) | C31: =SUM(C28:C30) -> 0 | D31: 0 | E31: 0 | F31: 0 | G31: 0 | H31: 0
A33: Difference in Closing net PP&E, former CGAAP vs. revised CGAAP | C33: =C25-C31 -> 0 | D33: 0 | E33: 0 | F33: 0 | G33: 0 | H33: 0
A36: Effect on Deferral and Variance Account Rate Riders
A37: Closing balance in Account 1576 | I37: =IF(ISERROR(H33), 0, H33) -> 0 | K37: WACC
A38: Return on Rate Base Associated with Account 1576 balance at WACC - Note 2 | I38: =H33*L37*L38 -> 0 | J38: # of years of rate rider disposition period
A39: Amount included in Deferral and Variance Account Rate Rider Calculation | I39: =I37+I38 -> 0
A41: Notes:
A42: 1 For an applicant that made the capitalization and depreciation expense accounting policy changes on January 1, 2012, the PP&E values as of January 1, 2012 under both former CGAAP and revised CGAAP should be the same.
A43: 2 Return on rate base associated with Account 1576 balance is calculated as:
A44: the variance account ending balance as of 2017 x WACC X # of years of rate rider disposition period
A45: * Please note that the calculation should be adjusted once WACC is updated and finalized in the rate application.
A46: 3 Account 1576 is cleared by including the total balance in the deferral and variance account rate rider calculation.
A47: 4 Net additions are additions net of disposals; Net depreciation is additions to depreciation net of disposals.
A48: 5 Differences due to the adoption of MIFRS are to be shown separately in Account 1575 in Appendix 2-EA as Accounts 1575 and 1576 cannot be used interchangably.

Sheet App.2-EC_Account 1576 (2013) (hidden)
J1: File Number: | K1: =EBNUMBER -> EB-2019-0019
J2: Exhibit:
J3: Tab:
J4: Schedule:
J5: Page:
J7: Date:
A9: Appendix 2-EC
A10: Account 1576 - Accounting Changes under CGAAP
A11: 2013 Changes in Accounting Policies under CGAAP
A13: For applicants with a balance in Account 1576 and made capitalization and depreciation expense accounting policy changes under CGAAP effective January 1, 2013. This is the first time the applicant is rebasing with changes in these accounting policies.
B17: Prior Years Rebasing | C17: 2013 | D17: 2014 | E17: 2015 | F17: 2016 | G17: 2017 | H17: 2018 Rebasing Year
A18: Reporting Basis | B18: CGAAP | C18: CGAAP | D18: CGAAP | E18: MIFRS - Note 5 | F18: MIFRS | G18: MIFRS | H18: MIFRS
B19: Actual | C19: Actual | D19: Actual | E19: Actual | F19: Actual | G19: Forecast | H19: Forecast
C20: $ | D20: $ | F20: $
A21: PP&E Values under former CGAAP
A22: Opening net PP&E - Note 1 | D22: =+C25 -> 0 | E22: =+D25 -> 0 | F22: =+E25 -> 0 | G22: =+F25 -> 0
A23: Net Additions - Note 4
A24: Net Depreciation (amounts should be negative) - Note 4
A25: Closing net PP&E (1) | C25: =C22+C23+C24 -> 0 | D25: =D22+D23+D24 -> 0 | E25: =E22+E23+E24 -> 0 | F25: =F22+F23+F24 -> 0 | G25: =G22+G23+G24 -> 0
A27: PP&E Values under revised CGAAP (Starts from 2012)
A28: Opening net PP&E - Note 1 | D28: =+C31 -> 0 | E28: =+D31 -> 0 | F28: =+E31 -> 0 | G28: =+F31 -> 0
A29: Net Additions - Note 4
A30: Net Depreciation (amounts should be negative) - Note 4
A31: Closing net PP&E (2) | C31: =SUM(C28:C30) -> 0 | D31: =SUM(D28:D30) -> 0 | E31: =SUM(E28:E30) -> 0 | F31: =SUM(F28:F30) -> 0 | G31: =SUM(G28:G30) -> 0
A33: Difference in Closing net PP&E, former CGAAP vs. revised CGAAP | C33: =C25-C31 -> 0 | D33: =D25-D31 -> 0 | E33: =E25-E31 -> 0 | F33: =F25-F31 -> 0 | G33: =G25-G31 -> 0
A36: Effect on Deferral and Variance Account Rate Riders
A37: Closing balance in Account 1576 | H37: =IF(ISERROR(G33), 0, G33) -> 0 | J37: WACC
A38: Return on Rate Base Associated with Account 1576 balance at WACC - Note 2 | H38: =G33*K37*K38 -> 0 | I38: # of years of rate rider disposition period
A39: Amount included in Deferral and Variance Account Rate Rider Calculation | H39: =H37+H38 -> 0
A41: Notes:
A42: 1 For an applicant that made the capitalization and depreciation expense accounting policy changes on January 1, 2013, the PP&E values as of January 1, 2013 under both former CGAAP and revised CGAAP should be the same.
A43: 2 Return on rate base associated with Account 1576 balance is calculated as:
A44: the variance account ending balance as of 2017 x WACC X # of years of rate rider disposition period
A45: * Please note that the calculation should be adjusted once WACC is updated and finalized in the rate application.
A46: 3 Account 1576 is cleared by including the total balance in the deferral and variance account rate rider calculation.
A47: 4 Net additions are additions net of disposals; Net depreciation is additions to depreciation net of disposals.
A48: 5 Differences due to the adoption of MIFRS are to be shown separately in Account 1575 in Appendix 2-EA as Accounts 1575 and 1576 cannot be used interchangably.

Sheet App.2-FA Proposed REG Invest.
K1: File Number: | L1: =EBNUMBER -> EB-2019-0019
K2: Exhibit:
K3: Tab:
A4: TO BE UPDATED AT DRAFT RATE ORDER STAGE | K4: Schedule:
K5: Page:
K7: Date:
A9: Appendix 2-FA
A10: Renewable Generation Connection Investment Summary (past investments or over the future rate setting period)
A11: **N/A for this Application**
A12: Enter the details of the Renewable Generation Connection projects as described in the appropriate section of the Filing Requirements.
A13: All costs entered on this page will be transferred to the appropriate cells in the appendices that follow.
A14: For Part A, Renewable Enabling Improvements (REI), these amounts will be transferred to Appendix 2 - FB
A15: For Part B, Expansions, these amounts will be transferred to Appendix 2 - FC
A17: If there are more than five projects proposed to be in-service in a certain year, please amend the tables below and ensure that the formulae for the Total Amounts in any given rate year are updated.
A18: Based on the current methodology and allocation, amounts allocated represent 6% for REI Connection Investments and 17% for Expansion Investments. (EB-2009-0349, 6-10-2010, p. 15, note 9)
A20: There are two scenarios described below. Separate sets of spreadsheets (2-FA, 2-FB, 2-FC) should be submited for each scenario as required.
A21: Scenario 1: Past Investments with No Recovery. The distributor has made investments in the past (during the IRM Years), but has not received approval for these projects and therefore did not receive
A22: revenue from the IESO under Regulation 330/09 and did not receive ratepayer revenue for the direct benefit portion of the investment.
A23: The WCA percentage, debt percentages, interest rates, kWh, tax rates, amortization period, CCA Class and percentage should correspond to the distributor's last Cost of Service approval.
A24: The Direct Benefit portion of the calculated Revenue Requirement for each year should be summed and can be applied for recovery from the distributor's ratepayers through a rate rider.
A25: The Provincial Recovery portion of the calculated Revenue Requirement for each year should be summed and can be applied for recovery from the IESO through a separate order.
A27: Scenario 2: Investments in the Test Year and Beyond. Distributor plans to make investments in 2017 and/or beyond. These investments should be added to 2-FA in the appropriate year.
A28: The WCA percentage, debt percentages, interest rates, kWh, tax rates, amortization period, CCA Class and percentage should correspond to the distributor's current application.
A30: Part A | H30: Test Year
A31: REI Investments (Direct Benefit at 6%) | C31: =D31-1 -> 2015 | D31: =E31-1 -> 2016 | E31: =F31-1 -> 2017 | F31: =G31-1 -> 2018 | G31: =H31-1 -> 2019 | H31: =TestYear -> 2020 | I31: =H31+1 -> 2021 | J31: =I31+1 -> 2022 | K31: =J31+1 -> 2023 | L31: =K31+1 -> 2024
A32: Project 1
A33: Name: REI Connection Project
A34: Capital Costs | C34: 0 | D34: 0 | E34: 0 | F34: 0 | G34: 0 | H34: 0 | I34: 0 | J34: 0 | K34: 0 | L34: 0
A35: OM&A (Start-Up) | C35: 0 | D35: 0 | E35: 0 | F35: 0 | G35: 0 | H35: 0 | I35: 0 | J35: 0 | K35: 0 | L35: 0
A36: OM&A (Ongoing) | C36: 0 | D36: 0 | E36: 0 | F36: 0 | G36: 0 | H36: 0 | I36: 0 | J36: 0 | K36: 0 | L36: 0
A38: Project 2
A39: Name: REI Connection Project
A40: Capital Costs | C40: 0 | D40: 0 | E40: 0 | F40: 0 | G40: 0 | H40: 0 | I40: 0 | J40: 0 | K40: 0 | L40: 0
A41: OM&A (Start-Up) | C41: 0 | D41: 0 | E41: 0 | F41: 0 | G41: 0 | H41: 0 | I41: 0 | J41: 0 | K41: 0 | L41: 0
A42: OM&A (Ongoing) | C42: 0 | D42: 0 | E42: 0 | F42: 0 | G42: 0 | H42: 0 | I42: 0 | J42: 0 | K42: 0 | L42: 0
A44: Project 3
A45: Name: REI Connection Project
A46: Capital Costs | C46: 0 | D46: 0 | E46: 0 | F46: 0 | G46: 0 | H46: 0 | I46: 0 | J46: 0 | K46: 0 | L46: 0
A47: OM&A (Start-Up) | C47: 0 | D47: 0 | E47: 0 | F47: 0 | G47: 0 | H47: 0 | I47: 0 | J47: 0 | K47: 0 | L47: 0
A48: OM&A (Ongoing) | C48: 0 | D48: 0 | E48: 0 | F48: 0 | G48: 0 | H48: 0 | I48: 0 | J48: 0 | K48: 0 | L48: 0
A50: Project 4
A51: Name: REI Connection Project
A52: Capital Costs | C52: 0 | D52: 0 | E52: 0 | F52: 0 | G52: 0 | H52: 0 | I52: 0 | J52: 0 | K52: 0 | L52: 0
A53: OM&A (Start-Up) | C53: 0 | D53: 0 | E53: 0 | F53: 0 | G53: 0 | H53: 0 | I53: 0 | J53: 0 | K53: 0 | L53: 0
A54: OM&A (Ongoing) | C54: 0 | D54: 0 | E54: 0 | F54: 0 | G54: 0 | H54: 0 | I54: 0 | J54: 0 | K54: 0 | L54: 0
A56: Project 5
A57: Name: REI Connection Project
A58: Capital Costs | C58: 0 | D58: 0 | E58: 0 | F58: 0 | G58: 0 | H58: 0 | I58: 0 | J58: 0 | K58: 0 | L58: 0
A59: OM&A (Start-Up) | C59: 0 | D59: 0 | E59: 0 | F59: 0 | G59: 0 | H59: 0 | I59: 0 | J59: 0 | K59: 0 | L59: 0
A60: OM&A (Ongoing) | C60: 0 | D60: 0 | E60: 0 | F60: 0 | G60: 0 | H60: 0 | I60: 0 | J60: 0 | K60: 0 | L60: 0
A62: Total Capital Costs | C62: =SUM(C58,C52,C46,C40,C34) -> 0 | D62: =SUM(D58,D52,D46,D40,D34) -> 0 | E62: 0 | F62: 0 | G62: 0 | H62: =SUM(H58,H52,H46,H40,H34) -> 0 | I62: =SUM(I58,I52,I46,I40,I34) -> 0 | J62: 0 | K62: 0 | L62: 0
A63: Total OM&A (Start-Up) | C63: =SUM(C59,C53,C47,C41,C35) -> 0 | D63: 0 | E63: 0 | F63: 0 | G63: 0 | H63: =SUM(H59,H53,H47,H41,H35) -> 0 | I63: 0 | J63: 0 | K63: 0 | L63: 0
A64: Total OM&A (Ongoing) | C64: =SUM(C60,C54,C48,C42,C36) -> 0 | D64: 0 | E64: 0 | F64: 0 | G64: 0 | H64: =SUM(H60,H54,H48,H42,H36) -> 0 | I64: 0 | J64: 0 | K64: 0 | L64: 0
A67: Part B | H67: Test Year
A68: Expansion Investments (Direct Benefit at 17%) | C68: =D68-1 -> 2015 | D68: =E68-1 -> 2016 | E68: =F68-1 -> 2017 | F68: =G68-1 -> 2018 | G68: =H68-1 -> 2019 | H68: =TestYear -> 2020 | I68: =H68+1 -> 2021 | J68: =I68+1 -> 2022 | K68: =J68+1 -> 2023 | L68: =K68+1 -> 2024
A69: Project 1
A70: Name: Expansion Connection Project
A71: Capital Costs | C71: 0 | D71: 0 | E71: 0 | F71: 0 | G71: 0 | H71: 0 | I71: 0 | J71: 0 | K71: 0 | L71: 0
A72: OM&A (Start-Up) | C72: 0 | D72: 0 | E72: 0 | F72: 0 | G72: 0 | H72: 0 | I72: 0 | J72: 0 | K72: 0 | L72: 0
A73: OM&A (Ongoing) | C73: 0 | D73: 0 | E73: 0 | F73: 0 | G73: 0 | H73: 0 | I73: 0 | J73: 0 | K73: 0 | L73: 0
A75: Project 2
A76: Name: Expansion Connection Project
A77: Capital Costs | C77: 0 | D77: 0 | E77: 0 | F77: 0 | G77: 0 | H77: 0 | I77: 0 | J77: 0 | K77: 0 | L77: 0
A78: OM&A (Start-Up) | C78: 0 | D78: 0 | E78: 0 | F78: 0 | G78: 0 | H78: 0 | I78: 0 | J78: 0 | K78: 0 | L78: 0
A79: OM&A (Ongoing) | C79: 0 | D79: 0 | E79: 0 | F79: 0 | G79: 0 | H79: 0 | I79: 0 | J79: 0 | K79: 0 | L79: 0
A81: Project 3
A82: Name: Expansion Connection Project
A83: Capital Costs | C83: 0 | D83: 0 | E83: 0 | F83: 0 | G83: 0 | H83: 0 | I83: 0 | J83: 0 | K83: 0 | L83: 0
A84: OM&A (Start-Up) | C84: 0 | D84: 0 | E84: 0 | F84: 0 | G84: 0 | H84: 0 | I84: 0 | J84: 0 | K84: 0 | L84: 0
A85: OM&A (Ongoing) | C85: 0 | D85: 0 | E85: 0 | F85: 0 | G85: 0 | H85: 0 | I85: 0 | J85: 0 | K85: 0 | L85: 0
A87: Project 4
A88: Name: Expansion Connection Project
A89: Capital Costs | C89: 0 | D89: 0 | E89: 0 | F89: 0 | G89: 0 | H89: 0 | I89: 0 | J89: 0 | K89: 0 | L89: 0
A90: OM&A (Start-Up) | C90: 0 | D90: 0 | E90: 0 | F90: 0 | G90: 0 | H90: 0 | I90: 0 | J90: 0 | K90: 0 | L90: 0
A91: OM&A (Ongoing) | C91: 0 | D91: 0 | E91: 0 | F91: 0 | G91: 0 | H91: 0 | I91: 0 | J91: 0 | K91: 0 | L91: 0
A93: Project 5
A94: Name: Expansion Connection Project
A95: Capital Costs | C95: 0 | D95: 0 | E95: 0 | F95: 0 | G95: 0 | H95: 0 | I95: 0 | J95: 0 | K95: 0 | L95: 0
A96: OM&A (Start-Up) | C96: 0 | D96: 0 | E96: 0 | F96: 0 | G96: 0 | H96: 0 | I96: 0 | J96: 0 | K96: 0 | L96: 0
A97: OM&A (Ongoing) | C97: 0 | D97: 0 | E97: 0 | F97: 0 | G97: 0 | H97: 0 | I97: 0 | J97: 0 | K97: 0 | L97: 0
A99: Total Capital Costs | C99: =SUM(C95,C89,C83,C77,C71) -> 0 | D99: =SUM(D95,D89,D83,D77,D71) -> 0 | E99: 0 | F99: 0 | G99: 0 | H99: =SUM(H95,H89,H83,H77,H71) -> 0 | I99: =SUM(I95,I89,I83,I77,I71) -> 0 | J99: 0 | K99: 0 | L99: 0
A100: Total OM&A (Start-Up) | C100: =SUM(C96,C90,C84,C78,C72) -> 0 | D100: 0 | E100: 0 | F100: 0 | G100: 0 | H100: =SUM(H96,H90,H84,H78,H72) -> 0 | I100: 0 | J100: 0 | K100: 0 | L100: 0
A101: Total OM&A (Ongoing) | C101: =SUM(C97,C91,C85,C79,C73) -> 0 | D101: 0 | E101: 0 | F101: 0 | G101: 0 | H101: =SUM(H97,H91,H85,H79,H73) -> 0 | I101: 0 | J101: 0 | K101: 0 | L101: 0

Sheet Hidden_REG Invest. (hidden)
A1: Utility Name | B1: EB Number | C1: Test Year | D1: Bridge Year | E1: Last Rebasing Year | F1: Renewable Generation Connection Investment Summary | G1: Year | H1: Amount
A2: ='LDC Info'!$E$14 -> Algoma Power Inc. | B2: =EBNUMBER -> EB-2019-0019 | C2: =TestYear -> 2020 | D2: =BridgeYear -> 2019 | E2: =RebaseYear -> 2015 | F2: REI Investments_A_Total Capital Costs | G2: 2014 | H2: ='App.2-FA Proposed REG Invest.'!C62 -> 0
A3: ='LDC Info'!$E$14 -> Algoma Power Inc. | B3: EB-2019-0019 | C3: 2020 | D3: 2019 | E3: 2015 | F3: REI Investments_A_Total OM&A Start-Up | G3: 2014 | H3: ='App.2-FA Proposed REG Invest.'!C63 -> 0
A4: ='LDC Info'!$E$14 -> Algoma Power Inc. | B4: EB-2019-0019 | C4: 2020 | D4: 2019 | E4: 2015 | F4: REI Investments_A_Total OM&A Ongoing | G4: 2014 | H4: ='App.2-FA Proposed REG Invest.'!C64 -> 0
A5: ='LDC Info'!$E$14 -> Algoma Power Inc. | B5: EB-2019-0019 | C5: 2020 | D5: 2019 | E5: 2015 | F5: REI Investments_A_Total Capital Costs | G5: 2015 | H5: ='App.2-FA Proposed REG Invest.'!D62 -> 0
A6: ='LDC Info'!$E$14 -> Algoma Power Inc. | B6: EB-2019-0019 | C6: 2020 | D6: 2019 | E6: 2015 | F6: REI Investments_A_Total OM&A Start-Up | G6: 2015 | H6: ='App.2-FA Proposed REG Invest.'!D63 -> 0
A7: ='LDC Info'!$E$14 -> Algoma Power Inc. | B7: EB-2019-0019 | C7: 2020 | D7: 2019 | E7: 2015 | F7: REI Investments_A_Total OM&A Ongoing | G7: 2015 | H7: ='App.2-FA Proposed REG Invest.'!D64 -> 0
A8: ='LDC Info'!$E$14 -> Algoma Power Inc. | B8: EB-2019-0019 | C8: 2020 | D8: 2019 | E8: 2015 | F8: REI Investments_A_Total Capital Costs | G8: 2016 | H8: ='App.2-FA Proposed REG Invest.'!E62 -> 0
A9: ='LDC Info'!$E$14 -> Algoma Power Inc. | B9: EB-2019-0019 | C9: 2020 | D9: 2019 | E9: 2015 | F9: REI Investments_A_Total OM&A Start-Up | G9: 2016 | H9: ='App.2-FA Proposed REG Invest.'!E63 -> 0
A10: ='LDC Info'!$E$14 -> Algoma Power Inc. | B10: EB-2019-0019 | C10: 2020 | D10: 2019 | E10: 2015 | F10: REI Investments_A_Total OM&A Ongoing | G10: 2016 | H10: ='App.2-FA Proposed REG Invest.'!E64 -> 0
A11: ='LDC Info'!$E$14 -> Algoma Power Inc. | B11: EB-2019-0019 | C11: 2020 | D11: 2019 | E11: 2015 | F11: REI Investments_A_Total Capital Costs | G11: 2017 | H11: ='App.2-FA Proposed REG Invest.'!F62 -> 0
A12: ='LDC Info'!$E$14 -> Algoma Power Inc. | B12: EB-2019-0019 | C12: 2020 | D12: 2019 | E12: 2015 | F12: REI Investments_A_Total OM&A Start-Up | G12: 2017 | H12: ='App.2-FA Proposed REG Invest.'!F63 -> 0
A13: ='LDC Info'!$E$14 -> Algoma Power Inc. | B13: EB-2019-0019 | C13: 2020 | D13: 2019 | E13: 2015 | F13: REI Investments_A_Total OM&A Ongoing | G13: 2017 | H13: ='App.2-FA Proposed REG Invest.'!F64 -> 0
A14: ='LDC Info'!$E$14 -> Algoma Power Inc. | B14: EB-2019-0019 | C14: 2020 | D14: 2019 | E14: 2015 | F14: REI Investments_A_Total Capital Costs | G14: 2018 | H14: ='App.2-FA Proposed REG Invest.'!G62 -> 0
A15: ='LDC Info'!$E$14 -> Algoma Power Inc. | B15: EB-2019-0019 | C15: 2020 | D15: 2019 | E15: 2015 | F15: REI Investments_A_Total OM&A Start-Up | G15: 2018 | H15: ='App.2-FA Proposed REG Invest.'!G63 -> 0
A16: ='LDC Info'!$E$14 -> Algoma Power Inc. | B16: EB-2019-0019 | C16: 2020 | D16: 2019 | E16: 2015 | F16: REI Investments_A_Total OM&A Ongoing | G16: 2018 | H16: ='App.2-FA Proposed REG Invest.'!G64 -> 0
A17: ='LDC Info'!$E$14 -> Algoma Power Inc. | B17: EB-2019-0019 | C17: 2020 | D17: 2019 | E17: 2015 | F17: REI Investments_A_Total Capital Costs | G17: 2019 | H17: ='App.2-FA Proposed REG Invest.'!H62 -> 0
A18: ='LDC Info'!$E$14 -> Algoma Power Inc. | B18: EB-2019-0019 | C18: 2020 | D18: 2019 | E18: 2015 | F18: REI Investments_A_Total OM&A Start-Up | G18: 2019 | H18: ='App.2-FA Proposed REG Invest.'!H63 -> 0
A19: ='LDC Info'!$E$14 -> Algoma Power Inc. | B19: EB-2019-0019 | C19: 2020 | D19: 2019 | E19: 2015 | F19: REI Investments_A_Total OM&A Ongoing | G19: 2019 | H19: ='App.2-FA Proposed REG Invest.'!H64 -> 0
A20: ='LDC Info'!$E$14 -> Algoma Power Inc. | B20: EB-2019-0019 | C20: 2020 | D20: 2019 | E20: 2015 | F20: REI Investments_A_Total Capital Costs | G20: 2020 | H20: ='App.2-FA Proposed REG Invest.'!I62 -> 0
A21: ='LDC Info'!$E$14 -> Algoma Power Inc. | B21: EB-2019-0019 | C21: 2020 | D21: 2019 | E21: 2015 | F21: REI Investments_A_Total OM&A Start-Up | G21: 2020 | H21: ='App.2-FA Proposed REG Invest.'!I63 -> 0
A22: ='LDC Info'!$E$14 -> Algoma Power Inc. | B22: EB-2019-0019 | C22: 2020 | D22: 2019 | E22: 2015 | F22: REI Investments_A_Total OM&A Ongoing | G22: 2020 | H22: ='App.2-FA Proposed REG Invest.'!I64 -> 0
A23: ='LDC Info'!$E$14 -> Algoma Power Inc. | B23: EB-2019-0019 | C23: 2020 | D23: 2019 | E23: 2015 | F23: REI Investments_A_Total Capital Costs | G23: 2021 | H23: ='App.2-FA Proposed REG Invest.'!J62 -> 0
A24: ='LDC Info'!$E$14 -> Algoma Power Inc. | B24: EB-2019-0019 | C24: 2020 | D24: 2019 | E24: 2015 | F24: REI Investments_A_Total OM&A Start-Up | G24: 2021 | H24: ='App.2-FA Proposed REG Invest.'!J63 -> 0
A25: ='LDC Info'!$E$14 -> Algoma Power Inc. | B25: EB-2019-0019 | C25: 2020 | D25: 2019 | E25: 2015 | F25: REI Investments_A_Total OM&A Ongoing | G25: 2021 | H25: ='App.2-FA Proposed REG Invest.'!J64 -> 0
A26: ='LDC Info'!$E$14 -> Algoma Power Inc. | B26: EB-2019-0019 | C26: 2020 | D26: 2019 | E26: 2015 | F26: REI Investments_A_Total Capital Costs | G26: 2022 | H26: ='App.2-FA Proposed REG Invest.'!K62 -> 0
A27: ='LDC Info'!$E$14 -> Algoma Power Inc. | B27: EB-2019-0019 | C27: 2020 | D27: 2019 | E27: 2015 | F27: REI Investments_A_Total OM&A Start-Up | G27: 2022 | H27: ='App.2-FA Proposed REG Invest.'!K63 -> 0
A28: ='LDC Info'!$E$14 -> Algoma Power Inc. | B28: EB-2019-0019 | C28: 2020 | D28: 2019 | E28: 2015 | F28: REI Investments_A_Total OM&A Ongoing | G28: 2022 | H28: ='App.2-FA Proposed REG Invest.'!K64 -> 0
A29: ='LDC Info'!$E$14 -> Algoma Power Inc. | B29: EB-2019-0019 | C29: 2020 | D29: 2019 | E29: 2015 | F29: REI Investments_A_Total Capital Costs | G29: 2023 | H29: ='App.2-FA Proposed REG Invest.'!L62 -> 0
A30: ='LDC Info'!$E$14 -> Algoma Power Inc. | B30: EB-2019-0019 | C30: 2020 | D30: 2019 | E30: 2015 | F30: REI Investments_A_Total OM&A Start-Up | G30: 2023 | H30: ='App.2-FA Proposed REG Invest.'!L63 -> 0
A31: ='LDC Info'!$E$14 -> Algoma Power Inc. | B31: EB-2019-0019 | C31: 2020 | D31: 2019 | E31: 2015 | F31: REI Investments_A_Total OM&A Ongoing | G31: 2023 | H31: ='App.2-FA Proposed REG Invest.'!L64 -> 0
A32: ='LDC Info'!$E$14 -> Algoma Power Inc. | B32: EB-2019-0019 | C32: 2020 | D32: 2019 | E32: 2015 | F32: Expansion Investments_B_Total Capital Costs | G32: 2014 | H32: ='App.2-FA Proposed REG Invest.'!C99 -> 0
A33: ='LDC Info'!$E$14 -> Algoma Power Inc. | B33: EB-2019-0019 | C33: 2020 | D33: 2019 | E33: 2015 | F33: Expansion Investments_B_Total OM&A Start-Up | G33: 2014 | H33: ='App.2-FA Proposed REG Invest.'!C100 -> 0
A34: ='LDC Info'!$E$14 -> Algoma Power Inc. | B34: EB-2019-0019 | C34: 2020 | D34: 2019 | E34: 2015 | F34: Expansion Investments_B_Total OM&A Ongoing | G34: 2014 | H34: ='App.2-FA Proposed REG Invest.'!C101 -> 0
A35: ='LDC Info'!$E$14 -> Algoma Power Inc. | B35: EB-2019-0019 | C35: 2020 | D35: 2019 | E35: 2015 | F35: Expansion Investments_B_Total Capital Costs | G35: 2015 | H35: ='App.2-FA Proposed REG Invest.'!D99 -> 0
A36: ='LDC Info'!$E$14 -> Algoma Power Inc. | B36: EB-2019-0019 | C36: 2020 | D36: 2019 | E36: 2015 | F36: Expansion Investments_B_Total OM&A Start-Up | G36: 2015 | H36: ='App.2-FA Proposed REG Invest.'!D100 -> 0
A37: ='LDC Info'!$E$14 -> Algoma Power Inc. | B37: EB-2019-0019 | C37: 2020 | D37: 2019 | E37: 2015 | F37: Expansion Investments_B_Total OM&A Ongoing | G37: 2015 | H37: ='App.2-FA Proposed REG Invest.'!D101 -> 0
A38: ='LDC Info'!$E$14 -> Algoma Power Inc. | B38: EB-2019-0019 | C38: 2020 | D38: 2019 | E38: 2015 | F38: Expansion Investments_B_Total Capital Costs | G38: 2016 | H38: ='App.2-FA Proposed REG Invest.'!E99 -> 0
A39: ='LDC Info'!$E$14 -> Algoma Power Inc. | B39: EB-2019-0019 | C39: 2020 | D39: 2019 | E39: 2015 | F39: Expansion Investments_B_Total OM&A Start-Up | G39: 2016 | H39: ='App.2-FA Proposed REG Invest.'!E100 -> 0
A40: ='LDC Info'!$E$14 -> Algoma Power Inc. | B40: EB-2019-0019 | C40: 2020 | D40: 2019 | E40: 2015 | F40: Expansion Investments_B_Total OM&A Ongoing | G40: 2016 | H40: ='App.2-FA Proposed REG Invest.'!E101 -> 0
A41: ='LDC Info'!$E$14 -> Algoma Power Inc. | B41: EB-2019-0019 | C41: 2020 | D41: 2019 | E41: 2015 | F41: Expansion Investments_B_Total Capital Costs | G41: 2017 | H41: ='App.2-FA Proposed REG Invest.'!F99 -> 0
A42: ='LDC Info'!$E$14 -> Algoma Power Inc. | B42: EB-2019-0019 | C42: 2020 | D42: 2019 | E42: 2015 | F42: Expansion Investments_B_Total OM&A Start-Up | G42: 2017 | H42: ='App.2-FA Proposed REG Invest.'!F100 -> 0
A43: ='LDC Info'!$E$14 -> Algoma Power Inc. | B43: EB-2019-0019 | C43: 2020 | D43: 2019 | E43: 2015 | F43: Expansion Investments_B_Total OM&A Ongoing | G43: 2017 | H43: ='App.2-FA Proposed REG Invest.'!F101 -> 0
A44: ='LDC Info'!$E$14 -> Algoma Power Inc. | B44: EB-2019-0019 | C44: 2020 | D44: 2019 | E44: 2015 | F44: Expansion Investments_B_Total Capital Costs | G44: 2018 | H44: ='App.2-FA Proposed REG Invest.'!G99 -> 0
A45: ='LDC Info'!$E$14 -> Algoma Power Inc. | B45: EB-2019-0019 | C45: 2020 | D45: 2019 | E45: 2015 | F45: Expansion Investments_B_Total OM&A Start-Up | G45: 2018 | H45: ='App.2-FA Proposed REG Invest.'!G100 -> 0
A46: ='LDC Info'!$E$14 -> Algoma Power Inc. | B46: EB-2019-0019 | C46: 2020 | D46: 2019 | E46: 2015 | F46: Expansion Investments_B_Total OM&A Ongoing | G46: 2018 | H46: ='App.2-FA Proposed REG Invest.'!G101 -> 0
A47: ='LDC Info'!$E$14 -> Algoma Power Inc. | B47: EB-2019-0019 | C47: 2020 | D47: 2019 | E47: 2015 | F47: Expansion Investments_B_Total Capital Costs | G47: 2019 | H47: ='App.2-FA Proposed REG Invest.'!H99 -> 0
A48: ='LDC Info'!$E$14 -> Algoma Power Inc. | B48: EB-2019-0019 | C48: 2020 | D48: 2019 | E48: 2015 | F48: Expansion Investments_B_Total OM&A Start-Up | G48: 2019 | H48: ='App.2-FA Proposed REG Invest.'!H100 -> 0
A49: ='LDC Info'!$E$14 -> Algoma Power Inc. | B49: EB-2019-0019 | C49: 2020 | D49: 2019 | E49: 2015 | F49: Expansion Investments_B_Total OM&A Ongoing | G49: 2019 | H49: ='App.2-FA Proposed REG Invest.'!H101 -> 0
A50: ='LDC Info'!$E$14 -> Algoma Power Inc. | B50: EB-2019-0019 | C50: 2020 | D50: 2019 | E50: 2015 | F50: Expansion Investments_B_Total Capital Costs | G50: 2020 | H50: ='App.2-FA Proposed REG Invest.'!I99 -> 0
A51: ='LDC Info'!$E$14 -> Algoma Power Inc. | B51: EB-2019-0019 | C51: 2020 | D51: 2019 | E51: 2015 | F51: Expansion Investments_B_Total OM&A Start-Up | G51: 2020 | H51: ='App.2-FA Proposed REG Invest.'!I100 -> 0
A52: ='LDC Info'!$E$14 -> Algoma Power Inc. | B52: EB-2019-0019 | C52: 2020 | D52: 2019 | E52: 2015 | F52: Expansion Investments_B_Total OM&A Ongoing | G52: 2020 | H52: ='App.2-FA Proposed REG Invest.'!I101 -> 0
A53: ='LDC Info'!$E$14 -> Algoma Power Inc. | B53: EB-2019-0019 | C53: 2020 | D53: 2019 | E53: 2015 | F53: Expansion Investments_B_Total Capital Costs | G53: 2021 | H53: ='App.2-FA Proposed REG Invest.'!J99 -> 0
A54: ='LDC Info'!$E$14 -> Algoma Power Inc. | B54: EB-2019-0019 | C54: 2020 | D54: 2019 | E54: 2015 | F54: Expansion Investments_B_Total OM&A Start-Up | G54: 2021 | H54: ='App.2-FA Proposed REG Invest.'!J100 -> 0
A55: ='LDC Info'!$E$14 -> Algoma Power Inc. | B55: EB-2019-0019 | C55: 2020 | D55: 2019 | E55: 2015 | F55: Expansion Investments_B_Total OM&A Ongoing | G55: 2021 | H55: ='App.2-FA Proposed REG Invest.'!J101 -> 0
A56: ='LDC Info'!$E$14 -> Algoma Power Inc. | B56: EB-2019-0019 | C56: 2020 | D56: 2019 | E56: 2015 | F56: Expansion Investments_B_Total Capital Costs | G56: 2022 | H56: ='App.2-FA Proposed REG Invest.'!K99 -> 0
A57: ='LDC Info'!$E$14 -> Algoma Power Inc. | B57: EB-2019-0019 | C57: 2020 | D57: 2019 | E57: 2015 | F57: Expansion Investments_B_Total OM&A Start-Up | G57: 2022 | H57: ='App.2-FA Proposed REG Invest.'!K100 -> 0
A58: ='LDC Info'!$E$14 -> Algoma Power Inc. | B58: EB-2019-0019 | C58: 2020 | D58: 2019 | E58: 2015 | F58: Expansion Investments_B_Total OM&A Ongoing | G58: 2022 | H58: ='App.2-FA Proposed REG Invest.'!K101 -> 0
A59: ='LDC Info'!$E$14 -> Algoma Power Inc. | B59: EB-2019-0019 | C59: 2020 | D59: 2019 | E59: 2015 | F59: Expansion Investments_B_Total Capital Costs | G59: 2023 | H59: ='App.2-FA Proposed REG Invest.'!L99 -> 0
A60: ='LDC Info'!$E$14 -> Algoma Power Inc. | B60: EB-2019-0019 | C60: 2020 | D60: 2019 | E60: 2015 | F60: Expansion Investments_B_Total OM&A Start-Up | G60: 2023 | H60: ='App.2-FA Proposed REG Invest.'!L100 -> 0
A61: ='LDC Info'!$E$14 -> Algoma Power Inc. | B61: EB-2019-0019 | C61: 2020 | D61: 2019 | E61: 2015 | F61: Expansion Investments_B_Total OM&A Ongoing | G61: 2023 | H61: ='App.2-FA Proposed REG Invest.'!L101 -> 0

Sheet App.2-FB Calc of REG Improvemnt
Q1: File Number: | R1: =EBNUMBER -> EB-2019-0019
Q2: Exhibit:
Q3: Tab:
A4: TO BE UPDATED AT DRAFT RATE ORDER STAGE | Q4: Schedule:
Q5: Page:
Q7: Date:
A9: Appendix 2-FB
A10: Calculation of Renewable Generation Connection Direct Benefits/Provincial Amount: Renewable Enabling Improvement Investments
A11: **N/A for this Application**
A12: This table will calculate the distributor/provincial shares of the investments entered in Part A of Appendix 2-FA.
A13: Enter values in green shaded cells: WCA percentage, debt percentages, interest rates, kWh, tax rates, amortization period, CCA Class and percentage.
A14: For historical investments, enter these variables for your last cost of service test year. For 2017 and beyond, enter variables as in the application.
A15: Rate Riders are not calculated for the Test Year as these assets and costs are already in the distributor's rate base/revenue requirement.
C17: =F17-1 -> 2015 | F17: =I17-1 -> 2016 | I17: =L17-1 -> 2017 | L17: =O17-1 -> 2018 | O17: =BridgeYear -> 2019 | R17: =CONCATENATE(TestYear," Test Year") -> 2020 Test Year | U17: =TestYear+1 -> 2021 | X17: =U17+1 -> 2022 | Y17: 2016 | AA17: =X17+1 -> 2023 | AD17: =AA17+1 -> 2024
D18: Direct Benefit | E18: Provincial | G18: Direct Benefit | H18: Provincial | J18: Direct Benefit | K18: Provincial | M18: Direct Benefit | N18: Provincial | P18: Direct Benefit | Q18: Provincial | S18: Direct Benefit | T18: Provincial | V18: Direct Benefit | W18: Provincial | Y18: Direct Benefit | Z18: Provincial | AB18: Direct Benefit | AC18: Provincial | AE18: Direct Benefit | AF18: Provincial
C19: Total | D19: 0.06 | E19: 0.94 | F19: Total | G19: 0.06 | H19: 0.94 | I19: Total | J19: 0.06 | K19: 0.94 | L19: Total | M19: 0.06 | N19: 0.94 | O19: Total | P19: 0.06 | Q19: 0.94 | R19: Total | S19: 0.06 | T19: 0.94 | U19: Total | V19: 0.06 | W19: 0.94 | X19: Total | Y19: 0.06 | Z19: 0.94 | AA19: Total | AB19: 0.06 | AC19: 0.94 | AD19: Total | AE19: 0.06 | AF19: 0.94
A20: Net Fixed Assets (average) | C20: =F82 -> 0 | D20: =C20*D19 -> 0 | E20: =C20*E19 -> 0 | F20: =G82 -> 0 | G20: =F20*G19 -> 0 | H20: =F20*H19 -> 0 | I20: =H82 -> 0 | J20: =I20*J19 -> 0 | K20: =I20*K19 -> 0 | L20: =I82 -> 0 | M20: =L20*M19 -> 0 | N20: =L20*N19 -> 0 | O20: =J82 -> 0 | P20: =O20*P19 -> 0 | Q20: =O20*Q19 -> 0 | R20: =K82 -> 0 | S20: =R20*S19 -> 0 | T20: =R20*T19 -> 0 | U20: =L82 -> 0 | V20: =U20*V19 -> 0 | W20: =U20*W19 -> 0 | X20: =M82 -> 0 | Y20: =X20*Y19 -> 0 | Z20: =X20*Z19 -> 0 | AA20: =N82 -> 0 | AB20: =AA20*AB19 -> 0 | AC20: =AA20*AC19 -> 0 | AD20: =O82 -> 0 | AE20: =AD20*AE19 -> 0 | AF20: =AD20*AF19 -> 0
A21: Incremental OM&A (on-going, N/A for Provincial Recovery) | C21: ='App.2-FA Proposed REG Invest.'!C64 -> 0 | D21: =C21 -> 0 | F21: ='App.2-FA Proposed REG Invest.'!D64 -> 0 | G21: =F21 -> 0 | I21: ='App.2-FA Proposed REG Invest.'!E64 -> 0 | J21: =I21 -> 0 | L21: ='App.2-FA Proposed REG Invest.'!F64 -> 0 | M21: =L21 -> 0 | O21: ='App.2-FA Proposed REG Invest.'!G64 -> 0 | P21: =O21 -> 0 | R21: ='App.2-FA Proposed REG Invest.'!H64 -> 0 | S21: =R21 -> 0 | U21: ='App.2-FA Proposed REG Invest.'!I64 -> 0 | V21: =U21 -> 0 | X21: ='App.2-FA Proposed REG Invest.'!J64 -> 0 | Y21: =X21 -> 0 | AA21: ='App.2-FA Proposed REG Invest.'!K64 -> 0 | AB21: =AA21 -> 0 | AD21: ='App.2-FA Proposed REG Invest.'!L64 -> 0 | AE21: =AD21 -> 0
A22: Incremental OM&A (start-up, applicable for Provincial Recovery) | C22: ='App.2-FA Proposed REG Invest.'!C63 -> 0 | D22: =C22*D19 -> 0 | E22: =C22*E19 -> 0 | F22: ='App.2-FA Proposed REG Invest.'!D63 -> 0 | G22: =F22*G19 -> 0 | H22: =F22*H19 -> 0 | I22: ='App.2-FA Proposed REG Invest.'!E63 -> 0 | J22: =I22*J19 -> 0 | K22: =I22*K19 -> 0 | L22: ='App.2-FA Proposed REG Invest.'!F63 -> 0 | M22: =L22*M19 -> 0 | N22: =L22*N19 -> 0 | O22: ='App.2-FA Proposed REG Invest.'!G63 -> 0 | P22: =O22*P19 -> 0 | Q22: =O22*Q19 -> 0 | R22: ='App.2-FA Proposed REG Invest.'!H63 -> 0 | S22: =R22*S19 -> 0 | T22: =R22*T19 -> 0 | U22: ='App.2-FA Proposed REG Invest.'!I63 -> 0 | V22: =U22*V19 -> 0 | W22: =U22*W19 -> 0 | X22: ='App.2-FA Proposed REG Invest.'!J63 -> 0 | Y22: =X22*Y19 -> 0 | Z22: =X22*Z19 -> 0 | AA22: ='App.2-FA Proposed REG Invest.'!K63 -> 0 | AB22: =AA22*AB19 -> 0 | AC22: =AA22*AC19 -> 0 | AD22: ='App.2-FA Proposed REG Invest.'!L63 -> 0 | AE22: =AD22*AE19 -> 0 | AF22: =AD22*AF19 -> 0
A23: WCA | D23: =(D21+D22)*$B$23 -> 0 | E23: =E22*$B$23 -> 0 | G23: =(G21+G22)*$B$23 -> 0 | H23: =H22*$B$23 -> 0 | J23: =(J21+J22)*$B$23 -> 0 | K23: =K22*$B$23 -> 0 | M23: =(M21+M22)*$B$23 -> 0 | N23: =N22*$B$23 -> 0 | P23: =(P21+P22)*$B$23 -> 0 | Q23: =Q22*$B$23 -> 0 | S23: =(S21+S22)*$B$23 -> 0 | T23: =T22*$B$23 -> 0 | V23: =(V21+V22)*$B$23 -> 0 | W23: =W22*$B$23 -> 0 | Y23: =(Y21+Y22)*$B$23 -> 0 | Z23: =Z22*$B$23 -> 0 | AB23: =(AB21+AB22)*$B$23 -> 0 | AC23: =AC22*$B$23 -> 0 | AE23: =(AE21+AE22)*$B$23 -> 0 | AF23: =AF22*$B$23 -> 0
A24: Rate Base | D24: =SUM(D20+D23) -> 0 | E24: =SUM(E20+E23) -> 0 | G24: =SUM(G20+G23) -> 0 | H24: =SUM(H20+H23) -> 0 | J24: =SUM(J20+J23) -> 0 | K24: =SUM(K20+K23) -> 0 | M24: =SUM(M20+M23) -> 0 | N24: =SUM(N20+N23) -> 0 | P24: =SUM(P20+P23) -> 0 | Q24: =SUM(Q20+Q23) -> 0 | S24: =SUM(S20+S23) -> 0 | T24: =SUM(T20+T23) -> 0 | V24: =SUM(V20+V23) -> 0 | W24: =SUM(W20+W23) -> 0 | Y24: =SUM(Y20+Y23) -> 0 | Z24: =SUM(Z20+Z23) -> 0 | AB24: =SUM(AB20+AB23) -> 0 | AC24: =SUM(AC20+AC23) -> 0 | AE24: =SUM(AE20+AE23) -> 0 | AF24: =SUM(AF20+AF23) -> 0
A27: Deemed ST Debt | D27: =D24*$B$27 -> 0 | E27: =E24*$B$27 -> 0 | G27: =G24*$B$27 -> 0 | H27: =H24*$B$27 -> 0 | J27: =J24*$B$27 -> 0 | K27: =K24*$B$27 -> 0 | M27: =M24*$B$27 -> 0 | N27: =N24*$B$27 -> 0 | P27: =P24*$B$27 -> 0 | Q27: =Q24*$B$27 -> 0 | S27: =S24*$B$27 -> 0 | T27: =T24*$B$27 -> 0 | V27: =V24*$B$27 -> 0 | W27: =W24*$B$27 -> 0 | Y27: =Y24*$B$27 -> 0 | Z27: =Z24*$B$27 -> 0 | AB27: =AB24*$B$27 -> 0 | AC27: =AC24*$B$27 -> 0 | AE27: =AE24*$B$27 -> 0 | AF27: =AF24*$B$27 -> 0
A28: Deemed LT Debt | D28: =D24*$B$28 -> 0 | E28: =E24*$B$28 -> 0 | G28: =G24*$B$28 -> 0 | H28: =H24*$B$28 -> 0 | J28: =J24*$B$28 -> 0 | K28: =K24*$B$28 -> 0 | M28: =M24*$B$28 -> 0 | N28: =N24*$B$28 -> 0 | P28: =P24*$B$28 -> 0 | Q28: =Q24*$B$28 -> 0 | S28: =S24*$B$28 -> 0 | T28: =T24*$B$28 -> 0 | V28: =V24*$B$28 -> 0 | W28: =W24*$B$28 -> 0 | Y28: =Y24*$B$28 -> 0 | Z28: =Z24*$B$28 -> 0 | AB28: =AB24*$B$28 -> 0 | AC28: =AC24*$B$28 -> 0 | AE28: =AE24*$B$28 -> 0 | AF28: =AF24*$B$28 -> 0
A29: Deemed Equity | D29: =D24*$B$29 -> 0 | E29: =E24*$B$29 -> 0 | G29: =G24*$B$29 -> 0 | H29: =H24*$B$29 -> 0 | J29: =J24*$B$29 -> 0 | K29: =K24*$B$29 -> 0 | M29: =M24*$B$29 -> 0 | N29: =N24*$B$29 -> 0 | P29: =P24*$B$29 -> 0 | Q29: =Q24*$B$29 -> 0 | S29: =S24*$B$29 -> 0 | T29: =T24*$B$29 -> 0 | V29: =V24*$B$29 -> 0 | W29: =W24*$B$29 -> 0 | Y29: =Y24*$B$29 -> 0 | Z29: =Z24*$B$29 -> 0 | AB29: =AB24*$B$29 -> 0 | AC29: =AC24*$B$29 -> 0 | AE29: =AE24*$B$29 -> 0 | AF29: =AF24*$B$29 -> 0
A31: ST Interest | D31: =D27*$B31 -> 0 | E31: 0 | G31: =G27*$B31 -> 0 | H31: 0 | J31: =J27*$B31 -> 0 | K31: 0 | M31: =M27*$B31 -> 0 | N31: 0 | P31: =P27*$B31 -> 0 | Q31: 0 | S31: =S27*$B31 -> 0 | T31: 0 | V31: =V27*$B31 -> 0 | W31: 0 | Y31: =Y27*$B31 -> 0 | Z31: 0 | AB31: =AB27*$B31 -> 0 | AC31: 0 | AE31: =AE27*$B31 -> 0 | AF31: 0
A32: LT Interest | D32: =D28*$B32 -> 0 | E32: 0 | G32: 0 | H32: 0 | J32: 0 | K32: 0 | M32: 0 | N32: 0 | P32: 0 | Q32: 0 | S32: 0 | T32: 0 | V32: 0 | W32: 0 | Y32: 0 | Z32: 0 | AB32: 0 | AC32: 0 | AE32: 0 | AF32: 0
A33: ROE | D33: =D29*$B33 -> 0 | E33: 0 | G33: 0 | H33: 0 | J33: 0 | K33: 0 | M33: 0 | N33: 0 | P33: 0 | Q33: 0 | S33: 0 | T33: 0 | V33: 0 | W33: 0 | Y33: 0 | Z33: 0 | AB33: 0 | AC33: 0 | AE33: 0 | AF33: 0
A34: Cost of Capital Total | D34: =SUM(D31:D33) -> 0 | E34: =SUM(E31:E33) -> 0 | G34: =SUM(G31:G33) -> 0 | H34: =SUM(H31:H33) -> 0 | J34: =SUM(J31:J33) -> 0 | K34: =SUM(K31:K33) -> 0 | M34: =SUM(M31:M33) -> 0 | N34: =SUM(N31:N33) -> 0 | P34: =SUM(P31:P33) -> 0 | Q34: =SUM(Q31:Q33) -> 0 | S34: =SUM(S31:S33) -> 0 | T34: =SUM(T31:T33) -> 0 | V34: =SUM(V31:V33) -> 0 | W34: =SUM(W31:W33) -> 0 | Y34: =SUM(Y31:Y33) -> 0 | Z34: =SUM(Z31:Z33) -> 0 | AB34: =SUM(AB31:AB33) -> 0 | AC34: =SUM(AC31:AC33) -> 0 | AE34: =SUM(AE31:AE33) -> 0 | AF34: =SUM(AF31:AF33) -> 0
A36: OM&A | D36: =D21+D22 -> 0 | E36: =E22 -> 0 | G36: =G21+G22 -> 0 | H36: =H22 -> 0 | J36: =J21+J22 -> 0 | K36: =K22 -> 0 | M36: =M21+M22 -> 0 | N36: =N22 -> 0 | P36: =P21+P22 -> 0 | Q36: =Q22 -> 0 | S36: =S21+S22 -> 0 | T36: =T22 -> 0 | V36: =V21+V22 -> 0 | W36: =W22 -> 0 | Y36: =Y21+Y22 -> 0 | Z36: =Z22 -> 0 | AB36: =AB21+AB22 -> 0 | AC36: =AC22 -> 0 | AE36: =AE21+AE22 -> 0 | AF36: =AF22 -> 0
A37: Amortization | C37: =D77 -> 0 | D37: =C37*D$19 -> 0 | E37: =C37*E$19 -> 0 | F37: =G77 -> 0 | G37: =F37*G$19 -> 0 | H37: =F37*H$19 -> 0 | I37: =H77 -> 0 | J37: =I37*J$19 -> 0 | K37: =I37*K$19 -> 0 | L37: =I77 -> 0 | M37: =L37*M$19 -> 0 | N37: =L37*N$19 -> 0 | O37: =J77 -> 0 | P37: =O37*P$19 -> 0 | Q37: =O37*Q$19 -> 0 | R37: =K77 -> 0 | S37: =R37*S$19 -> 0 | T37: =R37*T$19 -> 0 | U37: =L76+L77 -> 0 | V37: =U37*V$19 -> 0 | W37: =U37*W$19 -> 0 | X37: =M76+M77 -> 0 | Y37: =X37*Y$19 -> 0 | Z37: =X37*Z$19 -> 0 | AA37: =N76+N77 -> 0 | AB37: =AA37*AB$19 -> 0 | AC37: =AA37*AC$19 -> 0 | AD37: =O76+O77 -> 0 | AE37: =AD37*AE$19 -> 0 | AF37: =AD37*AF$19 -> 0
A38: Grossed-up PILs | D38: =D65 -> 0 | E38: =E65 -> 0 | G38: =G65 -> 0 | H38: =H65 -> 0 | J38: =J65 -> 0 | K38: =K65 -> 0 | M38: =M65 -> 0 | N38: =N65 -> 0 | P38: =P65 -> 0 | Q38: =Q65 -> 0 | S38: =S65 -> 0 | T38: =T65 -> 0 | V38: =V65 -> 0 | W38: =W65 -> 0 | Y38: =Y65 -> 0 | Z38: =Z65 -> 0 | AB38: =AB65 -> 0 | AC38: =AC65 -> 0 | AE38: =AE65 -> 0 | AF38: =AF65 -> 0
A40: Revenue Requirement | D40: =SUM(D34:D38) -> 0 | E40: =SUM(E34:E38) -> 0 | G40: =SUM(G34:G38) -> 0 | H40: =SUM(H34:H38) -> 0 | J40: =SUM(J34:J38) -> 0 | K40: =SUM(K34:K38) -> 0 | M40: =SUM(M34:M38) -> 0 | N40: =SUM(N34:N38) -> 0 | P40: =SUM(P34:P38) -> 0 | Q40: =SUM(Q34:Q38) -> 0 | S40: =SUM(S34:S38) -> 0 | T40: =SUM(T34:T38) -> 0 | V40: =SUM(V34:V38) -> 0 | W40: =SUM(W34:W38) -> 0 | Y40: =SUM(Y34:Y38) -> 0 | Z40: =SUM(Z34:Z38) -> 0 | AB40: =SUM(AB34:AB38) -> 0 | AC40: =SUM(AC34:AC38) -> 0 | AE40: =SUM(AE34:AE38) -> 0 | AF40: =SUM(AF34:AF38) -> 0
A43: Provincial Rate Protection | E43: =E40 -> 0 | H43: =H40 -> 0 | K43: =K40 -> 0 | N43: =N40 -> 0 | Q43: =Q40 -> 0 | T43: =T40 -> 0 | W43: =W40 -> 0 | Z43: =Z40 -> 0 | AC43: =AC40 -> 0 | AF43: =AF40 -> 0
A45: Monthly Amount Paid by IESO | E45: =E43/12 -> 0 | H45: =H43/12 -> 0 | K45: =K43/12 -> 0 | N45: =N43/12 -> 0 | Q45: =Q43/12 -> 0 | T45: =T43/12 -> 0 | W45: =W43/12 -> 0 | Z45: =Z43/12 -> 0 | AC45: =AC43/12 -> 0 | AF45: =AF43/12 -> 0
A47: Note 1: The difference between the actual costs of approved eligible investments and revenue received from the IESO should be recorded in a variance account. The Board may provide
A48: regulatory accounting guidance regarding a variance account either in an individual proceeding or on a generic basis.
A49: Note 2: For the 2016 Test Year, Costs and Revenues of the Direct Benefit are to be included in the test year applicant Rate Base and Revenues.
A51: PILs Calculation
D52: =F17-1 -> 2015 | G52: =F17 -> 2016 | J52: =I17 -> 2017 | M52: =L17 -> 2018 | P52: =O17 -> 2019 | S52: =R17 -> 2020 Test Year | V52: =U17 -> 2021 | Y52: =X17 -> 2022 | AB52: =AA17 -> 2023 | AE52: =AD17 -> 2024
A53: Income Tax | D53: Direct Benefit | E53: Provincial | G53: Direct Benefit | H53: Provincial | J53: Direct Benefit | K53: Provincial | M53: Direct Benefit | N53: Provincial | P53: Direct Benefit | Q53: Provincial | S53: Direct Benefit | T53: Provincial | V53: Direct Benefit | W53: Provincial | Y53: Direct Benefit | Z53: Provincial | AB53: Direct Benefit | AC53: Provincial | AE53: Direct Benefit | AF53: Provincial
AA54: Total | AD54: Total
A55: Net Income - ROE on Rate Base | D55: =D33 -> 0 | E55: =E33 -> 0 | G55: =G33 -> 0 | H55: =H33 -> 0 | J55: =J33 -> 0 | K55: =K33 -> 0 | M55: =M33 -> 0 | N55: =N33 -> 0 | P55: =P33 -> 0 | Q55: =Q33 -> 0 | S55: =S33 -> 0 | T55: =T33 -> 0 | V55: =V33 -> 0 | W55: =W33 -> 0 | Y55: =Y33 -> 0 | Z55: =Z33 -> 0 | AB55: =AB33 -> 0 | AC55: =AC33 -> 0 | AE55: =AE33 -> 0 | AF55: =AF33 -> 0
A56: Amortization (6% DB and 94% P) | D56: =D37 -> 0 | E56: =E37 -> 0 | G56: =G37 -> 0 | H56: =H37 -> 0 | J56: =J37 -> 0 | K56: =K37 -> 0 | M56: =M37 -> 0 | N56: =N37 -> 0 | P56: =P37 -> 0 | Q56: =Q37 -> 0 | S56: =S37 -> 0 | T56: =T37 -> 0 | V56: =V37 -> 0 | W56: =W37 -> 0 | Y56: =Y37 -> 0 | Z56: =Z37 -> 0 | AB56: =AB37 -> 0 | AC56: =AC37 -> 0 | AE56: =AE37 -> 0 | AF56: =AF37 -> 0
A57: CCA (6% DB and 94% P) | D57: =-D94*D$19 -> 0 | E57: =-D94*E$19 -> 0 | G57: =-G94*G$19 -> 0 | H57: =-G94*H$19 -> 0 | J57: =-H94*J19 -> 0 | K57: =-H94*K$19 -> 0 | M57: =-I94*M$19 -> 0 | N57: =-I94*N$19 -> 0 | P57: =-J94*P$19 -> 0 | Q57: =-J94*Q$19 -> 0 | S57: =-K94*S$19 -> 0 | T57: =-K94*T$19 -> 0 | V57: =-L94*V$19 -> 0 | W57: =-L94*W$19 -> 0 | Y57: =-M94*Y$19 -> 0 | Z57: =-M94*Z$19 -> 0 | AB57: =-N94*AB$19 -> 0 | AC57: =-N94*AC$19 -> 0 | AE57: =-O94*AE$19 -> 0 | AF57: =-O94*AF$19 -> 0
A58: Taxable income | D58: =SUM(D55:D57) -> 0 | E58: =SUM(E55:E57) -> 0 | G58: =SUM(G55:G57) -> 0 | H58: =SUM(H55:H57) -> 0 | J58: =SUM(J55:J57) -> 0 | K58: =SUM(K55:K57) -> 0 | M58: =SUM(M55:M57) -> 0 | N58: =SUM(N55:N57) -> 0 | P58: =SUM(P55:P57) -> 0 | Q58: =SUM(Q55:Q57) -> 0 | S58: =SUM(S55:S57) -> 0 | T58: =SUM(T55:T57) -> 0 | V58: =SUM(V55:V57) -> 0 | W58: =SUM(W55:W57) -> 0 | Y58: =SUM(Y55:Y57) -> 0 | Z58: =SUM(Z55:Z57) -> 0 | AB58: =SUM(AB55:AB57) -> 0 | AC58: =SUM(AC55:AC57) -> 0 | AE58: =SUM(AE55:AE57) -> 0 | AF58: =SUM(AF55:AF57) -> 0
A60: Tax Rate (to be entered)
A62: Income Taxes Payable | D62: =D58*D60 -> 0 | E62: =E58*E60 -> 0 | G62: =G58*G60 -> 0 | H62: =H58*H60 -> 0 | J62: =J58*J60 -> 0 | K62: =K58*K60 -> 0 | M62: =M58*M60 -> 0 | N62: =N58*N60 -> 0 | P62: =P58*P60 -> 0 | Q62: =Q58*Q60 -> 0 | S62: =S58*S60 -> 0 | T62: =T58*T60 -> 0 | V62: =V58*V60 -> 0 | W62: =W58*W60 -> 0 | Y62: =Y58*Y60 -> 0 | Z62: =Z58*Z60 -> 0 | AB62: =AB58*AB60 -> 0 | AC62: =AC58*AC60 -> 0 | AE62: =AE58*AE60 -> 0 | AF62: =AF58*AF60 -> 0
A63: Gross Up
A64: Income Taxes Payable | D64: =D62/(1-D60) -> 0 | E64: =E62/(1-E60) -> 0 | G64: =G62/(1-G60) -> 0 | H64: =H62/(1-H60) -> 0 | J64: =J62/(1-J60) -> 0 | K64: =K62/(1-K60) -> 0 | M64: =M62/(1-M60) -> 0 | N64: =N62/(1-N60) -> 0 | P64: =P62/(1-P60) -> 0 | Q64: =Q62/(1-Q60) -> 0 | S64: =S62/(1-S60) -> 0 | T64: =T62/(1-T60) -> 0 | V64: =V62/(1-V60) -> 0 | W64: =W62/(1-W60) -> 0 | Y64: =Y62/(1-Y60) -> 0 | Z64: =Z62/(1-Z60) -> 0 | AB64: =AB62/(1-AB60) -> 0 | AC64: =AC62/(1-AC60) -> 0 | AE64: =AE62/(1-AE60) -> 0 | AF64: =AF62/(1-AF60) -> 0
A65: Grossed Up PILs | D65: =SUM(D64:D64) -> 0 | E65: =SUM(E64:E64) -> 0 | G65: =SUM(G64:G64) -> 0 | H65: =SUM(H64:H64) -> 0 | J65: =SUM(J64:J64) -> 0 | K65: =SUM(K64:K64) -> 0 | M65: =SUM(M64:M64) -> 0 | N65: =SUM(N64:N64) -> 0 | P65: =SUM(P64:P64) -> 0 | Q65: =SUM(Q64:Q64) -> 0 | S65: =SUM(S64:S64) -> 0 | T65: =SUM(T64:T64) -> 0 | V65: =SUM(V64:V64) -> 0 | W65: =SUM(W64:W64) -> 0 | Y65: =SUM(Y64:Y64) -> 0 | Z65: =SUM(Z64:Z64) -> 0 | AB65: =SUM(AB64:AB64) -> 0 | AC65: =SUM(AC64:AC64) -> 0 | AE65: =SUM(AE64:AE64) -> 0 | AF65: =SUM(AF64:AF64) -> 0
F68: =G68-1 -> 2015 | G68: =H68-1 -> 2016 | H68: =I68-1 -> 2017 | I68: =J68-1 -> 2018 | J68: =K68-1 -> 2019 | K68: =TestYear -> 2020 | L68: =K68+1 -> 2021 | M68: =L68+1 -> 2022 | N68: =M68+1 -> 2023 | O68: =N68+1 -> 2024
A69: Net Fixed Assets
B70: Enter applicable amortization in years: | C70: 25
A71: Opening Gross Fixed Assets | G71: =F73 -> 0 | H71: =G73 -> 0 | I71: 0 | J71: 0 | K71: 0 | L71: 0 | M71: 0 | N71: 0 | O71: 0
A72: Gross Capital Additions | F72: ='App.2-FA Proposed REG Invest.'!C62 -> 0 | G72: ='App.2-FA Proposed REG Invest.'!D62 -> 0 | H72: ='App.2-FA Proposed REG Invest.'!E62 -> 0 | I72: ='App.2-FA Proposed REG Invest.'!F62 -> 0 | J72: ='App.2-FA Proposed REG Invest.'!G62 -> 0 | K72: ='App.2-FA Proposed REG Invest.'!H62 -> 0 | L72: ='App.2-FA Proposed REG Invest.'!I62 -> 0 | M72: ='App.2-FA Proposed REG Invest.'!J62 -> 0 | N72: ='App.2-FA Proposed REG Invest.'!K62 -> 0 | O72: ='App.2-FA Proposed REG Invest.'!L62 -> 0
A73: Closing Gross Fixed Assets | F73: =SUM(F71:F72) -> 0 | G73: =SUM(G71:G72) -> 0 | H73: 0 | I73: 0 | J73: 0 | K73: 0 | L73: 0 | M73: 0 | N73: 0 | O73: 0
A75: Opening Accumulated Amortization | H75: =+G78 -> 0 | I75: =H78 -> 0 | J75: 0 | K75: 0 | L75: 0 | M75: 0 | N75: 0 | O75: 0
A76: Current Year Amortization (before additions) | F76: =IF(ISERROR(F71/$C$70), 0, F71/$C$70) -> 0 | G76: 0 | H76: 0 | I76: 0 | J76: 0 | K76: 0 | L76: 0 | M76: 0 | N76: 0 | O76: 0
A77: Additions (half year) | F77: =F72/$C$70/2 -> 0 | G77: 0 | H77: 0 | I77: 0 | J77: 0 | K77: 0 | L77: =L72/C70/2 -> 0 | M77: =M72/C70/2 -> 0 | N77: =N72/C70/2 -> 0 | O77: =O72/C70/2 -> 0
A78: Closing Accumulated Amortization | F78: =SUM(F75+F76+F77) -> 0 | G78: 0 | H78: 0 | I78: 0 | J78: 0 | K78: 0 | L78: =SUM(L75:L77) -> 0 | M78: =SUM(M75:M77) -> 0 | N78: =SUM(N75:N77) -> 0 | O78: =SUM(O75:O77) -> 0
A80: Opening Net Fixed Assets | F80: =F71-F75 -> 0 | G80: 0 | H80: 0 | I80: 0 | J80: 0 | K80: 0 | L80: =K81 -> 0 | M80: =L81 -> 0 | N80: =M81 -> 0 | O80: =N81 -> 0
A81: Closing Net Fixed Assets | F81: =F73-F78 -> 0 | G81: =G73-G78 -> 0 | H81: 0 | I81: 0 | J81: 0 | K81: 0 | L81: 0 | M81: 0 | N81: 0 | O81: 0
A82: Average Net Fixed Assets | F82: =SUM(F80:F81)/2 -> 0 | G82: =SUM(G80:G81)/2 -> 0 | H82: 0 | I82: 0 | J82: 0 | K82: 0 | L82: 0 | M82: 0 | N82: 0 | O82: 0
A84: UCC for PILs Calculation
F85: =F68 -> 2015 | G85: =G68 -> 2016 | H85: =H68 -> 2017 | I85: 2018 | J85: 2019 | K85: 2020 | L85: 2021 | M85: 2022 | N85: 2023 | O85: 2024
A87: Opening UCC | G87: =F95 -> 0 | H87: =G95 -> 0 | I87: 0 | J87: 0 | K87: 0 | L87: 0 | M87: 0 | N87: 0 | O87: 0
A88: Capital Additions (from Appendix 2-FA) | F88: =F72 -> 0 | G88: =G72 -> 0 | H88: 0 | I88: 0 | J88: 0 | K88: 0 | L88: 0 | M88: 0 | N88: 0 | O88: 0
A89: UCC Before Half Year Rule | F89: =SUM(F87:F88) -> 0 | G89: =SUM(G87:G88) -> 0 | H89: 0 | I89: 0 | J89: 0 | K89: 0 | L89: 0 | M89: 0 | N89: 0 | O89: 0
A90: Half Year Rule (1/2 Additions - Disposals) | F90: =F88/2 -> 0 | G90: =G88/2 -> 0 | H90: 0 | I90: 0 | J90: 0 | K90: 0 | L90: 0 | M90: 0 | N90: 0 | O90: 0
A91: Reduced UCC | F91: =F89-F90 -> 0 | G91: =G89-G90 -> 0 | H91: 0 | I91: 0 | J91: 0 | K91: 0 | L91: 0 | M91: 0 | N91: 0 | O91: 0
A92: CCA Rate Class (to be entered) | C92: 47 | F92: =C92 -> 47 | G92: =C92 -> 47 | H92: =G92 -> 47 | I92: 47 | J92: 47 | K92: 47 | L92: 47 | M92: 47 | N92: 47 | O92: 47
A93: CCA Rate (to be entered) | C93: 0.08 | F93: =C93 -> 0.08 | G93: =C93 -> 0.08 | H93: 0.08 | I93: 0.08 | J93: 0.08 | K93: 0.08 | L93: 0.08 | M93: 0.08 | N93: 0.08 | O93: 0.08
A94: CCA | F94: =F91*F93 -> 0 | G94: =G91*G93 -> 0 | H94: 0 | I94: 0 | J94: 0 | K94: 0 | L94: 0 | M94: 0 | N94: 0 | O94: 0
A95: Closing UCC | F95: =F89-F94 -> 0 | G95: =G89-G94 -> 0 | H95: 0 | I95: 0 | J95: 0 | K95: 0 | L95: 0 | M95: 0 | N95: 0 | O95: 0

Sheet Hidden_REG Improvement (hidden)
A1: Utility Name | B1: EB Number | C1: Test Year | D1: Bridge Year | E1: Last Rebasing Year | F1: Renewable Generation Connection Direct Benefits/Provincial Amount Renewable Enabling Improvement Investments | G1: Year | H1: Amount
A2: ='LDC Info'!$E$14 -> Algoma Power Inc. | B2: =EBNUMBER -> EB-2019-0019 | C2: =TestYear -> 2020 | D2: =BridgeYear -> 2019 | E2: =RebaseYear -> 2015 | F2: Provincial Rate Protection | G2: 2014 | H2: ='App.2-FB Calc of REG Improvemnt'!E43 -> 0
A3: ='LDC Info'!$E$14 -> Algoma Power Inc. | B3: EB-2019-0019 | C3: 2020 | D3: 2019 | E3: 2015 | F3: Provincial Rate Protection | G3: 2015 | H3: ='App.2-FB Calc of REG Improvemnt'!H43 -> 0
A4: ='LDC Info'!$E$14 -> Algoma Power Inc. | B4: EB-2019-0019 | C4: 2020 | D4: 2019 | E4: 2015 | F4: Provincial Rate Protection | G4: 2016 | H4: ='App.2-FB Calc of REG Improvemnt'!K43 -> 0
A5: ='LDC Info'!$E$14 -> Algoma Power Inc. | B5: EB-2019-0019 | C5: 2020 | D5: 2019 | E5: 2015 | F5: Provincial Rate Protection | G5: 2017 | H5: ='App.2-FB Calc of REG Improvemnt'!N43 -> 0
A6: ='LDC Info'!$E$14 -> Algoma Power Inc. | B6: EB-2019-0019 | C6: 2020 | D6: 2019 | E6: 2015 | F6: Provincial Rate Protection | G6: 2018 | H6: ='App.2-FB Calc of REG Improvemnt'!Q43 -> 0
A7: ='LDC Info'!$E$14 -> Algoma Power Inc. | B7: EB-2019-0019 | C7: 2020 | D7: 2019 | E7: 2015 | F7: Provincial Rate Protection | G7: 2019 | H7: ='App.2-FB Calc of REG Improvemnt'!T43 -> 0
A8: ='LDC Info'!$E$14 -> Algoma Power Inc. | B8: EB-2019-0019 | C8: 2020 | D8: 2019 | E8: 2015 | F8: Provincial Rate Protection | G8: 2020 | H8: ='App.2-FB Calc of REG Improvemnt'!W43 -> 0
A9: ='LDC Info'!$E$14 -> Algoma Power Inc. | B9: EB-2019-0019 | C9: 2020 | D9: 2019 | E9: 2015 | F9: Provincial Rate Protection | G9: 2021 | H9: ='App.2-FB Calc of REG Improvemnt'!Z43 -> 0
A10: ='LDC Info'!$E$14 -> Algoma Power Inc. | B10: EB-2019-0019 | C10: 2020 | D10: 2019 | E10: 2015 | F10: Provincial Rate Protection | G10: 2022 | H10: ='App.2-FB Calc of REG Improvemnt'!AC43 -> 0
A11: ='LDC Info'!$E$14 -> Algoma Power Inc. | B11: EB-2019-0019 | C11: 2020 | D11: 2019 | E11: 2015 | F11: Provincial Rate Protection | G11: 2023 | H11: ='App.2-FB Calc of REG Improvemnt'!AF43 -> 0

Sheet App.2-FC Calc of REG Expansion
Q1: File Number: | R1: =EBNUMBER -> EB-2019-0019
Q2: Exhibit:
Q3: Tab:
A4: TO BE UPDATED AT THE DRAFT RATE ORDER STAGE | Q4: Schedule:
Q5: Page:
Q7: Date:
A9: Appendix 2-FC
A10: Calculation of Renewable Generation Connection Direct Benefits/Provincial Amount: Renewable Expansion Investments
A11: **N/A for this Application**
A12: This table will calculate the distributor/provincial shares of the investments entered in Part B of Appendix 2-FA.
A13: Enter values in green shaded cells: WCA percentage, debt percentages, interest rates, kWh, tax rates, amortization period, CCA Class and percentage.
A14: For historical investments, enter these variables for your last cost of service test year. For 2016 and beyond, enter variables as in the application.
A15: Rate Riders are not calculated for the Test Year as these assets and costs are already in the distributor's rate base.
D18: =G18-1 -> 2015 | G18: =J18-1 -> 2016 | J18: =M18-1 -> 2017 | M18: =P18-1 -> 2018 | P18: =BridgeYear -> 2019 | S18: =CONCATENATE(TestYear," Test Year") -> 2020 Test Year | V18: =TestYear+1 -> 2021 | W18: 2016 | Y18: =V18+1 -> 2022 | AB18: =Y18+1 -> 2023 | AE18: =AB18+1 -> 2024
E19: Direct Benefit | F19: Provincial | H19: Direct Benefit | I19: Provincial | K19: Direct Benefit | L19: Provincial | N19: Direct Benefit | O19: Provincial | Q19: Direct Benefit | R19: Provincial | T19: Direct Benefit | U19: Provincial | W19: Direct Benefit | X19: Provincial | Z19: Direct Benefit | AA19: Provincial | AC19: Direct Benefit | AD19: Provincial | AF19: Direct Benefit | AG19: Provincial
D20: Total | E20: 0.17 | F20: 0.83 | G20: Total | H20: 0.17 | I20: 0.83 | J20: Total | K20: 0.17 | L20: 0.83 | M20: Total | N20: 0.17 | O20: 0.83 | P20: Total | Q20: 0.17 | R20: 0.83 | S20: Total | T20: 0.17 | U20: 0.83 | V20: Total | W20: 0.17 | X20: 0.83 | Y20: Total | Z20: 0.17 | AA20: 0.83 | AB20: Total | AC20: 0.17 | AD20: 0.83 | AE20: Total | AF20: 0.17 | AG20: 0.83
A21: Net Fixed Assets (average) | D21: =J82 -> 0 | E21: =D21*E20 -> 0 | F21: =D21*F20 -> 0 | G21: =G82 -> 0 | H21: =G21*H20 -> 0 | I21: =G21*I20 -> 0 | J21: =H82 -> 0 | K21: =J21*K20 -> 0 | L21: =J21*L20 -> 0 | M21: =I82 -> 0 | N21: =M21*N20 -> 0 | O21: =M21*O20 -> 0 | P21: =J82 -> 0 | Q21: =P21*Q20 -> 0 | R21: =P21*R20 -> 0 | S21: =K82 -> 0 | T21: =S21*T20 -> 0 | U21: =S21*U20 -> 0 | V21: =L82 -> 0 | W21: =V21*W20 -> 0 | X21: =V21*X20 -> 0 | Y21: =M82 -> 0 | Z21: =Y21*Z20 -> 0 | AA21: =Y21*AA20 -> 0 | AB21: =N82 -> 0 | AC21: =AB21*AC20 -> 0 | AD21: =AB21*AD20 -> 0 | AE21: =O82 -> 0 | AF21: =AE21*AF20 -> 0 | AG21: =AE21*AG20 -> 0
A22: Incremental OM&A (on-going, N/A for Provincial Recovery) | D22: ='App.2-FA Proposed REG Invest.'!C$101 -> 0 | E22: =D22 -> 0 | G22: ='App.2-FA Proposed REG Invest.'!D$101 -> 0 | H22: =G22 -> 0 | J22: ='App.2-FA Proposed REG Invest.'!E$101 -> 0 | K22: =J22 -> 0 | M22: ='App.2-FA Proposed REG Invest.'!F$101 -> 0 | N22: =M22 -> 0 | P22: ='App.2-FA Proposed REG Invest.'!G$101 -> 0 | Q22: =P22 -> 0 | S22: ='App.2-FA Proposed REG Invest.'!H$101 -> 0 | T22: =S22 -> 0 | V22: ='App.2-FA Proposed REG Invest.'!I$101 -> 0 | W22: =V22 -> 0 | Y22: ='App.2-FA Proposed REG Invest.'!J$101 -> 0 | Z22: =Y22 -> 0 | AB22: ='App.2-FA Proposed REG Invest.'!K$101 -> 0 | AC22: =AB22 -> 0 | AE22: ='App.2-FA Proposed REG Invest.'!L$101 -> 0 | AF22: =AE22 -> 0
A23: Incremental OM&A (start-up, applicable for Provincial Recovery) | D23: ='App.2-FA Proposed REG Invest.'!C$100 -> 0 | E23: =D23*E20 -> 0 | F23: =D23*F20 -> 0 | G23: ='App.2-FA Proposed REG Invest.'!D$100 -> 0 | H23: =G23*H20 -> 0 | I23: =G23*I20 -> 0 | J23: ='App.2-FA Proposed REG Invest.'!E$100 -> 0 | K23: =J23*K20 -> 0 | L23: =J23*L20 -> 0 | M23: ='App.2-FA Proposed REG Invest.'!F$100 -> 0 | N23: =M23*N20 -> 0 | O23: =M23*O20 -> 0 | P23: ='App.2-FA Proposed REG Invest.'!G$100 -> 0 | Q23: =P23*Q20 -> 0 | R23: =P23*R20 -> 0 | S23: ='App.2-FA Proposed REG Invest.'!H$100 -> 0 | T23: =S23*T20 -> 0 | U23: =S23*U20 -> 0 | V23: ='App.2-FA Proposed REG Invest.'!I$100 -> 0 | W23: =V23*W20 -> 0 | X23: =V23*X20 -> 0 | Y23: ='App.2-FA Proposed REG Invest.'!J$100 -> 0 | Z23: =Y23*Z20 -> 0 | AA23: =Y23*AA20 -> 0 | AB23: ='App.2-FA Proposed REG Invest.'!K$100 -> 0 | AC23: =AB23*AC20 -> 0 | AD23: =AB23*AD20 -> 0 | AE23: ='App.2-FA Proposed REG Invest.'!L$100 -> 0 | AF23: =AE23*AF20 -> 0 | AG23: =AE23*AG20 -> 0
A24: WCA | E24: =(E22+E23)*$B$24 -> 0 | F24: =F23*$B$24 -> 0 | H24: =(H22+H23)*$B$24 -> 0 | I24: =I23*$B$24 -> 0 | K24: =(K22+K23)*$B$24 -> 0 | L24: =L23*$B$24 -> 0 | N24: =(N22+N23)*$B$24 -> 0 | O24: =O23*$B$24 -> 0 | Q24: =(Q22+Q23)*$B$24 -> 0 | R24: =R23*$B$24 -> 0 | T24: =(T22+T23)*$B$24 -> 0 | U24: =U23*$B$24 -> 0 | W24: =(W22+W23)*$B$24 -> 0 | X24: =X23*$B$24 -> 0 | Z24: =(Z22+Z23)*$B$24 -> 0 | AA24: =AA23*$B$24 -> 0 | AC24: =(AC22+AC23)*$B$24 -> 0 | AD24: =AD23*$B$24 -> 0 | AF24: =(AF22+AF23)*$B$24 -> 0 | AG24: =AG23*$B$24 -> 0
A25: Rate Base | E25: =SUM(E21+E24) -> 0 | F25: =SUM(F21+F24) -> 0 | H25: =SUM(H21+H24) -> 0 | I25: =SUM(I21+I24) -> 0 | K25: =SUM(K21+K24) -> 0 | L25: =SUM(L21+L24) -> 0 | N25: =SUM(N21+N24) -> 0 | O25: =SUM(O21+O24) -> 0 | Q25: =SUM(Q21+Q24) -> 0 | R25: =SUM(R21+R24) -> 0 | T25: =SUM(T21+T24) -> 0 | U25: =SUM(U21+U24) -> 0 | W25: =SUM(W21+W24) -> 0 | X25: =SUM(X21+X24) -> 0 | Z25: =SUM(Z21+Z24) -> 0 | AA25: =SUM(AA21+AA24) -> 0 | AC25: =SUM(AC21+AC24) -> 0 | AD25: =SUM(AD21+AD24) -> 0 | AF25: =SUM(AF21+AF24) -> 0 | AG25: =SUM(AG21+AG24) -> 0
A28: Deemed ST Debt | E28: =E25*$B$28 -> 0 | F28: =F25*$B$28 -> 0 | H28: =H25*$B$28 -> 0 | I28: =I25*$B$28 -> 0 | K28: =K25*$B$28 -> 0 | L28: =L25*$B$28 -> 0 | N28: =N25*$B$28 -> 0 | O28: =O25*$B$28 -> 0 | Q28: =Q25*$B$28 -> 0 | R28: =R25*$B$28 -> 0 | T28: =T25*$B$28 -> 0 | U28: =U25*$B$28 -> 0 | W28: =W25*$B$28 -> 0 | X28: =X25*$B$28 -> 0 | Z28: =Z25*$B$28 -> 0 | AA28: =AA25*$B$28 -> 0 | AC28: =AC25*$B$28 -> 0 | AD28: =AD25*$B$28 -> 0 | AF28: =AF25*$B$28 -> 0 | AG28: =AG25*$B$28 -> 0
A29: Deemed LT Debt | E29: =E25*$B$29 -> 0 | F29: =F25*$B$29 -> 0 | H29: =H25*$B$29 -> 0 | I29: =I25*$B$29 -> 0 | K29: =K25*$B$29 -> 0 | L29: =L25*$B$29 -> 0 | N29: =N25*$B$29 -> 0 | O29: =O25*$B$29 -> 0 | Q29: =Q25*$B$29 -> 0 | R29: =R25*$B$29 -> 0 | T29: =T25*$B$29 -> 0 | U29: =U25*$B$29 -> 0 | W29: =W25*$B$29 -> 0 | X29: =X25*$B$29 -> 0 | Z29: =Z25*$B$29 -> 0 | AA29: =AA25*$B$29 -> 0 | AC29: =AC25*$B$29 -> 0 | AD29: =AD25*$B$29 -> 0 | AF29: =AF25*$B$29 -> 0 | AG29: =AG25*$B$29 -> 0
A30: Deemed Equity | E30: =E25*$B$30 -> 0 | F30: =F25*$B$30 -> 0 | H30: =H25*$B$30 -> 0 | I30: =I25*$B$30 -> 0 | K30: =K25*$B$30 -> 0 | L30: =L25*$B$30 -> 0 | N30: =N25*$B$30 -> 0 | O30: =O25*$B$30 -> 0 | Q30: =Q25*$B$30 -> 0 | R30: =R25*$B$30 -> 0 | T30: =T25*$B$30 -> 0 | U30: =U25*$B$30 -> 0 | W30: =W25*$B$30 -> 0 | X30: =X25*$B$30 -> 0 | Z30: =Z25*$B$30 -> 0 | AA30: =AA25*$B$30 -> 0 | AC30: =AC25*$B$30 -> 0 | AD30: =AD25*$B$30 -> 0 | AF30: =AF25*$B$30 -> 0 | AG30: =AG25*$B$30 -> 0
A32: ST Interest | E32: =E28*$B$32 -> 0 | F32: =F28*$B$32 -> 0 | H32: =H28*$B$32 -> 0 | I32: =I28*$B$32 -> 0 | K32: =K28*$B$32 -> 0 | L32: =L28*$B$32 -> 0 | N32: =N28*$B$32 -> 0 | O32: =O28*$B$32 -> 0 | Q32: =Q28*$B$32 -> 0 | R32: =R28*$B$32 -> 0 | T32: =T28*$B$32 -> 0 | U32: =U28*$B$32 -> 0 | W32: =W28*$B$32 -> 0 | X32: =X28*$B$32 -> 0 | Z32: =Z28*$B$32 -> 0 | AA32: =AA28*$B$32 -> 0 | AC32: =AC28*$B$32 -> 0 | AD32: =AD28*$B$32 -> 0 | AF32: =AF28*$B$32 -> 0 | AG32: =AG28*$B$32 -> 0
A33: LT Interest | E33: =E29*$B$33 -> 0 | F33: =F29*$B$33 -> 0 | H33: =H29*$B$33 -> 0 | I33: =I29*$B$33 -> 0 | K33: =K29*$B$33 -> 0 | L33: =L29*$B$33 -> 0 | N33: =N29*$B$33 -> 0 | O33: =O29*$B$33 -> 0 | Q33: =Q29*$B$33 -> 0 | R33: =R29*$B$33 -> 0 | T33: =T29*$B$33 -> 0 | U33: =U29*$B$33 -> 0 | W33: =W29*$B$33 -> 0 | X33: =X29*$B$33 -> 0 | Z33: =Z29*$B$33 -> 0 | AA33: =AA29*$B$33 -> 0 | AC33: =AC29*$B$33 -> 0 | AD33: =AD29*$B$33 -> 0 | AF33: =AF29*$B$33 -> 0 | AG33: =AG29*$B$33 -> 0
A34: ROE | E34: =E30*$B$34 -> 0 | F34: =F30*$B$34 -> 0 | H34: =H30*$B$34 -> 0 | I34: =I30*$B$34 -> 0 | K34: =K30*$B$34 -> 0 | L34: =L30*$B$34 -> 0 | N34: =N30*$B$34 -> 0 | O34: =O30*$B$34 -> 0 | Q34: =Q30*$B$34 -> 0 | R34: =R30*$B$34 -> 0 | T34: =T30*$B$34 -> 0 | U34: =U30*$B$34 -> 0 | W34: =W30*$B$34 -> 0 | X34: =X30*$B$34 -> 0 | Z34: =Z30*$B$34 -> 0 | AA34: =AA30*$B$34 -> 0 | AC34: =AC30*$B$34 -> 0 | AD34: =AD30*$B$34 -> 0 | AF34: =AF30*$B$34 -> 0 | AG34: =AG30*$B$34 -> 0
A35: Cost of Capital Total | E35: =SUM(E32:E34) -> 0 | F35: =SUM(F32:F34) -> 0 | H35: =SUM(H32:H34) -> 0 | I35: =SUM(I32:I34) -> 0 | K35: =SUM(K32:K34) -> 0 | L35: =SUM(L32:L34) -> 0 | N35: =SUM(N32:N34) -> 0 | O35: =SUM(O32:O34) -> 0 | Q35: =SUM(Q32:Q34) -> 0 | R35: =SUM(R32:R34) -> 0 | T35: =SUM(T32:T34) -> 0 | U35: =SUM(U32:U34) -> 0 | W35: =SUM(W32:W34) -> 0 | X35: =SUM(X32:X34) -> 0 | Z35: =SUM(Z32:Z34) -> 0 | AA35: =SUM(AA32:AA34) -> 0 | AC35: =SUM(AC32:AC34) -> 0 | AD35: =SUM(AD32:AD34) -> 0 | AF35: =SUM(AF32:AF34) -> 0 | AG35: =SUM(AG32:AG34) -> 0
A37: OM&A | E37: =E22+E23 -> 0 | F37: =F23 -> 0 | H37: =H22+H23 -> 0 | I37: =I23 -> 0 | K37: =K22+K23 -> 0 | L37: =L23 -> 0 | N37: =N22+N23 -> 0 | O37: =O23 -> 0 | Q37: =Q22+Q23 -> 0 | R37: =R23 -> 0 | T37: =T22+T23 -> 0 | U37: =U23 -> 0 | W37: =W22+W23 -> 0 | X37: =X23 -> 0 | Z37: =Z22+Z23 -> 0 | AA37: =AA23 -> 0 | AC37: =AC22+AC23 -> 0 | AD37: =AD23 -> 0 | AF37: =AF22+AF23 -> 0 | AG37: =AG23 -> 0
A38: Amortization | D38: =D78 -> 0 | E38: =D38*E$20 -> 0 | F38: =D38*F$20 -> 0 | G38: =G78 -> 0 | H38: =G38*H$20 -> 0 | I38: =G38*I$20 -> 0 | J38: =H78 -> 0 | K38: =J38*K$20 -> 0 | L38: =J38*L$20 -> 0 | M38: =I78 -> 0 | N38: =M38*N$20 -> 0 | O38: =M38*O$20 -> 0 | P38: =J78 -> 0 | Q38: =P38*Q$20 -> 0 | R38: =P38*R$20 -> 0 | S38: =K76+K77 -> 0 | T38: =S38*T$20 -> 0 | U38: =S38*U$20 -> 0 | V38: =L76+L77 -> 0 | W38: =V38*W$20 -> 0 | X38: =V38*X$20 -> 0 | Y38: =M76+M77 -> 0 | Z38: =Y38*Z$20 -> 0 | AA38: =Y38*AA$20 -> 0 | AB38: =N76+N77 -> 0 | AC38: =AB38*AC$20 -> 0 | AD38: =AB38*AD$20 -> 0 | AE38: =O76+O77 -> 0 | AF38: =AE38*AF$20 -> 0 | AG38: =AE38*AG$20 -> 0
A39: Grossed-up PILs | E39: =E66 -> 0 | F39: =F66 -> 0 | H39: =H66 -> 0 | I39: =I66 -> 0 | K39: =K66 -> 0 | L39: =L66 -> 0 | N39: =N66 -> 0 | O39: =O66 -> 0 | Q39: =Q66 -> 0 | R39: =R66 -> 0 | T39: =T66 -> 0 | U39: =U66 -> 0 | W39: =W66 -> 0 | X39: =X66 -> 0 | Z39: =Z66 -> 0 | AA39: =AA66 -> 0 | AC39: =AC66 -> 0 | AD39: =AD66 -> 0 | AF39: =AF66 -> 0 | AG39: =AG66 -> 0
A41: Revenue Requirement | E41: =SUM(E35:E39) -> 0 | F41: =SUM(F35:F39) -> 0 | H41: =SUM(H35:H39) -> 0 | I41: =SUM(I35:I39) -> 0 | K41: =SUM(K35:K39) -> 0 | L41: =SUM(L35:L39) -> 0 | N41: =SUM(N35:N39) -> 0 | O41: =SUM(O35:O39) -> 0 | Q41: =SUM(Q35:Q39) -> 0 | R41: =SUM(R35:R39) -> 0 | T41: =SUM(T35:T39) -> 0 | U41: =SUM(U35:U39) -> 0 | W41: =SUM(W35:W39) -> 0 | X41: =SUM(X35:X39) -> 0 | Z41: =SUM(Z35:Z39) -> 0 | AA41: =SUM(AA35:AA39) -> 0 | AC41: =SUM(AC35:AC39) -> 0 | AD41: =SUM(AD35:AD39) -> 0 | AF41: =SUM(AF35:AF39) -> 0 | AG41: =SUM(AG35:AG39) -> 0
A44: Provincial Rate Protection | F44: =F41 -> 0 | I44: =I41 -> 0 | L44: =L41 -> 0 | O44: =O41 -> 0 | R44: =R41 -> 0 | U44: =U41 -> 0 | X44: =X41 -> 0 | AA44: =AA41 -> 0 | AD44: =AD41 -> 0 | AG44: =AG41 -> 0
A46: Monthly Amount Paid by IESO | F46: =F44/12 -> 0 | I46: =I44/12 -> 0 | L46: =L44/12 -> 0 | O46: =O44/12 -> 0 | R46: =R44/12 -> 0 | U46: =U44/12 -> 0 | X46: =X44/12 -> 0 | AA46: =AA44/12 -> 0 | AD46: =AD44/12 -> 0 | AG46: =AG44/12 -> 0
A48: Note 1: The difference between the actual costs of approved eligible investments and revenue received from the IESO should be recorded in a variance account. The Board may provide
A49: regulatory accounting guidance regarding a variance account either in an individual proceeding or on a generic basis.
A50: Note 2: For the 2016 Test Year, Costs and Revenues of the Direct Benefit are to be included in the test year applicant Rate Base and Revenues.
A52: PILs Calculation
E53: 2014 | H53: =G18 -> 2016 | K53: =J18 -> 2017 | N53: =M18 -> 2018 | Q53: =P18 -> 2019 | T53: =S18 -> 2020 Test Year | W53: =V18 -> 2021 | Z53: =Y18 -> 2022 | AC53: =AB18 -> 2023 | AF53: =AE18 -> 2024
A54: Income Tax | E54: Direct Benefit | F54: Provincial | H54: Direct Benefit | I54: Provincial | K54: Direct Benefit | L54: Provincial | N54: Direct Benefit | O54: Provincial | Q54: Direct Benefit | R54: Provincial | T54: Direct Benefit | U54: Provincial | W54: Direct Benefit | X54: Provincial | Z54: Direct Benefit | AA54: Provincial | AC54: Direct Benefit | AD54: Provincial | AF54: Direct Benefit | AG54: Provincial
Y55: Total | AB55: Total | AE55: Total
A56: Net Income - ROE on Rate Base | E56: =E34 -> 0 | F56: =F34 -> 0 | H56: =H34 -> 0 | I56: =I34 -> 0 | K56: =K34 -> 0 | L56: =L34 -> 0 | N56: =N34 -> 0 | O56: =O34 -> 0 | Q56: =Q34 -> 0 | R56: =R34 -> 0 | T56: =T34 -> 0 | U56: =U34 -> 0 | W56: =W34 -> 0 | X56: =X34 -> 0 | Z56: =Z34 -> 0 | AA56: =AA34 -> 0 | AC56: =AC34 -> 0 | AD56: =AD34 -> 0 | AF56: =AF34 -> 0 | AG56: =AG34 -> 0
A57: Amortization (17% DB and 83% P) | E57: =E38 -> 0 | F57: =F38 -> 0 | H57: =H38 -> 0 | I57: =I38 -> 0 | K57: =K38 -> 0 | L57: =L38 -> 0 | N57: =N38 -> 0 | O57: =O38 -> 0 | Q57: =Q38 -> 0 | R57: =R38 -> 0 | T57: =T38 -> 0 | U57: =U38 -> 0 | W57: =W38 -> 0 | X57: =X38 -> 0 | Z57: =Z38 -> 0 | AA57: =AA38 -> 0 | AC57: =AC38 -> 0 | AD57: =AD38 -> 0 | AF57: =AF38 -> 0 | AG57: =AG38 -> 0
A58: CCA (17% DB and 83% P) | E58: =-D94*E$20 -> 0 | F58: =-D94*F$20 -> 0 | H58: =-G94*H$20 -> 0 | I58: =-G94*I$20 -> 0 | K58: =-H94*K$20 -> 0 | L58: =-H94*L$20 -> 0 | N58: =-I94*N$20 -> 0 | O58: =-I94*O$20 -> 0 | Q58: =-J94*Q$20 -> 0 | R58: =-J94*R$20 -> 0 | T58: =-K94*T$20 -> 0 | U58: =-K94*U$20 -> 0 | W58: =-L94*W$20 -> 0 | X58: =-L94*X$20 -> 0 | Z58: =-M94*Z$20 -> 0 | AA58: =-M94*AA$20 -> 0 | AC58: =-N94*AC$20 -> 0 | AD58: =-N94*AD$20 -> 0 | AF58: =-O94*AF$20 -> 0 | AG58: =-O94*AG$20 -> 0
A59: Taxable income | E59: =SUM(E56:E58) -> 0 | F59: =SUM(F56:F58) -> 0 | H59: =SUM(H56:H58) -> 0 | I59: =SUM(I56:I58) -> 0 | K59: =SUM(K56:K58) -> 0 | L59: =SUM(L56:L58) -> 0 | N59: =SUM(N56:N58) -> 0 | O59: =SUM(O56:O58) -> 0 | Q59: =SUM(Q56:Q58) -> 0 | R59: =SUM(R56:R58) -> 0 | T59: =SUM(T56:T58) -> 0 | U59: =SUM(U56:U58) -> 0 | W59: =SUM(W56:W58) -> 0 | X59: =SUM(X56:X58) -> 0 | Z59: =SUM(Z56:Z58) -> 0 | AA59: =SUM(AA56:AA58) -> 0 | AC59: =SUM(AC56:AC58) -> 0 | AD59: =SUM(AD56:AD58) -> 0 | AF59: =SUM(AF56:AF58) -> 0 | AG59: =SUM(AG56:AG58) -> 0
A61: Tax Rate (to be entered)
A63: Income Taxes Payable | E63: =E59*E61 -> 0 | F63: =F59*F61 -> 0 | H63: =H59*H61 -> 0 | I63: =I59*I61 -> 0 | K63: =K59*K61 -> 0 | L63: =L59*L61 -> 0 | N63: =N59*N61 -> 0 | O63: =O59*O61 -> 0 | Q63: =Q59*Q61 -> 0 | R63: =R59*R61 -> 0 | T63: =T59*T61 -> 0 | U63: =U59*U61 -> 0 | W63: =W59*W61 -> 0 | X63: =X59*X61 -> 0 | Z63: =Z59*Z61 -> 0 | AA63: =AA59*AA61 -> 0 | AC63: =AC59*AC61 -> 0 | AD63: =AD59*AD61 -> 0 | AF63: =AF59*AF61 -> 0 | AG63: =AG59*AG61 -> 0
A64: Gross Up
A65: Income Taxes Payable | E65: =E63/(1-E61) -> 0 | F65: =F63/(1-F61) -> 0 | H65: =H63/(1-H61) -> 0 | I65: =I63/(1-I61) -> 0 | K65: =K63/(1-K61) -> 0 | L65: =L63/(1-L61) -> 0 | N65: =N63/(1-N61) -> 0 | O65: =O63/(1-O61) -> 0 | Q65: =Q63/(1-Q61) -> 0 | R65: =R63/(1-R61) -> 0 | T65: =T63/(1-T61) -> 0 | U65: =U63/(1-U61) -> 0 | W65: =W63/(1-W61) -> 0 | X65: =X63/(1-X61) -> 0 | Z65: =Z63/(1-Z61) -> 0 | AA65: =AA63/(1-AA61) -> 0 | AC65: =AC63/(1-AC61) -> 0 | AD65: =AD63/(1-AD61) -> 0 | AF65: =AF63/(1-AF61) -> 0 | AG65: =AG63/(1-AG61) -> 0
A66: Grossed Up PILs | E66: =SUM(E65:E65) -> 0 | F66: =SUM(F65:F65) -> 0 | H66: =SUM(H65:H65) -> 0 | I66: =SUM(I65:I65) -> 0 | K66: =SUM(K65:K65) -> 0 | L66: =SUM(L65:L65) -> 0 | N66: =SUM(N65:N65) -> 0 | O66: =SUM(O65:O65) -> 0 | Q66: =SUM(Q65:Q65) -> 0 | R66: =SUM(R65:R65) -> 0 | T66: =SUM(T65:T65) -> 0 | U66: =SUM(U65:U65) -> 0 | W66: =SUM(W65:W65) -> 0 | X66: =SUM(X65:X65) -> 0 | Z66: =SUM(Z65:Z65) -> 0 | AA66: =SUM(AA65:AA65) -> 0 | AC66: =SUM(AC65:AC65) -> 0 | AD66: =SUM(AD65:AD65) -> 0 | AF66: =SUM(AF65:AF65) -> 0 | AG66: =SUM(AG65:AG65) -> 0
A69: Net Fixed Assets | F69: 2014 | G69: 2015 | H69: 2016 | I69: 2017 | J69: 2018 | K69: 2019 | L69: 2020 | M69: 2021 | N69: 2022 | O69: 2023
A70: Enter applicable amortization in years: | B70: 25
A71: Opening Gross Fixed Assets | G71: =F73 -> 0 | H71: =G73 -> 0 | I71: =H73 -> 0 | J71: =I73 -> 0 | K71: 0 | L71: 0 | M71: =L73 -> 0 | N71: 0 | O71: 0
A72: Gross Capital Additions | F72: ='App.2-FA Proposed REG Invest.'!C99 -> 0 | G72: ='App.2-FA Proposed REG Invest.'!D99 -> 0 | H72: ='App.2-FA Proposed REG Invest.'!E99 -> 0 | I72: ='App.2-FA Proposed REG Invest.'!F99 -> 0 | J72: ='App.2-FA Proposed REG Invest.'!G99 -> 0 | K72: ='App.2-FA Proposed REG Invest.'!H99 -> 0 | L72: ='App.2-FA Proposed REG Invest.'!I99 -> 0 | M72: ='App.2-FA Proposed REG Invest.'!J99 -> 0 | N72: ='App.2-FA Proposed REG Invest.'!K99 -> 0 | O72: ='App.2-FA Proposed REG Invest.'!L99 -> 0
A73: Closing Gross Fixed Assets | F73: =SUM(F71:F72) -> 0 | G73: =SUM(G71:G72) -> 0 | H73: 0 | I73: 0 | J73: 0 | K73: 0 | L73: 0 | M73: 0 | N73: 0 | O73: 0
A75: Opening Accumulated Amortization | G75: =+F78 -> 0 | H75: =+G78 -> 0 | I75: =H78 -> 0 | J75: =I78 -> 0 | K75: 0 | L75: 0 | M75: 0 | N75: 0 | O75: 0
A76: Current Year Amortization (before additions) | F76: =IF(ISERROR(F71/$B$70), 0, F71/$B$70) -> 0 | G76: =IF(ISERROR(G71/$B$70), 0, G71/$B$70) -> 0 | H76: =IF(ISERROR(H71/$B$70), 0, H71/$B$70) -> 0 | I76: =IF(ISERROR(I71/$B$70), 0, I71/$B$70) -> 0 | J76: =IF(ISERROR(J71/$B$70), 0, J71/$B$70) -> 0 | K76: =K71/$B$70 -> 0 | L76: =L71/$B$70 -> 0 | M76: =M71/$B$70 -> 0 | N76: =N71/$B$70 -> 0 | O76: =O71/$B$70 -> 0
A77: Additions (half year) | F77: =F72/B70/2 -> 0 | G77: =G72/B70/2 -> 0 | H77: =H72/B70/2 -> 0 | I77: =I72/B70/2 -> 0 | J77: =J72/B70/2 -> 0 | K77: =K72/B70/2 -> 0 | L77: =L72/B70/2 -> 0 | M77: =M72/B70/2 -> 0 | N77: =N72/B70/2 -> 0 | O77: =O72/B70/2 -> 0
A78: Closing Accumulated Amortization | F78: =SUM(F75+F77) -> 0 | G78: =SUM(G75+G77) -> 0 | H78: =SUM(H75:H77) -> 0 | I78: 0 | J78: 0 | K78: 0 | L78: 0 | M78: 0 | N78: 0 | O78: 0
A80: Opening Net Fixed Assets | F80: =F71-F75 -> 0 | G80: =G71-G75 -> 0 | H80: =H71-H75 -> 0 | I80: =I71-I75 -> 0 | J80: =J71-J75 -> 0 | K80: =J81 -> 0 | L80: =K81 -> 0 | M80: =L81 -> 0 | N80: =M81 -> 0 | O80: =N81 -> 0
A81: Closing Net Fixed Assets | F81: =F73-F78 -> 0 | G81: =G73-G78 -> 0 | H81: 0 | I81: 0 | J81: 0 | K81: 0 | L81: 0 | M81: 0 | N81: 0 | O81: 0
A82: Average Net Fixed Assets | F82: =SUM(F80:F81)/2 -> 0 | G82: =SUM(G80:G81)/2 -> 0 | H82: 0 | I82: 0 | J82: 0 | K82: 0 | L82: 0 | M82: 0 | N82: 0 | O82: 0
A84: UCC for PILs Calculation
F85: 2014 | G85: 2015 | H85: 2016 | I85: 2017 | J85: 2018 | K85: 2019 | L85: 2020 | M85: 2021 | N85: 2022 | O85: 2023
A87: Opening UCC | G87: =F95 -> 0 | H87: 0 | I87: 0 | J87: =I95 -> 0 | K87: 0 | L87: 0 | M87: 0 | N87: 0 | O87: 0
A88: Capital Additions (from Appendix 2-FA) | F88: =F72 -> 0 | G88: =G72 -> 0 | H88: =H72 -> 0 | I88: 0 | J88: 0 | K88: 0 | L88: 0 | M88: 0 | N88: 0 | O88: 0
A89: UCC Before Half Year Rule | F89: =SUM(F87:F88) -> 0 | G89: =SUM(G87:G88) -> 0 | H89: =SUM(H87:H88) -> 0 | I89: 0 | J89: 0 | K89: 0 | L89: 0 | M89: 0 | N89: 0 | O89: 0
A90: Half Year Rule (1/2 Additions - Disposals) | F90: =F88/2 -> 0 | G90: =G88/2 -> 0 | H90: 0 | I90: 0 | J90: 0 | K90: 0 | L90: 0 | M90: 0 | N90: 0 | O90: 0
A91: Reduced UCC | F91: =F89-F90 -> 0 | G91: =G89-G90 -> 0 | H91: 0 | I91: 0 | J91: 0 | K91: 0 | L91: 0 | M91: 0 | N91: 0 | O91: 0
A92: CCA Rate Class (to be entered) | B92: 47 | F92: =$B$92 -> 47 | G92: 47 | H92: 47 | I92: 47 | J92: 47 | K92: 47 | L92: 47 | M92: 47 | N92: 47 | O92: 47
A93: CCA Rate (to be entered) | B93: 0.08 | F93: =$B$93 -> 0.08 | G93: 0.08 | H93: 0.08 | I93: 0.08 | J93: 0.08 | K93: 0.08 | L93: 0.08 | M93: 0.08 | N93: 0.08 | O93: 0.08
A94: CCA | F94: =F91*F$93 -> 0 | G94: =G91*G$93 -> 0 | H94: 0 | I94: 0 | J94: 0 | K94: 0 | L94: 0 | M94: 0 | N94: 0 | O94: 0
A95: Closing UCC | F95: =F89-F94 -> 0 | G95: =G89-G94 -> 0 | H95: =H89-H94 -> 0 | I95: 0 | J95: 0 | K95: 0 | L95: 0 | M95: 0 | N95: 0 | O95: 0

Sheet Hidden_REG Expansion (hidden)
A1: Utility Name | B1: EB Number | C1: Test Year | D1: Bridge Year | E1: Last Rebasing Year | F1: Calculation of Renewable Generation Connection Direct Benefits/Provincial Amount Renewable Expansion Investments | G1: Year | H1: Amount
A2: ='LDC Info'!$E$14 -> Algoma Power Inc. | B2: =EBNUMBER -> EB-2019-0019 | C2: =TestYear -> 2020 | D2: =BridgeYear -> 2019 | E2: =RebaseYear -> 2015 | F2: Provincial Rate Protection | G2: 2014 | H2: ='App.2-FC Calc of REG Expansion'!F44 -> 0
A3: ='LDC Info'!$E$14 -> Algoma Power Inc. | B3: EB-2019-0019 | C3: 2020 | D3: 2019 | E3: 2015 | F3: Provincial Rate Protection | G3: 2015 | H3: ='App.2-FC Calc of REG Expansion'!I44 -> 0
A4: ='LDC Info'!$E$14 -> Algoma Power Inc. | B4: EB-2019-0019 | C4: 2020 | D4: 2019 | E4: 2015 | F4: Provincial Rate Protection | G4: 2016 | H4: ='App.2-FC Calc of REG Expansion'!L44 -> 0
A5: ='LDC Info'!$E$14 -> Algoma Power Inc. | B5: EB-2019-0019 | C5: 2020 | D5: 2019 | E5: 2015 | F5: Provincial Rate Protection | G5: 2017 | H5: ='App.2-FC Calc of REG Expansion'!O44 -> 0
A6: ='LDC Info'!$E$14 -> Algoma Power Inc. | B6: EB-2019-0019 | C6: 2020 | D6: 2019 | E6: 2015 | F6: Provincial Rate Protection | G6: 2018 | H6: ='App.2-FC Calc of REG Expansion'!R44 -> 0
A7: ='LDC Info'!$E$14 -> Algoma Power Inc. | B7: EB-2019-0019 | C7: 2020 | D7: 2019 | E7: 2015 | F7: Provincial Rate Protection | G7: 2019 | H7: ='App.2-FC Calc of REG Expansion'!U44 -> 0
A8: ='LDC Info'!$E$14 -> Algoma Power Inc. | B8: EB-2019-0019 | C8: 2020 | D8: 2019 | E8: 2015 | F8: Provincial Rate Protection | G8: 2020 | H8: ='App.2-FC Calc of REG Expansion'!X44 -> 0
A9: ='LDC Info'!$E$14 -> Algoma Power Inc. | B9: EB-2019-0019 | C9: 2020 | D9: 2019 | E9: 2015 | F9: Provincial Rate Protection | G9: 2021 | H9: ='App.2-FC Calc of REG Expansion'!AA44 -> 0
A10: ='LDC Info'!$E$14 -> Algoma Power Inc. | B10: EB-2019-0019 | C10: 2020 | D10: 2019 | E10: 2015 | F10: Provincial Rate Protection | G10: 2022 | H10: ='App.2-FC Calc of REG Expansion'!AD44 -> 0
A11: ='LDC Info'!$E$14 -> Algoma Power Inc. | B11: EB-2019-0019 | C11: 2020 | D11: 2019 | E11: 2015 | F11: Provincial Rate Protection | G11: 2023 | H11: ='App.2-FC Calc of REG Expansion'!AG44 -> 0

Sheet App.2-G SQI
M1: File Number: | O1: =EBNUMBER -> EB-2019-0019
M2: Exhibit: | O2: 2
M3: Tab:
M4: Schedule:
M5: Page:
M7: Date: | O7: 2019-05-17
A9: Appendix 2-G
A10: Service Reliability and Quality Indicators
A11: 2014-2018
A13: Service Reliability
A15: Index | B15: Including outages caused by loss of supply | G15: Excluding outages caused by loss of supply | L15: Excluding Major Event Days | Q15: Excluding LOS and Major Event Days
B16: =TestYear-6 -> 2014 | C16: =TestYear-5 -> 2015 | D16: =TestYear-4 -> 2016 | E16: =TestYear-3 -> 2017 | F16: =TestYear-2 -> 2018 | G16: =B16 -> 2014 | H16: 2015 | I16: 2016 | J16: 2017 | K16: 2018 | L16: 2014 | M16: 2015 | N16: 2016 | O16: 2017 | P16: 2018 | Q16: 2014 | R16: 2015 | S16: 2016 | T16: 2017 | U16: 2018
A17: SAIDI | B17: 12.31 | C17: 19.17 | D17: 6.22 | E17: 15.9 | F17: 13.83 | G17: 10.12 | H17: 16.94 | I17: 5.46 | J17: 11.1 | K17: 11.96 | L17: 8.68 | M17: 11.03 | N17: 6.22 | O17: 12.2 | P17: 9.38 | Q17: 7.96 | R17: 8.8 | S17: 5.46 | T17: 7.68 | U17: 7.51
A18: SAIFI | B18: 6.47 | C18: 7.12 | D18: 3.85 | E18: 5.97 | F18: 4.26 | G18: 4.04 | H18: 4.4 | I18: 2.57 | J18: 4.26 | K18: 3.14 | L18: 4.93 | M18: 6.39 | N18: 3.85 | O18: 5.15 | P18: 3.31 | Q18: 3.24 | R18: 3.68 | S18: 2.57 | T18: 3.95 | U18: 2.2
A20: 5 Year Historical Average
A21: SAIDI | F21: =IF(ISERROR(AVERAGE(B17:F17)), "", AVERAGE(B17:F17)) -> 13.486 | K21: =IF(ISERROR(AVERAGE(G17:K17)), "", AVERAGE(G17:K17)) -> 11.116 | P21: =IF(ISERROR(AVERAGE(L17:P17)), "", AVERAGE(L17:P17)) -> 9.502 | U21: =IF(ISERROR(AVERAGE(Q17:U17)), "", AVERAGE(Q17:U17)) -> 7.482
A22: SAIFI | F22: =IF(ISERROR(AVERAGE(B18:F18)), "", AVERAGE(B18:F18)) -> 5.534 | K22: =IF(ISERROR(AVERAGE(G18:K18)), "", AVERAGE(G18:K18)) -> 3.682 | P22: =IF(ISERROR(AVERAGE(L18:P18)), "", AVERAGE(L18:P18)) -> 4.726 | U22: =IF(ISERROR(AVERAGE(Q18:U18)), "", AVERAGE(Q18:U18)) -> 3.128
A24: SAIDI = System Average Interruption Duration Index
A25: SAIFI = System Average Interruption Frequency Index
A27: Service Quality
A29: Indicator | E29: OEB Minimum Standard | G29: =B16 -> 2014 | H29: =C16 -> 2015 | I29: =D16 -> 2016 | J29: =E16 -> 2017 | K29: =F16 -> 2018
A30: Low Voltage Connections | E30: 0.9 | G30: 1 | H30: 1 | I30: 0.994 | J30: 0.992 | K30: 0.986
A31: High Voltage Connections | E31: 0.9 | G31: n/a | H31: n/a | I31: n/a | J31: n/a | K31: n/a
A32: Telephone Accessibility | E32: 0.65 | G32: 0.826 | H32: 0.819 | I32: 0.866 | J32: 0.801 | K32: 0.861
A33: Appointments Met | E33: 0.9 | G33: 1 | H33: 1 | I33: 1 | J33: 1 | K33: 1
A34: Written Response to Enquires | E34: 0.8 | G34: 1 | H34: 1 | I34: 1 | J34: 0.833 | K34: 0.812
A35: Emergency Urban Response | E35: 0.8 | G35: n/a | H35: n/a | I35: n/a | J35: n/a | K35: n/a
A36: Emergency Rural Response | E36: 0.8 | G36: 1 | H36: 1 | I36: 1 | J36: 1 | K36: 0.957
A37: Telephone Call Abandon Rate | E37: 0.1 | G37: 0.048 | H37: 0.062 | I37: 0.038 | J37: 0.074 | K37: 0.083
A38: Appointment Scheduling | E38: 0.9 | G38: 0.972 | H38: 0.949 | I38: 0.982 | J38: 0.971 | K38: 0.99
A39: Rescheduling a Missed Appointment | E39: 1 | G39: n/a | H39: n/a | I39: n/a | J39: n/a | K39: n/a
A40: Reconnection Performance Standard | E40: 0.85 | G40: 1 | H40: 1 | I40: 1 | J40: 1 | K40: 1

Sheet App.2-H_Other_Oper_Rev
K1: File Number: | L1: =EBNUMBER -> EB-2019-0019
K2: Exhibit: | L2: 3
K3: Tab:
A4: TO BE UPDATED AT THE DRAFT RATE ORDER STAGE | K4: Schedule:
K5: Page:
K7: Date: | L7: 2019-09-24
A9: Appendix 2-H
A10: Other Operating Revenue
A12: USoA # | B12: USoA Description | C12: =D13 - 1 &" Actual"&CHAR(178) -> 2011 Actual² | D12: 2012 Actual² | E12: 2013 Actual² | F12: 2014 Actual² | G12: =H13 - 1 &" Actual"&CHAR(178) -> 2015 Actual² | H12: =I13 - 1 &" Actual"&CHAR(178) -> 2016 Actual² | I12: =I13 & " Actual" & CHAR(178) -> 2017 Actual² | J12: 2017 Actual | K12: Bridge Year | L12: Test Year
C13: =D13-1 -> 2011 | D13: =E13-1 -> 2012 | E13: =F13-1 -> 2013 | F13: =G13-1 -> 2014 | G13: =H13-1 -> 2015 | H13: =I13-1 -> 2016 | I13: =J13-1 -> 2017 | J13: 2018 | K13: =BridgeYear -> 2019 | L13: =TestYear -> 2020 | N13: 2015
B14: Reporting Basis | G14: MIFRS | H14: MIFRS | I14: MIFRS | J14: MIFRS | K14: MIFRS | L14: MIFRS | N14: MIFRS
A15: 4235 | B15: Specific Service Charges | G15: -70947.71 | H15: -87798.36 | I15: -73789.67 | J15: -63492.24 | K15: -77865 | L15: -69365.88 | N15: -70947.71
A16: 4225 | B16: Late Payment Charges | G16: -97158.6 | H16: -105293.31 | I16: -57095.19 | J16: -42165.09 | K16: -56597.04 | L16: -33000 | N16: -97158.6
A17: 4082 | B17: Retail Services Revenues | G17: -4960.7 | H17: -5060.8 | I17: -4710 | J17: -4598.9 | K17: -5029.8 | L17: -10059.6 | N17: -4960.7
A18: 4084 | B18: 4084-Service Transaction Requests (STR) Revenues | G18: -106.25 | H18: -56.25 | I18: -19.25 | J18: -33.75 | K18: -64.68 | L18: -129.36 | N18: -106.25
A19: 4086 | B19: 4086-SSS Administration Revenue | G19: -34755.25 | H19: -34805.56 | I19: -34958.19 | J19: -35033 | K19: -34785 | L19: -35000 | N19: -34755.25
A20: 4205 | B20: 4205-Interdepartmental Rents | G20: 0 | H20: 0 | I20: 0 | J20: 0 | K20: 0 | L20: 0 | N20: 0
A21: 4210 | B21: 4210-Rent from Electric Property | G21: -238754.31 | H21: -238620.21 | I21: -238620.21 | J21: -239514.21 | K21: -238700.04 | L21: -431689 | N21: -238754.31
A22: 4215 | B22: 4215-Other Utility Operating Income | G22: 0 | H22: 0 | I22: 0 | J22: 0 | K22: 0 | L22: 0 | N22: 0
A23: 4220 | B23: 4220-Other Electric Revenues | G23: -17182.54 | H23: -13298.71 | I23: -5719.77 | J23: -77845.59 | K23: -12099.96 | L23: -8100 | N23: -17182.54
A24: 4240 | B24: 4240-Provision for Rate Refunds | G24: 0 | H24: 0 | I24: 0 | J24: 0 | K24: 0 | L24: 0 | N24: 0
A25: 4245 | B25: 4245-Government Assistance Directly Credited to Income | G25: 0 | H25: 0 | I25: 0 | J25: 0 | K25: 0 | L25: 0 | N25: 0
A26: 4305 | B26: 4305-Regulatory Debits | G26: 92978.64 | H26: 92978.64 | I26: 92978.64 | J26: 92978.64 | K26: 93000 | L26: 123553 | N26: 92978.64
A27: 4310 | B27: 4310-Regulatory Credits | G27: 0 | H27: 0 | I27: 0 | J27: 0 | K27: 0 | L27: 0 | N27: 0
A28: 4315 | B28: 4315-Revenues from Electric Plant Leased to Others | G28: 0 | H28: 0 | I28: 0 | J28: 0 | K28: 0 | L28: 0 | N28: 0
A29: 4320 | B29: 4320-Expenses of Electric Plant Leased to Others | G29: 0 | H29: 0 | I29: 0 | J29: 0 | K29: 0 | L29: 0 | N29: 0
A30: 4324 | B30: 4324-Special Purpose Charge Recovery | G30: 0 | H30: 0 | I30: 0 | J30: 0 | K30: 0 | L30: 0 | N30: 0
A31: 4325 | B31: 4325-Revenues from Merchandise Jobbing, Etc. | G31: -85953.73 | H31: -35533.55 | I31: -55106.63 | J31: -104784.31 | K31: -70344.555 | L31: -70344.555 | N31: -85953.73
A32: 4330 | B32: 4330-Costs and Expenses of Merchandising Jobbing, Etc. | G32: 100947.3 | H32: 71693.5 | I32: 72271.54 | J32: 99063.15 | K32: 70344.555 | L32: 70344.555 | N32: 100947.3
A33: 4335 | B33: 4335-Profits and Losses from Financial Instrument Hedges | G33: 0 | H33: 0 | I33: 0 | J33: 0 | K33: 0 | L33: 0 | N33: 0
A34: 4340 | B34: 4340-Profits and Losses from Financial Instrument Investments | G34: 0 | H34: 0 | I34: 0 | J34: 0 | K34: 0 | L34: 0 | N34: 0
A35: 4345 | B35: 4345-Gains from Disposition of Future Use Utility Plant | G35: 0 | H35: 0 | I35: 0 | J35: 0 | K35: 0 | L35: 0 | N35: 0
A36: 4350 | B36: 4350-Losses from Disposition of Future Use Utility Plant | G36: 0 | H36: 0 | I36: 0 | J36: 0 | K36: 0 | L36: 0 | N36: 0
A37: 4355 | B37: 4355-Gain on Disposition of Utility and Other Property | G37: -12244.54 | H37: -59563.3 | I37: 0 | J37: 0 | K37: 0 | L37: 0 | N37: -12244.54
A38: 4360 | B38: 4360-Loss on Disposition of Utility and Other Property | G38: 0 | H38: 0 | I38: 200066.77 | J38: 22190.22 | K38: 0 | L38: 0 | N38: 0
A39: 4365 | B39: 4365-Gains from Disposition of Allowances for Emission | G39: 0 | H39: 0 | I39: 0 | J39: 0 | K39: 0 | L39: 0 | N39: 0
A40: 4370 | B40: 4370-Losses from Disposition of Allowances for Emission | G40: 0 | H40: 0 | I40: 0 | J40: 0 | K40: 0 | L40: 0 | N40: 0
A41: 4375 | B41: 4375-Revenues from Non-Utility Operations | G41: 0 | H41: 0 | I41: 0 | J41: 0 | K41: 0 | L41: 0 | N41: 0
A42: 4375 | B42: 4375-Sub-account Generation Facility Revenues | G42: 0 | H42: 0 | I42: 0 | J42: 0 | K42: 0 | L42: 0 | N42: 0
A43: 4380 | B43: 4380-Expenses of Non-Utility Operations | G43: 525645 | H43: 584953.8 | I43: 571402.08 | J43: 572282.04 | K43: 546529.32 | L43: 0 | N43: 525645
A44: 4380 | B44: 4380-Sub-account Generation Facility Expenses | G44: 0 | H44: 0 | I44: 0 | J44: 0 | N44: 0
A45: 4385 | B45: 4385-Non-Utility Rental Income | G45: 0 | H45: 0 | I45: 0 | J45: 0 | N45: 0
A46: 4390 | B46: 4390-Miscellaneous Non-Operating Income | G46: -37925 | H46: 0 | I46: 0 | J46: 0 | N46: -37925
A47: 4395 | B47: 4395-Rate-Payer Benefit Including Interest | G47: 0 | H47: 0 | I47: 0 | J47: 0 | N47: 0
A48: 4398 | B48: 4398-Foreign Exchange Gains and Losses, Including Amortization | G48: 3220.12 | H48: -93.72 | I48: -365.59 | J48: -465.08 | N48: 3220.12
A49: 4405 | B49: 4405-Interest and Dividend Income | G49: -54054.77 | H49: -24662.3 | I49: -31953.8 | J49: -54424.75 | K49: -25000 | L49: -25000 | N49: -54054.77
A50: 4415 | B50: 4415-Equity in Earnings of Subsidiary Companies | H50: 0
B51: Total | G51: =SUM(G15:G50) -> 68747.66 | H51: =SUM(H15:H50) -> 144839.87 | I51: 434380.73 | J51: 164157.13 | K51: 189387.8 | L51: =SUM(L15:L50) -> -488790.84 | N51: =SUM(N15:N50) -> 68747.66
A53: Specific Service Charges | C53: =C15 -> 0 | D53: 0 | E53: 0 | F53: 0 | G53: -70947.71 | H53: -87798.36 | I53: -73789.67 | J53: -63492.24 | K53: -77865 | L53: -69365.88 | N53: =N15 -> -70947.71
A54: Late Payment Charges | C54: =C16 -> 0 | D54: 0 | E54: 0 | F54: 0 | G54: -97158.6 | H54: -105293.31 | I54: -57095.19 | J54: -42165.09 | K54: -56597.04 | L54: -33000 | N54: =N16 -> -97158.6
A55: Other Operating Revenues | G55: =SUM(G17:G25) -> -295759.05 | H55: =SUM(H17:H25) -> -291841.53 | I55: -284027.42 | J55: -357025.45 | K55: -290679.48 | L55: -484977.96 | N55: =SUM(N17:N25) -> -295759.05
A56: Other Income or Deductions | G56: =SUM(G26:G49) -> 532613.02 | H56: =SUM(H26:H49) -> 629773.07 | I56: 849293.01 | J56: 626839.91 | K56: 614529.32 | L56: 98553 | N56: =SUM(N26:N49) -> 532613.02
A57: Total | C57: =SUM(C53:C56) -> 0 | D57: =SUM(D53:D56) -> 0 | E57: =SUM(E53:E56) -> 0 | F57: =SUM(F53:F56) -> 0 | G57: =SUM(G53:G56) -> 68747.66 | H57: 144839.87 | I57: 434380.73 | J57: 164157.13 | K57: 189387.8 | L57: -488790.84 | N57: =SUM(N53:N56) -> 68747.66
A59: Description Account(s)
A60: Specific Service Charges: 4235
A61: Late Payment Charges: 4225
A62: Other Distribution Revenues: 4082, 4084, 4090, 4205, 4210, 4215, 4220, 4230, 4240, 4245
A63: Other Income and Expenses: 4305, 4310, 4315, 4320, 4325, 4330, 4335, 4340, 4345, 4350, 4355, 4357, 4360, 4362, 4365, 4370, 4375, 4380, 4385, 4390, 4395, 4398, 4405, 4410, 4415, 4420
A66: Note: Add all applicable accounts listed above to the table and include all relevant information.
A68: Account Breakdown Details
A70: For each "Other Operating Revenue" and "Other Income or Deductions" Account, a detailed breakdown of the account components is required. See the example below for Account 4405, Interest and Dividend Income.
C74: =C12 -> 2011 Actual² | D74: 2012 Actual² | E74: 2013 Actual² | F74: 2014 Actual² | G74: 2015 Actual² | H74: 2016 Actual² | I74: 2017 Actual² | J74: 2017 Actual | K74: Bridge Year | L74: Test Year | N74: =N12 -> 0
C75: =C13 -> 2011 | D75: 2012 | E75: 2013 | F75: 2014 | G75: 2015 | H75: 2016 | I75: 2017 | J75: =J13 -> 2018 | K75: =K13 -> 2019 | L75: =L13 -> 2020 | N75: =N13 -> 2015
A76: Reporting Basis | C76: =IF(C14=0, "", C14) ->  | G76: MIFRS | H76: MIFRS | I76: MIFRS | J76: MIFRS | K76: MIFRS | L76: MIFRS | N76: =IF(N14=0, "", N14) -> MIFRS
A78: 4082-Retail Services Revenues
A79: Monthly fixed retail charge | G79: -3140 | H79: -3020 | I79: -2840 | J79: -2880 | K79: -3015 | L79: -6030
A80: Monthly variable service charge | G80: -1159.5 | H80: -1281.5 | I80: -1169.5 | J80: -1079 | K80: -1267.92 | L80: -2535.84
A81: Bill-ready charge | G81: -661.2 | H81: -759.3 | I81: -700.5 | J81: -639.9 | K81: -746.88 | L81: -1493.76
A83: 4084-Service Transaction Requests (STR) Revenues
A84: STR request fee | G84: -43.25 | H84: -23.25 | I84: -6.25 | J84: -14.75 | K84: -24.84 | L84: -49.68
A85: STR processing fee | G85: -63 | H85: -33 | I85: -13 | J85: -19 | K85: -39.84 | L85: -79.68
A87: 4086-SSS Administration Revenue
A88: Administrative charge | G88: -34755.25 | H88: -34805.56 | I88: -34958.19 | J88: -35033 | K88: -34785 | L88: -35000
A90: 4210-Rent from Electric Property
A91: Pole rentals | G91: -238754.31 | H91: -238620.21 | I91: -238620.21 | J91: -239514.21 | K91: -238700.04 | L91: -431689
A93: 4220-Other Electric Revenues
A94: Returned cheque | G94: -1618.05 | H94: -2062.2 | I94: -2655 | J94: -2445 | K94: -2100 | L94: -2100
A95: CDM mid-term incentive revenue | G95: 0 | H95: 0 | I95: 0 | J95: -71060.73 | K95: 0 | L95: 0
A96: Other | G96: -15564.49 | H96: -11236.51 | I96: -3064.77 | J96: -4339.86 | K96: -9999.96 | L96: -6000
A98: 4305-Regulatory Debits
A99: Return on rate base for OEB 1576 | G99: 92978.64 | H99: 92978.64 | I99: 92978.64 | J99: 92978.64 | K99: 93000 | L99: 0
A101: 4325-Revenues from Merchandise Jobbing, Etc.
A102: Job order and other billable revenue | G102: -85953.73 | H102: -35533.55 | I102: -55106.63 | J102: -104784.31 | K102: -70344.555 | L102: -70344.555
A104: 4330-Costs and Expenses of Merchandising Jobbing, Etc.
A105: Job order and other billable costs | G105: 100947.3 | H105: 71693.5 | I105: 72271.54 | J105: 99063.15 | K105: 70344.555 | L105: 70344.555
A107: 4355-Gain on Disposition of Utility and Other Property
A108: Gains on disposals/retirements | G108: -12244.54 | H108: -59563.3 | I108: 0 | J108: 0 | K108: 0 | L108: 0
A110: 4360-Loss on Disposition of Utility and Other Property
A111: Loss on disposal of Wawa workcenter | G111: 0 | H111: 0 | I111: 191000 | J111: 0 | K111: 0 | L111: 0
A112: Other | G112: 0 | H112: 0 | I112: 9066.77 | J112: 22190.22 | K112: 0 | L112: 0
A114: 4380-Expenses of Non-Utility Operations
A115: Shared IT asset charge from affiliate | G115: 525645 | H115: 584953.8 | I115: 571402.08 | J115: 572282.04 | K115: 546529.32 | L115: 560454.6
A117: 4390-Miscellaneous Non-Operating Income
A118: Billable (should have posted to 4325) | G118: -37925 | H118: 0 | I118: 0 | J118: 0 | K118: 0 | L118: 0
A120: 4398-Foreign Exchange Gains and Losses, Including Amortization
A121: Gain/loss on foreign exchange | G121: 3220.12 | H121: -93.72 | I121: -365.59 | J121: -465.08 | K121: 0 | L121: 0
A123: 4405-Interest and Dividend Income
A124: Interest income on regulatory accounts with debit balances | G124: -23369.23 | H124: -13630.48 | I124: -9843 | J124: -16581.25 | K124: 0 | L124: 0
A125: Other | G125: -30685.54 | H125: -11031.82 | I125: -22110.8 | J125: -37843.5 | K125: -24999.96 | L125: -25000
A132: Total | C132: =SUM(C77:C131) -> 0 | D132: =SUM(D77:D131) -> 0 | E132: =SUM(E77:E131) -> 0 | F132: =SUM(F77:F131) -> 0 | G132: =SUM(G77:G131) -> 236853.97 | H132: 337931.54 | I132: 565265.59 | J132: 269814.46 | K132: 323849.88 | L132: 50476.64 | N132: =SUM(N77:N131) -> 0
A135: Notes:
A136: 1 | B136: List and specify any other interest revenue.
A137: 2 | B137: In the transition year to IFRS, the applicant is to present information in both MIFRS and CGAAP. In column N, present CGAAP transition year information. For the typical applicant that adopted IFRS on January 1, 2015, 2014 must be presented in both a CGAAP and MIFRS basis.

Sheet Hidden_Other Revenue (hidden)
A1: Utility Name | B1: EB Number | C1: Test Year | D1: Bridge Year | E1: Last Rebasing Year | F1: Heading | G1: Year | H1: Amount
A2: ='LDC Info'!$E$14 -> Algoma Power Inc. | B2: =EBNUMBER -> EB-2019-0019 | C2: =TestYear -> 2020 | D2: =BridgeYear -> 2019 | E2: =RebaseYear -> 2015 | F2: Specific Service Charges | G2: 2010 | H2: ='App.2-H_Other_Oper_Rev'!C53 -> 0
A3: ='LDC Info'!$E$14 -> Algoma Power Inc. | B3: EB-2019-0019 | C3: 2020 | D3: 2019 | E3: 2015 | F3: Late Payment Charges | G3: 2010 | H3: ='App.2-H_Other_Oper_Rev'!C54 -> 0
A4: ='LDC Info'!$E$14 -> Algoma Power Inc. | B4: EB-2019-0019 | C4: 2020 | D4: 2019 | E4: 2015 | F4: Other Operating Revenues | G4: 2010 | H4: ='App.2-H_Other_Oper_Rev'!C55 -> 0
A5: ='LDC Info'!$E$14 -> Algoma Power Inc. | B5: EB-2019-0019 | C5: 2020 | D5: 2019 | E5: 2015 | F5: Other Income or Deductions | G5: 2010 | H5: ='App.2-H_Other_Oper_Rev'!C56 -> 0
A6: ='LDC Info'!$E$14 -> Algoma Power Inc. | B6: EB-2019-0019 | C6: 2020 | D6: 2019 | E6: 2015 | F6: Specific Service Charges | G6: 2011 | H6: ='App.2-H_Other_Oper_Rev'!D53 -> 0
A7: ='LDC Info'!$E$14 -> Algoma Power Inc. | B7: EB-2019-0019 | C7: 2020 | D7: 2019 | E7: 2015 | F7: Late Payment Charges | G7: 2011 | H7: ='App.2-H_Other_Oper_Rev'!D54 -> 0
A8: ='LDC Info'!$E$14 -> Algoma Power Inc. | B8: EB-2019-0019 | C8: 2020 | D8: 2019 | E8: 2015 | F8: Other Operating Revenues | G8: 2011 | H8: ='App.2-H_Other_Oper_Rev'!D55 -> 0
A9: ='LDC Info'!$E$14 -> Algoma Power Inc. | B9: EB-2019-0019 | C9: 2020 | D9: 2019 | E9: 2015 | F9: Other Income or Deductions | G9: 2011 | H9: ='App.2-H_Other_Oper_Rev'!D56 -> 0
A10: ='LDC Info'!$E$14 -> Algoma Power Inc. | B10: EB-2019-0019 | C10: 2020 | D10: 2019 | E10: 2015 | F10: Specific Service Charges | G10: 2012 | H10: ='App.2-H_Other_Oper_Rev'!E53 -> 0
A11: ='LDC Info'!$E$14 -> Algoma Power Inc. | B11: EB-2019-0019 | C11: 2020 | D11: 2019 | E11: 2015 | F11: Late Payment Charges | G11: 2012 | H11: ='App.2-H_Other_Oper_Rev'!E54 -> 0
A12: ='LDC Info'!$E$14 -> Algoma Power Inc. | B12: EB-2019-0019 | C12: 2020 | D12: 2019 | E12: 2015 | F12: Other Operating Revenues | G12: 2012 | H12: ='App.2-H_Other_Oper_Rev'!E55 -> 0
A13: ='LDC Info'!$E$14 -> Algoma Power Inc. | B13: EB-2019-0019 | C13: 2020 | D13: 2019 | E13: 2015 | F13: Other Income or Deductions | G13: 2012 | H13: ='App.2-H_Other_Oper_Rev'!E56 -> 0
A14: ='LDC Info'!$E$14 -> Algoma Power Inc. | B14: EB-2019-0019 | C14: 2020 | D14: 2019 | E14: 2015 | F14: Specific Service Charges | G14: 2013 | H14: ='App.2-H_Other_Oper_Rev'!F53 -> 0
A15: ='LDC Info'!$E$14 -> Algoma Power Inc. | B15: EB-2019-0019 | C15: 2020 | D15: 2019 | E15: 2015 | F15: Late Payment Charges | G15: 2013 | H15: ='App.2-H_Other_Oper_Rev'!F54 -> 0
A16: ='LDC Info'!$E$14 -> Algoma Power Inc. | B16: EB-2019-0019 | C16: 2020 | D16: 2019 | E16: 2015 | F16: Other Operating Revenues | G16: 2013 | H16: ='App.2-H_Other_Oper_Rev'!F55 -> 0
A17: ='LDC Info'!$E$14 -> Algoma Power Inc. | B17: EB-2019-0019 | C17: 2020 | D17: 2019 | E17: 2015 | F17: Other Income or Deductions | G17: 2013 | H17: ='App.2-H_Other_Oper_Rev'!F56 -> 0
A18: ='LDC Info'!$E$14 -> Algoma Power Inc. | B18: EB-2019-0019 | C18: 2020 | D18: 2019 | E18: 2015 | F18: Specific Service Charges | G18: 2014 | H18: ='App.2-H_Other_Oper_Rev'!G53 -> -70947.71
A19: ='LDC Info'!$E$14 -> Algoma Power Inc. | B19: EB-2019-0019 | C19: 2020 | D19: 2019 | E19: 2015 | F19: Late Payment Charges | G19: 2014 | H19: ='App.2-H_Other_Oper_Rev'!G54 -> -97158.6
A20: ='LDC Info'!$E$14 -> Algoma Power Inc. | B20: EB-2019-0019 | C20: 2020 | D20: 2019 | E20: 2015 | F20: Other Operating Revenues | G20: 2014 | H20: ='App.2-H_Other_Oper_Rev'!G55 -> -295759.05
A21: ='LDC Info'!$E$14 -> Algoma Power Inc. | B21: EB-2019-0019 | C21: 2020 | D21: 2019 | E21: 2015 | F21: Other Income or Deductions | G21: 2014 | H21: ='App.2-H_Other_Oper_Rev'!G56 -> 532613.02
A22: ='LDC Info'!$E$14 -> Algoma Power Inc. | B22: EB-2019-0019 | C22: 2020 | D22: 2019 | E22: 2015 | F22: Specific Service Charges | G22: 2015 | H22: ='App.2-H_Other_Oper_Rev'!H53 -> -87798.36
A23: ='LDC Info'!$E$14 -> Algoma Power Inc. | B23: EB-2019-0019 | C23: 2020 | D23: 2019 | E23: 2015 | F23: Late Payment Charges | G23: 2015 | H23: ='App.2-H_Other_Oper_Rev'!H54 -> -105293.31
A24: ='LDC Info'!$E$14 -> Algoma Power Inc. | B24: EB-2019-0019 | C24: 2020 | D24: 2019 | E24: 2015 | F24: Other Operating Revenues | G24: 2015 | H24: ='App.2-H_Other_Oper_Rev'!H55 -> -291841.53
A25: ='LDC Info'!$E$14 -> Algoma Power Inc. | B25: EB-2019-0019 | C25: 2020 | D25: 2019 | E25: 2015 | F25: Other Income or Deductions | G25: 2015 | H25: ='App.2-H_Other_Oper_Rev'!H56 -> 629773.07
A26: ='LDC Info'!$E$14 -> Algoma Power Inc. | B26: EB-2019-0019 | C26: 2020 | D26: 2019 | E26: 2015 | F26: Specific Service Charges | G26: 2016 | H26: ='App.2-H_Other_Oper_Rev'!I53 -> -73789.67
A27: ='LDC Info'!$E$14 -> Algoma Power Inc. | B27: EB-2019-0019 | C27: 2020 | D27: 2019 | E27: 2015 | F27: Late Payment Charges | G27: 2016 | H27: ='App.2-H_Other_Oper_Rev'!I54 -> -57095.19
A28: ='LDC Info'!$E$14 -> Algoma Power Inc. | B28: EB-2019-0019 | C28: 2020 | D28: 2019 | E28: 2015 | F28: Other Operating Revenues | G28: 2016 | H28: ='App.2-H_Other_Oper_Rev'!I55 -> -284027.42
A29: ='LDC Info'!$E$14 -> Algoma Power Inc. | B29: EB-2019-0019 | C29: 2020 | D29: 2019 | E29: 2015 | F29: Other Income or Deductions | G29: 2016 | H29: ='App.2-H_Other_Oper_Rev'!I56 -> 849293.01
A30: ='LDC Info'!$E$14 -> Algoma Power Inc. | B30: EB-2019-0019 | C30: 2020 | D30: 2019 | E30: 2015 | F30: Specific Service Charges | G30: 2017 | H30: ='App.2-H_Other_Oper_Rev'!J53 -> -63492.24
A31: ='LDC Info'!$E$14 -> Algoma Power Inc. | B31: EB-2019-0019 | C31: 2020 | D31: 2019 | E31: 2015 | F31: Late Payment Charges | G31: 2017 | H31: ='App.2-H_Other_Oper_Rev'!J54 -> -42165.09
A32: ='LDC Info'!$E$14 -> Algoma Power Inc. | B32: EB-2019-0019 | C32: 2020 | D32: 2019 | E32: 2015 | F32: Other Operating Revenues | G32: 2017 | H32: ='App.2-H_Other_Oper_Rev'!J55 -> -357025.45
A33: ='LDC Info'!$E$14 -> Algoma Power Inc. | B33: EB-2019-0019 | C33: 2020 | D33: 2019 | E33: 2015 | F33: Other Income or Deductions | G33: 2017 | H33: ='App.2-H_Other_Oper_Rev'!J56 -> 626839.91
A34: ='LDC Info'!$E$14 -> Algoma Power Inc. | B34: EB-2019-0019 | C34: 2020 | D34: 2019 | E34: 2015 | F34: Specific Service Charges | G34: 2018 | H34: ='App.2-H_Other_Oper_Rev'!K53 -> -77865
A35: ='LDC Info'!$E$14 -> Algoma Power Inc. | B35: EB-2019-0019 | C35: 2020 | D35: 2019 | E35: 2015 | F35: Late Payment Charges | G35: 2018 | H35: ='App.2-H_Other_Oper_Rev'!K54 -> -56597.04
A36: ='LDC Info'!$E$14 -> Algoma Power Inc. | B36: EB-2019-0019 | C36: 2020 | D36: 2019 | E36: 2015 | F36: Other Operating Revenues | G36: 2018 | H36: ='App.2-H_Other_Oper_Rev'!K55 -> -290679.48
A37: ='LDC Info'!$E$14 -> Algoma Power Inc. | B37: EB-2019-0019 | C37: 2020 | D37: 2019 | E37: 2015 | F37: Other Income or Deductions | G37: 2018 | H37: ='App.2-H_Other_Oper_Rev'!K56 -> 614529.32
A38: ='LDC Info'!$E$14 -> Algoma Power Inc. | B38: EB-2019-0019 | C38: 2020 | D38: 2019 | E38: 2015 | F38: Specific Service Charges | G38: 2019 | H38: ='App.2-H_Other_Oper_Rev'!L53 -> -69365.88
A39: ='LDC Info'!$E$14 -> Algoma Power Inc. | B39: EB-2019-0019 | C39: 2020 | D39: 2019 | E39: 2015 | F39: Late Payment Charges | G39: 2019 | H39: ='App.2-H_Other_Oper_Rev'!L54 -> -33000
A40: ='LDC Info'!$E$14 -> Algoma Power Inc. | B40: EB-2019-0019 | C40: 2020 | D40: 2019 | E40: 2015 | F40: Other Operating Revenues | G40: 2019 | H40: ='App.2-H_Other_Oper_Rev'!L55 -> -484977.96
A41: ='LDC Info'!$E$14 -> Algoma Power Inc. | B41: EB-2019-0019 | C41: 2020 | D41: 2019 | E41: 2015 | F41: Other Income or Deductions | G41: 2019 | H41: ='App.2-H_Other_Oper_Rev'!L56 -> 98553

Sheet App_2-I LF_CDM
G1: File Number: | H1: =EBNUMBER -> EB-2019-0019
G2: Exhibit: | H2: 3
G3: Tab:
G4: Schedule:
G5: Page:
G7: Date: | H7: 2019-09-24
A9: Appendix 2-I
A10: Load Forecast CDM Adjustment Work Form (2018)
A12: Appendix 2-I was initially developed to help determine what would be the amount of CDM savings needed in each year to cumulatively achieve the four year 2011-2014 CDM target. This then determined the amount of kWh (and with translation, kW of demand) savings that were converted into dollar balances for the LRAMVA, and also to determine the related adjustment to the load forecast to account for OPA-reported savings. Beginning in the 2015 year, it has been adjusted because the persistence of 2011-2014 CDM programs will be an adjustment to the load forecast in addition to the estimated savings for the first year (2015) for the new 2015-2020 CDM plan.
A14: 2018 is the fourth year of the six-year (2015-2020) Conservation First program. Final results for the 2011-14 program were issued in the fall of 2015, and the program is completed, although in some instances disposition of the amounts has been deferred. For the purposes of the 2015-2020 LRAMVA, and the impact of CDM on the load forecast, CDM programs in 2014 and earlier are implicit in the historical data on which the base load forecast is developed. Only actual and forecasted impacts of 2015 to 2018 CDM programs need to be reflected in the manual load forecast adjustment and for the LRAMVA threshold amount in 2018 and carrying forward, although the full year impact of 2015 CDM programs and half-year impact of 2016 CDM programs on 2016 historical data is also assumed to be reflected in the base load forecast.
A16: The new six year (2015-2020) CDM program works in a slightly different manner to the previous 2011-2014 CDM program. Distributors will offer programs each year that, over the six years (from January 1, 2015 to December 31, 2020) will strive to achieve savings equal to the new six year CDM target with the full target in place (i.e., persisting) on December 31, 2020. In other words, distributors will be able to offer and execute programs on a basis so that, as long as savings equal to the full target are in place at the end the period, the distributor's 2015-2020 CDM target will have been met.
A18: 2015-2020 CDM Program - 2018 fourth year of the current CDM plan
A20: For the first year of the new 2015-2020 CDM plan, it is assumed that each year's program will achieve an equal amount of new CDM savings. This results in each year's program being about 1/6 (16.67%) of the cumulative 2015-2020 CDM target for kWh savings. A distributor may propose an alternative approach but would be expected to document in its application why it believes that its proposal is more reasonable. In its proposal, the distributor should ensure that the sum of the results for each year's CDM program from 2015 to 2020 add up to its 2015-2020 CDM target as established by the IESO.
A22: 6 Year (2015-2020) kWh Target:
A23: 7510000
B24: 2015 | C24: 2016 | D24: 2017 | E24: 2018 | F24: 2019 | G24: 2020 | H24: Total
A25: %
A26: 2015 CDM Programs | G26: =G34/$G$40 -> 0.0975476515 | H26: =H34/H40 -> 0.1434459387
A27: 2016 CDM Programs | G27: =G35/$G$40 -> 0.129301919 | H27: =H35/H40 -> 0.1901412783
A28: 2017 CDM Programs | G28: 0.2021205369 | H28: =H36/H40 -> 0.2972226365
A29: 2018 CDM Programs | G29: 0.0681749405 | H29: =H37/H40 -> 0.1002527297
A30: 2019 CDM Programs | G30: 0.01408895165 | H30: =H38/H40 -> 0.02071810919
A31: 2020 CDM Programs | G31: 0.4887660004 | H31: =H39/H40 -> 0.718741012
A32: Total in Year | B32: =SUM(B26:B31) -> 0 | C32: =SUM(C26:C31) -> 0 | D32: =SUM(D26:D31) -> 0 | E32: =SUM(E26:E29) -> 0 | F32: =SUM(F26:F30) -> 0 | G32: =SUM(G26:G31) -> 1 | H32: =SUM(H26:H31) -> 1.470521704
A33: kWh
A34: =A26 -> 2015 CDM Programs | B34: 1077169 | C34: 1068894 | D34: 1068387 | E34: 1093167 | F34: 1086232 | G34: 1077279 | H34: =G34 -> 1077279
A35: 2016 CDM Programs | C35: 1437693 | D35: 1437694 | E35: 1437694 | F35: 1437694 | G35: 1427961 | H35: 1427961 | K35: 2011 | L35: 2012 | M35: 2013 | N35: 2014
A36: 2017 CDM Programs | D36: 2640268 | E36: 2250773 | F36: 2248143 | G36: 2232142 | H36: 2232142 | J36: 2011 CDM Programs | K36: =50% -> 0.5 | L36: 1 | M36: 1 | N36: 1
A37: 2018 CDM Programs | E37: 767494 | F37: 760196 | G37: 752898 | H37: 752898 | J37: 2012 CDM Programs | L37: 0.5 | M37: 1 | N37: 1
A38: 2019 CDM Programs | F38: 155593 | G38: 155593 | H38: 155593 | J38: 2013 CDM Programs | M38: 0.5 | N38: 1
A39: 2020 CDM Programs | G39: 5397745 | H39: 5397745 | J39: 2014 CDM Programs | N39: 0.5
A40: Total in Year | B40: =SUM(B34:B39) -> 1077169 | C40: =SUM(C34:C39) -> 2506587 | D40: =SUM(D34:D39) -> 5146349 | E40: =SUM(E34:E37) -> 5549128 | F40: =SUM(F34:F38) -> 5687858 | G40: =SUM(G34:G39) -> 11043618 | H40: =A23 -> 7510000
G41: =IF(G40-H40<>0,"Inputs do no match 2015-20 CDM target","") -> Inputs do no match 2015-20 CDM target
A43: Note: The default formulae in the above table assume that the 2015-2020 kWh CDM target is achieved through persistence of CDM savings to the end of 2020. The distributor should enter measured CDM savings for 2015, and persistence of 2015 programs for 2016-2020 in row 34. When available, (preliminary/final) CDM savings for 2016 can be entered into row 35. The distributor can also input estimates or forecasts of the 2017 CDM programs if it believes that these are more realistic and can be supported; such information would typically be derived from the CDM plans that the distributor has filed with the IESO. Similarly, CDM savings and persistence into future years can be estimated for 2018, 2019 and 2020 CDM programs. However, the distributor will have to support its proposals for estimated or forecasted savings, particularly beyond the 2017 bridge year. The sum of persistent savings to the end of 2020, should equal the target entered into cell A23.
A45: Determination of 2018 Load Forecast Adjustment
A47: The Board determined that the "net" number should be used in its Decision and Order with respect to Centre Wellington Hydro Ltd.'s 2013 Cost of Service rates (EB-2012-0113). This approach has also been used in Settlement Agreements accepted by the Board in other 2013 and 2014 applications. The distributor should select whether the adjustment is done on a "net" or "gross" basis, but must support a proposal for the adjustment being done on a "gross" basis. Sheet 2-I defaults to the adjustment being done on a "net" basis consistent with Board policy and practice.
A49: From each of the 2006-2010 CDM Final Report, and the 2011 to 2016 CDM Final Reports, issued by the OPA/IESO for the distributor, the distributor should input the "gross" and "net" results of the cumulative CDM savings for 2018 into cells C57 to C63 and D57 to D63. The model will calculate the cumulative savings for all programs from 2006 to 2016 and determine the "net" to "gross" factor "g".
A51: Net-to-Gross Conversion
A53: Is CDM adjustment being done on a "net" or "gross" basis? | F53: net
C55: "Gross" | D55: "Net" | E55: Difference | F55: "Net-to-Gross" Conversion Factor
A56: Persistence of Historical CDM programs to 2015 | C56: kWh | D56: kWh | E56: kWh | F56: ('g')
A57: 2006-2010 CDM programs | E57: =IF(ISBLANK(D57),"",C57-D57) -> 
A58: 2011 CDM program | E58: =IF(ISBLANK(D58),"",C58-D58) -> 
A59: 2012 CDM program
A60: 2013 CDM program
A61: 2014 CDM program
A62: 2015 CDM program
A63: 2016 CDM program
A64: 2006 to 2016 OPA CDM programs: Persistence to 2018. | C64: =SUM(C57:C63) -> 0 | D64: =SUM(D57:D63) -> 0 | E64: =C64-D64 -> 0 | F64: =IF(D64=0,0,IF(F53="net",0,E64/D64)) -> 0
A66: The default values below represent the factor used for how each year's CDM program is factored into the manual CDM adjustment. Distributors can choose alternative weights of "0", "0.5" or "1" from the drop-down menu for each cell, but must support its alternatives.
A68: These factors do not mean that CDM programs are excluded, but the assumption that impacts of previous year CDM programs are already implicitly reflected in the actual data for historical years that are used to derive the load forecast prior to any manual CDM adjustment for the 2018 test year.
A70: Weight Factor for Inclusion in CDM Adjustment to 2018 Load Forecast
B71: 2015 | C71: 2016 | D71: 2017 | E71: 2018 | F71: 2019 | G71: 2020
A72: Weight Factor for each year's CDM program impact on 2018 load forecast | B72: 0 | C72: 0 | D72: 0 | E72: 0.5 | F72: 1 | G72: 0.5 | H72: Distributor can select "0", "0.5", or "1" from drop-down list
A73: Default Value selection rationale. | B73: Full year impact of 2015 CDM is assumed to be reflected in the base forecast, as the full year persistence of 2015 CDM programs is in the 2016 historical actual data. No further impact is necessary for the manual adjustment to the load forecast. | C73: Default is 0.5, but one option is for full year impact of persistence of 2016 CDM programs on 2018 load forecast, but 50% impact in base forecast (first year impact of 2016 CDM programs on 2016 actuals, which is part of the data underlying the base load forecast). | D73: Full year impact of persistence of 2017 programs on 2018 load forecast. 2017 CDM program impacts are not in the base forecast. | E73: Only 50% of 2017 CDM programs are assumed to impact the 2018 load forecast based on the "half-year" rule. | F73: 2019 and 2020 are future years beyond the 2018 test year. No impacts of CDM programs beyond the 2018 test year are factored into the test year load forecast.
A75: 2015-2020 LRAMVA and 2018 CDM adjustment to Load Forecast
A77: One manual adjustment for CDM impacts to the 2018 load forecast is made. There is a different but related threshold amount that is used for the 2018 LRAMVA amount for Account 1568.
A79: The amount used for the CDM threshold of the LRAMVA is the kWh that will be used to determine the base amount for the LRAMVA balance for 2018, for assessing performance against the six-year target.
A81: If used to determine the manual CDM adjustment for the system purchased kWh, the proposed loss factor should correspond with the proposed total loss factor calculated in Appendix 2-R .
A83: The Manual Adjustment for the 2018 Load Forecast is the amount manually subtracted from the system-wide load forecast (either based on a purchased or billed basis) derived from the base forecast from historical data. If the distributor has developed their load forecast on a system purchased basis, then the manual adjustment should be on a system purchased basis, including the adjustment for losses. If the load forecast has been developed on a billed basis, either on a system basis or on a class-specific basis, the manual adjustment should be on a billed basis, excluding losses.
A85: The distributor should determine the allocation of the savings to all customer classes in a reasonable manner (e.g. taking into account what programs and what IESO-measured impacts were directed at specific customer classes), for both the LRAMVA and for the load forecast adjustment.
B87: 2015 | C87: 2016 | D87: 2017 | E87: 2018 | F87: 2019 | G87: 2020 | H87: Total for 2020
A89: Amount used for CDM threshold for LRAMVA (2020) | E89: =H37 -> 752898 | F89: =H38 -> 155593 | G89: =H39 -> 5397745 | H89: =SUM(B89:G89) -> 6306236
A91: Manual Adjustment for 2018 Load Forecast (billed basis) | B91: =B89*(1+F64)*B72 -> 0 | E91: =E89*(1+G64)*E72 -> 376449 | F91: =F89*(1+H64)*F72 -> 155593 | G91: 2698872.5 | H91: =SUM(B91:G91) -> 3230914.5
A92: Manual Adjustment for 2018 LDC-only CDM programs (billed basis)
A93: Total Manual Forecast to Load Forecast | B93: =B91+B92 -> 0 | C93: =C91+C92 -> 0 | D93: =D91+D92 -> 0 | E93: =E91+E92 -> 376449 | F93: =F91+F92 -> 155593 | G93: 2698872.5 | H93: =SUM(B93:G93) -> 3230914.5
A95: Proposed Loss Factor (TLF) | C95: Format: X.XX%
A96: Manual Adjustment for 2018 Load Forecast (system purchased basis) | B96: =B93*(1+$B95) -> 0 | C96: =C93*(1+$B95) -> 0 | D96: =D93*(1+$B95) -> 0 | E96: =E93*(1+$B95) -> 376449 | F96: =F93*(1+$B95) -> 155593 | G96: 2698872.5 | H96: =SUM(B96:G96) -> 3230914.5
A98: Manual adjustment uses "gross" versus "net" (i.e. numbers multiplied by (1 + g). The Weight factor is also used to calculate the impact of each year's program on the CDM adjustment to the 2018 load forecast.

Sheet App.2-IA_Load_Forecast_Instrct
Q1: File Number: | R1: =EBNUMBER -> EB-2019-0019
Q2: Exhibit:
Q3: Tab:
Q4: Schedule:
Q5: Page:
Q7: Date:
B9: Appendix 2-IA
B10: Instructions on Customer, Connections, Load Forecast and Revenues Data and Analysis
B12: This sheet requires no inputs, but serves as a summary of the hiostorical and forecasted data to be provided with respect to:
B14: 1) | C14: Customers and connections
B15: 2) | C15: Consumption (kWh)
B16: 3) | C16: Demand (kW or kCA) for applicable demand-billed customer classes
B17: 4) | C17: Revenues
B19: The spreadsheet summarizes the data provided and the analyses (variance or year-over-year) that are required. Data are required to be provided on a customer class level. Consumption (kWh) must also be provided on a total distribution system level.
B21: Appendix 2-IB (formerly 2-IA) is the appendix spreadsheet that the distributor populates, and the spreadsheet is laid out for inputting the necessary data. The spreadsheet also calculates necessary statistics such as average consumption per customer/connection per year, and variances and % annual changes, as necessary.
B23: The distributor is required to provide suitable documentation in Exhibit 3 of its Application, in accordance with section 2.3.2 of Chaoter 2 of the Filing Requirements. This would include explanations for material variations or of trends in the data.
B25: The distributor is also required to input its test year customer/connection and load forecast in Sheet 10 - Load Forecast of the Revenue Requirement Work Form. This sheet should also be updated to reflect changes in the load forecast made through the stages of processing of the rates application.
B27: The applicant must demonstrate the historical accuracy of its load forecast approach for at least the past 5 years. Such analysis will cover both customer/connections and consumption (kWh) and demand (kW or kVA) by providing the following, as shown in the following table:
D29: Calendar Year | F29: Customers / Connections | I29: Consumption (kWh) (3) | M29: Demand (kW or kVA) | Q29: Revenues
D30: ="(for "&TestYear&" Cost of Service)" -> (for 2020 Cost of Service) | I30: Weather-actual | J30: Weather-normalized | M30: Weather-actual | N30: Weather-normalized | Q30: Weather-actual | R30: Weather-normalized
C31: Historical | D31: =D32-1 -> 2014 | F31: Actual | I31: Actual | J31: Actual (1) | M31: Actual | N31: Actual (1) | Q31: Actual
C32: Historical | D32: 2015 | F32: Actual | I32: Actual | J32: Actual (1) | M32: Actual | N32: Actual (1) | Q32: Actual
C33: Historical | D33: 2016 | F33: Actual | G33: Board-approved (2) | I33: Actual | J33: Actual (1) | K33: Board-approved (2) | M33: Actual | N33: Actual (1) | O33: Board-approved (2) | Q33: Actual
C34: Historical | D34: 2017 | F34: Actual | I34: Actual | J34: Actual (1) | M34: Actual | N34: Actual (1) | Q34: Actual
C35: Historical | D35: 2018 | F35: Actual | I35: Actual | J35: Actual (1) | M35: Actual | N35: Actual (1) | Q35: Actual
C36: Bridge Year (Forecast) | D36: 2019 | F36: Forecast | J36: Forecast | N36: Forecast | R36: Forecast
C37: Test Year (Forecast) | D37: =TestYear -> 2020 | F37: Forecast | J37: Forecast | N37: Forecast | R37: Forecast
B40: Notes:
B42: (1) | C42: “Weather-normalized actuals” are estimated by replacing the actual weather-related values (typically Heating Degree Days (HDD) and Cooling Degree Days (CDD)) by the “typical” or “weather-normalized” values. These “weather-normalized HDD and CDD values would be the same as used to estimate the Bridge Year and Test Year forecasts.
B43: (2) | C43: For 2017 Cost of Service rebasers, the typical situation is that 2013 would have been the most recent cost of service rebasing application. If the most recent rebasing application was for a rate year other than 2013, that year should be used. An applicant must provide historical information back to the greater of: a) at least five (5) historical actual years; or b) to its last cost of service application.
B44: (3) | C44: Consumption must be provided on a total distribution system basis as well as at a customer class level.
B45: (4) | C45: Revenues exclude commodity charges.

Sheet App.2-IB_Load_Forecast_Analysis
T1: File Number: | U1: =EBNUMBER -> EB-2019-0019
T2: Exhibit: | U2: 3
T3: Tab:
T4: Schedule:
T5: Page:
T7: Date: | U7: 2019-09-24
B9: Appendix 2-IB
B10: Customer, Connections, Load Forecast and Revenues Data and Analysis
B12: This sheet requires no inputs, but serves as a summary of the hiostorical and forecasted data to be provided with respect to:
B14: 1) | C14: Customers and connections
B15: 2) | C15: Consumption (kWh)
B16: 3) | C16: Demand (kW or kCA) for applicable demand-billed customer classes
B17: 4) | C17: Revenues
B19: The spreadsheet summarizes the data provided and the analyses (variance or year-over-year) that are required. Data are required to be provided on a customer class level. Consumption (kWh) must also be provided on a total distribution system level.
B21: Appendix 2-IB (formerly 2-IA) is the appendix spreadsheet that the distributor populates, and the spreadsheet is laid out for inputting the necessary data. The spreadsheet also calculates necessary statistics such as average consumption per customer/connection per year, and variances and % annual changes, as necessary.
B23: The distributor is required to provide suitable documentation in Exhibit 3 of its Application, in accordance with section 2.3.2 of Chaoter 2 of the Filing Requirements. This would include explanations for material variations or of trends in the data.
B25: The distributor is also required to input its test year customer/connection and load forecast in Sheet 10 - Load Forecast of the Revenue Requirement Work Form. This sheet should also be updated to reflect changes in the load forecast made through the stages of processing of the rates application.
B27: The applicant must demonstrate the historical accuracy of its load forecast approach for at least the past 5 years. Such analysis will cover both customer/connections and consumption (kWh) and demand (kW or kVA) by providing the following, as shown in the following table:
B29: This sheet is to be filled in accordance with the instructions documented in section 2.3.2 of Chapter 2 of the Filing Requirements for Distribution Rate Applications, in terms of one set of tables per customer class.
B31: Color coding for Cells: | F31: Data input | K31: Drop-down List
F33: No data entry required | K33: Blank or calculated value
B35: Distribution System (Total)
D37: Calendar Year | K37: Consumption (kWh) (3)
D38: =CONCATENATE("(for ",TestYear," Cost of Service") -> (for 2020 Cost of Service | L38: Actual (Weather actual) | M38: Weather-normalized | O38: Weather-normalized
C39: Historical | D39: =D40-1 -> 2014 | K39: Actual | L39: 222844848 | M39: 219744952.1 | N39: =IF(D39=RebaseYear,"Board-approved","") -> 
C40: Historical | D40: 2015 | K40: Actual | L40: 216436884 | M40: 222523892.9 | N40: Board-approved | O40: 217540073
C41: Historical | D41: 2016 | K41: Actual | L41: 211050246 | M41: 216924121.5
C42: Historical | D42: 2017 | K42: Actual | L42: 217280995 | M42: 223178769.6
C43: Historical | D43: 2018 | K43: Actual | L43: 241087151.1 | M43: 242891458.2
C44: Bridge Year | D44: 2019 | K44: Forecast | M44: 222232331
C45: Test Year | D45: =TestYear -> 2020 | K45: Forecast | M45: 230668617.7
O46: =SUM(O39:O44) -> 217540073
C47: Variance Analysis | K47: Year | L47: Year-over-year | O47: Versus Board-approved
D48: =D39 -> 2014 | K48: =D48 -> 2014
D49: 2015 | K49: =D49 -> 2015 | L49: =IF(L39=0,"",L40/L39-1) -> -0.02875527102 | M49: 0.0126462103
D50: 2016 | K50: 2016 | L50: -0.02488780055 | M50: -0.02516480989
D51: 2017 | K51: 2017 | L51: 0.02952258593 | M51: 0.02883334528
D52: 2018 | K52: 2018 | L52: 0.1095639133 | M52: 0.08832689886
D53: 2019 | K53: 2019 | L53: =IF(K44="Forecast","",IF(L43=0,"",L44/L43-1)) ->  | M53: =IF(M43=0,"",M44/M43-1) -> -0.0850549761
D54: 2020 | K54: 2020 | L54: =IF(K45="Forecast","",IF(L44=0,"",L45/L44-1)) ->  | M54: =IF(M44=0,"",M45/M44-1) -> 0.03796156322 | O54: =IF(O46=0,"",M45/O46-1) -> 0.06035000595
D55: Geometric Mean | K55: Geometric Mean | L55: =IF(L39=0,"",(L43/L39)^(1/($D43-$D39-1))-1) -> 0.02657453968 | M55: =IF(M39=0,"",(M45/M39)^(1/($D45-$D39-1))-1) -> 0.009750137888 | O55: =IF(O46=0,"",(M45/O46)^(1/(TestYear-RebaseYear-1))-1) -> 0.01475759568
B57: Customer Class Analysis (one for each Customer Class, excluding MicroFIT and Standby)
B59: 1 | C59: Customer Class: | D59: R1(i) Residential | H59: Is the customer class billed on consumption (kWh) or demand (kW or kVA)? | N59: kWh
D61: Calendar Year | F61: Customers | K61: Consumption (kWh) (3) | Q61: =CONCATENATE("Consumption (kWh) per ",LEFT(F61,LEN(F61)-1)) -> Consumption (kWh) per Customer
D62: =CONCATENATE("(for ",TestYear," Cost of Service") -> (for 2020 Cost of Service | L62: Actual (Weather actual) | M62: Weather-normalized | O62: Weather-normalized | R62: =L62 -> Actual (Weather actual) | S62: =M62 -> Weather-normalized | U62: =O62 -> Weather-normalized
C63: Historical | D63: =D64-1 -> 2014 | F63: =K39 -> Actual | G63: 7397.916667 | H63: =IF(D63=RebaseYear,"Board-approved","") ->  | K63: =F63 -> Actual | L63: 85393126 | M63: 83049520.45 | N63: =H63 ->  | Q63: =K63 -> Actual | R63: =IF(G63=0,"",L63/G63) -> 11542.8613 | S63: =IF(G63=0,"",M63/G63) -> 11226.06866 | T63: =N63 ->  | U63: =IF(T63="","",IF(I63=0,"",O63/I63)) -> 
C64: Historical | D64: 2015 | F64: =K40 -> Actual | G64: 7479.5 | H64: Board-approved | I64: 7531 | K64: =F64 -> Actual | L64: 80876149.5 | M64: 83177285.84 | N64: =H64 -> Board-approved | O64: 80045884 | Q64: =K64 -> Actual | R64: =IF(G64=0,"",L64/G64) -> 10813.04225 | S64: =IF(G64=0,"",M64/G64) -> 11120.70136 | T64: =N64 -> Board-approved | U64: =IF(T64="","",IF(I64=0,"",O64/I64)) -> 10628.85195
C65: Historical | D65: 2016 | F65: Actual | G65: 7543.75 | K65: Actual | L65: 75910135.7 | M65: 78043495.71 | Q65: Actual | R65: 10062.65262 | S65: 10345.45096
C66: Historical | D66: 2017 | F66: Actual | G66: 7596.416667 | K66: Actual | L66: 76321855.8 | M66: 78579222.07 | Q66: Actual | R66: 10047.08656 | S66: 10344.24855
C67: Historical | D67: 2018 | F67: Actual | G67: 7639.75 | K67: Actual | L67: 82834417.99 | M67: 82696790.39 | Q67: Actual | R67: 10842.5561 | S67: 10824.54143
C68: Bridge Year | D68: 2019 | F68: Forecast | G68: 7721.700069 | K68: Forecast | M68: 81107232.75 | Q68: Forecast | R68: 0 | S68: 10503.80512
C69: Test Year | D69: =TestYear -> 2020 | F69: Forecast | G69: 8115.529201 | K69: Forecast | M69: 85077075.38 | Q69: Forecast | R69: 0 | S69: 10483.24432
I70: =SUM(I63:I68) -> 7531 | O70: =SUM(O63:O68) -> 80045884 | U70: =SUM(U63:U68) -> 10628.85195
C71: Variance Analysis | D71: Year | G71: Year-over-year | I71: Test Year Versus Board-approved | K71: Year | L71: Year-over-year | O71: =I71 -> Test Year Versus Board-approved | Q71: Year | R71: Year-over-year | U71: =O71 -> Test Year Versus Board-approved
D72: =D63 -> 2014 | K72: =D72 -> 2014 | Q72: =K72 -> 2014
D73: 2015 | G73: =IF(G63=0,"",G64/G63-1) -> 0.01102787947 | K73: =D73 -> 2015 | L73: =IF(L63=0,"",L64/L63-1) -> -0.0528962542 | M73: 0.001538424177 | Q73: =K73 -> 2015 | R73: =IF(R63="","",IF(R63=0,"",R64/R63-1)) -> -0.06322687531 | S73: =IF(S63="","",IF(S63=0,"",S64/S63-1)) -> -0.009385948188
D74: 2016 | G74: 0.0085901464 | K74: 2016 | L74: -0.06140269821 | M74: -0.06172105852 | Q74: 2016 | R74: =IF(R64="","",IF(R64=0,"",R65/R64-1)) -> -0.06939671665 | S74: -0.0697123655
D75: 2017 | G75: 0.006981496824 | K75: 2017 | L75: 0.005423782953 | M75: 0.006864458733 | Q75: 2017 | R75: -0.001546914095 | S75: -0.0001162266551
D76: 2018 | G76: 0.005704443981 | K76: 2018 | L76: 0.08533023889 | M76: 0.05240021741 | Q76: 2018 | R76: 0.0791741504 | S76: 0.04643091089
D77: 2019 | G77: 0.01072679989 | K77: 2019 | L77: =IF(K68="Forecast","",IF(L67=0,"",L68/L67-1)) ->  | M77: =IF(M67=0,"",M68/M67-1) -> -0.01922151545 | Q77: 2019 | R77: =IF(Q68="Forecast","",IF(R67=0,"",R68/R67-1)) ->  | S77: =IF(S67="","",IF(S67=0,"",S68/S67-1)) -> -0.02963047516
D78: 2020 | G78: 0.05100290453 | I78: =IF(I70=0,"",G69/I70-1) -> 0.07761641228 | K78: 2020 | L78: =IF(K69="Forecast","",IF(L68=0,"",L69/L68-1)) ->  | M78: =IF(M68=0,"",M69/M68-1) -> 0.04894560562 | O78: =IF(O70=0,"",M69/O70-1) -> 0.06285384244 | Q78: 2020 | R78: =IF(Q69="Forecast","",IF(R68=0,"",R69/R68-1)) ->  | S78: =IF(S68="","",IF(S68=0,"",S69/S68-1)) -> -0.001957462624 | U78: =IF(U70=0,"",S69/U70-1) -> -0.01369928081
D79: Geometric Mean | G79: =IF(G63=0,"",(G69/G63)^(1/($D69-$D63-1))-1) -> 0.01868868422 | I79: =IF(I70=0,"",(G69/I70)^(1/(TestYear-RebaseYear-1))-1) -> 0.01886360565 | K79: Geometric Mean | L79: =IF(L63=0,"",(L67/L63)^(1/($D67-$D63-1))-1) -> -0.01008940847 | M79: =IF(M63=0,"",(M69/M63)^(1/($D69-$D63-1))-1) -> 0.004835765357 | O79: =IF(O70=0,"",(M69/O70)^(1/(TestYear-RebaseYear-1))-1) -> 0.01535611039 | Q79: Geometric Mean | R79: =IF(R63="","",IF(R63=0,"",(R67/R63)^(1/($D67-$D63-1))-1)) -> -0.02064667921 | S79: =IF(S63="","",IF(S63=0,"",(S69/S63)^(1/($D69-$D63-1))-1)) -> -0.01359877564 | U79: =IF(U70=0,"",(S69/U70)^(1/(TestYear-RebaseYear-1))-1) -> -0.00344255623
D82: Calendar Year | F82: Revenues | K82: =IF(ISBLANK(N59),"",CONCATENATE("Demand (",N59,")")) -> Demand (kWh) | Q82: =CONCATENATE("Demand (",N59,") per ",LEFT(F61,LEN(F61)-1)) -> Demand (kWh) per Customer
D83: =CONCATENATE("(for ",TestYear," Cost of Service") -> (for 2020 Cost of Service | L83: Actual (Weather actual) | M83: Weather-normalized | O83: =M83 -> Weather-normalized | R83: =L83 -> Actual (Weather actual) | S83: =M83 -> Weather-normalized | U83: =O83 -> Weather-normalized
C84: Historical | D84: =D85-1 -> 2014 | F84: =F63 -> Actual | G84: 4831305.595 | H84: =IF(D84=RebaseYear,"Board-approved","") ->  | K84: =K63 -> Actual | N84: =N63 ->  | Q84: =K84 -> Actual | R84: =IF(G84=0,"",L84/G84) -> 0 | S84: =IF(G84=0,"",M84/G84) -> 0 | T84: =N84 ->  | U84: =IF(T84="","",IF(I84=0,"",O84/I84)) -> 
C85: Historical | D85: 2015 | F85: Actual | G85: 4747596.064 | H85: Board-approved | I85: 4734787.475 | K85: Actual | N85: Board-approved | Q85: =K85 -> Actual | R85: =IF(G85=0,"",L85/G85) -> 0 | S85: =IF(G85=0,"",M85/G85) -> 0 | T85: =N85 -> Board-approved | U85: =IF(T85="","",IF(I85=0,"",O85/I85)) -> 0
C86: Historical | D86: 2016 | F86: Actual | G86: 4699185.908 | K86: Actual | Q86: Actual | R86: 0 | S86: 0
C87: Historical | D87: 2017 | F87: Actual | G87: 4885573.641 | K87: Actual | Q87: Actual | R87: 0 | S87: 0
C88: Historical | D88: 2018 | F88: Actual | G88: 5184809.461 | K88: Actual | Q88: Actual | R88: 0 | S88: 0
C89: Bridge Year (Forecast) | D89: 2019 | F89: Forecast | G89: 5308093.131 | K89: Forecast | Q89: Forecast | R89: 0 | S89: 0
C90: Test Year (Forecast) | D90: =TestYear -> 2020 | F90: Forecast | G90: 5636060.602 | K90: Forecast | Q90: Forecast | R90: 0 | S90: 0
I91: =SUM(I84:I89) -> 4734787.475 | O91: =SUM(O84:O89) -> 0 | U91: =SUM(U84:U89) -> 0
C92: Variance Analysis | D92: Year | G92: Year-over-year | I92: =I71 -> Test Year Versus Board-approved | K92: Year | L92: Year-over-year | O92: =I92 -> Test Year Versus Board-approved | Q92: Year | R92: Year-over-year | U92: =O92 -> Test Year Versus Board-approved
D93: =D84 -> 2014 | K93: =D93 -> 2014 | Q93: =K93 -> 2014
D94: 2015 | G94: =IF(G84=0,"",G85/G84-1) -> -0.01732648241 | K94: =D94 -> 2015 | L94: =IF(L84=0,"",L85/L84-1) ->  | Q94: =K94 -> 2015 | R94: =IF(R84="","",IF(R84=0,"",R85/R84-1)) ->  | S94: =IF(S84="","",IF(S84=0,"",S85/S84-1)) -> 
D95: 2016 | G95: -0.01019677218 | K95: 2016 | Q95: 2016 | R95: =IF(R85="","",IF(R85=0,"",R86/R85-1)) -> 
D96: 2017 | G96: 0.03966383456 | K96: 2017 | Q96: 2017
D97: 2018 | G97: 0.06124886099 | K97: 2018 | Q97: 2018
D98: 2019 | G98: 0.02377785917 | K98: 2019 | L98: =IF(K89="Forecast","",IF(L88=0,"",L89/L88-1)) ->  | M98: =IF(M88=0,"",M89/M88-1) ->  | Q98: 2019 | R98: =IF(Q89="Forecast","",IF(R88=0,"",R89/R88-1)) ->  | S98: =IF(S88="","",IF(S88=0,"",S89/S88-1)) -> 
D99: 2020 | G99: 0.06178630704 | I99: =IF(I91=0,"",G90/I91-1) -> 0.1903513372 | K99: 2020 | L99: =IF(K90="Forecast","",IF(L89=0,"",L90/L89-1)) ->  | M99: =IF(M89=0,"",M90/M89-1) ->  | O99: =IF(O91=0,"",M90/O91-1) ->  | Q99: 2020 | R99: =IF(Q90="Forecast","",IF(R89=0,"",R90/R89-1)) ->  | S99: =IF(S89="","",IF(S89=0,"",S90/S89-1)) ->  | U99: =IF(U91=0,"",S90/U91-1) -> 
D100: Geometric Mean | G100: =IF(G84=0,"",(G90/G84)^(1/($D90-$D84-1))-1) -> 0.03129337791 | I100: =IF(I91=0,"",(G90/I91)^(1/(TestYear-RebaseYear-1))-1) -> 0.04452488468 | K100: Geometric Mean | L100: =IF(L84=0,"",(L88/L84)^(1/($D88-$D84-1))-1) ->  | M100: =IF(M84=0,"",(M90/M84)^(1/($D90-$D84-1))-1) ->  | O100: =IF(O91=0,"",(M90/O91)^(1/(TestYear-RebaseYear-1))-1) ->  | Q100: Geometric Mean | R100: =IF(R84="","",IF(R84=0,"",(R88/R84)^(1/($D88-$D84-1))-1)) ->  | S100: =IF(S84="","",IF(S84=0,"",(S90/S84)^(1/($D90-$D84-1))-1)) ->  | U100: =IF(U91=0,"",(S90/U91)^(1/(TestYear-RebaseYear-1))-1) -> 
B102: 2 | C102: Customer Class: | D102: R1(ii) GS < 50 kW | H102: Is the customer class billed on consumption (kWh) or demand (kW or kVA)? | N102: kWh
D104: Calendar Year | F104: Customers | K104: Consumption (kWh) (3) | Q104: =CONCATENATE("Consumption (kWh) per ",LEFT(F104,LEN(F104)-1)) -> Consumption (kWh) per Customer
D105: =CONCATENATE("(for ",TestYear," Cost of Service") -> (for 2020 Cost of Service | L105: Actual (Weather actual) | M105: Weather-normalized | O105: Weather-normalized | R105: =L105 -> Actual (Weather actual) | S105: =M105 -> Weather-normalized | U105: =O105 -> Weather-normalized
C106: Historical | D106: =D107-1 -> 2014 | F106: =F63 -> Actual | G106: 955.6666667 | H106: =IF(D106=RebaseYear,"Board-approved","") ->  | K106: =F106 -> Actual | L106: 27212831 | M106: 26465977.66 | N106: =H106 ->  | Q106: =K106 -> Actual | R106: =IF(G106=0,"",L106/G106) -> 28475.233 | S106: =IF(G106=0,"",M106/G106) -> 27693.73316 | T106: =N106 ->  | U106: =IF(T106="","",IF(I106=0,"",O106/I106)) -> 
C107: Historical | D107: 2015 | F107: =F64 -> Actual | G107: 954.25 | H107: Board-approved | K107: =F107 -> Actual | L107: 26130351 | M107: 26873827.3 | N107: =H107 -> Board-approved | O107: 25745817 | Q107: =K107 -> Actual | R107: =IF(G107=0,"",L107/G107) -> 27383.12916 | S107: =IF(G107=0,"",M107/G107) -> 28162.25025 | T107: =N107 -> Board-approved | U107: =IF(T107="","",IF(I107=0,"",O107/I107)) -> 
C108: Historical | D108: 2016 | F108: Actual | G108: 951.1666667 | K108: Actual | L108: 24984442 | M108: 25686598.69 | Q108: Actual | R108: 26267.15472 | S108: 27005.36046
C109: Historical | D109: 2017 | F109: Actual | G109: 961.1666667 | K109: Actual | L109: 25604789 | M109: 26362100.08 | Q109: Actual | R109: 26639.28108 | S109: 27427.18926
C110: Historical | D110: 2018 | F110: Actual | G110: 960.9166667 | K110: Actual | L110: 26240993.81 | M110: 26197394.97 | Q110: Actual | R110: 27308.29293 | S110: 27262.92079
C111: Bridge Year | D111: 2019 | F111: Forecast | G111: 956.1042354 | K111: Forecast | M111: 25693841.34 | Q111: Forecast | R111: 0 | S111: 26873.47298
C112: Test Year | D112: =TestYear -> 2020 | F112: Forecast | G112: 997.3159056 | K112: Forecast | M112: 28598828.24 | Q112: Forecast | R112: 0 | S112: 28675.79679
I113: =SUM(I106:I111) -> 0 | O113: =SUM(O106:O111) -> 25745817 | U113: =SUM(U106:U111) -> 0
C114: Variance Analysis | D114: Year | G114: Year-over-year | I114: Test Year Versus Board-approved | K114: Year | L114: Year-over-year | O114: =I114 -> Test Year Versus Board-approved | Q114: Year | R114: Year-over-year | U114: =O114 -> Test Year Versus Board-approved
D115: =D106 -> 2014 | K115: =D115 -> 2014 | Q115: =K115 -> 2014
D116: 2015 | G116: =IF(G106=0,"",G107/G106-1) -> -0.001482385769 | K116: =D116 -> 2015 | L116: =IF(L106=0,"",L107/L106-1) -> -0.03977829429 | M116: 0.01541033732 | Q116: =K116 -> 2015 | R116: =IF(R106="","",IF(R106=0,"",R107/R106-1)) -> -0.03835276211 | S116: 0.0169178018
D117: 2016 | G117: -0.003231158851 | K117: 2016 | L117: -0.04385356324 | M117: -0.044177876 | Q117: 2016 | R117: -0.04075408732 | S117: -0.04107945138
D118: 2017 | G118: 0.01051340459 | K118: 2017 | L118: 0.02482933179 | M118: 0.02629781386 | Q118: 2017 | R118: 0.01416698396 | S118: 0.01562018791
D119: 2018 | G119: -0.0002601005722 | K119: 2018 | L119: 0.02484710243 | M119: -0.006247799281 | Q119: 2018 | R119: =IF(R109="","",IF(R109=0,"",R110/R109-1)) -> 0.0251137351 | S119: -0.005989256517
D120: 2019 | G120: -0.005008167155 | K120: 2019 | L120: =IF(K111="Forecast","",IF(L110=0,"",L111/L110-1)) ->  | M120: =IF(M110=0,"",M111/M110-1) -> -0.01922151545 | Q120: 2019 | R120: =IF(Q111="Forecast","",IF(R110=0,"",R111/R110-1)) ->  | S120: -0.01428488941
D121: 2020 | G121: 0.04310374188 | I121: =IF(I113=0,"",G112/I113-1) ->  | K121: 2020 | L121: =IF(K112="Forecast","",IF(L111=0,"",L112/L111-1)) ->  | M121: =IF(M111=0,"",M112/M111-1) -> 0.1130616035 | O121: =IF(O113=0,"",M112/O113-1) -> 0.1108145544 | Q121: 2020 | R121: =IF(Q112="Forecast","",IF(R111=0,"",R112/R111-1)) ->  | S121: 0.067067022 | U121: =IF(U113=0,"",S112/U113-1) -> 
D122: Geometric Mean | G122: =IF(G106=0,"",(G112/G106)^(1/($D112-$D106-1))-1) -> 0.008568178239 | I122: =IF(I113=0,"",(G112/I113)^(1/(TestYear-RebaseYear-1))-1) ->  | K122: Geometric Mean | L122: =IF(L106=0,"",(L110/L106)^(1/($D110-$D106-1))-1) -> -0.01204874306 | M122: =IF(M106=0,"",(M112/M106)^(1/($D112-$D106-1))-1) -> 0.01562190591 | O122: =IF(O113=0,"",(M112/O113)^(1/(TestYear-RebaseYear-1))-1) -> 0.02662158306 | Q122: Geometric Mean | R122: =IF(R106="","",IF(R106=0,"",(R110/R106)^(1/($D110-$D106-1))-1)) -> -0.01385126457 | S122: =IF(S106="","",IF(S106=0,"",(S112/S106)^(1/($D112-$D106-1))-1)) -> 0.00699380352 | U122: =IF(U113=0,"",(S112/U113)^(1/(TestYear-RebaseYear-1))-1) -> 
D125: Calendar Year | F125: Revenues | K125: =IF(ISBLANK(N102),"",CONCATENATE("Demand (",N102,")")) -> Demand (kWh) | Q125: =CONCATENATE("Demand (",N102,") per ",LEFT(F104,LEN(F104)-1)) -> Demand (kWh) per Customer
D126: =CONCATENATE("(for ",TestYear," Cost of Service") -> (for 2020 Cost of Service | L126: Actual (Weather actual) | M126: Weather-normalized | O126: =M126 -> Weather-normalized | R126: =L126 -> Actual (Weather actual) | S126: =M126 -> Weather-normalized | U126: =O126 -> Weather-normalized
C127: Historical | D127: =D128-1 -> 2014 | F127: =F106 -> Actual | G127: 1150015.888 | H127: =IF(D127=RebaseYear,"Board-approved","") ->  | K127: =K106 -> Actual | N127: =N106 ->  | Q127: =K127 -> Actual | R127: =IF(G127=0,"",L127/G127) -> 0 | S127: =IF(G127=0,"",M127/G127) -> 0 | T127: =N127 ->  | U127: =IF(T127="","",IF(I127=0,"",O127/I127)) -> 
C128: Historical | D128: 2015 | F128: Actual | G128: 1124341.853 | H128: Board-approved | I128: 1114739.998 | K128: Actual | N128: Board-approved | Q128: =K128 -> Actual | R128: =IF(G128=0,"",L128/G128) -> 0 | S128: =IF(G128=0,"",M128/G128) -> 0 | T128: =N128 -> Board-approved | U128: =IF(T128="","",IF(I128=0,"",O128/I128)) -> 0
C129: Historical | D129: 2016 | F129: Actual | G129: 1105677.003 | K129: Actual | Q129: Actual | R129: 0 | S129: 0
C130: Historical | D130: 2017 | F130: Actual | G130: 1162926.382 | K130: Actual | Q130: Actual | R130: 0 | S130: 0
C131: Historical | D131: 2018 | F131: Actual | G131: 1215504.562 | K131: Actual | Q131: Actual | R131: 0 | S131: 0
C132: Bridge Year (Forecast) | D132: 2019 | F132: Forecast | G132: 1221721.823 | K132: Forecast | Q132: Forecast | R132: 0 | S132: 0
C133: Test Year (Forecast) | D133: =TestYear -> 2020 | F133: Forecast | G133: 1349964.888 | K133: Forecast | Q133: Forecast | R133: 0 | S133: 0
I134: =SUM(I127:I132) -> 1114739.998 | O134: =SUM(O127:O132) -> 0 | U134: =SUM(U127:U132) -> 0
C135: Variance Analysis | D135: Year | G135: Year-over-year | I135: =I114 -> Test Year Versus Board-approved | K135: Year | L135: Year-over-year | O135: =I135 -> Test Year Versus Board-approved | Q135: Year | R135: Year-over-year | U135: =O135 -> Test Year Versus Board-approved
D136: =D127 -> 2014 | K136: =D136 -> 2014 | Q136: =K136 -> 2014
D137: 2015 | G137: =IF(G127=0,"",G128/G127-1) -> -0.02232493914 | K137: =D137 -> 2015 | L137: =IF(L127=0,"",L128/L127-1) ->  | Q137: =K137 -> 2015 | R137: =IF(R127="","",IF(R127=0,"",R128/R127-1)) -> 
D138: 2016 | G138: -0.01660068951 | K138: 2016 | Q138: 2016
D139: 2017 | G139: 0.05177766984 | K139: 2017 | Q139: 2017
D140: 2018 | G140: 0.04521195916 | K140: 2018 | L140: =IF(L130=0,"",L131/L130-1) ->  | Q140: 2018 | R140: =IF(R130="","",IF(R130=0,"",R131/R130-1)) -> 
D141: 2019 | G141: 0.005114963722 | K141: 2019 | L141: =IF(K132="Forecast","",IF(L131=0,"",L132/L131-1)) ->  | Q141: 2019 | R141: =IF(Q132="Forecast","",IF(R131=0,"",R132/R131-1)) -> 
D142: 2020 | G142: 0.1049691197 | I142: =IF(I134=0,"",G133/I134-1) -> 0.2110132324 | K142: 2020 | L142: =IF(K133="Forecast","",IF(L132=0,"",L133/L132-1)) ->  | O142: =IF(O134=0,"",M133/O134-1) ->  | Q142: 2020 | R142: =IF(Q133="Forecast","",IF(R132=0,"",R133/R132-1)) ->  | U142: =IF(U134=0,"",S133/U134-1) -> 
D143: Geometric Mean | G143: =IF(G127=0,"",(G133/G127)^(1/($D133-$D127-1))-1) -> 0.03258004173 | I143: =IF(I134=0,"",(G133/I134)^(1/(TestYear-RebaseYear-1))-1) -> 0.0490283427 | K143: Geometric Mean | L143: =IF(L127=0,"",(L131/L127)^(1/($D131-$D127-1))-1) ->  | M143: =IF(M127=0,"",(M133/M127)^(1/($D133-$D127-1))-1) ->  | O143: =IF(O134=0,"",(M133/O134)^(1/(TestYear-RebaseYear-1))-1) ->  | Q143: Geometric Mean | R143: =IF(R127="","",IF(R127=0,"",(R131/R127)^(1/($D131-$D127-1))-1)) ->  | S143: =IF(S127="","",IF(S127=0,"",(S133/S127)^(1/($D133-$D127-1))-1)) ->  | U143: =IF(U134=0,"",(S133/U134)^(1/(TestYear-RebaseYear-1))-1) -> 
B145: 3 | C145: Customer Class: | D145: R2 GS>50 kW | H145: Is the customer class billed on consumption (kWh) or demand (kW or kVA)? | N145: kW
D147: Calendar Year | F147: Customers | K147: Consumption (kWh) (3) | Q147: =CONCATENATE("Consumption (kWh) per ",LEFT(F147,LEN(F147)-1)) -> Consumption (kWh) per Customer
D148: =CONCATENATE("(for ",TestYear," Cost of Service") -> (for 2020 Cost of Service | L148: Actual (Weather actual) | M148: Weather-normalized | O148: Weather-normalized | R148: =L148 -> Actual (Weather actual) | S148: =M148 -> Weather-normalized | U148: =O148 -> Weather-normalized
C149: Historical | D149: =D150-1 -> 2014 | F149: =F106 -> Actual | G149: 43.41666667 | H149: =IF(D149=RebaseYear,"Board-approved","") ->  | K149: =F149 -> Actual | L149: 83470707.8 | M149: 83018955.04 | N149: =H149 ->  | Q149: =K149 -> Actual | R149: =IF(G149=0,"",L149/G149) -> 1922549.892 | S149: =IF(G149=0,"",M149/G149) -> 1912144.838 | T149: =N149 ->  | U149: =IF(T149="","",IF(I149=0,"",O149/I149)) -> 
C150: Historical | D150: 2015 | F150: =F107 -> Actual | G150: 42.16666667 | H150: Board-approved | K150: =F150 -> Actual | L150: 86528983.7 | M150: 86942369.95 | N150: =H150 -> Board-approved | O150: 83288188 | Q150: =K150 -> Actual | R150: =IF(G150=0,"",L150/G150) -> 2052070.76 | S150: =IF(G150=0,"",M150/G150) -> 2061874.386 | T150: =N150 -> Board-approved | U150: =IF(T150="","",IF(I150=0,"",O150/I150)) -> 
C151: Historical | D151: 2016 | F151: Actual | G151: 42.08333333 | K151: Actual | L151: 89578885.8 | M151: 89962073.62 | Q151: Actual | R151: 2128607.187 | S151: 2137712.64
C152: Historical | D152: 2017 | F152: Actual | G152: 38.16666667 | K152: Actual | L152: 94512142.9 | M152: 94856925.11 | Q152: Actual | R152: 2476300.687 | S152: 2485334.282
C153: Historical | D153: 2018 | F153: Actual | G153: 39.75 | K153: Actual | L153: 109202680.5 | M153: 109181913.2 | Q153: Actual | R153: 2747237.244 | S153: 2746714.797
C154: Bridge Year | D154: 2019 | F154: Forecast | G154: 39.00920732 | K154: Forecast | M154: 108942057.1 | Q154: Forecast | R154: 0 | S154: 2792726.76
C155: Test Year | D155: =TestYear -> 2020 | F155: Forecast | G155: 37.28222026 | K155: Forecast | M155: 110505010.8 | Q155: Forecast | R155: 0 | S155: 2964013.678
I156: =SUM(I149:I154) -> 0 | O156: =SUM(O149:O154) -> 83288188 | U156: =SUM(U149:U154) -> 0
C157: Variance Analysis | D157: Year | G157: Year-over-year | I157: Test Year Versus Board-approved | K157: Year | L157: Year-over-year | O157: =I157 -> Test Year Versus Board-approved | Q157: Year | R157: Year-over-year | U157: =O157 -> Test Year Versus Board-approved
D158: =D149 -> 2014 | K158: =D158 -> 2014 | Q158: =K158 -> 2014
D159: 2015 | G159: =IF(G149=0,"",G150/G149-1) -> -0.02879078695 | K159: =D159 -> 2015 | L159: =IF(L149=0,"",L150/L149-1) -> 0.03663891179 | M159: 0.0472592664 | Q159: =K159 -> 2015 | R159: =IF(R149="","",IF(R149=0,"",R150/R149-1)) -> 0.06736931431 | S159: 0.07830450157
D160: 2016 | G160: -0.001976284585 | K160: 2016 | L160: 0.03524717349 | M160: 0.0347322447 | Q160: 2016 | R160: 0.03729716789 | S160: 0.03678121944
D161: 2017 | G161: -0.09306930693 | K161: 2017 | L161: 0.0550716506 | M161: 0.05441016749 | Q161: 2017 | R161: 0.1633431955 | S161: 0.162613831
D162: 2018 | G162: 0.04148471616 | K162: 2018 | L162: 0.1554354511 | M162: 0.1510167871 | Q162: 2018 | R162: 0.1094118168 | S162: 0.1051691582
D163: 2019 | G163: -0.01863629393 | K163: 2019 | L163: =IF(K154="Forecast","",IF(L153=0,"",L154/L153-1)) ->  | M163: =IF(M153=0,"",M154/M153-1) -> -0.002196847632 | Q163: 2019 | R163: =IF(Q154="Forecast","",IF(R153=0,"",R154/R153-1)) ->  | S163: =IF(S153="","",IF(S153=0,"",S154/S153-1)) -> 0.01675163469
D164: 2020 | G164: -0.04427126754 | I164: =IF(I156=0,"",G155/I156-1) ->  | K164: 2020 | L164: =IF(K155="Forecast","",IF(L154=0,"",L155/L154-1)) ->  | M164: =IF(M154=0,"",M155/M154-1) -> 0.01434665076 | O164: =IF(O156=0,"",M155/O156-1) -> 0.326778904 | Q164: 2020 | R164: =IF(Q155="Forecast","",IF(R154=0,"",R155/R154-1)) ->  | S164: =IF(S154="","",IF(S154=0,"",S155/S154-1)) -> 0.06133321758 | U164: =IF(U156=0,"",S155/U156-1) -> 
D165: Geometric Mean | G165: =IF(G149=0,"",(G155/G149)^(1/($D155-$D149-1))-1) -> -0.03000597714 | I165: =IF(I156=0,"",(G155/I156)^(1/(TestYear-RebaseYear-1))-1) ->  | K165: Geometric Mean | L165: =IF(L149=0,"",(L153/L149)^(1/($D153-$D149-1))-1) -> 0.09370383299 | M165: =IF(M149=0,"",(M155/M149)^(1/($D155-$D149-1))-1) -> 0.05886584965 | O165: =IF(O156=0,"",(M155/O156)^(1/(TestYear-RebaseYear-1))-1) -> 0.07324689176 | Q165: Geometric Mean | R165: =IF(R149="","",IF(R149=0,"",(R153/R149)^(1/($D153-$D149-1))-1)) -> 0.1263486657 | S165: =IF(S149="","",IF(S149=0,"",(S155/S149)^(1/($D155-$D149-1))-1)) -> 0.09162100456 | U165: =IF(U156=0,"",(S155/U156)^(1/(TestYear-RebaseYear-1))-1) -> 
D168: Calendar Year | F168: Revenues | K168: =IF(ISBLANK(N145),"",CONCATENATE("Demand (",N145,")")) -> Demand (kW) | Q168: =CONCATENATE("Demand (",N145,") per ",LEFT(F147,LEN(F147)-1)) -> Demand (kW) per Customer
D169: =CONCATENATE("(for ",TestYear," Cost of Service") -> (for 2020 Cost of Service | L169: Actual (Weather actual) | M169: Weather-normalized | O169: =M169 -> Weather-normalized | R169: =L169 -> Actual (Weather actual) | S169: =M169 -> Weather-normalized | U169: =O169 -> Weather-normalized
C170: Historical | D170: =D171-1 -> 2014 | F170: =F149 -> Actual | G170: 918088.7456 | H170: =IF(D170=RebaseYear,"Board-approved","") ->  | K170: =K149 -> Actual | L170: 196688 | M170: 195623.5026 | N170: =N149 ->  | Q170: =K170 -> Actual | R170: =IF(G170=0,"",L170/G170) -> 0.2142363698 | S170: =IF(G170=0,"",M170/G170) -> 0.2130768987 | T170: =N170 ->  | U170: =IF(T170="","",IF(I170=0,"",O170/I170)) -> 
C171: Historical | D171: 2015 | F171: Actual | G171: 952357.2991 | H171: Board-approved | I171: 979696.7031 | K171: Actual | L171: 208261 | M171: 209255.9526 | N171: Board-approved | O171: 198901 | Q171: =K171 -> Actual | R171: =IF(G171=0,"",L171/G171) -> 0.2186794811 | S171: =IF(G171=0,"",M171/G171) -> 0.2197242072 | T171: =N171 -> Board-approved | U171: =IF(T171="","",IF(I171=0,"",O171/I171)) -> 0.203023037
C172: Historical | D172: 2016 | F172: Actual | G172: 997741.0303 | K172: Actual | L172: 217368.6 | M172: 218298.4285 | Q172: Actual | R172: 0.2178607408 | S172: 0.2187926745
C173: Historical | D173: 2017 | F173: Actual | G173: 976358.0307 | K173: Actual | L173: 210836.1 | M173: 211605.2344 | Q173: Actual | R173: 0.2159413795 | S173: 0.216729138
C174: Historical | D174: 2018 | F174: Actual | G174: 1093385.45 | K174: Actual | L174: 234800 | M174: 234755.3476 | Q174: Actual | R174: 0.2147458611 | S174: 0.2147050225
C175: Bridge Year (Forecast) | D175: 2019 | F175: Forecast | G175: 1169246.119 | K175: Forecast | M175: 251600.0713 | Q175: Forecast | R175: 0 | S175: 0.2151814466
C176: Test Year (Forecast) | D176: =TestYear -> 2020 | F176: Forecast | G176: 1158725.98 | K176: Forecast | M176: 255209.6897 | Q176: Forecast | R176: 0 | S176: 0.2202502525
I177: =SUM(I170:I175) -> 979696.7031 | O177: =SUM(O170:O175) -> 198901 | U177: =SUM(U170:U175) -> 0.203023037
C178: Variance Analysis | D178: Year | G178: Year-over-year | I178: =I157 -> Test Year Versus Board-approved | K178: Year | L178: Year-over-year | O178: =I178 -> Test Year Versus Board-approved | Q178: Year | R178: Year-over-year | U178: =O178 -> Test Year Versus Board-approved
D179: =D170 -> 2014 | K179: =D179 -> 2014 | Q179: =K179 -> 2014
D180: 2015 | G180: =IF(G170=0,"",G171/G170-1) -> 0.03732597057 | K180: =D180 -> 2015 | L180: =IF(L170=0,"",L171/L170-1) -> 0.05883938014 | M180: 0.0696871783 | Q180: =K180 -> 2015 | R180: =IF(R170="","",IF(R170=0,"",R171/R170-1)) -> 0.02073929524 | S180: 0.03119675845
D181: 2016 | G181: 0.04765410125 | K181: 2016 | L181: 0.04373166363 | M181: 0.04321251469 | Q181: 2016 | R181: -0.003744019724 | S181: -0.004239554409
D182: 2017 | G182: -0.02143141248 | K182: 2017 | L182: -0.0300526387 | M182: -0.03066075265 | Q182: 2017 | R182: -0.008810037769 | S182: -0.009431469893
D183: 2018 | G183: 0.1198611735 | K183: 2018 | L183: 0.1136612753 | M183: 0.1094023658 | Q183: 2018 | R183: -0.005536309649 | S183: -0.009339378799
D184: 2019 | G184: 0.06938145124 | K184: 2019 | L184: =IF(K175="Forecast","",IF(L174=0,"",L175/L174-1)) ->  | M184: =IF(M174=0,"",M175/M174-1) -> 0.07175437709 | Q184: 2019 | R184: =IF(Q175="Forecast","",IF(R174=0,"",R175/R174-1)) ->  | S184: =IF(S174="","",IF(S174=0,"",S175/S174-1)) -> 0.002218970462
D185: 2020 | G185: -0.008997369124 | I185: =IF(I177=0,"",G176/I177-1) -> 0.1827394914 | K185: 2020 | L185: =IF(K176="Forecast","",IF(L175=0,"",L176/L175-1)) ->  | M185: =IF(M175=0,"",M176/M175-1) -> 0.01434665076 | O185: =IF(O177=0,"",M176/O177-1) -> 0.283099078 | Q185: 2020 | R185: =IF(Q176="Forecast","",IF(R175=0,"",R176/R175-1)) ->  | S185: =IF(S175="","",IF(S175=0,"",S176/S175-1)) -> 0.02355596156 | U185: =IF(U177=0,"",S176/U177-1) -> 0.08485350094
D186: Geometric Mean | G186: =IF(G170=0,"",(G176/G170)^(1/($D176-$D170-1))-1) -> 0.04765723421 | I186: =IF(I177=0,"",(G176/I177)^(1/(TestYear-RebaseYear-1))-1) -> 0.04285103022 | K186: Geometric Mean | L186: =IF(L170=0,"",(L174/L170)^(1/($D174-$D170-1))-1) -> 0.06081603577 | M186: =IF(M170=0,"",(M176/M170)^(1/($D176-$D170-1))-1) -> 0.05461811231 | O186: =IF(O177=0,"",(M176/O177)^(1/(TestYear-RebaseYear-1))-1) -> 0.06430241651 | Q186: Geometric Mean | R186: =IF(R170="","",IF(R170=0,"",(R174/R170)^(1/($D174-$D170-1))-1)) -> 0.0007920970389 | S186: =IF(S170="","",IF(S170=0,"",(S176/S170)^(1/($D176-$D170-1))-1)) -> 0.00664423237 | U186: =IF(U177=0,"",(S176/U177)^(1/(TestYear-RebaseYear-1))-1) -> 0.02056994304
B188: 4 | C188: Customer Class: | D188: Seasonal | H188: Is the customer class billed on consumption (kWh) or demand (kW or kVA)? | N188: kWh
D190: Calendar Year | F190: Customers | K190: Consumption (kWh) (3) | Q190: =CONCATENATE("Consumption (kWh) per ",LEFT(F190,LEN(F190)-1)) -> Consumption (kWh) per Customer
D191: =CONCATENATE("(for ",TestYear," Cost of Service") -> (for 2020 Cost of Service | L191: Actual (Weather actual) | M191: Weather-normalized | O191: Weather-normalized | R191: =L191 -> Actual (Weather actual) | S191: =M191 -> Weather-normalized | U191: =O191 -> Weather-normalized
C192: Historical | D192: =D193-1 -> 2014 | F192: =F149 -> Actual | G192: 3254.5 | H192: =IF(D192=RebaseYear,"Board-approved","") ->  | K192: =F192 -> Actual | L192: 7919568 | M192: 7702216.272 | N192: =H192 ->  | Q192: =K192 -> Actual | R192: =IF(G192=0,"",L192/G192) -> 2433.420802 | S192: =IF(G192=0,"",M192/G192) -> 2366.635819 | T192: =N192 ->  | U192: =IF(T192="","",IF(I192=0,"",O192/I192)) -> 
C193: Historical | D193: 2015 | F193: =F150 -> Actual | G193: 3175.916667 | H193: Board-approved | K193: =F193 -> Actual | L193: 6868390 | M193: 7063813.52 | N193: =H193 -> Board-approved | O193: 7731414 | Q193: =K193 -> Actual | R193: =IF(G193=0,"",L193/G193) -> 2162.648054 | S193: =IF(G193=0,"",M193/G193) -> 2224.181004 | T193: =N193 -> Board-approved | U193: =IF(T193="","",IF(I193=0,"",O193/I193)) -> 
C194: Historical | D194: 2016 | F194: Actual | G194: 3139.916667 | K194: Actual | L194: 6205026 | M194: 6379410.543 | Q194: Actual | R194: 1976.175376 | S194: 2031.713329
C195: Historical | D195: 2017 | F195: Actual | G195: 3108.083333 | K195: Actual | L195: 6042453 | M195: 6221170.216 | Q195: Actual | R195: 1944.10907 | S195: 2001.60985
C196: Historical | D196: 2018 | F196: Actual | G196: 3076.416667 | K196: Actual | L196: 6043635.352 | M196: 6033593.982 | Q196: Actual | R196: 1964.504814 | S196: 1961.240832
C197: Bridge Year | D197: 2019 | F197: Forecast | G197: 3017.74172 | K197: Forecast | M197: 5917619.162 | Q197: Forecast | S197: 1960.942887
C198: Test Year | D198: =TestYear -> 2020 | F198: Forecast | G198: 2960.185852 | K198: Forecast | M198: 5886660.754 | Q198: Forecast | S198: 1988.611881
I199: =SUM(I192:I197) -> 0 | O199: =SUM(O192:O197) -> 7731414 | U199: =SUM(U192:U197) -> 0
C200: Variance Analysis | D200: Year | G200: Year-over-year | I200: Test Year Versus Board-approved | K200: Year | L200: Year-over-year | O200: =I200 -> Test Year Versus Board-approved | Q200: Year | R200: Year-over-year | U200: =O200 -> Test Year Versus Board-approved
D201: =D192 -> 2014 | K201: =D201 -> 2014 | Q201: =K201 -> 2014
D202: 2015 | G202: =IF(G192=0,"",G193/G192-1) -> -0.02414605418 | K202: =D202 -> 2015 | L202: =IF(L192=0,"",L193/L192-1) -> -0.1327317349 | M202: -0.08288559151 | Q202: =K202 -> 2015 | R202: =IF(R192="","",IF(R192=0,"",R193/R192-1)) -> -0.1112724718 | S202: -0.0601929598
D203: 2016 | G203: -0.01133531002 | K203: 2016 | L203: -0.09658216846 | M203: -0.09688859634 | Q203: 2016 | R203: -0.0862242369 | S203: -0.08653417806
D204: 2017 | G204: -0.01013827331 | K204: 2017 | L204: -0.02620021254 | M204: -0.02480485091 | Q204: 2017 | R204: -0.01622644739 | S204: -0.01481679431
D205: 2018 | G205: -0.01018848701 | K205: 2018 | L205: 0.000195674174 | M205: -0.03015127817 | Q205: 2018 | R205: 0.0104910491 | S205: -0.02016827537
D206: 2019 | G206: -0.01907249655 | K206: 2019 | L206: =IF(K197="Forecast","",IF(L196=0,"",L197/L196-1)) ->  | M206: =IF(M196=0,"",M197/M196-1) -> -0.01922151545 | Q206: 2019 | R206: =IF(Q197="Forecast","",IF(R196=0,"",R197/R196-1)) ->  | S206: =IF(S196="","",IF(S196=0,"",S197/S196-1)) -> -0.0001519163256
D207: 2020 | G207: -0.01907249655 | I207: =IF(I199=0,"",G198/I199-1) ->  | K207: 2020 | L207: =IF(K198="Forecast","",IF(L197=0,"",L198/L197-1)) ->  | M207: =IF(M197=0,"",M198/M197-1) -> -0.005231564796 | O207: =IF(O199=0,"",M198/O199-1) -> -0.2386048976 | Q207: 2020 | R207: =IF(Q198="Forecast","",IF(R197=0,"",R198/R197-1)) ->  | S207: =IF(S197="","",IF(S197=0,"",S198/S197-1)) -> 0.01411004555 | U207: =IF(U199=0,"",S198/U199-1) -> 
D208: Geometric Mean | G208: =IF(G192=0,"",(G198/G192)^(1/($D198-$D192-1))-1) -> -0.01877876011 | I208: =IF(I199=0,"",(G198/I199)^(1/(TestYear-RebaseYear-1))-1) ->  | K208: Geometric Mean | L208: =IF(L192=0,"",(L196/L192)^(1/($D196-$D192-1))-1) -> -0.08616963056 | M208: =IF(M192=0,"",(M198/M192)^(1/($D198-$D192-1))-1) -> -0.05234412394 | O208: =IF(O199=0,"",(M198/O199)^(1/(TestYear-RebaseYear-1))-1) -> -0.06588032462 | Q208: Geometric Mean | R208: =IF(R192="","",IF(R192=0,"",(R196/R192)^(1/($D196-$D192-1))-1)) -> -0.06886648166 | S208: =IF(S192="","",IF(S192=0,"",(S198/S192)^(1/($D198-$D192-1))-1)) -> -0.03420774283 | U208: =IF(U199=0,"",(S198/U199)^(1/(TestYear-RebaseYear-1))-1) -> 
D211: Calendar Year | F211: Revenues | K211: =IF(ISBLANK(N188),"",CONCATENATE("Demand (",N188,")")) -> Demand (kWh) | Q211: =CONCATENATE("Demand (",N188,") per ",LEFT(F190,LEN(F190)-1)) -> Demand (kWh) per Customer
D212: =CONCATENATE("(for ",TestYear," Cost of Service") -> (for 2020 Cost of Service | L212: Actual (Weather actual) | M212: Weather-normalized | O212: =M212 -> Weather-normalized | R212: =L212 -> Actual (Weather actual) | S212: =M212 -> Weather-normalized | U212: =O212 -> Weather-normalized
C213: Historical | D213: =D214-1 -> 2014 | F213: =F192 -> Actual | G213: 1859618.047 | H213: =IF(D213=RebaseYear,"Board-approved","") ->  | K213: =K192 -> Actual | N213: =N192 ->  | Q213: =K213 -> Actual | R213: =IF(G213=0,"",L213/G213) -> 0 | S213: =IF(G213=0,"",M213/G213) -> 0 | T213: =N213 ->  | U213: =IF(T213="","",IF(I213=0,"",O213/I213)) -> 
C214: Historical | D214: 2015 | F214: Actual | G214: 2038872.268 | H214: Board-approved | I214: 2152693.127 | K214: Actual | N214: Board-approved | Q214: =K214 -> Actual | R214: =IF(G214=0,"",L214/G214) -> 0 | S214: =IF(G214=0,"",M214/G214) -> 0 | T214: =N214 -> Board-approved | U214: =IF(T214="","",IF(I214=0,"",O214/I214)) -> 0
C215: Historical | D215: 2016 | F215: Actual | G215: 2181680.561 | K215: Actual | Q215: Actual | R215: 0 | S215: 0
C216: Historical | D216: 2017 | F216: Actual | G216: 2420339.371 | K216: Actual | Q216: Actual | R216: 0 | S216: 0
C217: Historical | D217: 2018 | F217: Actual | G217: 2656334.26 | K217: Actual | Q217: Actual | R217: 0 | S217: 0
C218: Bridge Year (Forecast) | D218: 2019 | F218: Forecast | G218: 2866748.613 | K218: Forecast | Q218: Forecast | R218: 0 | S218: 0
C219: Test Year (Forecast) | D219: =TestYear -> 2020 | F219: Forecast | G219: 2874728.141 | K219: Forecast | Q219: Forecast | R219: 0 | S219: 0
I220: =SUM(I213:I218) -> 2152693.127 | O220: =SUM(O213:O218) -> 0 | U220: =SUM(U213:U218) -> 0
C221: Variance Analysis | D221: Year | G221: Year-over-year | I221: =I200 -> Test Year Versus Board-approved | K221: Year | L221: Year-over-year | O221: =I221 -> Test Year Versus Board-approved | Q221: Year | R221: Year-over-year | U221: =O221 -> Test Year Versus Board-approved
D222: =D213 -> 2014 | K222: =D222 -> 2014 | Q222: =K222 -> 2014
D223: 2015 | G223: =IF(G213=0,"",G214/G213-1) -> 0.09639303139 | K223: =D223 -> 2015 | L223: =IF(L213=0,"",L214/L213-1) ->  | Q223: =K223 -> 2015 | R223: =IF(R213="","",IF(R213=0,"",R214/R213-1)) -> 
D224: 2016 | G224: 0.07004278553 | K224: 2016 | Q224: 2016
D225: 2017 | G225: 0.1093921878 | K225: 2017 | Q225: 2017
D226: 2018 | G226: 0.09750487571 | K226: 2018 | Q226: 2018
D227: 2019 | G227: 0.07921230253 | K227: 2019 | L227: =IF(K218="Forecast","",IF(L217=0,"",L218/L217-1)) ->  | M227: =IF(M217=0,"",M218/M217-1) ->  | Q227: 2019 | R227: =IF(Q218="Forecast","",IF(R217=0,"",R218/R217-1)) ->  | S227: =IF(S217="","",IF(S217=0,"",S218/S217-1)) -> 
D228: 2020 | G228: 0.002783476574 | I228: =IF(I220=0,"",G219/I220-1) -> 0.3354100986 | K228: 2020 | L228: =IF(K219="Forecast","",IF(L218=0,"",L219/L218-1)) ->  | M228: =IF(M218=0,"",M219/M218-1) ->  | O228: =IF(O220=0,"",M219/O220-1) ->  | Q228: 2020 | R228: =IF(Q219="Forecast","",IF(R218=0,"",R219/R218-1)) ->  | S228: =IF(S218="","",IF(S218=0,"",S219/S218-1)) ->  | U228: =IF(U220=0,"",S219/U220-1) -> 
D229: Geometric Mean | G229: =IF(G213=0,"",(G219/G213)^(1/($D219-$D213-1))-1) -> 0.09102475728 | I229: =IF(I220=0,"",(G219/I220)^(1/(TestYear-RebaseYear-1))-1) -> 0.07498811818 | K229: Geometric Mean | L229: =IF(L213=0,"",(L217/L213)^(1/($D217-$D213-1))-1) ->  | M229: =IF(M213=0,"",(M219/M213)^(1/($D219-$D213-1))-1) ->  | O229: =IF(O220=0,"",(M219/O220)^(1/(TestYear-RebaseYear-1))-1) ->  | Q229: Geometric Mean | R229: =IF(R213="","",IF(R213=0,"",(R217/R213)^(1/($D217-$D213-1))-1)) ->  | S229: =IF(S213="","",IF(S213=0,"",(S219/S213)^(1/($D219-$D213-1))-1)) ->  | U229: =IF(U220=0,"",(S219/U220)^(1/(TestYear-RebaseYear-1))-1) -> 
B231: 5 | C231: Customer Class: | D231: Street Lighting | H231: Is the customer class billed on consumption (kWh) or demand (kW or kVA)? | N231: kWh
D233: Calendar Year | F233: Customers | K233: Consumption (kWh) (3) | Q233: =CONCATENATE("Consumption (kWh) per ",LEFT(F233,LEN(F233)-1)) -> Consumption (kWh) per Customer
... 233 more rows

Sheet App.2-JA_OM&A_Summary_Analys
S1: File Number: | T1: =EBNUMBER -> EB-2019-0019 | U1: ='LDC Info'!$E$28 -> 2015 | V1: Last Rebasing Year | W1: Column
S2: Exhibit: | T2: 4 | U2: =TestYear -> 2020 | V2: 2010 | W2: B | X2: ae
S3: Tab: | U3: ='LDC Info'!$E$28 -> 2015 | V3: 2011 | W3: D | X3: ah
A4: TO BE UPDATED AT THE DRAFT RATE ORDER STAGE | S4: Schedule: | V4: 2012 | W4: G | X4: ak
S5: Page: | V5: 2013 | W5: J | X5: an
V6: 2014 | W6: M | X6: aq
S7: Date: | T7: 2019-09-24 | V7: 2015 | W7: P | X7: at
V8: 2016 | W8: S | X8: aw
A9: Appendix 2-JA | V9: 2017 | W9: V | X9: az
A10: Summary of Recoverable OM&A Expenses
B11: 2010 | D11: 2011 | F11: 2012 | H11: 2013 | J11: 2014 | L11: 2015 | N11: 2016 | P11: 2017 | R11: 2018 | S11: 2019 | T11: 2020 | X11: 2010 | AA11: 2011 | AD11: 2012 | AG11: 2013 | AJ11: 2014 | AM11: 2015 | AP11: 2016 | AS11: 2017 | AV11: 2018 | AX11: 2019 | AZ11: 2020
B12: =CONCATENATE(B11," ",IF($U1=B11,"Last Rebasing Year ","")," Board Approved") -> 2010 Board Approved | C12: =CONCATENATE(B11," ",IF($U1=B11,"Last Rebasing Year ","")," Actuals") -> 2010 Actuals | D12: =CONCATENATE(D11," ",IF($U1=D11,"Last Rebasing Year ","")," Board Approved") -> 2011 Board Approved | E12: =CONCATENATE(D11," ",IF($U1=D11,"Last Rebasing Year ","")," Actuals") -> 2011 Actuals | F12: =CONCATENATE(F11," ",IF($U1=F11,"Last Rebasing Year ","")," Board Approved") -> 2012 Board Approved | G12: =CONCATENATE(F11," ",IF($U1=F11,"Last Rebasing Year ","")," Actuals") -> 2012 Actuals | H12: =CONCATENATE(H11," ",IF($U1=H11,"Last Rebasing Year ","")," Board Approved") -> 2013 Board Approved | I12: =CONCATENATE(H11," ",IF($U1=H11,"Last Rebasing Year ","")," Actuals") -> 2013 Actuals | J12: =CONCATENATE(J11," ",IF($U1=J11,"Last Rebasing Year ","")," Board Approved") -> 2014 Board Approved | K12: =CONCATENATE(J11," ",IF($U1=J11,"Last Rebasing Year ","")," Actuals") -> 2014 Actuals | L12: =CONCATENATE(L11," ",IF($U1=L11,"Last Rebasing Year ","")," Board Approved") -> 2015 Last Rebasing Year Board Approved | M12: =CONCATENATE(L11," ",IF($U1=L11,"Last Rebasing Year ","")," Actuals") -> 2015 Last Rebasing Year Actuals | N12: =CONCATENATE(N11," ",IF($U1=N11,"Last Rebasing Year ","")," Board Approved") -> 2016 Board Approved | O12: =CONCATENATE(N11," ",IF($U1=N11,"Last Rebasing Year ","")," Actuals") -> 2016 Actuals | P12: =CONCATENATE(P11," ",IF($U1=P11,"Last Rebasing Year ","")," Board Approved") -> 2017 Board Approved | Q12: =CONCATENATE(P11," ",IF($U1=P11,"Last Rebasing Year ","")," Actuals") -> 2017 Actuals | R12: 2018 Actuals | S12: =BridgeYear & " Bridge Year" -> 2019 Bridge Year | T12: =TestYear & " Test Year" -> 2020 Test Year | X12: =CONCATENATE(IF($U1=X11,"Last Rebasing Year ",""),,X11," Board Approved") -> 2010 Board Approved | Y12: =CONCATENATE(IF($U1=X11,"Last Rebasing Year ",""),X11," Actuals") -> 2010 Actuals | Z12: =CONCATENATE("Variance ",X11," Board Approved - ",X11," Actuals") -> Variance 2010 Board Approved - 2010 Actuals | AA12: =CONCATENATE(IF($U1=AA11,"Last Rebasing Year ",""),,AA11," Board Approved") -> 2011 Board Approved | AB12: =CONCATENATE(IF($U1=AA11,"Last Rebasing Year ",""),AA11," Actuals") -> 2011 Actuals | AC12: =CONCATENATE("Variance ",AA11," Board Approved - ",AA11," Actuals") -> Variance 2011 Board Approved - 2011 Actuals | AD12: =CONCATENATE(IF($U1=AD11,"Last Rebasing Year",""),,AD11," Board Approved") -> 2012 Board Approved | AE12: =CONCATENATE(IF($U1=AD11,"Last Rebasing Year ",""),AD11," Actuals") -> 2012 Actuals | AF12: =CONCATENATE("Variance ",AD11," Board Approved - ",AD11," Actuals") -> Variance 2012 Board Approved - 2012 Actuals | AG12: =CONCATENATE(IF($U1=AG11,"Last Rebasing Year ",""),,AG11," Board Approved") -> 2013 Board Approved | AH12: =CONCATENATE(IF($U1=AG11,"Last Rebasing Year ",""),AG11," Actuals") -> 2013 Actuals | AI12: =CONCATENATE("Variance ",AG11," Board Approved - ",AG11," Actuals") -> Variance 2013 Board Approved - 2013 Actuals | AJ12: =CONCATENATE(IF($U1=AJ11,"Last Rebasing Year ",""),,AJ11," Board Approved") -> 2014 Board Approved | AK12: =CONCATENATE(IF($U1=AJ11,"Last Rebasing Year ",""),AJ11," Actuals") -> 2014 Actuals | AL12: =CONCATENATE("Variance ",AJ11," Board Approved - ",AJ11," Actuals") -> Variance 2014 Board Approved - 2014 Actuals | AM12: =CONCATENATE(IF($U1=AM11,"Last Rebasing Year ",""),,AM11," Board Approved") -> Last Rebasing Year 2015 Board Approved | AN12: =CONCATENATE(IF($U1=AM11,"Last Rebasing Year ",""),AM11," Actuals") -> Last Rebasing Year 2015 Actuals | AO12: =CONCATENATE("Variance ",AM11," Board Approved - ",AM11," Actuals") -> Variance 2015 Board Approved - 2015 Actuals | AP12: =CONCATENATE(IF($U1=AP11,"Last Rebasing Year ",""),,AP11," Board Approved") -> 2016 Board Approved | AQ12: =CONCATENATE(IF($U1=AP11,"Last Rebasing Year ",""),AP11," Actuals") -> 2016 Actuals | AR12: =CONCATENATE("Variance ",AP11," Actuals - ",AM11," Actuals") -> Variance 2016 Actuals - 2015 Actuals | AS12: =CONCATENATE(IF($U1=AS11,"Last Rebasing Year ",""),,AS11," Board Approved") -> 2017 Board Approved | AT12: =CONCATENATE(IF($U1=AS11,"Last Rebasing Year ",""),AS11," Actuals") -> 2017 Actuals | AU12: =CONCATENATE("Variance ",AS11," Actuals - ",AP11," Actuals") -> Variance 2017 Actuals - 2016 Actuals | AV12: =CONCATENATE(AV11," Actuals") -> 2018 Actuals | AW12: =CONCATENATE("Variance ",AV11," Acutals vs. ",AV11-1," Actuals") -> Variance 2018 Acutals vs. 2017 Actuals | AX12: =CONCATENATE(AX11," Bridge Year") -> 2019 Bridge Year | AY12: =CONCATENATE("Variance ",AX11," Bridge vs. ",AX11-1," Actuals") -> Variance 2019 Bridge vs. 2018 Actuals | AZ12: =CONCATENATE(AZ11," Test Year") -> 2020 Test Year | BA12: =CONCATENATE("Variance ",AZ11," Test vs. ",AZ11-1," Bridge") -> Variance 2020 Test vs. 2019 Bridge
A13: Reporting Basis | L13: MIFRS | M13: MIFRS | N13: MIFRS | O13: MIFRS | P13: MIFRS | Q13: MIFRS | R13: MIFRS | S13: MIFRS | T13: MIFRS | V13: Operations | W13: Operations | X13: =B14 -> 0 | Y13: =C14 -> 0 | Z13: =X13-Y13 -> 0 | AA13: =D14 -> 0 | AB13: =E14 -> 0 | AC13: =AA13-AB13 -> 0 | AD13: =F14 -> 0 | AE13: =G14 -> 0 | AF13: =AD13-AE13 -> 0 | AG13: =H14 -> 0 | AH13: =I14 -> 0 | AI13: =AG13-AH13 -> 0 | AJ13: =J14 -> 0 | AK13: =K14 -> 0 | AL13: =AJ13-AK13 -> 0 | AM13: =L14 -> 1642392 | AN13: =M14 -> 1417406.67 | AO13: =AM13-AN13 -> 224985.33 | AP13: =N14 -> 0 | AQ13: =O14 -> 1296571.74 | AR13: =AQ13-AN13 -> -120834.93 | AS13: =P14 -> 0 | AT13: =Q14 -> 1451821.11 | AU13: =AT13-AQ13 -> 155249.37 | AV13: =R14 -> 1566231.78 | AW13: =AV13-AT13 -> 114410.67 | AX13: =S14 -> 1790340.96 | AY13: =AX13-AV13 -> 224109.18 | AZ13: =T14 -> 1782437.36 | BA13: =AZ13-AX13 -> -7903.6
A14: Operations | L14: 1642392 | M14: 1417406.67 | O14: 1296571.74 | Q14: 1451821.11 | R14: 1566231.78 | S14: 1790340.96 | T14: 1782437.36 | V14: Maintenance | W14: Maintenance | X14: =B15 -> 0 | Y14: =C15 -> 0 | Z14: 0 | AA14: =D15 -> 0 | AB14: =E15 -> 0 | AC14: 0 | AD14: =F15 -> 0 | AE14: =G15 -> 0 | AF14: 0 | AG14: =H15 -> 0 | AH14: =I15 -> 0 | AI14: 0 | AJ14: =J15 -> 0 | AK14: =K15 -> 0 | AL14: 0 | AM14: =L15 -> 5118954 | AN14: =M15 -> 4879021.42 | AO14: 239932.58 | AP14: =N15 -> 0 | AQ14: =O15 -> 5064914.84 | AR14: 185893.42 | AS14: =P15 -> 0 | AT14: =Q15 -> 5263561.9 | AU14: =AT14-AQ14 -> 198647.06 | AV14: =R15 -> 5145408.12 | AW14: =AV14-AT14 -> -118153.78 | AX14: =S15 -> 5225959.47 | AY14: =AX14-AV14 -> 80551.35 | AZ14: =T15 -> 5297809.82 | BA14: =AZ14-AX14 -> 71850.35
A15: Maintenance | L15: 5118954 | M15: 4879021.42 | O15: 5064914.84 | Q15: 5263561.9 | R15: 5145408.12 | S15: 5225959.47 | T15: 5297809.82 | V15: Billing and Collecting | W15: Billing and Collecting | X15: =B19 -> 0 | Y15: 0 | Z15: 0 | AA15: =D19 -> 0 | AB15: 0 | AC15: 0 | AD15: =F19 -> 0 | AE15: 0 | AF15: 0 | AG15: =H19 -> 0 | AH15: 0 | AI15: 0 | AJ15: =J19 -> 0 | AK15: 0 | AL15: 0 | AM15: =L19 -> 1090942 | AN15: 964836.48 | AO15: 126105.52 | AP15: =N19 -> 0 | AQ15: 875601.71 | AR15: -89234.77 | AS15: =P19 -> 0 | AT15: 874404.33 | AU15: =AT15-AQ15 -> -1197.38 | AV15: =R19 -> 919934.89 | AW15: 45530.56 | AX15: =S19 -> 970386.84 | AY15: 50451.95 | AZ15: =T19 -> 995414.11 | BA15: =AZ15-AX15 -> 25027.27
A16: SubTotal | B16: =SUM(B14:B15) -> 0 | C16: =SUM(C14:C15) -> 0 | D16: 0 | E16: 0 | F16: 0 | G16: 0 | H16: 0 | I16: 0 | J16: 0 | K16: 0 | L16: 6761346 | M16: 6296428.09 | N16: 0 | O16: 6361486.58 | P16: 0 | Q16: 6715383.01 | R16: 6711639.9 | S16: 7016300.43 | T16: 7080247.18 | V16: Community Relations | W16: Community Relations | X16: 0 | Y16: 0 | Z16: 0 | AA16: 0 | AB16: 0 | AC16: 0 | AD16: 0 | AE16: 0 | AF16: 0 | AG16: 0 | AH16: 0 | AI16: 0 | AJ16: 0 | AK16: 0 | AL16: 0 | AM16: 22102 | AN16: 24429.71 | AO16: -2327.71 | AP16: 0 | AQ16: 32308.39 | AR16: 7878.68 | AS16: 0 | AT16: 47552.27 | AU16: =AT16-AQ16 -> 15243.88 | AV16: =R20 -> 141890.12 | AW16: 94337.85 | AX16: =S20 -> 94552.32 | AY16: -47337.8 | AZ16: =T20 -> 96558 | BA16: 2005.68
A17: %Change (year over year) | C17: =IF(ISERROR((C16-B16)/B16), "", (C16-B16)/B16) ->  | E17: =IF(ISERROR((E16-D16)/D16), "", (E16-D16)/D16) ->  | G17: =IF(ISERROR((G16-F16)/F16), "", (G16-F16)/F16) ->  | I17: =IF(ISERROR((I16-H16)/H16), "", (I16-H16)/H16) ->  | K17: =IF(ISERROR((K16-J16)/J16), "", (K16-J16)/J16) ->  | M17: =IF(ISERROR((M16-L16)/L16), "", (M16-L16)/L16) -> -0.06876114756 | O17: =IF(ISERROR((O16-M16)/M16), "", (O16-M16)/M16) -> 0.01033260272 | Q17: =IF(ISERROR((Q16-O16)/O16), "", (Q16-O16)/O16) -> 0.05563108961 | R17: =IF(ISERROR((R16-Q16)/Q16), "", (R16-Q16)/Q16) -> -0.0005573933749 | S17: =IF(ISERROR((S16-R16)/R16), "", (S16-R16)/R16) -> 0.04539285995 | T17: =IF(ISERROR((T16-S16)/S16), "", (T16-S16)/S16) -> 0.009114026778 | V17: Administrative and General | W17: Administrative and General | X17: 0 | Y17: 0 | Z17: 0 | AA17: 0 | AB17: 0 | AC17: 0 | AD17: 0 | AE17: 0 | AF17: 0 | AG17: 0 | AH17: 0 | AI17: 0 | AJ17: 0 | AK17: 0 | AL17: 0 | AM17: 4430491 | AN17: 4529864.74 | AO17: -99373.74 | AP17: 0 | AQ17: 4534507 | AR17: 4642.26 | AS17: 0 | AT17: 4494381.6 | AU17: -40125.4 | AV17: =R21 -> 4361131.44 | AW17: -133250.16 | AX17: =S21 -> 4843215.04 | AY17: 482083.6 | AZ17: =T21 -> 5516062.7 | BA17: 672847.66
A18: %Change (Test Year vs Last Rebasing Year - Actual) | T18: =IF(ISERROR((T16-M16)/M16), "", (T16-M16)/M16) -> 0.1244863086 | V18: Total OM&A Expenses | W18: Total OM&A Expenses | X18: 0 | Y18: 0 | Z18: 0 | AA18: 0 | AB18: 0 | AC18: 0 | AD18: 0 | AE18: 0 | AF18: 0 | AG18: 0 | AH18: 0 | AI18: 0 | AJ18: 0 | AK18: 0 | AL18: 0 | AM18: =L25 -> 12304881 | AN18: =M25 -> 11815559.02 | AO18: 489321.98 | AP18: 0 | AQ18: =O25 -> 11803903.68 | AR18: -11655.34 | AS18: 0 | AT18: =Q25 -> 12131721.21 | AU18: 327817.53 | AV18: =R25 -> 12134596.35 | AW18: 2875.14 | AX18: =S25 -> 12924454.63 | AY18: 789858.28 | AZ18: =T25 -> 13688281.99 | BA18: 763827.36
A19: Billing and Collecting | L19: 1090942 | M19: 964836.48 | O19: 875601.71 | Q19: 874404.33 | R19: 919934.89 | S19: 970386.84 | T19: 995414.11 | V19: Adjustments for Total non-recoverable items (from Appendices 2-JA and 2-JB) | W19: Adjustments for Total non-recoverable items (from Appendices 2-JA and 2-JB) | AR19: =AN19-AQ19 -> 0
A20: Community Relations | L20: 22102 | M20: 24429.71 | O20: 32308.39 | Q20: 47552.27 | R20: 141890.12 | S20: 94552.32 | T20: 96558 | V20: Total Recoverable OM&A Expenses | W20: Total Recoverable OM&A Expenses | X20: =X18-X19 -> 0 | Y20: 0 | Z20: 0 | AA20: 0 | AB20: 0 | AC20: 0 | AD20: 0 | AE20: 0 | AF20: 0 | AG20: =AG18-AG19 -> 0 | AH20: 0 | AI20: 0 | AJ20: 0 | AK20: 0 | AL20: 0 | AM20: 12304881 | AN20: 11815559.02 | AO20: 489321.98 | AP20: 0 | AQ20: 11803903.68 | AR20: =AQ20-AN20 -> -11655.34 | AS20: =AS18-AS19 -> 0 | AT20: 12131721.21 | AU20: =AU18-AU19 -> 327817.53 | AV20: 12134596.35 | AW20: 2875.14 | AX20: =AX18-AX19 -> 12924454.63 | AY20: 789858.28 | AZ20: 13688281.99 | BA20: 763827.36
A21: Administrative and General | L21: 4430491 | M21: 4529864.74 | O21: 4534507 | Q21: 4494381.6 | R21: 4361131.44 | S21: 4843215.04 | T21: 5516062.7 | V21: Variance from previous year | W21: Variance from previous year | AB21: =AB20-Y20 -> 0 | AE21: =AE20-AB20 -> 0 | AH21: =AH20-AE20 -> 0 | AK21: =AK20-AH20 -> 0 | AQ21: =AQ20-AN20 -> -11655.34 | AT21: =AT20-AQ20 -> 327817.53 | AV21: =AV20-AT20 -> 2875.14 | AX21: =AX20-AV20 -> 789858.28 | AZ21: =AZ20-AX20 -> 763827.36
A22: SubTotal | B22: =SUM(B19:B21) -> 0 | C22: =SUM(C19:C21) -> 0 | D22: 0 | E22: 0 | F22: 0 | G22: 0 | H22: 0 | I22: 0 | J22: 0 | K22: 0 | L22: 5543535 | M22: 5519130.93 | N22: 0 | O22: 5442417.1 | P22: 0 | Q22: =SUM(Q19:Q21) -> 5416338.2 | R22: =SUM(R19:R21) -> 5422956.45 | S22: =SUM(S19:S21) -> 5908154.2 | T22: =SUM(T19:T21) -> 6608034.81 | V22: Percent change (year over year) | W22: Percent change (year over year) | AB22: =IF(ISERROR(AB21/Y20), "", AB21/Y20) ->  | AE22: =IF(ISERROR(AE21/AB20), "", AE21/AB20) ->  | AH22: =IF(ISERROR(AH21/AE20), "", AH21/AE20) ->  | AK22: =IF(ISERROR(AK21/AH20), "", AK21/AH20) ->  | AQ22: =IF(ISERROR(AQ21/AN20), "", AQ21/AN20) -> -0.0009864399966 | AT22: =IF(ISERROR(AT21/AQ20), "", AT21/AQ20) -> 0.02777195908 | AV22: =IF(ISERROR(AV21/AT20), "", AV21/AT20) -> 0.0002369935766 | AX22: =IF(ISERROR(AX21/AV20), "", AX21/AV20) -> 0.06509143421 | AZ22: =IF(ISERROR(AZ21/AX20), "", AZ21/AX20) -> 0.05909938809
A23: %Change (year over year) | C23: =IF(ISERROR((C22-B22)/B22), "", (C22-B22)/B22) ->  | E23: =IF(ISERROR((E22-D22)/D22), "", (E22-D22)/D22) ->  | G23: =IF(ISERROR((G22-F22)/F22), "", (G22-F22)/F22) ->  | I23: =IF(ISERROR((I22-H22)/H22), "", (I22-H22)/H22) ->  | K23: =IF(ISERROR((K22-J22)/J22), "", (K22-J22)/J22) ->  | M23: =IF(ISERROR((M22-L22)/L22), "", (M22-L22)/L22) -> -0.004402257765 | O23: =IF(ISERROR((O22-M22)/M22), "", (O22-M22)/M22) -> -0.01389962133 | Q23: =IF(ISERROR((Q22-O22)/O22), "", (Q22-O22)/O22) -> -0.004791786355 | R23: =IF(ISERROR((R22-Q22)/Q22), "", (R22-Q22)/Q22) -> 0.001221904866 | S23: =IF(ISERROR((S22-R22)/R22), "", (S22-R22)/R22) -> 0.08947107624 | T23: =IF(ISERROR((T22-S22)/S22), "", (T22-S22)/S22) -> 0.1184601123 | V23: Percent Change: Test year vs. Most Current Actual | W23: Percent Change: Test year vs. Most Current Actual | BA23: =AZ20/AV20-1 -> 0.1280376862
A24: %Change (Test Year vs Last Rebasing Year - Actual) | T24: =IF(ISERROR((T22-M22)/M22), "", (T22-M22)/M22) -> 0.197296258 | V24: Simple average of % variance for all years | W24: Simple average of % variance for all years | BA24: =AVERAGE(AQ22,AT22,AV22,AX22,AZ22) -> 0.03024266699
A25: Total | B25: =SUM(B22,B16) -> 0 | C25: =SUM(C22,C16) -> 0 | D25: 0 | E25: 0 | F25: 0 | G25: 0 | H25: 0 | I25: 0 | J25: 0 | K25: 0 | L25: 12304881 | M25: =SUM(M22,M16) -> 11815559.02 | N25: 0 | O25: 11803903.68 | P25: 0 | Q25: =SUM(Q22,Q16) -> 12131721.21 | R25: =SUM(R22,R16) -> 12134596.35 | S25: =SUM(S22,S16) -> 12924454.63 | T25: =SUM(T22,T16) -> 13688281.99 | V25: Compound Annual Growth Rate for all years | W25: Compound Annual Growth Rate for all years | BA25: =IF((AZ20-AN20)=0, "", (AZ20/AN20)^(1/(AZ11-AM11))-1) -> 0.02986176319
A26: %Change (year over year) | C26: =IF(ISERROR((C25-B25)/B25), "", (C25-B25)/B25) ->  | E26: =IF(ISERROR((E25-D25)/D25), "", (E25-D25)/D25) ->  | G26: =IF(ISERROR((G25-F25)/F25), "", (G25-F25)/F25) ->  | I26: =IF(ISERROR((I25-H25)/H25), "", (I25-H25)/H25) ->  | K26: =IF(ISERROR((K25-J25)/J25), "", (K25-J25)/J25) ->  | M26: =IF(ISERROR((M25-L25)/L25), "", (M25-L25)/L25) -> -0.03976649429 | O26: =IF(ISERROR((O25-M25)/M25), "", (O25-M25)/M25) -> -0.0009864399966 | Q26: =IF(ISERROR((Q25-O25)/O25), "", (Q25-O25)/O25) -> 0.02777195908 | R26: =IF(ISERROR((R25-Q25)/Q25), "", (R25-Q25)/Q25) -> 0.0002369935766 | S26: =IF(ISERROR((S25-R25)/R25), "", (S25-R25)/R25) -> 0.06509143421 | T26: =IF(ISERROR((T25-S25)/S25), "", (T25-S25)/S25) -> 0.05909938809 | W26: ="Compound Growth Rate (" &#REF! & " vs. " & 'LDC Info'!E28 & " Actuals)" -> 
X29: =B12 -> 2010 Board Approved | Y29: =C12 -> 2010 Actuals | Z29: Last Rebasing Year (2011 Board Approved) | AA29: Last Rebasing Year (2011 Actuals) | AB29: 2011 Actuals | AC29: Last Rebasing Year (2012 Board Approved) | AD29: Last Rebasing Year (2012 Actuals) | AE29: 2012 Actuals | AF29: Last Rebasing Year (2013 Board Approved) | AG29: Last Rebasing Year (2013 Actuals) | AH29: 2013 Actuals | AI29: Last Rebasing Year (2014 Board Approved) | AJ29: Last Rebasing Year (2014 Actuals) | AK29: 2014 Actuals | AL29: Last Rebasing Year (2015 Board Approved) | AM29: Last Rebasing Year (2015 Approved) | AN29: 2015 Actuals | AO29: Last Rebasing Year (2016 Board Approved) | AQ29: =BridgeYear -3 & " Actuals" -> 2016 Actuals | AR29: Last Rebasing Year (2017 Board Approved) | AS29: =BridgeYear -2 & " Actuals" -> 2017 Actuals | AT29: =BridgeYear -1 & " Actuals" -> 2018 Actuals | AU29: =BridgeYear & " Bridge Year" -> 2019 Bridge Year | AV29: =TestYear & " Test Year" -> 2020 Test Year
W30: Operations | X30: =B14 -> 0 | Y30: 0 | Z30: 0 | AA30: 0 | AB30: =E14 -> 0 | AC30: 0 | AD30: 0 | AE30: =G14 -> 0 | AF30: 0 | AG30: 0 | AH30: =I14 -> 0 | AI30: 0 | AJ30: 0 | AK30: =K14 -> 0 | AL30: 1642392 | AM30: =L14 -> 1642392 | AN30: 1417406.67 | AO30: 0 | AQ30: =O14 -> 1296571.74 | AR30: 0 | AS30: 1451821.11 | AT30: =R14 -> 1566231.78 | AU30: 1790340.96 | AV30: 1782437.36
W31: Maintenance | X31: 0 | Y31: 0 | Z31: 0 | AA31: 0 | AB31: 0 | AC31: 0 | AD31: 0 | AE31: 0 | AF31: 0 | AG31: 0 | AH31: 0 | AI31: 0 | AJ31: 0 | AK31: 0 | AL31: 5118954 | AM31: 5118954 | AN31: 4879021.42 | AO31: 0 | AQ31: 5064914.84 | AR31: 0 | AS31: 5263561.9 | AT31: 5145408.12 | AU31: 5225959.47 | AV31: 5297809.82
W32: Billing and Collecting | X32: =B19 -> 0 | Y32: 0 | Z32: 0 | AA32: 0 | AB32: =E19 -> 0 | AC32: 0 | AD32: 0 | AE32: =G19 -> 0 | AF32: 0 | AG32: 0 | AH32: =I19 -> 0 | AI32: 0 | AJ32: 0 | AK32: =K19 -> 0 | AL32: =L19 -> 1090942 | AM32: =L19 -> 1090942 | AN32: 964836.48 | AO32: 0 | AQ32: =O19 -> 875601.71 | AR32: 0 | AS32: 874404.33 | AT32: =R19 -> 919934.89 | AU32: =S19 -> 970386.84 | AV32: 995414.11
W33: Community Relations | X33: 0 | Y33: 0 | Z33: 0 | AA33: 0 | AB33: 0 | AC33: 0 | AD33: 0 | AE33: 0 | AF33: 0 | AG33: 0 | AH33: 0 | AI33: 0 | AJ33: 0 | AK33: =K19 -> 0 | AL33: =L20 -> 22102 | AM33: 22102 | AN33: 24429.71 | AO33: 0 | AQ33: 32308.39 | AR33: 0 | AS33: 47552.27 | AT33: =R20 -> 141890.12 | AU33: 94552.32 | AV33: 96558
W34: Administrative and General | X34: 0 | Y34: 0 | Z34: 0 | AA34: 0 | AB34: 0 | AC34: 0 | AD34: 0 | AE34: 0 | AF34: 0 | AG34: 0 | AH34: 0 | AI34: 0 | AJ34: 0 | AK34: =K21 -> 0 | AL34: =L21 -> 4430491 | AM34: 4430491 | AN34: 4529864.74 | AO34: 0 | AQ34: 4534507 | AR34: 0 | AS34: 4494381.6 | AT34: =R21 -> 4361131.44 | AU34: 4843215.04 | AV34: 5516062.7
W35: Total | X35: =SUM(X30:X34) -> 0 | Y35: =SUM(Y30:Y34) -> 0 | Z35: 0 | AA35: 0 | AB35: 0 | AC35: 0 | AD35: 0 | AE35: 0 | AF35: 0 | AG35: 0 | AH35: 0 | AI35: 0 | AJ35: 0 | AK35: 0 | AL35: 12304881 | AM35: 12304881 | AN35: 11815559.02 | AO35: 0 | AQ35: 11803903.68 | AR35: 0 | AS35: 12131721.21 | AT35: 12134596.35 | AU35: 12924454.63 | AV35: 13688281.99
W36: %Change (year over year) | Y36: =IF(ISERROR((Y35-X35)/X35), "", (Y35-X35)/X35) ->  | AA36: =IF(ISERROR((AA35-Z35)/Z35), "", (AA35-Z35)/Z35) ->  | AB36: =IF(ISERROR((AB35-Y35)/Y35), "", (AB35-Y35)/Y35) ->  | AD36: =IF(ISERROR((AD35-AC35)/AC35), "", (AD35-AC35)/AC35) ->  | AE36: =IF(ISERROR((AE35-AB35)/AB35), "", (AE35-AB35)/AB35) ->  | AG36: =IF(ISERROR((AG35-AF35)/AF35), "", (AG35-AF35)/AF35) ->  | AH36: =IF(ISERROR((AH35-AE35)/AE35), "", (AH35-AE35)/AE35) ->  | AJ36: =IF(ISERROR((AJ35-AI35)/AI35), "", (AJ35-AI35)/AI35) ->  | AK36: =IF(ISERROR((AK35-AH35)/AH35), "", (AK35-AH35)/AH35) ->  | AM36: =IF(ISERROR((AM35-AL35)/AL35), "", (AM35-AL35)/AL35) -> 0 | AN36: =IF(ISERROR((AN35-AK35)/AK35), "", (AN35-AK35)/AK35) ->  | AP36: =IF(ISERROR((AP35-AO35)/AO35), "", (AP35-AO35)/AO35) ->  | AQ36: =IF(ISERROR((AQ35-AN35)/AN35), "", (AQ35-AN35)/AN35) -> -0.0009864399966 | AS36: =IF(ISERROR((AS35-AQ35)/AQ35), "", (AS35-AQ35)/AQ35) -> 0.02777195908 | AT36: =IF(ISERROR((AT35-AS35)/AS35), "", (AT35-AS35)/AS35) -> 0.0002369935766 | AU36: =IF(ISERROR((AU35-AT35)/AT35), "", (AU35-AT35)/AT35) -> 0.06509143421 | AV36: =IF(ISERROR((AV35-AU35)/AU35), "", (AV35-AU35)/AU35) -> 0.05909938809
A38: Note:
A40: 1 Historical actuals going back to the last cost of service application are required to be entered by the applicant.
A41: 2 Recoverable OM&A that is included on these tables should be identical to the recoverable OM&A that is shown for the corresponding periods on Appendix 2-JB.

Sheet Hidden_OM&A Summary (hidden)
A1: Utility Name | B1: EB Number | C1: Test Year | D1: Bridge Year | E1: Last Rebasing Year | F1: Heading | G1: Year | H1: Amount
A2: ='LDC Info'!$E$14 -> Algoma Power Inc. | B2: =EBNUMBER -> EB-2019-0019 | C2: =TestYear -> 2020 | D2: =BridgeYear -> 2019 | E2: =RebaseYear -> 2015 | F2: Operations | G2: ='App.2-JA_OM&A_Summary_Analys'!$B$12 -> 2010 Board Approved | H2: ='App.2-JA_OM&A_Summary_Analys'!B$14 -> 0
A3: ='LDC Info'!$E$14 -> Algoma Power Inc. | B3: EB-2019-0019 | C3: 2020 | D3: 2019 | E3: 2015 | F3: Maintenance | G3: ='App.2-JA_OM&A_Summary_Analys'!$B$12 -> 2010 Board Approved | H3: ='App.2-JA_OM&A_Summary_Analys'!B$15 -> 0
A4: ='LDC Info'!$E$14 -> Algoma Power Inc. | B4: EB-2019-0019 | C4: 2020 | D4: 2019 | E4: 2015 | F4: Billing and Collecting | G4: ='App.2-JA_OM&A_Summary_Analys'!$B$12 -> 2010 Board Approved | H4: ='App.2-JA_OM&A_Summary_Analys'!B$19 -> 0
A5: ='LDC Info'!$E$14 -> Algoma Power Inc. | B5: EB-2019-0019 | C5: 2020 | D5: 2019 | E5: 2015 | F5: Community Relations | G5: ='App.2-JA_OM&A_Summary_Analys'!$B$12 -> 2010 Board Approved | H5: ='App.2-JA_OM&A_Summary_Analys'!B$20 -> 0
A6: ='LDC Info'!$E$14 -> Algoma Power Inc. | B6: EB-2019-0019 | C6: 2020 | D6: 2019 | E6: 2015 | F6: Administrative and General | G6: ='App.2-JA_OM&A_Summary_Analys'!$B$12 -> 2010 Board Approved | H6: ='App.2-JA_OM&A_Summary_Analys'!B$21 -> 0
A7: ='LDC Info'!$E$14 -> Algoma Power Inc. | B7: EB-2019-0019 | C7: 2020 | D7: 2019 | E7: 2015 | F7: Operations | G7: ='App.2-JA_OM&A_Summary_Analys'!$C$12 -> 2010 Actuals | H7: ='App.2-JA_OM&A_Summary_Analys'!C$14 -> 0
A8: ='LDC Info'!$E$14 -> Algoma Power Inc. | B8: EB-2019-0019 | C8: 2020 | D8: 2019 | E8: 2015 | F8: Maintenance | G8: ='App.2-JA_OM&A_Summary_Analys'!$C$12 -> 2010 Actuals | H8: ='App.2-JA_OM&A_Summary_Analys'!C$15 -> 0
A9: ='LDC Info'!$E$14 -> Algoma Power Inc. | B9: EB-2019-0019 | C9: 2020 | D9: 2019 | E9: 2015 | F9: Billing and Collecting | G9: ='App.2-JA_OM&A_Summary_Analys'!$C$12 -> 2010 Actuals | H9: ='App.2-JA_OM&A_Summary_Analys'!C$19 -> 0
A10: ='LDC Info'!$E$14 -> Algoma Power Inc. | B10: EB-2019-0019 | C10: 2020 | D10: 2019 | E10: 2015 | F10: Community Relations | G10: ='App.2-JA_OM&A_Summary_Analys'!$C$12 -> 2010 Actuals | H10: ='App.2-JA_OM&A_Summary_Analys'!C$20 -> 0
A11: ='LDC Info'!$E$14 -> Algoma Power Inc. | B11: EB-2019-0019 | C11: 2020 | D11: 2019 | E11: 2015 | F11: Administrative and General | G11: ='App.2-JA_OM&A_Summary_Analys'!$C$12 -> 2010 Actuals | H11: ='App.2-JA_OM&A_Summary_Analys'!C$21 -> 0
A12: ='LDC Info'!$E$14 -> Algoma Power Inc. | B12: EB-2019-0019 | C12: 2020 | D12: 2019 | E12: 2015 | F12: Operations | G12: ='App.2-JA_OM&A_Summary_Analys'!$D$12 -> 2011 Board Approved | H12: ='App.2-JA_OM&A_Summary_Analys'!D$14 -> 0
A13: ='LDC Info'!$E$14 -> Algoma Power Inc. | B13: EB-2019-0019 | C13: 2020 | D13: 2019 | E13: 2015 | F13: Maintenance | G13: ='App.2-JA_OM&A_Summary_Analys'!$D$12 -> 2011 Board Approved | H13: ='App.2-JA_OM&A_Summary_Analys'!D$15 -> 0
A14: ='LDC Info'!$E$14 -> Algoma Power Inc. | B14: EB-2019-0019 | C14: 2020 | D14: 2019 | E14: 2015 | F14: Billing and Collecting | G14: ='App.2-JA_OM&A_Summary_Analys'!$D$12 -> 2011 Board Approved | H14: ='App.2-JA_OM&A_Summary_Analys'!D$19 -> 0
A15: ='LDC Info'!$E$14 -> Algoma Power Inc. | B15: EB-2019-0019 | C15: 2020 | D15: 2019 | E15: 2015 | F15: Community Relations | G15: ='App.2-JA_OM&A_Summary_Analys'!$D$12 -> 2011 Board Approved | H15: ='App.2-JA_OM&A_Summary_Analys'!D$20 -> 0
A16: ='LDC Info'!$E$14 -> Algoma Power Inc. | B16: EB-2019-0019 | C16: 2020 | D16: 2019 | E16: 2015 | F16: Administrative and General | G16: ='App.2-JA_OM&A_Summary_Analys'!$D$12 -> 2011 Board Approved | H16: ='App.2-JA_OM&A_Summary_Analys'!D$21 -> 0
A17: ='LDC Info'!$E$14 -> Algoma Power Inc. | B17: EB-2019-0019 | C17: 2020 | D17: 2019 | E17: 2015 | F17: Operations | G17: ='App.2-JA_OM&A_Summary_Analys'!$E$12 -> 2011 Actuals | H17: ='App.2-JA_OM&A_Summary_Analys'!E$14 -> 0
A18: ='LDC Info'!$E$14 -> Algoma Power Inc. | B18: EB-2019-0019 | C18: 2020 | D18: 2019 | E18: 2015 | F18: Maintenance | G18: ='App.2-JA_OM&A_Summary_Analys'!$E$12 -> 2011 Actuals | H18: ='App.2-JA_OM&A_Summary_Analys'!E$15 -> 0
A19: ='LDC Info'!$E$14 -> Algoma Power Inc. | B19: EB-2019-0019 | C19: 2020 | D19: 2019 | E19: 2015 | F19: Billing and Collecting | G19: ='App.2-JA_OM&A_Summary_Analys'!$E$12 -> 2011 Actuals | H19: ='App.2-JA_OM&A_Summary_Analys'!E$19 -> 0
A20: ='LDC Info'!$E$14 -> Algoma Power Inc. | B20: EB-2019-0019 | C20: 2020 | D20: 2019 | E20: 2015 | F20: Community Relations | G20: ='App.2-JA_OM&A_Summary_Analys'!$E$12 -> 2011 Actuals | H20: ='App.2-JA_OM&A_Summary_Analys'!E$20 -> 0
A21: ='LDC Info'!$E$14 -> Algoma Power Inc. | B21: EB-2019-0019 | C21: 2020 | D21: 2019 | E21: 2015 | F21: Administrative and General | G21: ='App.2-JA_OM&A_Summary_Analys'!$E$12 -> 2011 Actuals | H21: ='App.2-JA_OM&A_Summary_Analys'!E$21 -> 0
A22: ='LDC Info'!$E$14 -> Algoma Power Inc. | B22: EB-2019-0019 | C22: 2020 | D22: 2019 | E22: 2015 | F22: Operations | G22: ='App.2-JA_OM&A_Summary_Analys'!$F$12 -> 2012 Board Approved | H22: ='App.2-JA_OM&A_Summary_Analys'!F$14 -> 0
A23: ='LDC Info'!$E$14 -> Algoma Power Inc. | B23: EB-2019-0019 | C23: 2020 | D23: 2019 | E23: 2015 | F23: Maintenance | G23: ='App.2-JA_OM&A_Summary_Analys'!$F$12 -> 2012 Board Approved | H23: ='App.2-JA_OM&A_Summary_Analys'!F$15 -> 0
A24: ='LDC Info'!$E$14 -> Algoma Power Inc. | B24: EB-2019-0019 | C24: 2020 | D24: 2019 | E24: 2015 | F24: Billing and Collecting | G24: ='App.2-JA_OM&A_Summary_Analys'!$F$12 -> 2012 Board Approved | H24: ='App.2-JA_OM&A_Summary_Analys'!F$19 -> 0
A25: ='LDC Info'!$E$14 -> Algoma Power Inc. | B25: EB-2019-0019 | C25: 2020 | D25: 2019 | E25: 2015 | F25: Community Relations | G25: ='App.2-JA_OM&A_Summary_Analys'!$F$12 -> 2012 Board Approved | H25: ='App.2-JA_OM&A_Summary_Analys'!F$20 -> 0
A26: ='LDC Info'!$E$14 -> Algoma Power Inc. | B26: EB-2019-0019 | C26: 2020 | D26: 2019 | E26: 2015 | F26: Administrative and General | G26: ='App.2-JA_OM&A_Summary_Analys'!$F$12 -> 2012 Board Approved | H26: ='App.2-JA_OM&A_Summary_Analys'!F$21 -> 0
A27: ='LDC Info'!$E$14 -> Algoma Power Inc. | B27: EB-2019-0019 | C27: 2020 | D27: 2019 | E27: 2015 | F27: Operations | G27: ='App.2-JA_OM&A_Summary_Analys'!$G$12 -> 2012 Actuals | H27: ='App.2-JA_OM&A_Summary_Analys'!G$14 -> 0
A28: ='LDC Info'!$E$14 -> Algoma Power Inc. | B28: EB-2019-0019 | C28: 2020 | D28: 2019 | E28: 2015 | F28: Maintenance | G28: ='App.2-JA_OM&A_Summary_Analys'!$G$12 -> 2012 Actuals | H28: ='App.2-JA_OM&A_Summary_Analys'!G$15 -> 0
A29: ='LDC Info'!$E$14 -> Algoma Power Inc. | B29: =EBNUMBER -> EB-2019-0019 | C29: =TestYear -> 2020 | D29: =BridgeYear -> 2019 | E29: =RebaseYear -> 2015 | F29: Billing and Collecting | G29: ='App.2-JA_OM&A_Summary_Analys'!$G$12 -> 2012 Actuals | H29: ='App.2-JA_OM&A_Summary_Analys'!G$19 -> 0
A30: ='LDC Info'!$E$14 -> Algoma Power Inc. | B30: EB-2019-0019 | C30: 2020 | D30: 2019 | E30: 2015 | F30: Community Relations | G30: ='App.2-JA_OM&A_Summary_Analys'!$G$12 -> 2012 Actuals | H30: ='App.2-JA_OM&A_Summary_Analys'!G$20 -> 0
